Workbook

Sheet Auction-Rank (hidden)
A1: PLAYERNAME | B1: PlayerID | C1: Pos | D1: OF Pos | E1: TEAM | F1: Age | G1: 1.RotoChamp | H1: 2.CBS | I1: 4.ESPN | J1: 5.Yahoo_Proj | K1: 6.Yahoo_Mock | L1: 7.FantasyPro_Exp | M1: 8.FantasyPro_Proj | N1: 9.Exp_Avg | O1: 10.Import | P1: RotoChamp | Q1: Yahoo Staff | R1: ESPN Tristan | S1: ESPN Karabell | T1: Fantasy Pros Avg | U1: MC | V1: Team In Sheet? | W1: Rank Chosen | X1: Filtered-Rank | Y1: Chosen Auction | Z1: Filtered Auction | AA1: Adjusted Filter | AB1: =IF(VLOOKUP(A2,'Name-Sort'!$D$2:$E$948,2,FALSE)="",A2,"") -> Bryan Abreu | AC1: =IFERROR(INDEX($AB$1:$AB$948,SMALL(IF($AB$1:$AB$948<>"",ROW($AB$1:$AB$948)),ROW(AB1))),"") -> Bryan Abreu
A2: Bryan Abreu | B2: abreubr01 | C2: RP | E2: HOU | F2: 22 | N2: 0 | O2: =IFERROR(VLOOKUP(A2,'Import (Values)'!$B$2:$C$999,2,FALSE)/3120,"") ->  | V2: =IFERROR(INDEX('Guts-2'!$K$1:$K$30,MATCH(E2,'Guts-2'!$J$1:$J$30,0)),TRUE) -> TRUE | W2: =IF(V2=FALSE,"",IFERROR(CHOOSE('Guts-2'!$D$27,P2,Q2,R2,S2,T2,U2),"")) ->  | X2: =IFERROR(RANK(W2,$W$2:$W$948,1),"") ->  | Y2: =IFERROR(IF(INDEX('Auction-Rank'!$G$1:$O$948,MATCH($A2,'Auction-Rank'!$A$1:$A$948,0),'Guts-2'!$D$26)="","",INDEX('Auction-Rank'!$G$1:$O$948,MATCH($A2,'Auction-Rank'!$A$1:$A$948,0),'Guts-2'!$D$26)),"") -> 0 | Z2: =IF(V2=FALSE,"",IFERROR(IF(INDEX('Auction-Rank'!$G$1:$O$948,MATCH($A2,'Auction-Rank'!$A$1:$A$948,0),'Guts-2'!$D$26)="","",INDEX('Auction-Rank'!$G$1:$O$948,MATCH($A2,'Auction-Rank'!$A$1:$A$948,0),'Guts-2'!$D$26)),"")) -> 0 | AA2: =IF(Z2="","",IF(V2=FALSE,"",Z2*(SUMIF($Y$2:$Y$948,"<>""",$Y$2:$Y$948)/SUMIF($Z$2:$Z$948,"<>""",$Z$2:$Z$948)))) -> 0 | AB2: =IF(VLOOKUP(A3,'Name-Sort'!$D$2:$E$948,2,FALSE)="",A3,"") -> Jose Abreu | AC2: =IFERROR(INDEX($AB$1:$AB$948,SMALL(IF($AB$1:$AB$948<>"",ROW($AB$1:$AB$948)),ROW(AB2))),"") -> Jose Abreu
A3: Jose Abreu | B3: abreujo02 | C3: 1B | E3: CHW | F3: 33 | G3: 0.005013888889 | H3: 0.003333333333 | J3: 0.004166666667 | K3: 0.004416666667 | M3: 0.005 | N3: 0.003655092593 | O3: =IFERROR(VLOOKUP(A3,'Import (Values)'!$B$2:$C$999,2,FALSE)/3120,"") ->  | P3: 61 | Q3: 73 | R3: 65 | S3: 74 | T3: 66 | V3: =IFERROR(INDEX('Guts-2'!$K$1:$K$30,MATCH(E3,'Guts-2'!$J$1:$J$30,0)),TRUE) -> TRUE | W3: =IF(V3=FALSE,"",IFERROR(CHOOSE('Guts-2'!$D$27,P3,Q3,R3,S3,T3,U3),"")) -> 66 | X3: 66 | Y3: =IFERROR(IF(INDEX('Auction-Rank'!$G$1:$O$948,MATCH($A3,'Auction-Rank'!$A$1:$A$948,0),'Guts-2'!$D$26)="","",INDEX('Auction-Rank'!$G$1:$O$948,MATCH($A3,'Auction-Rank'!$A$1:$A$948,0),'Guts-2'!$D$26)),"") -> 0.003655092593 | Z3: =IF(V3=FALSE,"",IFERROR(IF(INDEX('Auction-Rank'!$G$1:$O$948,MATCH($A3,'Auction-Rank'!$A$1:$A$948,0),'Guts-2'!$D$26)="","",INDEX('Auction-Rank'!$G$1:$O$948,MATCH($A3,'Auction-Rank'!$A$1:$A$948,0),'Guts-2'!$D$26)),"")) -> 0.003655092593 | AA3: =IF(Z3="","",IF(V3=FALSE,"",Z3*(SUMIF($Y$2:$Y$948,"<>""",$Y$2:$Y$948)/SUMIF($Z$2:$Z$948,"<>""",$Z$2:$Z$948)))) -> 0.003655092593 | AB3: =IF(VLOOKUP(A4,'Name-Sort'!$D$2:$E$948,2,FALSE)="",A4,"") -> Ronald Acuna | AC3: =IFERROR(INDEX($AB$1:$AB$948,SMALL(IF($AB$1:$AB$948<>"",ROW($AB$1:$AB$948)),ROW(AB3))),"") -> Ronald Acuna
A4: Ronald Acuna | B4: acunaro01 | C4: OF | D4: LF,CF,RF | E4: ATL | F4: 22 | G4: 0.0114 | H4: 0.01166666667 | J4: 0.01333333333 | K4: 0.01577777778 | M4: 0.01111111111 | N4: 0.01054814815 | O4: =IFERROR(VLOOKUP(A4,'Import (Values)'!$B$2:$C$999,2,FALSE)/3120,"") -> 0.01185897436 | P4: 3 | Q4: 1 | R4: 2 | S4: 1 | T4: 1 | V4: =IFERROR(INDEX('Guts-2'!$K$1:$K$30,MATCH(E4,'Guts-2'!$J$1:$J$30,0)),TRUE) -> TRUE | W4: =IF(V4=FALSE,"",IFERROR(CHOOSE('Guts-2'!$D$27,P4,Q4,R4,S4,T4,U4),"")) -> 1 | X4: 1 | Y4: =IFERROR(IF(INDEX('Auction-Rank'!$G$1:$O$948,MATCH($A4,'Auction-Rank'!$A$1:$A$948,0),'Guts-2'!$D$26)="","",INDEX('Auction-Rank'!$G$1:$O$948,MATCH($A4,'Auction-Rank'!$A$1:$A$948,0),'Guts-2'!$D$26)),"") -> 0.01054814815 | Z4: =IF(V4=FALSE,"",IFERROR(IF(INDEX('Auction-Rank'!$G$1:$O$948,MATCH($A4,'Auction-Rank'!$A$1:$A$948,0),'Guts-2'!$D$26)="","",INDEX('Auction-Rank'!$G$1:$O$948,MATCH($A4,'Auction-Rank'!$A$1:$A$948,0),'Guts-2'!$D$26)),"")) -> 0.01054814815 | AA4: =IF(Z4="","",IF(V4=FALSE,"",Z4*(SUMIF($Y$2:$Y$948,"<>""",$Y$2:$Y$948)/SUMIF($Z$2:$Z$948,"<>""",$Z$2:$Z$948)))) -> 0.01054814815 | AB4: =IF(VLOOKUP(A5,'Name-Sort'!$D$2:$E$948,2,FALSE)="",A5,"") -> Willy Adames | AC4: =IFERROR(INDEX($AB$1:$AB$948,SMALL(IF($AB$1:$AB$948<>"",ROW($AB$1:$AB$948)),ROW(AB4))),"") -> Willy Adames
A5: Willy Adames | B5: adamewi01 | C5: SS | E5: TB | F5: 24 | J5: 0 | K5: 0.0002777777778 | M5: 0.0005555555556 | N5: 0.0002083333333 | O5: =IFERROR(VLOOKUP(A5,'Import (Values)'!$B$2:$C$999,2,FALSE)/3120,"") ->  | Q5: 305 | R5: 287 | S5: 298 | T5: 285 | V5: =IFERROR(INDEX('Guts-2'!$K$1:$K$30,MATCH(E5,'Guts-2'!$J$1:$J$30,0)),TRUE) -> TRUE | W5: =IF(V5=FALSE,"",IFERROR(CHOOSE('Guts-2'!$D$27,P5,Q5,R5,S5,T5,U5),"")) -> 285 | X5: 285 | Y5: =IFERROR(IF(INDEX('Auction-Rank'!$G$1:$O$948,MATCH($A5,'Auction-Rank'!$A$1:$A$948,0),'Guts-2'!$D$26)="","",INDEX('Auction-Rank'!$G$1:$O$948,MATCH($A5,'Auction-Rank'!$A$1:$A$948,0),'Guts-2'!$D$26)),"") -> 0.0002083333333 | Z5: =IF(V5=FALSE,"",IFERROR(IF(INDEX('Auction-Rank'!$G$1:$O$948,MATCH($A5,'Auction-Rank'!$A$1:$A$948,0),'Guts-2'!$D$26)="","",INDEX('Auction-Rank'!$G$1:$O$948,MATCH($A5,'Auction-Rank'!$A$1:$A$948,0),'Guts-2'!$D$26)),"")) -> 0.0002083333333 | AA5: =IF(Z5="","",IF(V5=FALSE,"",Z5*(SUMIF($Y$2:$Y$948,"<>""",$Y$2:$Y$948)/SUMIF($Z$2:$Z$948,"<>""",$Z$2:$Z$948)))) -> 0.0002083333333 | AB5: =IF(VLOOKUP(A6,'Name-Sort'!$D$2:$E$948,2,FALSE)="",A6,"") -> Matt Adams | AC5: =IFERROR(INDEX($AB$1:$AB$948,SMALL(IF($AB$1:$AB$948<>"",ROW($AB$1:$AB$948)),ROW(AB5))),"") -> Matt Adams
A6: Matt Adams | B6: adamsma01 | C6: 1B | E6: NYM | F6: 31 | N6: 0 | O6: =IFERROR(VLOOKUP(A6,'Import (Values)'!$B$2:$C$999,2,FALSE)/3120,"") ->  | T6: 586 | V6: =IFERROR(INDEX('Guts-2'!$K$1:$K$30,MATCH(E6,'Guts-2'!$J$1:$J$30,0)),TRUE) -> TRUE | W6: =IF(V6=FALSE,"",IFERROR(CHOOSE('Guts-2'!$D$27,P6,Q6,R6,S6,T6,U6),"")) -> 586 | X6: 579 | Y6: =IFERROR(IF(INDEX('Auction-Rank'!$G$1:$O$948,MATCH($A6,'Auction-Rank'!$A$1:$A$948,0),'Guts-2'!$D$26)="","",INDEX('Auction-Rank'!$G$1:$O$948,MATCH($A6,'Auction-Rank'!$A$1:$A$948,0),'Guts-2'!$D$26)),"") -> 0 | Z6: =IF(V6=FALSE,"",IFERROR(IF(INDEX('Auction-Rank'!$G$1:$O$948,MATCH($A6,'Auction-Rank'!$A$1:$A$948,0),'Guts-2'!$D$26)="","",INDEX('Auction-Rank'!$G$1:$O$948,MATCH($A6,'Auction-Rank'!$A$1:$A$948,0),'Guts-2'!$D$26)),"")) -> 0 | AA6: =IF(Z6="","",IF(V6=FALSE,"",Z6*(SUMIF($Y$2:$Y$948,"<>""",$Y$2:$Y$948)/SUMIF($Z$2:$Z$948,"<>""",$Z$2:$Z$948)))) -> 0 | AB6: =IF(VLOOKUP(A7,'Name-Sort'!$D$2:$E$948,2,FALSE)="",A7,"") -> Jo Adell | AC6: =IFERROR(INDEX($AB$1:$AB$948,SMALL(IF($AB$1:$AB$948<>"",ROW($AB$1:$AB$948)),ROW(AB6))),"") -> Jo Adell
A7: Jo Adell | B7: adelljo01 | C7: OF | D7: LF,CF,RF | E7: LAA | F7: 20 | H7: 0.0008333333333 | J7: 0.0002777777778 | K7: 0.0004722222222 | N7: 0.0003958333333 | O7: =IFERROR(VLOOKUP(A7,'Import (Values)'!$B$2:$C$999,2,FALSE)/3120,"") ->  | Q7: 283 | S7: 224 | T7: 268 | V7: =IFERROR(INDEX('Guts-2'!$K$1:$K$30,MATCH(E7,'Guts-2'!$J$1:$J$30,0)),TRUE) -> TRUE | W7: =IF(V7=FALSE,"",IFERROR(CHOOSE('Guts-2'!$D$27,P7,Q7,R7,S7,T7,U7),"")) -> 268 | X7: 268 | Y7: =IFERROR(IF(INDEX('Auction-Rank'!$G$1:$O$948,MATCH($A7,'Auction-Rank'!$A$1:$A$948,0),'Guts-2'!$D$26)="","",INDEX('Auction-Rank'!$G$1:$O$948,MATCH($A7,'Auction-Rank'!$A$1:$A$948,0),'Guts-2'!$D$26)),"") -> 0.0003958333333 | Z7: =IF(V7=FALSE,"",IFERROR(IF(INDEX('Auction-Rank'!$G$1:$O$948,MATCH($A7,'Auction-Rank'!$A$1:$A$948,0),'Guts-2'!$D$26)="","",INDEX('Auction-Rank'!$G$1:$O$948,MATCH($A7,'Auction-Rank'!$A$1:$A$948,0),'Guts-2'!$D$26)),"")) -> 0.0003958333333 | AA7: =IF(Z7="","",IF(V7=FALSE,"",Z7*(SUMIF($Y$2:$Y$948,"<>""",$Y$2:$Y$948)/SUMIF($Z$2:$Z$948,"<>""",$Z$2:$Z$948)))) -> 0.0003958333333 | AB7: =IF(VLOOKUP(A8,'Name-Sort'!$D$2:$E$948,2,FALSE)="",A8,"") -> Ehire Adrianza | AC7: =IFERROR(INDEX($AB$1:$AB$948,SMALL(IF($AB$1:$AB$948<>"",ROW($AB$1:$AB$948)),ROW(AB7))),"") -> Ehire Adrianza
A8: Ehire Adrianza | B8: adriaeh01 | C8: SS | D8: RF | E8: MIN | F8: 30 | N8: 0 | O8: =IFERROR(VLOOKUP(A8,'Import (Values)'!$B$2:$C$999,2,FALSE)/3120,"") ->  | V8: =IFERROR(INDEX('Guts-2'!$K$1:$K$30,MATCH(E8,'Guts-2'!$J$1:$J$30,0)),TRUE) -> TRUE | W8: =IF(V8=FALSE,"",IFERROR(CHOOSE('Guts-2'!$D$27,P8,Q8,R8,S8,T8,U8),"")) ->  | Y8: =IFERROR(IF(INDEX('Auction-Rank'!$G$1:$O$948,MATCH($A8,'Auction-Rank'!$A$1:$A$948,0),'Guts-2'!$D$26)="","",INDEX('Auction-Rank'!$G$1:$O$948,MATCH($A8,'Auction-Rank'!$A$1:$A$948,0),'Guts-2'!$D$26)),"") -> 0 | Z8: =IF(V8=FALSE,"",IFERROR(IF(INDEX('Auction-Rank'!$G$1:$O$948,MATCH($A8,'Auction-Rank'!$A$1:$A$948,0),'Guts-2'!$D$26)="","",INDEX('Auction-Rank'!$G$1:$O$948,MATCH($A8,'Auction-Rank'!$A$1:$A$948,0),'Guts-2'!$D$26)),"")) -> 0 | AA8: =IF(Z8="","",IF(V8=FALSE,"",Z8*(SUMIF($Y$2:$Y$948,"<>""",$Y$2:$Y$948)/SUMIF($Z$2:$Z$948,"<>""",$Z$2:$Z$948)))) -> 0 | AB8: =IF(VLOOKUP(A9,'Name-Sort'!$D$2:$E$948,2,FALSE)="",A9,"") -> Dario Agrazal | AC8: =IFERROR(INDEX($AB$1:$AB$948,SMALL(IF($AB$1:$AB$948<>"",ROW($AB$1:$AB$948)),ROW(AB8))),"") -> Dario Agrazal
A9: Dario Agrazal | B9: agrazda01 | C9: RP | E9: DET | F9: 25 | N9: 0 | O9: =IFERROR(VLOOKUP(A9,'Import (Values)'!$B$2:$C$999,2,FALSE)/3120,"") ->  | V9: =IFERROR(INDEX('Guts-2'!$K$1:$K$30,MATCH(E9,'Guts-2'!$J$1:$J$30,0)),TRUE) -> TRUE | W9: =IF(V9=FALSE,"",IFERROR(CHOOSE('Guts-2'!$D$27,P9,Q9,R9,S9,T9,U9),"")) ->  | Y9: =IFERROR(IF(INDEX('Auction-Rank'!$G$1:$O$948,MATCH($A9,'Auction-Rank'!$A$1:$A$948,0),'Guts-2'!$D$26)="","",INDEX('Auction-Rank'!$G$1:$O$948,MATCH($A9,'Auction-Rank'!$A$1:$A$948,0),'Guts-2'!$D$26)),"") -> 0 | Z9: =IF(V9=FALSE,"",IFERROR(IF(INDEX('Auction-Rank'!$G$1:$O$948,MATCH($A9,'Auction-Rank'!$A$1:$A$948,0),'Guts-2'!$D$26)="","",INDEX('Auction-Rank'!$G$1:$O$948,MATCH($A9,'Auction-Rank'!$A$1:$A$948,0),'Guts-2'!$D$26)),"")) -> 0 | AA9: =IF(Z9="","",IF(V9=FALSE,"",Z9*(SUMIF($Y$2:$Y$948,"<>""",$Y$2:$Y$948)/SUMIF($Z$2:$Z$948,"<>""",$Z$2:$Z$948)))) -> 0 | AB9: =IF(VLOOKUP(A10,'Name-Sort'!$D$2:$E$948,2,FALSE)="",A10,"") -> Jesus Aguilar | AC9: =IFERROR(INDEX($AB$1:$AB$948,SMALL(IF($AB$1:$AB$948<>"",ROW($AB$1:$AB$948)),ROW(AB9))),"") -> Jesus Aguilar
A10: Jesus Aguilar | B10: aguilje01 | C10: 1B | E10: MIA | F10: 29 | J10: 0 | K10: 0.0002777777778 | N10: 9.259259259e-05 | O10: =IFERROR(VLOOKUP(A10,'Import (Values)'!$B$2:$C$999,2,FALSE)/3120,"") ->  | Q10: 382 | S10: 276 | T10: 322 | V10: =IFERROR(INDEX('Guts-2'!$K$1:$K$30,MATCH(E10,'Guts-2'!$J$1:$J$30,0)),TRUE) -> TRUE | W10: =IF(V10=FALSE,"",IFERROR(CHOOSE('Guts-2'!$D$27,P10,Q10,R10,S10,T10,U10),"")) -> 322 | X10: 322 | Y10: =IFERROR(IF(INDEX('Auction-Rank'!$G$1:$O$948,MATCH($A10,'Auction-Rank'!$A$1:$A$948,0),'Guts-2'!$D$26)="","",INDEX('Auction-Rank'!$G$1:$O$948,MATCH($A10,'Auction-Rank'!$A$1:$A$948,0),'Guts-2'!$D$26)),"") -> 9.259259259e-05 | Z10: =IF(V10=FALSE,"",IFERROR(IF(INDEX('Auction-Rank'!$G$1:$O$948,MATCH($A10,'Auction-Rank'!$A$1:$A$948,0),'Guts-2'!$D$26)="","",INDEX('Auction-Rank'!$G$1:$O$948,MATCH($A10,'Auction-Rank'!$A$1:$A$948,0),'Guts-2'!$D$26)),"")) -> 9.259259259e-05 | AA10: =IF(Z10="","",IF(V10=FALSE,"",Z10*(SUMIF($Y$2:$Y$948,"<>""",$Y$2:$Y$948)/SUMIF($Z$2:$Z$948,"<>""",$Z$2:$Z$948)))) -> 9.259259259e-05 | AB10: =IF(VLOOKUP(A11,'Name-Sort'!$D$2:$E$948,2,FALSE)="",A11,"") -> Nick Ahmed | AC10: =IFERROR(INDEX($AB$1:$AB$948,SMALL(IF($AB$1:$AB$948<>"",ROW($AB$1:$AB$948)),ROW(AB10))),"") -> Nick Ahmed
A11: Nick Ahmed | B11: ahmedni01 | C11: SS | E11: ARI | F11: 30 | J11: 0 | K11: 0.0002777777778 | M11: 0.0002777777778 | N11: 0.0001388888889 | O11: =IFERROR(VLOOKUP(A11,'Import (Values)'!$B$2:$C$999,2,FALSE)/3120,"") ->  | Q11: 358 | T11: 324 | V11: =IFERROR(INDEX('Guts-2'!$K$1:$K$30,MATCH(E11,'Guts-2'!$J$1:$J$30,0)),TRUE) -> TRUE | W11: =IF(V11=FALSE,"",IFERROR(CHOOSE('Guts-2'!$D$27,P11,Q11,R11,S11,T11,U11),"")) -> 324 | X11: 324 | Y11: =IFERROR(IF(INDEX('Auction-Rank'!$G$1:$O$948,MATCH($A11,'Auction-Rank'!$A$1:$A$948,0),'Guts-2'!$D$26)="","",INDEX('Auction-Rank'!$G$1:$O$948,MATCH($A11,'Auction-Rank'!$A$1:$A$948,0),'Guts-2'!$D$26)),"") -> 0.0001388888889 | Z11: =IF(V11=FALSE,"",IFERROR(IF(INDEX('Auction-Rank'!$G$1:$O$948,MATCH($A11,'Auction-Rank'!$A$1:$A$948,0),'Guts-2'!$D$26)="","",INDEX('Auction-Rank'!$G$1:$O$948,MATCH($A11,'Auction-Rank'!$A$1:$A$948,0),'Guts-2'!$D$26)),"")) -> 0.0001388888889 | AA11: =IF(Z11="","",IF(V11=FALSE,"",Z11*(SUMIF($Y$2:$Y$948,"<>""",$Y$2:$Y$948)/SUMIF($Z$2:$Z$948,"<>""",$Z$2:$Z$948)))) -> 0.0001388888889 | AB11: =IF(VLOOKUP(A12,'Name-Sort'!$D$2:$E$948,2,FALSE)="",A12,"") -> Shogo Akiyama | AC11: =IFERROR(INDEX($AB$1:$AB$948,SMALL(IF($AB$1:$AB$948<>"",ROW($AB$1:$AB$948)),ROW(AB11))),"") -> Shogo Akiyama
A12: Shogo Akiyama | B12: akimash01 | C12: OF | E12: CIN | F12: 31 | J12: 0 | K12: 0.0004166666667 | M12: 0.0005555555556 | N12: 0.0002430555556 | O12: =IFERROR(VLOOKUP(A12,'Import (Values)'!$B$2:$C$999,2,FALSE)/3120,"") ->  | Q12: 338 | T12: 372 | V12: =IFERROR(INDEX('Guts-2'!$K$1:$K$30,MATCH(E12,'Guts-2'!$J$1:$J$30,0)),TRUE) -> TRUE | W12: =IF(V12=FALSE,"",IFERROR(CHOOSE('Guts-2'!$D$27,P12,Q12,R12,S12,T12,U12),"")) -> 372 | X12: 371 | Y12: =IFERROR(IF(INDEX('Auction-Rank'!$G$1:$O$948,MATCH($A12,'Auction-Rank'!$A$1:$A$948,0),'Guts-2'!$D$26)="","",INDEX('Auction-Rank'!$G$1:$O$948,MATCH($A12,'Auction-Rank'!$A$1:$A$948,0),'Guts-2'!$D$26)),"") -> 0.0002430555556 | Z12: =IF(V12=FALSE,"",IFERROR(IF(INDEX('Auction-Rank'!$G$1:$O$948,MATCH($A12,'Auction-Rank'!$A$1:$A$948,0),'Guts-2'!$D$26)="","",INDEX('Auction-Rank'!$G$1:$O$948,MATCH($A12,'Auction-Rank'!$A$1:$A$948,0),'Guts-2'!$D$26)),"")) -> 0.0002430555556 | AA12: =IF(Z12="","",IF(V12=FALSE,"",Z12*(SUMIF($Y$2:$Y$948,"<>""",$Y$2:$Y$948)/SUMIF($Z$2:$Z$948,"<>""",$Z$2:$Z$948)))) -> 0.0002430555556 | AB12: =IF(VLOOKUP(A13,'Name-Sort'!$D$2:$E$948,2,FALSE)="",A13,"") -> Hanser Alberto | AC12: =IFERROR(INDEX($AB$1:$AB$948,SMALL(IF($AB$1:$AB$948<>"",ROW($AB$1:$AB$948)),ROW(AB12))),"") -> Hanser Alberto
A13: Hanser Alberto | B13: alberha01 | C13: 2B | E13: BAL | F13: 27 | G13: 0.0005277777778 | J13: 0 | K13: 0.0002777777778 | N13: 0.0002013888889 | O13: =IFERROR(VLOOKUP(A13,'Import (Values)'!$B$2:$C$999,2,FALSE)/3120,"") ->  | P13: 243 | Q13: 354 | T13: 326 | V13: =IFERROR(INDEX('Guts-2'!$K$1:$K$30,MATCH(E13,'Guts-2'!$J$1:$J$30,0)),TRUE) -> TRUE | W13: =IF(V13=FALSE,"",IFERROR(CHOOSE('Guts-2'!$D$27,P13,Q13,R13,S13,T13,U13),"")) -> 326 | X13: 326 | Y13: =IFERROR(IF(INDEX('Auction-Rank'!$G$1:$O$948,MATCH($A13,'Auction-Rank'!$A$1:$A$948,0),'Guts-2'!$D$26)="","",INDEX('Auction-Rank'!$G$1:$O$948,MATCH($A13,'Auction-Rank'!$A$1:$A$948,0),'Guts-2'!$D$26)),"") -> 0.0002013888889 | Z13: =IF(V13=FALSE,"",IFERROR(IF(INDEX('Auction-Rank'!$G$1:$O$948,MATCH($A13,'Auction-Rank'!$A$1:$A$948,0),'Guts-2'!$D$26)="","",INDEX('Auction-Rank'!$G$1:$O$948,MATCH($A13,'Auction-Rank'!$A$1:$A$948,0),'Guts-2'!$D$26)),"")) -> 0.0002013888889 | AA13: =IF(Z13="","",IF(V13=FALSE,"",Z13*(SUMIF($Y$2:$Y$948,"<>""",$Y$2:$Y$948)/SUMIF($Z$2:$Z$948,"<>""",$Z$2:$Z$948)))) -> 0.0002013888889 | AB13: =IF(VLOOKUP(A14,'Name-Sort'!$D$2:$E$948,2,FALSE)="",A14,"") -> Ozzie Albies | AC13: =IFERROR(INDEX($AB$1:$AB$948,SMALL(IF($AB$1:$AB$948<>"",ROW($AB$1:$AB$948)),ROW(AB13))),"") -> Ozzie Albies
A14: Ozzie Albies | B14: albieoz01 | C14: 2B | E14: ATL | F14: 23 | G14: 0.005072222222 | H14: 0.006666666667 | J14: 0.005833333333 | K14: 0.006222222222 | M14: 0.005555555556 | N14: 0.004891666667 | O14: =IFERROR(VLOOKUP(A14,'Import (Values)'!$B$2:$C$999,2,FALSE)/3120,"") ->  | P14: 58 | Q14: 39 | R14: 46 | S14: 47 | T14: 40 | V14: =IFERROR(INDEX('Guts-2'!$K$1:$K$30,MATCH(E14,'Guts-2'!$J$1:$J$30,0)),TRUE) -> TRUE | W14: =IF(V14=FALSE,"",IFERROR(CHOOSE('Guts-2'!$D$27,P14,Q14,R14,S14,T14,U14),"")) -> 40 | X14: 40 | Y14: =IFERROR(IF(INDEX('Auction-Rank'!$G$1:$O$948,MATCH($A14,'Auction-Rank'!$A$1:$A$948,0),'Guts-2'!$D$26)="","",INDEX('Auction-Rank'!$G$1:$O$948,MATCH($A14,'Auction-Rank'!$A$1:$A$948,0),'Guts-2'!$D$26)),"") -> 0.004891666667 | Z14: =IF(V14=FALSE,"",IFERROR(IF(INDEX('Auction-Rank'!$G$1:$O$948,MATCH($A14,'Auction-Rank'!$A$1:$A$948,0),'Guts-2'!$D$26)="","",INDEX('Auction-Rank'!$G$1:$O$948,MATCH($A14,'Auction-Rank'!$A$1:$A$948,0),'Guts-2'!$D$26)),"")) -> 0.004891666667 | AA14: =IF(Z14="","",IF(V14=FALSE,"",Z14*(SUMIF($Y$2:$Y$948,"<>""",$Y$2:$Y$948)/SUMIF($Z$2:$Z$948,"<>""",$Z$2:$Z$948)))) -> 0.004891666667 | AB14: =IF(VLOOKUP(A15,'Name-Sort'!$D$2:$E$948,2,FALSE)="",A15,"") -> Sandy Alcantara | AC14: =IFERROR(INDEX($AB$1:$AB$948,SMALL(IF($AB$1:$AB$948<>"",ROW($AB$1:$AB$948)),ROW(AB14))),"") -> Sandy Alcantara
A15: Sandy Alcantara | B15: alcansa01 | C15: SP | E15: MIA | F15: 24 | H15: 0.0002777777778 | J15: 0.0002777777778 | K15: 0.0003333333333 | N15: 0.0002222222222 | O15: =IFERROR(VLOOKUP(A15,'Import (Values)'!$B$2:$C$999,2,FALSE)/3120,"") ->  | Q15: 277 | R15: 289 | S15: 182 | T15: 247 | V15: =IFERROR(INDEX('Guts-2'!$K$1:$K$30,MATCH(E15,'Guts-2'!$J$1:$J$30,0)),TRUE) -> TRUE | W15: =IF(V15=FALSE,"",IFERROR(CHOOSE('Guts-2'!$D$27,P15,Q15,R15,S15,T15,U15),"")) -> 247 | X15: 247 | Y15: =IFERROR(IF(INDEX('Auction-Rank'!$G$1:$O$948,MATCH($A15,'Auction-Rank'!$A$1:$A$948,0),'Guts-2'!$D$26)="","",INDEX('Auction-Rank'!$G$1:$O$948,MATCH($A15,'Auction-Rank'!$A$1:$A$948,0),'Guts-2'!$D$26)),"") -> 0.0002222222222 | Z15: =IF(V15=FALSE,"",IFERROR(IF(INDEX('Auction-Rank'!$G$1:$O$948,MATCH($A15,'Auction-Rank'!$A$1:$A$948,0),'Guts-2'!$D$26)="","",INDEX('Auction-Rank'!$G$1:$O$948,MATCH($A15,'Auction-Rank'!$A$1:$A$948,0),'Guts-2'!$D$26)),"")) -> 0.0002222222222 | AA15: =IF(Z15="","",IF(V15=FALSE,"",Z15*(SUMIF($Y$2:$Y$948,"<>""",$Y$2:$Y$948)/SUMIF($Z$2:$Z$948,"<>""",$Z$2:$Z$948)))) -> 0.0002222222222 | AB15: =IF(VLOOKUP(A16,'Name-Sort'!$D$2:$E$948,2,FALSE)="",A16,"") -> Jorge Alfaro | AC15: =IFERROR(INDEX($AB$1:$AB$948,SMALL(IF($AB$1:$AB$948<>"",ROW($AB$1:$AB$948)),ROW(AB15))),"") -> Jorge Alfaro
A16: Jorge Alfaro | B16: alfarjo01 | C16: C | E16: MIA | F16: 26 | G16: 0.0006583333333 | H16: 0.0002777777778 | J16: 0.0002777777778 | K16: 0.0003611111111 | N16: 0.000315 | O16: =IFERROR(VLOOKUP(A16,'Import (Values)'!$B$2:$C$999,2,FALSE)/3120,"") ->  | P16: 234 | Q16: 286 | T16: 313 | V16: =IFERROR(INDEX('Guts-2'!$K$1:$K$30,MATCH(E16,'Guts-2'!$J$1:$J$30,0)),TRUE) -> TRUE | W16: =IF(V16=FALSE,"",IFERROR(CHOOSE('Guts-2'!$D$27,P16,Q16,R16,S16,T16,U16),"")) -> 313 | X16: 313 | Y16: =IFERROR(IF(INDEX('Auction-Rank'!$G$1:$O$948,MATCH($A16,'Auction-Rank'!$A$1:$A$948,0),'Guts-2'!$D$26)="","",INDEX('Auction-Rank'!$G$1:$O$948,MATCH($A16,'Auction-Rank'!$A$1:$A$948,0),'Guts-2'!$D$26)),"") -> 0.000315 | Z16: =IF(V16=FALSE,"",IFERROR(IF(INDEX('Auction-Rank'!$G$1:$O$948,MATCH($A16,'Auction-Rank'!$A$1:$A$948,0),'Guts-2'!$D$26)="","",INDEX('Auction-Rank'!$G$1:$O$948,MATCH($A16,'Auction-Rank'!$A$1:$A$948,0),'Guts-2'!$D$26)),"")) -> 0.000315 | AA16: =IF(Z16="","",IF(V16=FALSE,"",Z16*(SUMIF($Y$2:$Y$948,"<>""",$Y$2:$Y$948)/SUMIF($Z$2:$Z$948,"<>""",$Z$2:$Z$948)))) -> 0.000315 | AB16: =IF(VLOOKUP(A17,'Name-Sort'!$D$2:$E$948,2,FALSE)="",A17,"") -> Kolby Allard | AC16: =IFERROR(INDEX($AB$1:$AB$948,SMALL(IF($AB$1:$AB$948<>"",ROW($AB$1:$AB$948)),ROW(AB16))),"") -> Kolby Allard
A17: Kolby Allard | B17: allarko01 | C17: SP | E17: TEX | F17: 22 | N17: 0 | O17: =IFERROR(VLOOKUP(A17,'Import (Values)'!$B$2:$C$999,2,FALSE)/3120,"") ->  | T17: 584 | V17: =IFERROR(INDEX('Guts-2'!$K$1:$K$30,MATCH(E17,'Guts-2'!$J$1:$J$30,0)),TRUE) -> TRUE | W17: =IF(V17=FALSE,"",IFERROR(CHOOSE('Guts-2'!$D$27,P17,Q17,R17,S17,T17,U17),"")) -> 584 | X17: 577 | Y17: =IFERROR(IF(INDEX('Auction-Rank'!$G$1:$O$948,MATCH($A17,'Auction-Rank'!$A$1:$A$948,0),'Guts-2'!$D$26)="","",INDEX('Auction-Rank'!$G$1:$O$948,MATCH($A17,'Auction-Rank'!$A$1:$A$948,0),'Guts-2'!$D$26)),"") -> 0 | Z17: =IF(V17=FALSE,"",IFERROR(IF(INDEX('Auction-Rank'!$G$1:$O$948,MATCH($A17,'Auction-Rank'!$A$1:$A$948,0),'Guts-2'!$D$26)="","",INDEX('Auction-Rank'!$G$1:$O$948,MATCH($A17,'Auction-Rank'!$A$1:$A$948,0),'Guts-2'!$D$26)),"")) -> 0 | AA17: =IF(Z17="","",IF(V17=FALSE,"",Z17*(SUMIF($Y$2:$Y$948,"<>""",$Y$2:$Y$948)/SUMIF($Z$2:$Z$948,"<>""",$Z$2:$Z$948)))) -> 0 | AB17: =IF(VLOOKUP(A18,'Name-Sort'!$D$2:$E$948,2,FALSE)="",A18,"") -> Austin Allen | AC17: =IFERROR(INDEX($AB$1:$AB$948,SMALL(IF($AB$1:$AB$948<>"",ROW($AB$1:$AB$948)),ROW(AB17))),"") -> Austin Allen
A18: Austin Allen | B18: allenau01 | C18: C | E18: OAK | F18: 26 | N18: 0 | O18: =IFERROR(VLOOKUP(A18,'Import (Values)'!$B$2:$C$999,2,FALSE)/3120,"") ->  | V18: =IFERROR(INDEX('Guts-2'!$K$1:$K$30,MATCH(E18,'Guts-2'!$J$1:$J$30,0)),TRUE) -> TRUE | W18: =IF(V18=FALSE,"",IFERROR(CHOOSE('Guts-2'!$D$27,P18,Q18,R18,S18,T18,U18),"")) ->  | Y18: =IFERROR(IF(INDEX('Auction-Rank'!$G$1:$O$948,MATCH($A18,'Auction-Rank'!$A$1:$A$948,0),'Guts-2'!$D$26)="","",INDEX('Auction-Rank'!$G$1:$O$948,MATCH($A18,'Auction-Rank'!$A$1:$A$948,0),'Guts-2'!$D$26)),"") -> 0 | Z18: =IF(V18=FALSE,"",IFERROR(IF(INDEX('Auction-Rank'!$G$1:$O$948,MATCH($A18,'Auction-Rank'!$A$1:$A$948,0),'Guts-2'!$D$26)="","",INDEX('Auction-Rank'!$G$1:$O$948,MATCH($A18,'Auction-Rank'!$A$1:$A$948,0),'Guts-2'!$D$26)),"")) -> 0 | AA18: =IF(Z18="","",IF(V18=FALSE,"",Z18*(SUMIF($Y$2:$Y$948,"<>""",$Y$2:$Y$948)/SUMIF($Z$2:$Z$948,"<>""",$Z$2:$Z$948)))) -> 0 | AB18: =IF(VLOOKUP(A19,'Name-Sort'!$D$2:$E$948,2,FALSE)="",A19,"") -> Greg Allen | AC18: =IFERROR(INDEX($AB$1:$AB$948,SMALL(IF($AB$1:$AB$948<>"",ROW($AB$1:$AB$948)),ROW(AB18))),"") -> Greg Allen
A19: Greg Allen | B19: allengr01 | C19: OF | D19: LF,CF,RF | E19: CLE | F19: 27 | N19: 0 | O19: =IFERROR(VLOOKUP(A19,'Import (Values)'!$B$2:$C$999,2,FALSE)/3120,"") ->  | T19: 590 | V19: =IFERROR(INDEX('Guts-2'!$K$1:$K$30,MATCH(E19,'Guts-2'!$J$1:$J$30,0)),TRUE) -> TRUE | W19: =IF(V19=FALSE,"",IFERROR(CHOOSE('Guts-2'!$D$27,P19,Q19,R19,S19,T19,U19),"")) -> 590 | X19: 583 | Y19: =IFERROR(IF(INDEX('Auction-Rank'!$G$1:$O$948,MATCH($A19,'Auction-Rank'!$A$1:$A$948,0),'Guts-2'!$D$26)="","",INDEX('Auction-Rank'!$G$1:$O$948,MATCH($A19,'Auction-Rank'!$A$1:$A$948,0),'Guts-2'!$D$26)),"") -> 0 | Z19: =IF(V19=FALSE,"",IFERROR(IF(INDEX('Auction-Rank'!$G$1:$O$948,MATCH($A19,'Auction-Rank'!$A$1:$A$948,0),'Guts-2'!$D$26)="","",INDEX('Auction-Rank'!$G$1:$O$948,MATCH($A19,'Auction-Rank'!$A$1:$A$948,0),'Guts-2'!$D$26)),"")) -> 0 | AA19: =IF(Z19="","",IF(V19=FALSE,"",Z19*(SUMIF($Y$2:$Y$948,"<>""",$Y$2:$Y$948)/SUMIF($Z$2:$Z$948,"<>""",$Z$2:$Z$948)))) -> 0 | AB19: =IF(VLOOKUP(A20,'Name-Sort'!$D$2:$E$948,2,FALSE)="",A20,"") -> Logan Allen | AC19: =IFERROR(INDEX($AB$1:$AB$948,SMALL(IF($AB$1:$AB$948<>"",ROW($AB$1:$AB$948)),ROW(AB19))),"") -> Logan Allen
A20: Logan Allen | B20: allenlo01 | C20: RP | E20: CLE | F20: 22 | N20: 0 | O20: =IFERROR(VLOOKUP(A20,'Import (Values)'!$B$2:$C$999,2,FALSE)/3120,"") ->  | V20: =IFERROR(INDEX('Guts-2'!$K$1:$K$30,MATCH(E20,'Guts-2'!$J$1:$J$30,0)),TRUE) -> TRUE | W20: =IF(V20=FALSE,"",IFERROR(CHOOSE('Guts-2'!$D$27,P20,Q20,R20,S20,T20,U20),"")) ->  | Y20: =IFERROR(IF(INDEX('Auction-Rank'!$G$1:$O$948,MATCH($A20,'Auction-Rank'!$A$1:$A$948,0),'Guts-2'!$D$26)="","",INDEX('Auction-Rank'!$G$1:$O$948,MATCH($A20,'Auction-Rank'!$A$1:$A$948,0),'Guts-2'!$D$26)),"") -> 0 | Z20: =IF(V20=FALSE,"",IFERROR(IF(INDEX('Auction-Rank'!$G$1:$O$948,MATCH($A20,'Auction-Rank'!$A$1:$A$948,0),'Guts-2'!$D$26)="","",INDEX('Auction-Rank'!$G$1:$O$948,MATCH($A20,'Auction-Rank'!$A$1:$A$948,0),'Guts-2'!$D$26)),"")) -> 0 | AA20: =IF(Z20="","",IF(V20=FALSE,"",Z20*(SUMIF($Y$2:$Y$948,"<>""",$Y$2:$Y$948)/SUMIF($Z$2:$Z$948,"<>""",$Z$2:$Z$948)))) -> 0 | AB20: =IF(VLOOKUP(A21,'Name-Sort'!$D$2:$E$948,2,FALSE)="",A21,"") -> Albert Almora | AC20: =IFERROR(INDEX($AB$1:$AB$948,SMALL(IF($AB$1:$AB$948<>"",ROW($AB$1:$AB$948)),ROW(AB20))),"") -> Albert Almora
A21: Albert Almora | B21: almoral01 | C21: OF | D21: CF | E21: CHC | F21: 25 | N21: 0 | O21: =IFERROR(VLOOKUP(A21,'Import (Values)'!$B$2:$C$999,2,FALSE)/3120,"") ->  | V21: =IFERROR(INDEX('Guts-2'!$K$1:$K$30,MATCH(E21,'Guts-2'!$J$1:$J$30,0)),TRUE) -> TRUE | W21: =IF(V21=FALSE,"",IFERROR(CHOOSE('Guts-2'!$D$27,P21,Q21,R21,S21,T21,U21),"")) ->  | Y21: =IFERROR(IF(INDEX('Auction-Rank'!$G$1:$O$948,MATCH($A21,'Auction-Rank'!$A$1:$A$948,0),'Guts-2'!$D$26)="","",INDEX('Auction-Rank'!$G$1:$O$948,MATCH($A21,'Auction-Rank'!$A$1:$A$948,0),'Guts-2'!$D$26)),"") -> 0 | Z21: =IF(V21=FALSE,"",IFERROR(IF(INDEX('Auction-Rank'!$G$1:$O$948,MATCH($A21,'Auction-Rank'!$A$1:$A$948,0),'Guts-2'!$D$26)="","",INDEX('Auction-Rank'!$G$1:$O$948,MATCH($A21,'Auction-Rank'!$A$1:$A$948,0),'Guts-2'!$D$26)),"")) -> 0 | AA21: =IF(Z21="","",IF(V21=FALSE,"",Z21*(SUMIF($Y$2:$Y$948,"<>""",$Y$2:$Y$948)/SUMIF($Z$2:$Z$948,"<>""",$Z$2:$Z$948)))) -> 0 | AB21: =IF(VLOOKUP(A22,'Name-Sort'!$D$2:$E$948,2,FALSE)="",A22,"") -> Pete Alonso | AC21: =IFERROR(INDEX($AB$1:$AB$948,SMALL(IF($AB$1:$AB$948<>"",ROW($AB$1:$AB$948)),ROW(AB21))),"") -> Pete Alonso
A22: Pete Alonso | B22: alonspe01 | C22: 1B | E22: NYM | F22: 25 | G22: 0.006416666667 | H22: 0.006666666667 | J22: 0.006666666667 | K22: 0.008583333333 | M22: 0.006666666667 | N22: 0.005833333333 | O22: =IFERROR(VLOOKUP(A22,'Import (Values)'!$B$2:$C$999,2,FALSE)/3120,"") ->  | P22: 35 | Q22: 24 | R22: 30 | S22: 25 | T22: 34 | V22: =IFERROR(INDEX('Guts-2'!$K$1:$K$30,MATCH(E22,'Guts-2'!$J$1:$J$30,0)),TRUE) -> TRUE | W22: =IF(V22=FALSE,"",IFERROR(CHOOSE('Guts-2'!$D$27,P22,Q22,R22,S22,T22,U22),"")) -> 34 | X22: 34 | Y22: =IFERROR(IF(INDEX('Auction-Rank'!$G$1:$O$948,MATCH($A22,'Auction-Rank'!$A$1:$A$948,0),'Guts-2'!$D$26)="","",INDEX('Auction-Rank'!$G$1:$O$948,MATCH($A22,'Auction-Rank'!$A$1:$A$948,0),'Guts-2'!$D$26)),"") -> 0.005833333333 | Z22: =IF(V22=FALSE,"",IFERROR(IF(INDEX('Auction-Rank'!$G$1:$O$948,MATCH($A22,'Auction-Rank'!$A$1:$A$948,0),'Guts-2'!$D$26)="","",INDEX('Auction-Rank'!$G$1:$O$948,MATCH($A22,'Auction-Rank'!$A$1:$A$948,0),'Guts-2'!$D$26)),"")) -> 0.005833333333 | AA22: =IF(Z22="","",IF(V22=FALSE,"",Z22*(SUMIF($Y$2:$Y$948,"<>""",$Y$2:$Y$948)/SUMIF($Z$2:$Z$948,"<>""",$Z$2:$Z$948)))) -> 0.005833333333 | AB22: =IF(VLOOKUP(A23,'Name-Sort'!$D$2:$E$948,2,FALSE)="",A23,"") -> Yonder Alonso | AC22: =IFERROR(INDEX($AB$1:$AB$948,SMALL(IF($AB$1:$AB$948<>"",ROW($AB$1:$AB$948)),ROW(AB22))),"") -> Yonder Alonso
A23: Yonder Alonso | B23: alonsyo01 | C23: 1B | E23: COL | F23: 32 | N23: 0 | O23: =IFERROR(VLOOKUP(A23,'Import (Values)'!$B$2:$C$999,2,FALSE)/3120,"") ->  | V23: =IFERROR(INDEX('Guts-2'!$K$1:$K$30,MATCH(E23,'Guts-2'!$J$1:$J$30,0)),TRUE) -> TRUE | W23: =IF(V23=FALSE,"",IFERROR(CHOOSE('Guts-2'!$D$27,P23,Q23,R23,S23,T23,U23),"")) ->  | Y23: =IFERROR(IF(INDEX('Auction-Rank'!$G$1:$O$948,MATCH($A23,'Auction-Rank'!$A$1:$A$948,0),'Guts-2'!$D$26)="","",INDEX('Auction-Rank'!$G$1:$O$948,MATCH($A23,'Auction-Rank'!$A$1:$A$948,0),'Guts-2'!$D$26)),"") -> 0 | Z23: =IF(V23=FALSE,"",IFERROR(IF(INDEX('Auction-Rank'!$G$1:$O$948,MATCH($A23,'Auction-Rank'!$A$1:$A$948,0),'Guts-2'!$D$26)="","",INDEX('Auction-Rank'!$G$1:$O$948,MATCH($A23,'Auction-Rank'!$A$1:$A$948,0),'Guts-2'!$D$26)),"")) -> 0 | AA23: =IF(Z23="","",IF(V23=FALSE,"",Z23*(SUMIF($Y$2:$Y$948,"<>""",$Y$2:$Y$948)/SUMIF($Z$2:$Z$948,"<>""",$Z$2:$Z$948)))) -> 0 | AB23: =IF(VLOOKUP(A24,'Name-Sort'!$D$2:$E$948,2,FALSE)="",A24,"") -> Jose Altuve | AC23: =IFERROR(INDEX($AB$1:$AB$948,SMALL(IF($AB$1:$AB$948<>"",ROW($AB$1:$AB$948)),ROW(AB23))),"") -> Jose Altuve
A24: Jose Altuve | B24: altuvjo01 | C24: 2B | E24: HOU | F24: 29 | G24: 0.008536111111 | H24: 0.006944444444 | J24: 0.006111111111 | K24: 0.007166666667 | M24: 0.008055555556 | N24: 0.006135648148 | O24: =IFERROR(VLOOKUP(A24,'Import (Values)'!$B$2:$C$999,2,FALSE)/3120,"") -> 0.01025641026 | P24: 15 | Q24: 36 | R24: 21 | S24: 23 | T24: 31 | V24: =IFERROR(INDEX('Guts-2'!$K$1:$K$30,MATCH(E24,'Guts-2'!$J$1:$J$30,0)),TRUE) -> TRUE | W24: =IF(V24=FALSE,"",IFERROR(CHOOSE('Guts-2'!$D$27,P24,Q24,R24,S24,T24,U24),"")) -> 31 | X24: 31 | Y24: =IFERROR(IF(INDEX('Auction-Rank'!$G$1:$O$948,MATCH($A24,'Auction-Rank'!$A$1:$A$948,0),'Guts-2'!$D$26)="","",INDEX('Auction-Rank'!$G$1:$O$948,MATCH($A24,'Auction-Rank'!$A$1:$A$948,0),'Guts-2'!$D$26)),"") -> 0.006135648148 | Z24: =IF(V24=FALSE,"",IFERROR(IF(INDEX('Auction-Rank'!$G$1:$O$948,MATCH($A24,'Auction-Rank'!$A$1:$A$948,0),'Guts-2'!$D$26)="","",INDEX('Auction-Rank'!$G$1:$O$948,MATCH($A24,'Auction-Rank'!$A$1:$A$948,0),'Guts-2'!$D$26)),"")) -> 0.006135648148 | AA24: =IF(Z24="","",IF(V24=FALSE,"",Z24*(SUMIF($Y$2:$Y$948,"<>""",$Y$2:$Y$948)/SUMIF($Z$2:$Z$948,"<>""",$Z$2:$Z$948)))) -> 0.006135648148 | AB24: =IF(VLOOKUP(A25,'Name-Sort'!$D$2:$E$948,2,FALSE)="",A25,"") -> Jose Alvarado | AC24: =IFERROR(INDEX($AB$1:$AB$948,SMALL(IF($AB$1:$AB$948<>"",ROW($AB$1:$AB$948)),ROW(AB24))),"") -> Jose Alvarado
A25: Jose Alvarado | B25: alvarjo03 | C25: RP | E25: TB | F25: 24 | N25: 0 | O25: =IFERROR(VLOOKUP(A25,'Import (Values)'!$B$2:$C$999,2,FALSE)/3120,"") ->  | T25: 386 | V25: =IFERROR(INDEX('Guts-2'!$K$1:$K$30,MATCH(E25,'Guts-2'!$J$1:$J$30,0)),TRUE) -> TRUE | W25: =IF(V25=FALSE,"",IFERROR(CHOOSE('Guts-2'!$D$27,P25,Q25,R25,S25,T25,U25),"")) -> 386 | X25: 385 | Y25: =IFERROR(IF(INDEX('Auction-Rank'!$G$1:$O$948,MATCH($A25,'Auction-Rank'!$A$1:$A$948,0),'Guts-2'!$D$26)="","",INDEX('Auction-Rank'!$G$1:$O$948,MATCH($A25,'Auction-Rank'!$A$1:$A$948,0),'Guts-2'!$D$26)),"") -> 0 | Z25: =IF(V25=FALSE,"",IFERROR(IF(INDEX('Auction-Rank'!$G$1:$O$948,MATCH($A25,'Auction-Rank'!$A$1:$A$948,0),'Guts-2'!$D$26)="","",INDEX('Auction-Rank'!$G$1:$O$948,MATCH($A25,'Auction-Rank'!$A$1:$A$948,0),'Guts-2'!$D$26)),"")) -> 0 | AA25: =IF(Z25="","",IF(V25=FALSE,"",Z25*(SUMIF($Y$2:$Y$948,"<>""",$Y$2:$Y$948)/SUMIF($Z$2:$Z$948,"<>""",$Z$2:$Z$948)))) -> 0 | AB25: =IF(VLOOKUP(A26,'Name-Sort'!$D$2:$E$948,2,FALSE)="",A26,"") -> Yordan Alvarez | AC25: =IFERROR(INDEX($AB$1:$AB$948,SMALL(IF($AB$1:$AB$948<>"",ROW($AB$1:$AB$948)),ROW(AB25))),"") -> Yordan Alvarez
A26: Yordan Alvarez | B26: alvaryo01 | C26: DH | D26: LF | E26: HOU | F26: 22 | G26: 0.008294444444 | H26: 0.007222222222 | J26: 0.006111111111 | K26: 0.007666666667 | M26: 0.008055555556 | N26: 0.006225 | O26: =IFERROR(VLOOKUP(A26,'Import (Values)'!$B$2:$C$999,2,FALSE)/3120,"") ->  | P26: 17 | Q26: 35 | R26: 31 | S26: 46 | T26: 30 | V26: =IFERROR(INDEX('Guts-2'!$K$1:$K$30,MATCH(E26,'Guts-2'!$J$1:$J$30,0)),TRUE) -> TRUE | W26: =IF(V26=FALSE,"",IFERROR(CHOOSE('Guts-2'!$D$27,P26,Q26,R26,S26,T26,U26),"")) -> 30 | X26: 30 | Y26: =IFERROR(IF(INDEX('Auction-Rank'!$G$1:$O$948,MATCH($A26,'Auction-Rank'!$A$1:$A$948,0),'Guts-2'!$D$26)="","",INDEX('Auction-Rank'!$G$1:$O$948,MATCH($A26,'Auction-Rank'!$A$1:$A$948,0),'Guts-2'!$D$26)),"") -> 0.006225 | Z26: =IF(V26=FALSE,"",IFERROR(IF(INDEX('Auction-Rank'!$G$1:$O$948,MATCH($A26,'Auction-Rank'!$A$1:$A$948,0),'Guts-2'!$D$26)="","",INDEX('Auction-Rank'!$G$1:$O$948,MATCH($A26,'Auction-Rank'!$A$1:$A$948,0),'Guts-2'!$D$26)),"")) -> 0.006225 | AA26: =IF(Z26="","",IF(V26=FALSE,"",Z26*(SUMIF($Y$2:$Y$948,"<>""",$Y$2:$Y$948)/SUMIF($Z$2:$Z$948,"<>""",$Z$2:$Z$948)))) -> 0.006225 | AB26: =IF(VLOOKUP(A27,'Name-Sort'!$D$2:$E$948,2,FALSE)="",A27,"") -> Adbert Alzolay | AC26: =IFERROR(INDEX($AB$1:$AB$948,SMALL(IF($AB$1:$AB$948<>"",ROW($AB$1:$AB$948)),ROW(AB26))),"") -> Adbert Alzolay
A27: Adbert Alzolay | B27: alzolad01 | C27: SP | E27: CHC | F27: 25 | N27: 0 | O27: =IFERROR(VLOOKUP(A27,'Import (Values)'!$B$2:$C$999,2,FALSE)/3120,"") ->  | V27: =IFERROR(INDEX('Guts-2'!$K$1:$K$30,MATCH(E27,'Guts-2'!$J$1:$J$30,0)),TRUE) -> TRUE | W27: =IF(V27=FALSE,"",IFERROR(CHOOSE('Guts-2'!$D$27,P27,Q27,R27,S27,T27,U27),"")) ->  | Y27: =IFERROR(IF(INDEX('Auction-Rank'!$G$1:$O$948,MATCH($A27,'Auction-Rank'!$A$1:$A$948,0),'Guts-2'!$D$26)="","",INDEX('Auction-Rank'!$G$1:$O$948,MATCH($A27,'Auction-Rank'!$A$1:$A$948,0),'Guts-2'!$D$26)),"") -> 0 | Z27: =IF(V27=FALSE,"",IFERROR(IF(INDEX('Auction-Rank'!$G$1:$O$948,MATCH($A27,'Auction-Rank'!$A$1:$A$948,0),'Guts-2'!$D$26)="","",INDEX('Auction-Rank'!$G$1:$O$948,MATCH($A27,'Auction-Rank'!$A$1:$A$948,0),'Guts-2'!$D$26)),"")) -> 0 | AA27: =IF(Z27="","",IF(V27=FALSE,"",Z27*(SUMIF($Y$2:$Y$948,"<>""",$Y$2:$Y$948)/SUMIF($Z$2:$Z$948,"<>""",$Z$2:$Z$948)))) -> 0 | AB27: =IF(VLOOKUP(A28,'Name-Sort'!$D$2:$E$948,2,FALSE)="",A28,"") -> Brett Anderson | AC27: =IFERROR(INDEX($AB$1:$AB$948,SMALL(IF($AB$1:$AB$948<>"",ROW($AB$1:$AB$948)),ROW(AB27))),"") -> Brett Anderson
A28: Brett Anderson | B28: anderbr04 | C28: SP | E28: MIL | F28: 32 | J28: 0 | N28: 0 | O28: =IFERROR(VLOOKUP(A28,'Import (Values)'!$B$2:$C$999,2,FALSE)/3120,"") ->  | V28: =IFERROR(INDEX('Guts-2'!$K$1:$K$30,MATCH(E28,'Guts-2'!$J$1:$J$30,0)),TRUE) -> TRUE | W28: =IF(V28=FALSE,"",IFERROR(CHOOSE('Guts-2'!$D$27,P28,Q28,R28,S28,T28,U28),"")) ->  | Y28: =IFERROR(IF(INDEX('Auction-Rank'!$G$1:$O$948,MATCH($A28,'Auction-Rank'!$A$1:$A$948,0),'Guts-2'!$D$26)="","",INDEX('Auction-Rank'!$G$1:$O$948,MATCH($A28,'Auction-Rank'!$A$1:$A$948,0),'Guts-2'!$D$26)),"") -> 0 | Z28: =IF(V28=FALSE,"",IFERROR(IF(INDEX('Auction-Rank'!$G$1:$O$948,MATCH($A28,'Auction-Rank'!$A$1:$A$948,0),'Guts-2'!$D$26)="","",INDEX('Auction-Rank'!$G$1:$O$948,MATCH($A28,'Auction-Rank'!$A$1:$A$948,0),'Guts-2'!$D$26)),"")) -> 0 | AA28: =IF(Z28="","",IF(V28=FALSE,"",Z28*(SUMIF($Y$2:$Y$948,"<>""",$Y$2:$Y$948)/SUMIF($Z$2:$Z$948,"<>""",$Z$2:$Z$948)))) -> 0 | AB28: =IF(VLOOKUP(A29,'Name-Sort'!$D$2:$E$948,2,FALSE)="",A29,"") -> Brian Anderson | AC28: =IFERROR(INDEX($AB$1:$AB$948,SMALL(IF($AB$1:$AB$948<>"",ROW($AB$1:$AB$948)),ROW(AB28))),"") -> Brian Anderson
A29: Brian Anderson | B29: anderbr06 | C29: 3B | D29: RF | E29: MIA | F29: 26 | G29: 0 | H29: 0.0002777777778 | J29: 0.0002777777778 | K29: 0.0002777777778 | M29: 0.001388888889 | N29: 0.0003703703704 | O29: =IFERROR(VLOOKUP(A29,'Import (Values)'!$B$2:$C$999,2,FALSE)/3120,"") ->  | P29: 276 | Q29: 265 | R29: 145 | S29: 175 | T29: 258 | V29: =IFERROR(INDEX('Guts-2'!$K$1:$K$30,MATCH(E29,'Guts-2'!$J$1:$J$30,0)),TRUE) -> TRUE | W29: =IF(V29=FALSE,"",IFERROR(CHOOSE('Guts-2'!$D$27,P29,Q29,R29,S29,T29,U29),"")) -> 258 | X29: 258 | Y29: =IFERROR(IF(INDEX('Auction-Rank'!$G$1:$O$948,MATCH($A29,'Auction-Rank'!$A$1:$A$948,0),'Guts-2'!$D$26)="","",INDEX('Auction-Rank'!$G$1:$O$948,MATCH($A29,'Auction-Rank'!$A$1:$A$948,0),'Guts-2'!$D$26)),"") -> 0.0003703703704 | Z29: =IF(V29=FALSE,"",IFERROR(IF(INDEX('Auction-Rank'!$G$1:$O$948,MATCH($A29,'Auction-Rank'!$A$1:$A$948,0),'Guts-2'!$D$26)="","",INDEX('Auction-Rank'!$G$1:$O$948,MATCH($A29,'Auction-Rank'!$A$1:$A$948,0),'Guts-2'!$D$26)),"")) -> 0.0003703703704 | AA29: =IF(Z29="","",IF(V29=FALSE,"",Z29*(SUMIF($Y$2:$Y$948,"<>""",$Y$2:$Y$948)/SUMIF($Z$2:$Z$948,"<>""",$Z$2:$Z$948)))) -> 0.0003703703704 | AB29: =IF(VLOOKUP(A30,'Name-Sort'!$D$2:$E$948,2,FALSE)="",A30,"") -> Chase Anderson | AC29: =IFERROR(INDEX($AB$1:$AB$948,SMALL(IF($AB$1:$AB$948<>"",ROW($AB$1:$AB$948)),ROW(AB29))),"") -> Chase Anderson
A30: Chase Anderson | B30: anderch01 | C30: SP | E30: TOR | F30: 32 | G30: -0.0001583333333 | J30: 0 | N30: -5.277777778e-05 | O30: =IFERROR(VLOOKUP(A30,'Import (Values)'!$B$2:$C$999,2,FALSE)/3120,"") ->  | P30: 299 | T30: 419 | V30: =IFERROR(INDEX('Guts-2'!$K$1:$K$30,MATCH(E30,'Guts-2'!$J$1:$J$30,0)),TRUE) -> TRUE | W30: =IF(V30=FALSE,"",IFERROR(CHOOSE('Guts-2'!$D$27,P30,Q30,R30,S30,T30,U30),"")) -> 419 | X30: 418 | Y30: =IFERROR(IF(INDEX('Auction-Rank'!$G$1:$O$948,MATCH($A30,'Auction-Rank'!$A$1:$A$948,0),'Guts-2'!$D$26)="","",INDEX('Auction-Rank'!$G$1:$O$948,MATCH($A30,'Auction-Rank'!$A$1:$A$948,0),'Guts-2'!$D$26)),"") -> -5.277777778e-05 | Z30: =IF(V30=FALSE,"",IFERROR(IF(INDEX('Auction-Rank'!$G$1:$O$948,MATCH($A30,'Auction-Rank'!$A$1:$A$948,0),'Guts-2'!$D$26)="","",INDEX('Auction-Rank'!$G$1:$O$948,MATCH($A30,'Auction-Rank'!$A$1:$A$948,0),'Guts-2'!$D$26)),"")) -> -5.277777778e-05 | AA30: =IF(Z30="","",IF(V30=FALSE,"",Z30*(SUMIF($Y$2:$Y$948,"<>""",$Y$2:$Y$948)/SUMIF($Z$2:$Z$948,"<>""",$Z$2:$Z$948)))) -> -5.277777778e-05 | AB30: =IF(VLOOKUP(A31,'Name-Sort'!$D$2:$E$948,2,FALSE)="",A31,"") -> Ian Anderson | AC30: =IFERROR(INDEX($AB$1:$AB$948,SMALL(IF($AB$1:$AB$948<>"",ROW($AB$1:$AB$948)),ROW(AB30))),"") -> Ian Anderson
A31: Ian Anderson | B31: anderia01 | C31: SP | E31: ATL | F31: 21 | N31: 0 | O31: =IFERROR(VLOOKUP(A31,'Import (Values)'!$B$2:$C$999,2,FALSE)/3120,"") ->  | T31: 483 | V31: =IFERROR(INDEX('Guts-2'!$K$1:$K$30,MATCH(E31,'Guts-2'!$J$1:$J$30,0)),TRUE) -> TRUE | W31: =IF(V31=FALSE,"",IFERROR(CHOOSE('Guts-2'!$D$27,P31,Q31,R31,S31,T31,U31),"")) -> 483 | X31: 481 | Y31: =IFERROR(IF(INDEX('Auction-Rank'!$G$1:$O$948,MATCH($A31,'Auction-Rank'!$A$1:$A$948,0),'Guts-2'!$D$26)="","",INDEX('Auction-Rank'!$G$1:$O$948,MATCH($A31,'Auction-Rank'!$A$1:$A$948,0),'Guts-2'!$D$26)),"") -> 0 | Z31: =IF(V31=FALSE,"",IFERROR(IF(INDEX('Auction-Rank'!$G$1:$O$948,MATCH($A31,'Auction-Rank'!$A$1:$A$948,0),'Guts-2'!$D$26)="","",INDEX('Auction-Rank'!$G$1:$O$948,MATCH($A31,'Auction-Rank'!$A$1:$A$948,0),'Guts-2'!$D$26)),"")) -> 0 | AA31: =IF(Z31="","",IF(V31=FALSE,"",Z31*(SUMIF($Y$2:$Y$948,"<>""",$Y$2:$Y$948)/SUMIF($Z$2:$Z$948,"<>""",$Z$2:$Z$948)))) -> 0 | AB31: =IF(VLOOKUP(A32,'Name-Sort'!$D$2:$E$948,2,FALSE)="",A32,"") -> Nick Anderson | AC31: =IFERROR(INDEX($AB$1:$AB$948,SMALL(IF($AB$1:$AB$948<>"",ROW($AB$1:$AB$948)),ROW(AB31))),"") -> Nick Anderson
... 38 more rows

Sheet Guts-1 (hidden)
A1: AVG | B1: =IFERROR(IF(VLOOKUP(A1,Settings!$C$5:$D$16,2,FALSE)="Full",1,IF(VLOOKUP(A1,Settings!$C$5:$D$16,2,FALSE)="Half",0.5,0)),0) -> 1 | C1: 16 | D1: 22 | E1: 37 | F1: W | G1: =IFERROR(IF(VLOOKUP(F1,Settings!$C$19:$D$30,2,FALSE)="Full",1,IF(VLOOKUP(F1,Settings!$C$19:$D$30,2,FALSE)="Half",0.5,0)),0) -> 1 | H1: 2 | I1: 2 | J1: 10 | M1: Stats or WERTH or Hide? | N1: =IF('Your Roto Auction'!Q7=R5,1,IF('Your Roto Auction'!Q7=R6,2,IF('Your Roto Auction'!Q7=R7,3,""))) -> 1 | O1: =MAX(COUNTIF(N2:N13,">"""),COUNTIF(N14:N25,">""")) -> 5 | Q1: List | R1: List | S1: Pos | T1: Sort by Original Projected Auction Value | U1: Show All Positions | V1: =IFERROR(INDEX($U$1:$U$24,SMALL(IF($U$1:$U$24<>"",ROW($U$1:$U$24)),ROW(B1))),"") -> Show All Positions
A2: HR | B2: =IFERROR(IF(VLOOKUP(A2,Settings!$C$5:$D$16,2,FALSE)="Full",1,IF(VLOOKUP(A2,Settings!$C$5:$D$16,2,FALSE)="Half",0.5,0)),0) -> 1 | C2: 10 | D2: 10 | E2: 27 | F2: SV | G2: =IFERROR(IF(VLOOKUP(F2,Settings!$C$19:$D$30,2,FALSE)="Full",1,IF(VLOOKUP(F2,Settings!$C$19:$D$30,2,FALSE)="Half",0.5,0)),0) -> 1 | H2: 9 | I2: 9 | J2: 17 | M2: H1 | N2: =IF(ISBLANK(Settings!C5),"",Settings!C5) -> AVG | O2: =IF(N$1=2,1,IF(OR(N2="AVG",N2="OBP",N2="SLG",N2="OPS"),2,IF(N2="","",1))) -> 2 | P2: =IF(OR(N2="AVG",N2="OBP",N2="SLG",N2="OPS"),2,IF(N2="","",1)) -> 2 | Q2: =IFERROR(INDEX($N$1:$N$25,SMALL(IF($N$1:$N$25<>"",ROW($N$1:$N$25)),ROW(B2))),"") -> AVG | R2: Stats | S2: =IF('Guts-2'!$N$2>=ROW(S1),"C","") -> C | T2: Sort by WERTH | U2: =IF('Guts-2'!$N2>0,"Only Show: "&'Guts-2'!M2,"") -> Only Show: C | V2: =IFERROR(INDEX($U$1:$U$24,SMALL(IF($U$1:$U$24<>"",ROW($U$1:$U$24)),ROW(B2))),"") -> Only Show: C | W2: =IF(ISERROR(VLOOKUP(A1,$N$2:$O$25,2,FALSE)),A1,"") ->  | X2: =IF(ISERROR(VLOOKUP(F1,$N$2:$O$25,2,FALSE)),F1,"") ->  | Y2: =IFERROR(INDEX($W$1:$W$26,SMALL(IF($W$1:$W$26<>"",ROW($W$1:$W$26)),ROW(B1))),"") -> SLG | Z2: =IFERROR(INDEX($X$1:$X$28,SMALL(IF($X$1:$X$28<>"",ROW($X$1:$X$28)),ROW(B1))),"") -> QS
A3: R | B3: =IFERROR(IF(VLOOKUP(A3,Settings!$C$5:$D$16,2,FALSE)="Full",1,IF(VLOOKUP(A3,Settings!$C$5:$D$16,2,FALSE)="Half",0.5,0)),0) -> 1 | C3: 5 | D3: 5 | E3: 22 | F3: K | G3: =IFERROR(IF(VLOOKUP(F3,Settings!$C$19:$D$30,2,FALSE)="Full",1,IF(VLOOKUP(F3,Settings!$C$19:$D$30,2,FALSE)="Half",0.5,0)),0) -> 1 | H3: 7 | I3: 7 | J3: 15 | M3: H2 | N3: =IF(ISBLANK(Settings!C6),"",Settings!C6) -> HR | O3: =IF(N$1=2,1,IF(OR(N3="AVG",N3="OBP",N3="SLG",N3="OPS"),2,IF(N3="","",1))) -> 1 | P3: =IF(OR(N3="AVG",N3="OBP",N3="SLG",N3="OPS"),2,IF(N3="","",1)) -> 1 | Q3: =IFERROR(INDEX($N$1:$N$25,SMALL(IF($N$1:$N$25<>"",ROW($N$1:$N$25)),ROW(B3))),"") -> HR | R3: Ranks | S3: =IF('Guts-2'!$N$2>=ROW(S2),"C","") ->  | T3: Sort by Pos Adj WERTH | U3: =IF('Guts-2'!$N3>0,"Only Show: "&'Guts-2'!M3,"") -> Only Show: 1B | V3: =IFERROR(INDEX($U$1:$U$24,SMALL(IF($U$1:$U$24<>"",ROW($U$1:$U$24)),ROW(B3))),"") -> Only Show: 1B | W3: =IF(ISERROR(VLOOKUP(A2,$N$2:$O$25,2,FALSE)),A2,"") ->  | X3: =IF(ISERROR(VLOOKUP(F2,$N$2:$O$25,2,FALSE)),F2,"") ->  | Y3: =IFERROR(INDEX($W$1:$W$26,SMALL(IF($W$1:$W$26<>"",ROW($W$1:$W$26)),ROW(B2))),"") -> OBP | Z3: =IFERROR(INDEX($X$1:$X$28,SMALL(IF($X$1:$X$28<>"",ROW($X$1:$X$28)),ROW(B2))),"") -> Holds
A4: RBI | B4: =IFERROR(IF(VLOOKUP(A4,Settings!$C$5:$D$16,2,FALSE)="Full",1,IF(VLOOKUP(A4,Settings!$C$5:$D$16,2,FALSE)="Half",0.5,0)),0) -> 1 | C4: 11 | D4: 11 | E4: 28 | F4: ERA | G4: =IFERROR(IF(VLOOKUP(F4,Settings!$C$19:$D$30,2,FALSE)="Full",1,IF(VLOOKUP(F4,Settings!$C$19:$D$30,2,FALSE)="Half",0.5,0)),0) -> 1 | H4: 10 | I4: 29 | J4: 21 | M4: H3 | N4: =IF(ISBLANK(Settings!C7),"",Settings!C7) -> R | O4: 1 | P4: 1 | Q4: =IFERROR(INDEX($N$1:$N$25,SMALL(IF($N$1:$N$25<>"",ROW($N$1:$N$25)),ROW(B4))),"") -> R | R4: List | S4: =IF('Guts-2'!$N$2>=ROW(S3),"C","") ->  | T4: Sort by Expert Ranking | U4: =IF('Guts-2'!$N4>0,"Only Show: "&'Guts-2'!M4,"") -> Only Show: 2B | V4: =IFERROR(INDEX($U$1:$U$24,SMALL(IF($U$1:$U$24<>"",ROW($U$1:$U$24)),ROW(B4))),"") -> Only Show: 2B | Y4: =IFERROR(INDEX($W$1:$W$26,SMALL(IF($W$1:$W$26<>"",ROW($W$1:$W$26)),ROW(B3))),"") -> OPS | Z4: =IFERROR(INDEX($X$1:$X$28,SMALL(IF($X$1:$X$28<>"",ROW($X$1:$X$28)),ROW(B3))),"") -> Sv + Hld
A5: SB | B5: =IFERROR(IF(VLOOKUP(A5,Settings!$C$5:$D$16,2,FALSE)="Full",1,IF(VLOOKUP(A5,Settings!$C$5:$D$16,2,FALSE)="Half",0.5,0)),0) -> 1 | C5: 12 | D5: 12 | E5: 29 | F5: WHIP | G5: =IFERROR(IF(VLOOKUP(F5,Settings!$C$19:$D$30,2,FALSE)="Full",1,IF(VLOOKUP(F5,Settings!$C$19:$D$30,2,FALSE)="Half",0.5,0)),0) -> 1 | H5: 11 | I5: 30 | J5: 22 | M5: H4 | N5: =IF(ISBLANK(Settings!C8),"",Settings!C8) -> RBI | O5: 1 | P5: 1 | Q5: =IFERROR(INDEX($N$1:$N$25,SMALL(IF($N$1:$N$25<>"",ROW($N$1:$N$25)),ROW(B5))),"") -> RBI | R5: Show Stats | S5: =IF('Guts-2'!$N$2>=ROW(S4),"C","") ->  | T5: =IF(Q2="","","Sort by "&Q2) -> Sort by AVG | U5: =IF('Guts-2'!$N5>0,"Only Show: "&'Guts-2'!M5,"") -> Only Show: 3B | V5: =IFERROR(INDEX($U$1:$U$24,SMALL(IF($U$1:$U$24<>"",ROW($U$1:$U$24)),ROW(B5))),"") -> Only Show: 3B | Y5: =IFERROR(INDEX($W$1:$W$26,SMALL(IF($W$1:$W$26<>"",ROW($W$1:$W$26)),ROW(B4))),"") -> Net SB | Z5: =IFERROR(INDEX($X$1:$X$28,SMALL(IF($X$1:$X$28<>"",ROW($X$1:$X$28)),ROW(B4))),"") -> K-BB
A6: SLG | B6: =IFERROR(IF(VLOOKUP(A6,Settings!$C$5:$D$16,2,FALSE)="Full",1,IF(VLOOKUP(A6,Settings!$C$5:$D$16,2,FALSE)="Half",0.5,0)),0) -> 0 | C6: 18 | D6: 24 | E6: 39 | F6: QS | G6: =IFERROR(IF(VLOOKUP(F6,Settings!$C$19:$D$30,2,FALSE)="Full",1,IF(VLOOKUP(F6,Settings!$C$19:$D$30,2,FALSE)="Half",0.5,0)),0) -> 0 | H6: 13 | I6: 13 | J6: 24 | M6: H5 | N6: =IF(ISBLANK(Settings!C9),"",Settings!C9) -> SB | O6: 1 | P6: 1 | Q6: =IFERROR(INDEX($N$1:$N$25,SMALL(IF($N$1:$N$25<>"",ROW($N$1:$N$25)),ROW(B6))),"") -> SB | R6: Show WERTH Values | S6: =IF('Guts-2'!$N$3>=ROW(S1),"1B","") -> 1B | T6: =IF(Q3="","","Sort by "&Q3) -> Sort by HR | U6: =IF('Guts-2'!$N6>0,"Only Show: "&'Guts-2'!M6,"") -> Only Show: SS | V6: =IFERROR(INDEX($U$1:$U$24,SMALL(IF($U$1:$U$24<>"",ROW($U$1:$U$24)),ROW(B6))),"") -> Only Show: SS | Y6: =IFERROR(INDEX($W$1:$W$26,SMALL(IF($W$1:$W$26<>"",ROW($W$1:$W$26)),ROW(B5))),"") -> Total Bases | Z6: =IFERROR(INDEX($X$1:$X$28,SMALL(IF($X$1:$X$28<>"",ROW($X$1:$X$28)),ROW(B5))),"") -> K/BB
A7: OBP | B7: =IFERROR(IF(VLOOKUP(A7,Settings!$C$5:$D$16,2,FALSE)="Full",1,IF(VLOOKUP(A7,Settings!$C$5:$D$16,2,FALSE)="Half",0.5,0)),0) -> 0 | C7: 17 | D7: 23 | E7: 38 | F7: Holds | G7: =IFERROR(IF(VLOOKUP(F7,Settings!$C$19:$D$30,2,FALSE)="Full",1,IF(VLOOKUP(F7,Settings!$C$19:$D$30,2,FALSE)="Half",0.5,0)),0) -> 0 | H7: 17 | I7: 17 | J7: 27 | M7: H6 | N7: =IF(ISBLANK(Settings!C10),"",Settings!C10) ->  | Q7: =IFERROR(INDEX($N$1:$N$25,SMALL(IF($N$1:$N$25<>"",ROW($N$1:$N$25)),ROW(B7))),"") -> W | R7: Show Neither | S7: =IF('Guts-2'!$N$3>=ROW(S2),"1B","") ->  | T7: Sort by R | U7: =IF('Guts-2'!$N7>0,"Only Show: "&'Guts-2'!M7,"") -> Only Show: CI | V7: =IFERROR(INDEX($U$1:$U$24,SMALL(IF($U$1:$U$24<>"",ROW($U$1:$U$24)),ROW(B7))),"") -> Only Show: CI | W7: SLG | X7: QS | Y7: =IFERROR(INDEX($W$1:$W$26,SMALL(IF($W$1:$W$26<>"",ROW($W$1:$W$26)),ROW(B6))),"") -> K's | Z7: =IFERROR(INDEX($X$1:$X$28,SMALL(IF($X$1:$X$28<>"",ROW($X$1:$X$28)),ROW(B6))),"") -> K/9
A8: OPS | B8: =IFERROR(IF(VLOOKUP(A8,Settings!$C$5:$D$16,2,FALSE)="Full",1,IF(VLOOKUP(A8,Settings!$C$5:$D$16,2,FALSE)="Half",0.5,0)),0) -> 0 | C8: 19 | D8: 25 | E8: 40 | F8: Sv + Hld | G8: =IFERROR(IF(VLOOKUP(F8,Settings!$C$19:$D$30,2,FALSE)="Full",1,IF(VLOOKUP(F8,Settings!$C$19:$D$30,2,FALSE)="Half",0.5,0)),0) -> 0 | H8: 24 | I8: 24 | J8: 28 | M8: H7 | N8: =IF(ISBLANK(Settings!C11),"",Settings!C11) ->  | Q8: =IFERROR(INDEX($N$1:$N$25,SMALL(IF($N$1:$N$25<>"",ROW($N$1:$N$25)),ROW(B8))),"") -> SV | R8: List | S8: =IF('Guts-2'!$N$3>=ROW(S3),"1B","") ->  | T8: Sort by RBI | U8: =IF('Guts-2'!$N8>0,"Only Show: "&'Guts-2'!M8,"") -> Only Show: MI | V8: =IFERROR(INDEX($U$1:$U$24,SMALL(IF($U$1:$U$24<>"",ROW($U$1:$U$24)),ROW(B8))),"") -> Only Show: MI | W8: OBP | X8: Holds | Y8: =IFERROR(INDEX($W$1:$W$26,SMALL(IF($W$1:$W$26<>"",ROW($W$1:$W$26)),ROW(B7))),"") -> Hits | Z8: =IFERROR(INDEX($X$1:$X$28,SMALL(IF($X$1:$X$28<>"",ROW($X$1:$X$28)),ROW(B7))),"") -> CG
A9: Net SB | B9: =IFERROR(IF(VLOOKUP(A9,Settings!$C$5:$D$16,2,FALSE)="Full",1,IF(VLOOKUP(A9,Settings!$C$5:$D$16,2,FALSE)="Half",0.5,0)),0) -> 0 | C9: 31 | D9: 31 | E9: 48 | F9: K-BB | G9: =IFERROR(IF(VLOOKUP(F9,Settings!$C$19:$D$30,2,FALSE)="Full",1,IF(VLOOKUP(F9,Settings!$C$19:$D$30,2,FALSE)="Half",0.5,0)),0) -> 0 | H9: 25 | I9: 25 | J9: 29 | M9: H8 | N9: =IF(ISBLANK(Settings!C12),"",Settings!C12) ->  | Q9: =IFERROR(INDEX($N$1:$N$25,SMALL(IF($N$1:$N$25<>"",ROW($N$1:$N$25)),ROW(B9))),"") -> K | R9: Mixed (Standard) | S9: =IF('Guts-2'!$N$4>=ROW(S1),"2B","") -> 2B | T9: Sort by SB | U9: =IF('Guts-2'!$N9>0,"Only Show: "&'Guts-2'!M9,"") -> Only Show: OF | V9: =IFERROR(INDEX($U$1:$U$24,SMALL(IF($U$1:$U$24<>"",ROW($U$1:$U$24)),ROW(B9))),"") -> Only Show: OF | W9: OPS | X9: Sv + Hld | Y9: =IFERROR(INDEX($W$1:$W$26,SMALL(IF($W$1:$W$26<>"",ROW($W$1:$W$26)),ROW(B8))),"") -> BB | Z9: =IFERROR(INDEX($X$1:$X$28,SMALL(IF($X$1:$X$28<>"",ROW($X$1:$X$28)),ROW(B8))),"") -> Shutouts
A10: Total Bases | B10: =IFERROR(IF(VLOOKUP(A10,Settings!$C$5:$D$16,2,FALSE)="Full",1,IF(VLOOKUP(A10,Settings!$C$5:$D$16,2,FALSE)="Half",0.5,0)),0) -> 0 | C10: 20 | D10: 20 | E10: 45 | F10: K/BB | G10: =IFERROR(IF(VLOOKUP(F10,Settings!$C$19:$D$30,2,FALSE)="Full",1,IF(VLOOKUP(F10,Settings!$C$19:$D$30,2,FALSE)="Half",0.5,0)),0) -> 0 | H10: 26 | I10: 33 | J10: 34 | M10: H9 | N10: =IF(ISBLANK(Settings!C13),"",Settings!C13) ->  | Q10: =IFERROR(INDEX($N$1:$N$25,SMALL(IF($N$1:$N$25<>"",ROW($N$1:$N$25)),ROW(B10))),"") -> ERA | R10: AL-Only | S10: =IF('Guts-2'!$N$4>=ROW(S2),"2B","") ->  | T10: Sort by W | U10: =IF('Guts-2'!$N10>0,"Only Show: "&'Guts-2'!M10,"") -> Only Show: DH | V10: =IFERROR(INDEX($U$1:$U$24,SMALL(IF($U$1:$U$24<>"",ROW($U$1:$U$24)),ROW(B10))),"") -> Only Show: DH | W10: Net SB | X10: K-BB | Y10: =IFERROR(INDEX($W$1:$W$26,SMALL(IF($W$1:$W$26<>"",ROW($W$1:$W$26)),ROW(B9))),"") -> 1B | Z10: =IFERROR(INDEX($X$1:$X$28,SMALL(IF($X$1:$X$28<>"",ROW($X$1:$X$28)),ROW(B9))),"") -> ER
A11: K's | B11: =IFERROR(IF(VLOOKUP(A11,Settings!$C$5:$D$16,2,FALSE)="Full",1,IF(VLOOKUP(A11,Settings!$C$5:$D$16,2,FALSE)="Half",0.5,0)),0) -> 0 | C11: 15 | D11: 15 | E11: 32 | F11: K/9 | G11: =IFERROR(IF(VLOOKUP(F11,Settings!$C$19:$D$30,2,FALSE)="Full",1,IF(VLOOKUP(F11,Settings!$C$19:$D$30,2,FALSE)="Half",0.5,0)),0) -> 0 | H11: 12 | I11: 31 | J11: 23 | M11: H10 | N11: =IF(ISBLANK(Settings!C14),"",Settings!C14) ->  | Q11: =IFERROR(INDEX($N$1:$N$25,SMALL(IF($N$1:$N$25<>"",ROW($N$1:$N$25)),ROW(B11))),"") -> WHIP | R11: NL-Only | S11: =IF('Guts-2'!$N$4>=ROW(S3),"2B","") ->  | T11: Sort by SV | U11: Only Show: SP | V11: =IFERROR(INDEX($U$1:$U$24,SMALL(IF($U$1:$U$24<>"",ROW($U$1:$U$24)),ROW(B11))),"") -> Only Show: SP | W11: Total Bases | X11: K/BB | Y11: =IFERROR(INDEX($W$1:$W$26,SMALL(IF($W$1:$W$26<>"",ROW($W$1:$W$26)),ROW(B10))),"") -> 2B | Z11: =IFERROR(INDEX($X$1:$X$28,SMALL(IF($X$1:$X$28<>"",ROW($X$1:$X$28)),ROW(B10))),"") -> BAA
A12: Hits | B12: =IFERROR(IF(VLOOKUP(A12,Settings!$C$5:$D$16,2,FALSE)="Full",1,IF(VLOOKUP(A12,Settings!$C$5:$D$16,2,FALSE)="Half",0.5,0)),0) -> 0 | C12: 6 | D12: 6 | E12: 23 | F12: CG | G12: =IFERROR(IF(VLOOKUP(F12,Settings!$C$19:$D$30,2,FALSE)="Full",1,IF(VLOOKUP(F12,Settings!$C$19:$D$30,2,FALSE)="Half",0.5,0)),0) -> 0 | H12: 19 | I12: 19 | J12: 37 | M12: H11 | N12: =IF(ISBLANK(Settings!C15),"",Settings!C15) ->  | Q12: =IFERROR(INDEX($N$1:$N$25,SMALL(IF($N$1:$N$25<>"",ROW($N$1:$N$25)),ROW(B12))),"") ->  | R12: Specific Teams Only | S12: =IF('Guts-2'!$N$5>=ROW(S1),"3B","") -> 3B | T12: Sort by K | U12: Only Show: RP | V12: =IFERROR(INDEX($U$1:$U$24,SMALL(IF($U$1:$U$24<>"",ROW($U$1:$U$24)),ROW(B12))),"") -> Only Show: RP | W12: K's | X12: K/9 | Y12: =IFERROR(INDEX($W$1:$W$26,SMALL(IF($W$1:$W$26<>"",ROW($W$1:$W$26)),ROW(B11))),"") -> 3B | Z12: =IFERROR(INDEX($X$1:$X$28,SMALL(IF($X$1:$X$28<>"",ROW($X$1:$X$28)),ROW(B11))),"") -> Hits Allw
A13: BB | B13: =IFERROR(IF(VLOOKUP(A13,Settings!$C$5:$D$16,2,FALSE)="Full",1,IF(VLOOKUP(A13,Settings!$C$5:$D$16,2,FALSE)="Half",0.5,0)),0) -> 0 | C13: 14 | D13: 14 | E13: 31 | F13: Shutouts | G13: =IFERROR(IF(VLOOKUP(F13,Settings!$C$19:$D$30,2,FALSE)="Full",1,IF(VLOOKUP(F13,Settings!$C$19:$D$30,2,FALSE)="Half",0.5,0)),0) -> 0 | H13: 20 | I13: 20 | J13: 36 | M13: H12 | N13: =IF(ISBLANK(Settings!C16),"",Settings!C16) ->  | Q13: =IFERROR(INDEX($N$1:$N$25,SMALL(IF($N$1:$N$25<>"",ROW($N$1:$N$25)),ROW(B13))),"") ->  | R13: Y | S13: =IF('Guts-2'!$N$5>=ROW(S2),"3B","") ->  | T13: Sort by ERA | U13: Only Show: P | V13: =IFERROR(INDEX($U$1:$U$24,SMALL(IF($U$1:$U$24<>"",ROW($U$1:$U$24)),ROW(B13))),"") -> Only Show: P | W13: Hits | X13: CG | Y13: =IFERROR(INDEX($W$1:$W$26,SMALL(IF($W$1:$W$26<>"",ROW($W$1:$W$26)),ROW(B12))),"") -> 2B + 3B | Z13: =IFERROR(INDEX($X$1:$X$28,SMALL(IF($X$1:$X$28<>"",ROW($X$1:$X$28)),ROW(B12))),"") -> HR's
A14: 1B | B14: =IFERROR(IF(VLOOKUP(A14,Settings!$C$5:$D$16,2,FALSE)="Full",1,IF(VLOOKUP(A14,Settings!$C$5:$D$16,2,FALSE)="Half",0.5,0)),0) -> 0 | C14: 7 | D14: 7 | E14: 24 | F14: ER | G14: =IFERROR(IF(VLOOKUP(F14,Settings!$C$19:$D$30,2,FALSE)="Full",1,IF(VLOOKUP(F14,Settings!$C$19:$D$30,2,FALSE)="Half",0.5,0)),0) -> 0 | H14: 8 | I14: 8 | J14: 16 | M14: P1 | N14: =IF(ISBLANK(Settings!C19),"",Settings!C19) -> W | O14: =IF(N$1=2,1,IF(OR(N14="ERA",N14="WHIP"),4,IF(OR(N14="K/9",N14="K/BB"),3,IF(N14="BAA",2,IF(N14="","",1))))) -> 1 | P14: =IF(OR(N14="ERA",N14="WHIP"),4,IF(OR(N14="K/9",N14="K/BB"),3,IF(N14="BAA",2,IF(N14="","",1)))) -> 1 | Q14: =IFERROR(INDEX($N$1:$N$25,SMALL(IF($N$1:$N$25<>"",ROW($N$1:$N$25)),ROW(B14))),"") ->  | R14: N | S14: =IF('Guts-2'!$N$5>=ROW(S3),"3B","") ->  | T14: Sort by WHIP | U14: =IF('Guts-2'!$N14>0,"Only Show: "&'Guts-2'!M14,"") ->  | V14: =IFERROR(INDEX($U$1:$U$24,SMALL(IF($U$1:$U$24<>"",ROW($U$1:$U$24)),ROW(B14))),"") ->  | W14: BB | X14: Shutouts | Y14: =IFERROR(INDEX($W$1:$W$26,SMALL(IF($W$1:$W$26<>"",ROW($W$1:$W$26)),ROW(B13))),"") -> R + RBI - HR | Z14: =IFERROR(INDEX($X$1:$X$28,SMALL(IF($X$1:$X$28<>"",ROW($X$1:$X$28)),ROW(B13))),"") -> Walks
A15: 2B | B15: =IFERROR(IF(VLOOKUP(A15,Settings!$C$5:$D$16,2,FALSE)="Full",1,IF(VLOOKUP(A15,Settings!$C$5:$D$16,2,FALSE)="Half",0.5,0)),0) -> 0 | C15: 8 | D15: 8 | E15: 25 | F15: BAA | G15: =IFERROR(IF(VLOOKUP(F15,Settings!$C$19:$D$30,2,FALSE)="Full",1,IF(VLOOKUP(F15,Settings!$C$19:$D$30,2,FALSE)="Half",0.5,0)),0) -> 0 | H15: 18 | I15: 32 | J15: 33 | M15: P2 | N15: =IF(ISBLANK(Settings!C20),"",Settings!C20) -> SV | O15: =IF(N$1=2,1,IF(OR(N15="ERA",N15="WHIP"),4,IF(OR(N15="K/9",N15="K/BB"),3,IF(N15="BAA",2,IF(N15="","",1))))) -> 1 | P15: =IF(OR(N15="ERA",N15="WHIP"),4,IF(OR(N15="K/9",N15="K/BB"),3,IF(N15="BAA",2,IF(N15="","",1)))) -> 1 | Q15: =IFERROR(INDEX($N$1:$N$25,SMALL(IF($N$1:$N$25<>"",ROW($N$1:$N$25)),ROW(B15))),"") ->  | R15: Full | S15: =IF('Guts-2'!$N$6>=ROW(S1),"SS","") -> SS | U15: =IF('Guts-2'!$N15>0,"Only Show: "&'Guts-2'!M15,"") ->  | V15: =IFERROR(INDEX($U$1:$U$24,SMALL(IF($U$1:$U$24<>"",ROW($U$1:$U$24)),ROW(B15))),"") ->  | W15: 1B | X15: ER | Y15: =IFERROR(INDEX($W$1:$W$26,SMALL(IF($W$1:$W$26<>"",ROW($W$1:$W$26)),ROW(B14))),"") -> SB + BB - K | Z15: =IFERROR(INDEX($X$1:$X$28,SMALL(IF($X$1:$X$28<>"",ROW($X$1:$X$28)),ROW(B14))),"") -> L
A16: 3B | B16: =IFERROR(IF(VLOOKUP(A16,Settings!$C$5:$D$16,2,FALSE)="Full",1,IF(VLOOKUP(A16,Settings!$C$5:$D$16,2,FALSE)="Half",0.5,0)),0) -> 0 | C16: 9 | D16: 9 | E16: 26 | F16: Hits Allw | G16: =IFERROR(IF(VLOOKUP(F16,Settings!$C$19:$D$30,2,FALSE)="Full",1,IF(VLOOKUP(F16,Settings!$C$19:$D$30,2,FALSE)="Half",0.5,0)),0) -> 0 | H16: 5 | I16: 5 | J16: 13 | M16: P3 | N16: =IF(ISBLANK(Settings!C21),"",Settings!C21) -> K | O16: 1 | P16: 1 | Q16: =IFERROR(INDEX($N$1:$N$25,SMALL(IF($N$1:$N$25<>"",ROW($N$1:$N$25)),ROW(B16))),"") ->  | R16: Half | S16: =IF('Guts-2'!$N$6>=ROW(S2),"SS","") ->  | U16: =IF('Guts-2'!$N16>0,"Only Show: "&'Guts-2'!M16,"") ->  | V16: =IFERROR(INDEX($U$1:$U$24,SMALL(IF($U$1:$U$24<>"",ROW($U$1:$U$24)),ROW(B16))),"") ->  | W16: 2B | X16: BAA | Y16: =IFERROR(INDEX($W$1:$W$26,SMALL(IF($W$1:$W$26<>"",ROW($W$1:$W$26)),ROW(B15))),"") -> CS | Z16: =IFERROR(INDEX($X$1:$X$28,SMALL(IF($X$1:$X$28<>"",ROW($X$1:$X$28)),ROW(B15))),"") -> IP
A17: 2B + 3B | B17: =IFERROR(IF(VLOOKUP(A17,Settings!$C$5:$D$16,2,FALSE)="Full",1,IF(VLOOKUP(A17,Settings!$C$5:$D$16,2,FALSE)="Half",0.5,0)),0) -> 0 | C17: 30 | D17: 30 | E17: 47 | F17: HR's | G17: =IFERROR(IF(VLOOKUP(F17,Settings!$C$19:$D$30,2,FALSE)="Full",1,IF(VLOOKUP(F17,Settings!$C$19:$D$30,2,FALSE)="Half",0.5,0)),0) -> 0 | H17: 16 | I17: 16 | J17: 31 | M17: P4 | N17: =IF(ISBLANK(Settings!C22),"",Settings!C22) -> ERA | O17: 4 | P17: 4 | Q17: =IFERROR(INDEX($N$1:$N$25,SMALL(IF($N$1:$N$25<>"",ROW($N$1:$N$25)),ROW(B17))),"") ->  | R17: Snake Draft | S17: =IF('Guts-2'!$N$6>=ROW(S3),"SS","") ->  | U17: =IF('Guts-2'!$N17>0,"Only Show: "&'Guts-2'!M17,"") ->  | V17: =IFERROR(INDEX($U$1:$U$24,SMALL(IF($U$1:$U$24<>"",ROW($U$1:$U$24)),ROW(B17))),"") ->  | W17: 3B | X17: Hits Allw | Y17: =IFERROR(INDEX($W$1:$W$26,SMALL(IF($W$1:$W$26<>"",ROW($W$1:$W$26)),ROW(B16))),"") -> Errors | Z17: =IFERROR(INDEX($X$1:$X$28,SMALL(IF($X$1:$X$28<>"",ROW($X$1:$X$28)),ROW(B16))),"") -> GS
A18: R + RBI - HR | B18: =IFERROR(IF(VLOOKUP(A18,Settings!$C$5:$D$16,2,FALSE)="Full",1,IF(VLOOKUP(A18,Settings!$C$5:$D$16,2,FALSE)="Half",0.5,0)),0) -> 0 | C18: 21 | D18: 21 | E18: 46 | F18: Walks | G18: =IFERROR(IF(VLOOKUP(F18,Settings!$C$19:$D$30,2,FALSE)="Full",1,IF(VLOOKUP(F18,Settings!$C$19:$D$30,2,FALSE)="Half",0.5,0)),0) -> 0 | H18: 6 | I18: 6 | J18: 14 | M18: P5 | N18: =IF(ISBLANK(Settings!C23),"",Settings!C23) -> WHIP | O18: 4 | P18: 4 | Q18: =IFERROR(INDEX($N$1:$N$25,SMALL(IF($N$1:$N$25<>"",ROW($N$1:$N$25)),ROW(B18))),"") ->  | R18: Same Order Every Round | S18: =IF('Guts-2'!$N$7>=ROW(S1),"CI","") -> CI | W18: 2B + 3B | X18: HR's | Y18: =IFERROR(INDEX($W$1:$W$26,SMALL(IF($W$1:$W$26<>"",ROW($W$1:$W$26)),ROW(B17))),"") -> XBH | Z18: =IFERROR(INDEX($X$1:$X$28,SMALL(IF($X$1:$X$28<>"",ROW($X$1:$X$28)),ROW(B17))),"") -> Games
A19: SB + BB - K | B19: =IFERROR(IF(VLOOKUP(A19,Settings!$C$5:$D$16,2,FALSE)="Full",1,IF(VLOOKUP(A19,Settings!$C$5:$D$16,2,FALSE)="Half",0.5,0)),0) -> 0 | C19: 32 | D19: 32 | E19: 49 | F19: L | G19: =IFERROR(IF(VLOOKUP(F19,Settings!$C$19:$D$30,2,FALSE)="Full",1,IF(VLOOKUP(F19,Settings!$C$19:$D$30,2,FALSE)="Half",0.5,0)),0) -> 0 | H19: 3 | I19: 3 | J19: 11 | M19: P6 | N19: =IF(ISBLANK(Settings!C24),"",Settings!C24) ->  | Q19: =IFERROR(INDEX($N$1:$N$25,SMALL(IF($N$1:$N$25<>"",ROW($N$1:$N$25)),ROW(B19))),"") ->  | R19: Show Drafted Players | S19: =IF('Guts-2'!$N$7>=ROW(S2),"CI","") ->  | W19: R + RBI - HR | X19: Walks | Y19: =IFERROR(INDEX($W$1:$W$26,SMALL(IF($W$1:$W$26<>"",ROW($W$1:$W$26)),ROW(B18))),"") -> HBP | Z19: =IFERROR(INDEX($X$1:$X$28,SMALL(IF($X$1:$X$28<>"",ROW($X$1:$X$28)),ROW(B18))),"") -> GF
A20: CS | B20: =IFERROR(IF(VLOOKUP(A20,Settings!$C$5:$D$16,2,FALSE)="Full",1,IF(VLOOKUP(A20,Settings!$C$5:$D$16,2,FALSE)="Half",0.5,0)),0) -> 0 | C20: 13 | D20: 13 | E20: 30 | F20: IP | G20: =IFERROR(IF(VLOOKUP(F20,Settings!$C$19:$D$30,2,FALSE)="Full",1,IF(VLOOKUP(F20,Settings!$C$19:$D$30,2,FALSE)="Half",0.5,0)),0) -> 0 | H20: 4 | I20: 4 | J20: 12 | M20: P7 | N20: =IF(ISBLANK(Settings!C25),"",Settings!C25) ->  | Q20: =IFERROR(INDEX($N$1:$N$25,SMALL(IF($N$1:$N$25<>"",ROW($N$1:$N$25)),ROW(B20))),"") ->  | R20: Hide Drafted Players | S20: =IF('Guts-2'!$N$7>=ROW(S3),"CI","") ->  | W20: SB + BB - K | X20: L | Y20: =IFERROR(INDEX($W$1:$W$26,SMALL(IF($W$1:$W$26<>"",ROW($W$1:$W$26)),ROW(B19))),"") ->  | Z20: =IFERROR(INDEX($X$1:$X$28,SMALL(IF($X$1:$X$28<>"",ROW($X$1:$X$28)),ROW(B19))),"") -> Blown Sv
A21: Errors | B21: =IFERROR(IF(VLOOKUP(A21,Settings!$C$5:$D$16,2,FALSE)="Full",1,IF(VLOOKUP(A21,Settings!$C$5:$D$16,2,FALSE)="Half",0.5,0)),0) -> 0 | C21: 33 | D21: 33 | E21: 50 | F21: GS | G21: =IFERROR(IF(VLOOKUP(F21,Settings!$C$19:$D$30,2,FALSE)="Full",1,IF(VLOOKUP(F21,Settings!$C$19:$D$30,2,FALSE)="Half",0.5,0)),0) -> 0 | H21: 14 | I21: 14 | J21: 35 | M21: P8 | N21: =IF(ISBLANK(Settings!C26),"",Settings!C26) ->  | Q21: =IFERROR(INDEX($N$1:$N$25,SMALL(IF($N$1:$N$25<>"",ROW($N$1:$N$25)),ROW(B21))),"") ->  | R21: All Teams Have Same Budget | S21: =IF('Guts-2'!$N$8>=ROW(S1),"MI","") -> MI | W21: CS | X21: IP | Y21: =IFERROR(INDEX($W$1:$W$26,SMALL(IF($W$1:$W$26<>"",ROW($W$1:$W$26)),ROW(B20))),"") ->  | Z21: =IFERROR(INDEX($X$1:$X$28,SMALL(IF($X$1:$X$28<>"",ROW($X$1:$X$28)),ROW(B20))),"") -> Net Sv
A22: XBH | B22: =IFERROR(IF(VLOOKUP(A22,Settings!$C$5:$D$16,2,FALSE)="Full",1,IF(VLOOKUP(A22,Settings!$C$5:$D$16,2,FALSE)="Half",0.5,0)),0) -> 0 | C22: 34 | D22: 34 | E22: 51 | F22: Games | G22: =IFERROR(IF(VLOOKUP(F22,Settings!$C$19:$D$30,2,FALSE)="Full",1,IF(VLOOKUP(F22,Settings!$C$19:$D$30,2,FALSE)="Half",0.5,0)),0) -> 0 | H22: 15 | I22: 15 | J22: 38 | M22: P9 | N22: =IF(ISBLANK(Settings!C27),"",Settings!C27) ->  | Q22: =IFERROR(INDEX($N$1:$N$25,SMALL(IF($N$1:$N$25<>"",ROW($N$1:$N$25)),ROW(B26))),"") ->  | R22: Budgets Vary By Team | S22: =IF('Guts-2'!$N$8>=ROW(S2),"MI","") ->  | W22: Errors | X22: GS | Y22: =IFERROR(INDEX($W$1:$W$26,SMALL(IF($W$1:$W$26<>"",ROW($W$1:$W$26)),ROW(B21))),"") ->  | Z22: =IFERROR(INDEX($X$1:$X$28,SMALL(IF($X$1:$X$28<>"",ROW($X$1:$X$28)),ROW(B21))),"") -> H/9
A23: HBP | B23: =IFERROR(IF(VLOOKUP(A23,Settings!$C$5:$D$16,2,FALSE)="Full",1,IF(VLOOKUP(A23,Settings!$C$5:$D$16,2,FALSE)="Half",0.5,0)),0) -> 0 | C23: 35 | D23: 35 | E23: 52 | F23: GF | G23: =IFERROR(IF(VLOOKUP(F23,Settings!$C$19:$D$30,2,FALSE)="Full",1,IF(VLOOKUP(F23,Settings!$C$19:$D$30,2,FALSE)="Half",0.5,0)),0) -> 0 | H23: 21 | I23: 21 | J23: 39 | M23: P10 | N23: =IF(ISBLANK(Settings!C28),"",Settings!C28) ->  | Q23: =IFERROR(INDEX($N$1:$N$25,SMALL(IF($N$1:$N$25<>"",ROW($N$1:$N$25)),ROW(B27))),"") ->  | R23: Values Adjusted By Position | S23: =IF('Guts-2'!$N$8>=ROW(S3),"MI","") ->  | W23: XBH | X23: Games | Z23: =IFERROR(INDEX($X$1:$X$28,SMALL(IF($X$1:$X$28<>"",ROW($X$1:$X$28)),ROW(B22))),"") -> IP-ER
F24: Blown Sv | G24: =IFERROR(IF(VLOOKUP(F24,Settings!$C$19:$D$30,2,FALSE)="Full",1,IF(VLOOKUP(F24,Settings!$C$19:$D$30,2,FALSE)="Half",0.5,0)),0) -> 0 | H24: 22 | I24: 22 | J24: 40 | M24: P11 | N24: =IF(ISBLANK(Settings!C29),"",Settings!C29) ->  | Q24: =IFERROR(INDEX($N$1:$N$25,SMALL(IF($N$1:$N$25<>"",ROW($N$1:$N$25)),ROW(B28))),"") ->  | R24: Turn Off Position Adjustments | S24: =IF('Guts-2'!$N$17>=ROW(S1),"IF","") ->  | W24: HBP | X24: GF | Z24: =IFERROR(INDEX($X$1:$X$27,SMALL(IF($X$1:$X$27<>"",ROW($X$1:$X$27)),ROW(B23))),"") -> 
F25: Net Sv | G25: =IFERROR(IF(VLOOKUP(F25,Settings!$C$19:$D$30,2,FALSE)="Full",1,IF(VLOOKUP(F25,Settings!$C$19:$D$30,2,FALSE)="Half",0.5,0)),0) -> 0 | H25: 23 | I25: 23 | J25: 41 | M25: P12 | N25: =IF(ISBLANK(Settings!C30),"",Settings!C30) ->  | Q25: =IFERROR(INDEX($N$1:$N$25,SMALL(IF($N$1:$N$25<>"",ROW($N$1:$N$25)),ROW(B29))),"") ->  | S25: =IF('Guts-2'!$N$17>=ROW(S2),"IF","") ->  | X25: Blown Sv | Z25: =IFERROR(INDEX($X$1:$X$27,SMALL(IF($X$1:$X$27<>"",ROW($X$1:$X$27)),ROW(B24))),"") -> 
A26: Budget Per Team | B26: =Settings!K6 -> 260 | F26: H/9 | G26: =IFERROR(IF(VLOOKUP(F26,Settings!$C$19:$D$30,2,FALSE)="Full",1,IF(VLOOKUP(F26,Settings!$C$19:$D$30,2,FALSE)="Half",0.5,0)),0) -> 0 | H26: 27 | I26: 28 | J26: 43 | R26: Hot | S26: =IF('Guts-2'!$N$17>=ROW(S3),"IF","") ->  | X26: Net Sv | Z26: =IFERROR(INDEX($X$1:$X$27,SMALL(IF($X$1:$X$27<>"",ROW($X$1:$X$27)),ROW(B25))),"") -> 
A27: Players Per Team | B27: =Settings!G26 -> 22 | C27: =SUM('Guts-2'!N2:N17) -> 18 | F27: IP-ER | G27: =IFERROR(IF(VLOOKUP(F27,Settings!$C$19:$D$30,2,FALSE)="Full",1,IF(VLOOKUP(F27,Settings!$C$19:$D$30,2,FALSE)="Half",0.5,0)),0) -> 0 | H27: 34 | I27: 34 | J27: 44 | R27: Cold | S27: =IF('Guts-2'!$N$17>=ROW(S4),"IF","") ->  | X27: H/9 | Z27: =IFERROR(INDEX($X$1:$X$27,SMALL(IF($X$1:$X$27<>"",ROW($X$1:$X$27)),ROW(B26))),"") -> 
A28: Total League Money | B28: =IF(Settings!K8="All Teams Have Same Budget",Settings!K5*Settings!K6,SUM(Settings!L12:L35)) -> 3120 | R28: Target | S28: =IF('Guts-2'!$N$17>=ROW(S5),"IF","") ->  | X28: IP-ER
A29: Minimum Bid | B29: =Settings!K7 -> 1 | F29: Budget Per Team | R29: Avoid | S29: =IF('Guts-2'!$N$17>=ROW(S6),"IF","") -> 
A30: Minimum Amount To Spend | B30: =B27*'Guts-2'!N1*B29 -> 264 | F30: Players Per Team | R30: Injury | S30: =IF('Guts-2'!$N$9>=ROW(S1),"OF","") -> OF
A31: Hitter Min | B31: ='Filtered-H'!AP17 -> 132 | R31: Note | S31: =IF('Guts-2'!$N$9>=ROW(S2),"OF","") -> OF
... 38 more rows

Sheet Guts-2 (hidden)
B1: RotoChamp (Projected Value) | D1: THE BAT | E1: Teams | F1: Starters | G1: THE BAT | H1: =IF(OR(Settings!$P$35<>100,Settings!$O$35<>100),0,Settings!O26) -> 20 | I1: =IF(OR(Settings!$P$35<>100,Settings!$O$35<>100),0,Settings!P26) -> 20 | J1: LAA | K1: =IF(OR(Settings!$R$5="AL-Only",Settings!$R$5="Mixed (Standard)"),TRUE,IF(Settings!$R$5="Specific Teams Only",IF(Settings!T6="Y",TRUE,FALSE),FALSE)) -> TRUE | L1: C | M1: # of Teams | N1: =Settings!K5 -> 12 | P1: =IFERROR(INDEX($O$1:$O$19,SMALL(IF($O$1:$O$19<>"",ROW($O$1:$O$19)),ROW(O1))),"") -> C
A2: =IF($N$1>=ROW(A1),Settings!K12,#N/A) -> Team 1 | B2: CBS (Projected Value) | C2: ESPN - T. Cockcroft | D2: Clay Davenport | E2: 6 | F2: 0 | G2: Clay Davenport | H2: =IF(OR(Settings!$P$35<>100,Settings!$O$35<>100),0,Settings!O27) -> 5 | I2: =IF(OR(Settings!$P$35<>100,Settings!$O$35<>100),0,Settings!P27) -> 5 | J2: ARI | K2: =IF(OR(Settings!$R$5="NL-Only",Settings!$R$5="Mixed (Standard)"),TRUE,IF(Settings!$R$5="Specific Teams Only",IF(Settings!T7="Y",TRUE,FALSE),FALSE)) -> TRUE | L2: 1B | M2: C | N2: =Settings!G5 -> 1 | O2: =IF(N2>0,M2,"") -> C | P2: =IFERROR(INDEX($O$1:$O$19,SMALL(IF($O$1:$O$19<>"",ROW($O$1:$O$19)),ROW(O2))),"") -> 1B
A3: =IF($N$1>=ROW(A2),Settings!K13,#N/A) -> Team 2 | B3: ESPN (Avg Mock Draft Value) | C3: ESPN - E. Karabell | D3: Fangraphs - Depth Chart | E3: 7 | F3: 1 | G3: Fangraphs - Depth Chart | H3: =IF(OR(Settings!$P$35<>100,Settings!$O$35<>100),0,Settings!O28) -> 0 | I3: =IF(OR(Settings!$P$35<>100,Settings!$O$35<>100),0,Settings!P28) -> 0 | J3: ATL | K3: =IF(OR(Settings!$R$5="NL-Only",Settings!$R$5="Mixed (Standard)"),TRUE,IF(Settings!$R$5="Specific Teams Only",IF(Settings!T8="Y",TRUE,FALSE),FALSE)) -> TRUE | L3: 2B | M3: 1B | N3: =Settings!G6 -> 1 | O3: =IF(N3>0,M3,"") -> 1B | P3: =IFERROR(INDEX($O$1:$O$19,SMALL(IF($O$1:$O$19<>"",ROW($O$1:$O$19)),ROW(O3))),"") -> 2B
A4: =IF($N$1>=ROW(A3),Settings!K14,#N/A) -> Team 3 | B4: Yahoo (Projected Value) | D4: Mr. Cheatsheet's Special Blend | E4: 8 | F4: 2 | G4: Fangraphs - Fan Projections | H4: =IF(OR(Settings!$P$35<>100,Settings!$O$35<>100),0,Settings!O29) -> 25 | I4: =IF(OR(Settings!$P$35<>100,Settings!$O$35<>100),0,Settings!P29) -> 25 | J4: BAL | K4: =IF(OR(Settings!$R$5="AL-Only",Settings!$R$5="Mixed (Standard)"),TRUE,IF(Settings!$R$5="Specific Teams Only",IF(Settings!T9="Y",TRUE,FALSE),FALSE)) -> TRUE | L4: 3B | M4: 2B | N4: =Settings!G7 -> 1 | O4: 2B | P4: =IFERROR(INDEX($O$1:$O$19,SMALL(IF($O$1:$O$19<>"",ROW($O$1:$O$19)),ROW(O4))),"") -> 3B
A5: =IF($N$1>=ROW(A4),Settings!K15,#N/A) -> Team 4 | B5: Yahoo (Avg Mock Draft Value) | E5: 9 | F5: 3 | G5: Steamer | H5: =IF(OR(Settings!$P$35<>100,Settings!$O$35<>100),0,Settings!O30) -> 40 | I5: =IF(OR(Settings!$P$35<>100,Settings!$O$35<>100),0,Settings!P30) -> 40 | J5: BOS | K5: =IF(OR(Settings!$R$5="AL-Only",Settings!$R$5="Mixed (Standard)"),TRUE,IF(Settings!$R$5="Specific Teams Only",IF(Settings!T10="Y",TRUE,FALSE),FALSE)) -> TRUE | L5: SS | M5: 3B | N5: =Settings!G8 -> 1 | O5: 3B | P5: =IFERROR(INDEX($O$1:$O$19,SMALL(IF($O$1:$O$19<>"",ROW($O$1:$O$19)),ROW(O5))),"") -> SS
A6: =IF($N$1>=ROW(A5),Settings!K16,#N/A) -> Team 5 | C6: RotoChamp | E6: 10 | F6: 4 | G6: Steamer - 600 PA | H6: =IF(OR(Settings!$P$35<>100,Settings!$O$35<>100),0,Settings!O31) -> 0 | I6: =IF(OR(Settings!$P$35<>100,Settings!$O$35<>100),0,Settings!P31) -> 0 | J6: CHC | K6: =IF(OR(Settings!$R$5="NL-Only",Settings!$R$5="Mixed (Standard)"),TRUE,IF(Settings!$R$5="Specific Teams Only",IF(Settings!T11="Y",TRUE,FALSE),FALSE)) -> TRUE | L6: OF | M6: SS | N6: =Settings!G9 -> 1 | O6: SS | P6: =IFERROR(INDEX($O$1:$O$19,SMALL(IF($O$1:$O$19<>"",ROW($O$1:$O$19)),ROW(O6))),"") -> CI
A7: =IF($N$1>=ROW(A6),Settings!K17,#N/A) -> Team 6 | B7: FantasyPros (Projected Value) | C7: Yahoo Staff | D7: Steamer | E7: 11 | F7: 5 | G7: ZiPS | H7: =IF(OR(Settings!$P$35<>100,Settings!$O$35<>100),0,Settings!O32) -> 10 | I7: =IF(OR(Settings!$P$35<>100,Settings!$O$35<>100),0,Settings!P32) -> 10 | J7: CHW | K7: =IF(OR(Settings!$R$5="AL-Only",Settings!$R$5="Mixed (Standard)"),TRUE,IF(Settings!$R$5="Specific Teams Only",IF(Settings!T12="Y",TRUE,FALSE),FALSE)) -> TRUE | L7: SP | M7: CI | N7: =Settings!G12 -> 1 | O7: CI | P7: =IFERROR(INDEX($O$1:$O$19,SMALL(IF($O$1:$O$19<>"",ROW($O$1:$O$19)),ROW(O7))),"") -> MI
A8: =IF($N$1>=ROW(A7),Settings!K18,#N/A) -> Team 7 | B8: Average of All Options | C8: FantasyPros Avg | D8: Steamer - 600 PA | E8: 12 | F8: 6 | J8: CIN | K8: =IF(OR(Settings!$R$5="NL-Only",Settings!$R$5="Mixed (Standard)"),TRUE,IF(Settings!$R$5="Specific Teams Only",IF(Settings!T13="Y",TRUE,FALSE),FALSE)) -> TRUE | L8: RP | M8: MI | N8: =Settings!G13 -> 1 | O8: MI | P8: =IFERROR(INDEX($O$1:$O$19,SMALL(IF($O$1:$O$19<>"",ROW($O$1:$O$19)),ROW(O8))),"") -> OF
A9: =IF($N$1>=ROW(A8),Settings!K19,#N/A) -> Team 8 | B9: Imported Values | C9: =IFERROR(INDEX($C$1:$C$8,SMALL(IF($C$1:$C$8<>"",ROW($C$1:$C$8)),ROW(C1))),"") -> ESPN - T. Cockcroft | D9: ZiPS | E9: 13 | F9: 7 | J9: CLE | K9: =IF(OR(Settings!$R$5="AL-Only",Settings!$R$5="Mixed (Standard)"),TRUE,IF(Settings!$R$5="Specific Teams Only",IF(Settings!T14="Y",TRUE,FALSE),FALSE)) -> TRUE | L9: DH | M9: OF | N9: =Settings!G10 -> 3 | O9: OF | P9: =IFERROR(INDEX($O$1:$O$19,SMALL(IF($O$1:$O$19<>"",ROW($O$1:$O$19)),ROW(O9))),"") -> DH
A10: =IF($N$1>=ROW(A9),Settings!K20,#N/A) -> Team 9 | C10: =IFERROR(INDEX($C$1:$C$8,SMALL(IF($C$1:$C$8<>"",ROW($C$1:$C$8)),ROW(C2))),"") -> ESPN - E. Karabell | D10: Import Your Own Projections | E10: 14 | F10: 8 | J10: COL | K10: =IF(OR(Settings!$R$5="NL-Only",Settings!$R$5="Mixed (Standard)"),TRUE,IF(Settings!$R$5="Specific Teams Only",IF(Settings!T15="Y",TRUE,FALSE),FALSE)) -> TRUE | M10: DH | N10: =Settings!G11 -> 1 | O10: DH | P10: =IFERROR(INDEX($O$1:$O$19,SMALL(IF($O$1:$O$19<>"",ROW($O$1:$O$19)),ROW(O10))),"") -> SP
A11: =IF($N$1>=ROW(A10),Settings!K21,#N/A) -> Team 10 | B11: =IFERROR(INDEX($B$1:$B$10,SMALL(IF($B$1:$B$10<>"",ROW($B$1:$B$10)),ROW(B1))),"") -> RotoChamp (Projected Value) | C11: =IFERROR(INDEX($C$1:$C$8,SMALL(IF($C$1:$C$8<>"",ROW($C$1:$C$8)),ROW(C3))),"") -> RotoChamp | D11: Your Own Custom Combination | E11: 15 | F11: 9 | J11: DET | K11: =IF(OR(Settings!$R$5="AL-Only",Settings!$R$5="Mixed (Standard)"),TRUE,IF(Settings!$R$5="Specific Teams Only",IF(Settings!T16="Y",TRUE,FALSE),FALSE)) -> TRUE | M11: SP | N11: =Settings!G19 -> 4 | O11: SP | P11: =IFERROR(INDEX($O$1:$O$19,SMALL(IF($O$1:$O$19<>"",ROW($O$1:$O$19)),ROW(O11))),"") -> RP
A12: =IF($N$1>=ROW(A11),Settings!K22,#N/A) -> Team 11 | B12: =IFERROR(INDEX($B$1:$B$10,SMALL(IF($B$1:$B$10<>"",ROW($B$1:$B$10)),ROW(B2))),"") -> CBS (Projected Value) | C12: =IFERROR(INDEX($C$1:$C$8,SMALL(IF($C$1:$C$8<>"",ROW($C$1:$C$8)),ROW(C4))),"") -> Yahoo Staff | E12: 16 | F12: 10 | J12: HOU | K12: =IF(OR(Settings!$R$5="AL-Only",Settings!$R$5="Mixed (Standard)"),TRUE,IF(Settings!$R$5="Specific Teams Only",IF(Settings!T17="Y",TRUE,FALSE),FALSE)) -> TRUE | M12: RP | N12: =Settings!G20 -> 2 | O12: RP | P12: =IFERROR(INDEX($O$1:$O$19,SMALL(IF($O$1:$O$19<>"",ROW($O$1:$O$19)),ROW(O12))),"") -> P
A13: =IF($N$1>=ROW(A12),Settings!K23,#N/A) -> Team 12 | B13: =IFERROR(INDEX($B$1:$B$10,SMALL(IF($B$1:$B$10<>"",ROW($B$1:$B$10)),ROW(B3))),"") -> ESPN (Avg Mock Draft Value) | C13: =IFERROR(INDEX($C$1:$C$8,SMALL(IF($C$1:$C$8<>"",ROW($C$1:$C$8)),ROW(C5))),"") -> FantasyPros Avg | E13: 17 | F13: 11 | J13: KC | K13: =IF(OR(Settings!$R$5="AL-Only",Settings!$R$5="Mixed (Standard)"),TRUE,IF(Settings!$R$5="Specific Teams Only",IF(Settings!T18="Y",TRUE,FALSE),FALSE)) -> TRUE | M13: P | N13: =Settings!G21 -> 1 | O13: P | P13: =IFERROR(INDEX($O$1:$O$19,SMALL(IF($O$1:$O$19<>"",ROW($O$1:$O$19)),ROW(O13))),"") -> Bench
A14: =IF($N$1>=ROW(A13),Settings!K24,#N/A) ->  | B14: =IFERROR(INDEX($B$1:$B$10,SMALL(IF($B$1:$B$10<>"",ROW($B$1:$B$10)),ROW(B4))),"") -> Yahoo (Projected Value) | C14: =IFERROR(INDEX($C$1:$C$8,SMALL(IF($C$1:$C$8<>"",ROW($C$1:$C$8)),ROW(C6))),"") ->  | D14: =IFERROR(INDEX($D$1:$D$12,SMALL(IF($D$1:$D$12<>"",ROW($D$1:$D$12)),ROW(D1))),"") -> THE BAT | E14: 18 | F14: 12 | J14: LAD | K14: =IF(OR(Settings!$R$5="NL-Only",Settings!$R$5="Mixed (Standard)"),TRUE,IF(Settings!$R$5="Specific Teams Only",IF(Settings!T19="Y",TRUE,FALSE),FALSE)) -> TRUE | M14: LF | N14: =Settings!G15 -> 0 | P14: =IFERROR(INDEX($O$1:$O$19,SMALL(IF($O$1:$O$19<>"",ROW($O$1:$O$19)),ROW(O14))),"") -> 
A15: =IF($N$1>=ROW(A14),Settings!K25,#N/A) ->  | B15: =IFERROR(INDEX($B$1:$B$10,SMALL(IF($B$1:$B$10<>"",ROW($B$1:$B$10)),ROW(B5))),"") -> Yahoo (Avg Mock Draft Value) | C15: =IFERROR(INDEX($C$1:$C$8,SMALL(IF($C$1:$C$8<>"",ROW($C$1:$C$8)),ROW(C7))),"") ->  | D15: =IFERROR(INDEX($D$1:$D$12,SMALL(IF($D$1:$D$12<>"",ROW($D$1:$D$12)),ROW(D2))),"") -> Clay Davenport | E15: 19 | F15: 13 | J15: MIA | K15: =IF(OR(Settings!$R$5="NL-Only",Settings!$R$5="Mixed (Standard)"),TRUE,IF(Settings!$R$5="Specific Teams Only",IF(Settings!T20="Y",TRUE,FALSE),FALSE)) -> TRUE | M15: CF | N15: =Settings!G16 -> 0 | P15: =IFERROR(INDEX($O$1:$O$19,SMALL(IF($O$1:$O$19<>"",ROW($O$1:$O$19)),ROW(O15))),"") -> 
A16: =IF($N$1>=ROW(A15),Settings!K26,#N/A) ->  | B16: =IFERROR(INDEX($B$1:$B$10,SMALL(IF($B$1:$B$10<>"",ROW($B$1:$B$10)),ROW(B6))),"") -> FantasyPros (Projected Value) | C16: =IFERROR(INDEX($C$1:$C$8,SMALL(IF($C$1:$C$8<>"",ROW($C$1:$C$8)),ROW(C8))),"") ->  | D16: =IFERROR(INDEX($D$1:$D$12,SMALL(IF($D$1:$D$12<>"",ROW($D$1:$D$12)),ROW(D3))),"") -> Fangraphs - Depth Chart | E16: 20 | F16: 14 | J16: MIL | K16: =IF(OR(Settings!$R$5="NL-Only",Settings!$R$5="Mixed (Standard)"),TRUE,IF(Settings!$R$5="Specific Teams Only",IF(Settings!T21="Y",TRUE,FALSE),FALSE)) -> TRUE | M16: RF | N16: =Settings!G17 -> 0 | P16: =IFERROR(INDEX($O$1:$O$19,SMALL(IF($O$1:$O$19<>"",ROW($O$1:$O$19)),ROW(O16))),"") -> 
A17: =IF($N$1>=ROW(A16),Settings!K27,#N/A) ->  | B17: =IFERROR(INDEX($B$1:$B$10,SMALL(IF($B$1:$B$10<>"",ROW($B$1:$B$10)),ROW(B7))),"") -> Average of All Options | D17: =IFERROR(INDEX($D$1:$D$12,SMALL(IF($D$1:$D$12<>"",ROW($D$1:$D$12)),ROW(D4))),"") -> Mr. Cheatsheet's Special Blend | E17: 21 | F17: 15 | J17: MIN | K17: =IF(OR(Settings!$R$5="AL-Only",Settings!$R$5="Mixed (Standard)"),TRUE,IF(Settings!$R$5="Specific Teams Only",IF(Settings!T22="Y",TRUE,FALSE),FALSE)) -> TRUE | M17: IF | N17: =Settings!G14 -> 0 | P17: =IFERROR(INDEX($O$1:$O$19,SMALL(IF($O$1:$O$19<>"",ROW($O$1:$O$19)),ROW(O17))),"") -> 
A18: =IF($N$1>=ROW(A17),Settings!K28,#N/A) ->  | B18: =IFERROR(INDEX($B$1:$B$10,SMALL(IF($B$1:$B$10<>"",ROW($B$1:$B$10)),ROW(B8))),"") -> Imported Values | D18: =IFERROR(INDEX($D$1:$D$12,SMALL(IF($D$1:$D$12<>"",ROW($D$1:$D$12)),ROW(D5))),"") -> Steamer | E18: 22 | F18: 16 | J18: NYM | K18: =IF(OR(Settings!$R$5="NL-Only",Settings!$R$5="Mixed (Standard)"),TRUE,IF(Settings!$R$5="Specific Teams Only",IF(Settings!T23="Y",TRUE,FALSE),FALSE)) -> TRUE | O18: Bench | P18: =IFERROR(INDEX($O$1:$O$19,SMALL(IF($O$1:$O$19<>"",ROW($O$1:$O$19)),ROW(O18))),"") -> 
A19: =IF($N$1>=ROW(A18),Settings!K29,#N/A) ->  | B19: =IFERROR(INDEX($B$1:$B$10,SMALL(IF($B$1:$B$10<>"",ROW($B$1:$B$10)),ROW(B9))),"") ->  | D19: =IFERROR(INDEX($D$1:$D$12,SMALL(IF($D$1:$D$12<>"",ROW($D$1:$D$12)),ROW(D6))),"") -> Steamer - 600 PA | E19: 23 | F19: 17 | J19: NYY | K19: =IF(OR(Settings!$R$5="AL-Only",Settings!$R$5="Mixed (Standard)"),TRUE,IF(Settings!$R$5="Specific Teams Only",IF(Settings!T24="Y",TRUE,FALSE),FALSE)) -> TRUE
A20: =IF($N$1>=ROW(A19),Settings!K30,#N/A) ->  | B20: =IFERROR(INDEX($B$1:$B$10,SMALL(IF($B$1:$B$10<>"",ROW($B$1:$B$10)),ROW(B10))),"") ->  | D20: =IFERROR(INDEX($D$1:$D$12,SMALL(IF($D$1:$D$12<>"",ROW($D$1:$D$12)),ROW(D7))),"") -> ZiPS | E20: 24 | F20: 18 | J20: OAK | K20: =IF(OR(Settings!$R$5="AL-Only",Settings!$R$5="Mixed (Standard)"),TRUE,IF(Settings!$R$5="Specific Teams Only",IF(Settings!T25="Y",TRUE,FALSE),FALSE)) -> TRUE
A21: =IF($N$1>=ROW(A20),Settings!K31,#N/A) ->  | B21: =IFERROR(INDEX($B$1:$B$10,SMALL(IF($B$1:$B$10<>"",ROW($B$1:$B$10)),ROW(B11))),"") ->  | D21: =IFERROR(INDEX($D$1:$D$12,SMALL(IF($D$1:$D$12<>"",ROW($D$1:$D$12)),ROW(D8))),"") -> Import Your Own Projections | F21: 19 | J21: PHI | K21: =IF(OR(Settings!$R$5="NL-Only",Settings!$R$5="Mixed (Standard)"),TRUE,IF(Settings!$R$5="Specific Teams Only",IF(Settings!T26="Y",TRUE,FALSE),FALSE)) -> TRUE
A22: =IF($N$1>=ROW(A21),Settings!K32,#N/A) ->  | D22: =IFERROR(INDEX($D$1:$D$12,SMALL(IF($D$1:$D$12<>"",ROW($D$1:$D$12)),ROW(D9))),"") -> Your Own Custom Combination | F22: 20 | J22: PIT | K22: =IF(OR(Settings!$R$5="NL-Only",Settings!$R$5="Mixed (Standard)"),TRUE,IF(Settings!$R$5="Specific Teams Only",IF(Settings!T27="Y",TRUE,FALSE),FALSE)) -> TRUE
A23: =IF($N$1>=ROW(A22),Settings!K33,#N/A) ->  | D23: =IFERROR(INDEX($D$1:$D$12,SMALL(IF($D$1:$D$12<>"",ROW($D$1:$D$12)),ROW(D10))),"") ->  | F23: 21 | J23: SD | K23: =IF(OR(Settings!$R$5="NL-Only",Settings!$R$5="Mixed (Standard)"),TRUE,IF(Settings!$R$5="Specific Teams Only",IF(Settings!T28="Y",TRUE,FALSE),FALSE)) -> TRUE
A24: =IF($N$1>=ROW(A23),Settings!K34,#N/A) ->  | D24: =IFERROR(INDEX($D$1:$D$12,SMALL(IF($D$1:$D$12<>"",ROW($D$1:$D$12)),ROW(D11))),"") ->  | F24: 22 | J24: SEA | K24: =IF(OR(Settings!$R$5="AL-Only",Settings!$R$5="Mixed (Standard)"),TRUE,IF(Settings!$R$5="Specific Teams Only",IF(Settings!T29="Y",TRUE,FALSE),FALSE)) -> TRUE
A25: =IF($N$1>=ROW(A24),Settings!K35,#N/A) ->  | D25: =IFERROR(INDEX($D$1:$D$12,SMALL(IF($D$1:$D$12<>"",ROW($D$1:$D$12)),ROW(D12))),"") ->  | F25: 23 | J25: SF | K25: =IF(OR(Settings!$R$5="NL-Only",Settings!$R$5="Mixed (Standard)"),TRUE,IF(Settings!$R$5="Specific Teams Only",IF(Settings!T30="Y",TRUE,FALSE),FALSE)) -> TRUE
A26: From Settings | B26: =Settings!O16 -> Average of All Options | C26: Auction Vl: | D26: =IF(B26="RotoChamp",1,IF(B26="CBS (Projected Value)",2,IF(B26="ESPN (Avg Mock Draft Value)",3,IF(B26="Yahoo (Projected Value)",4,IF(B26="Yahoo (Avg Mock Draft Value)",5,IF(B26="FantasyPros (Projected Value)",7,IF(B26="Average of All Options",8,IF(B26="Imported Values",9,"")))))))) -> 8 | F26: 24 | J26: STL | K26: =IF(OR(Settings!$R$5="NL-Only",Settings!$R$5="Mixed (Standard)"),TRUE,IF(Settings!$R$5="Specific Teams Only",IF(Settings!T31="Y",TRUE,FALSE),FALSE)) -> TRUE
A27: For a List | B27: =Settings!O20 -> FantasyPros Avg | C27: Rankings: | D27: =IF(B27="RotoChamp",1,IF(B27="Yahoo Staff",2,IF(B27="ESPN - T. Cockcroft",3,IF(B27="ESPN - E. Karabell",4,IF(B27="FantasyPros Avg",5,IF(B27="Mr. Cheatsheet",6)))))) -> 5 | J27: TB | K27: =IF(OR(Settings!$R$5="AL-Only",Settings!$R$5="Mixed (Standard)"),TRUE,IF(Settings!$R$5="Specific Teams Only",IF(Settings!T32="Y",TRUE,FALSE),FALSE)) -> TRUE
A28: Controlled by Formulas | B28: =Settings!O18 -> Mr. Cheatsheet's Special Blend | C28: Projections: | D28: =IF(B28="THE BAT",1,IF(B28="Steamer",2,IF(B28="Steamer - 600 PA",7,IF(B28="ZiPS",4,IF(B28="Fangraphs - Depth Chart",5,IF(B28="Your Own Custom Combination",8,IF(B28="Mr. Cheatsheet's Special Blend",9,IF(B28="Special Blend w/ Steamer Replacements",10,IF(B28="Fangraphs - Fan Projections",3,IF(B28="Clay Davenport",6,IF(B28="Import Your Own Projections",11,0))))))))))) -> 9 | J28: TEX | K28: =IF(OR(Settings!$R$5="AL-Only",Settings!$R$5="Mixed (Standard)"),TRUE,IF(Settings!$R$5="Specific Teams Only",IF(Settings!T33="Y",TRUE,FALSE),FALSE)) -> TRUE
J29: TOR | K29: =IF(OR(Settings!$R$5="AL-Only",Settings!$R$5="Mixed (Standard)"),TRUE,IF(Settings!$R$5="Specific Teams Only",IF(Settings!T34="Y",TRUE,FALSE),FALSE)) -> TRUE
J30: WAS | K30: =IF(OR(Settings!$R$5="NL-Only",Settings!$R$5="Mixed (Standard)"),TRUE,IF(Settings!$R$5="Specific Teams Only",IF(Settings!T35="Y",TRUE,FALSE),FALSE)) -> TRUE

Sheet Name-Sort (hidden)
C1: ORDER | D1: PLAYERNAME | E1: Team | F1: Original Pos | G1: New Pos | H1: Pos to Use | I1: New Pos | J1: Show Team? | K1: Drafted | L1: Show or No | M1: Original Projected Auction Value | N1: WERTH | O1: Expert Ranking | P1: ='Your Roto Auction'!Q10 -> AVG | Q1: ='Your Roto Auction'!R10 -> HR | R1: ='Your Roto Auction'!S10 -> R | S1: ='Your Roto Auction'!T10 -> RBI | T1: ='Your Roto Auction'!U10 -> SB | U1: ='Your Roto Auction'!V10 ->  | V1: ='Your Roto Auction'!W10 ->  | W1: ='Your Roto Auction'!X10 ->  | X1: ='Your Roto Auction'!Y10 ->  | Y1: ='Your Roto Auction'!Z10 ->  | Z1: ='Your Roto Auction'!AA10 ->  | AA1: ='Your Roto Auction'!AB10 ->  | AB1: ='Your Roto Auction'!Q9 -> W | AC1: ='Your Roto Auction'!R9 -> SV | AD1: ='Your Roto Auction'!S9 -> K | AE1: ='Your Roto Auction'!T9 -> ERA | AF1: ='Your Roto Auction'!U9 -> WHIP | AG1: ='Your Roto Auction'!V9 ->  | AH1: ='Your Roto Auction'!W9 ->  | AI1: ='Your Roto Auction'!X9 ->  | AJ1: ='Your Roto Auction'!Y9 ->  | AK1: ='Your Roto Auction'!Z9 ->  | AL1: ='Your Roto Auction'!AA9 ->  | AM1: ='Your Roto Auction'!AB9 ->  | AN1: Pos Adj WERTH
A2: =IFERROR(IF(VLOOKUP(ROW($A1),$C$2:$N$948,9,FALSE)=FALSE,VLOOKUP(ROW($A1),$C$2:$N$948,2,FALSE),""),"") -> Gerrit Cole | B2: =IFERROR(INDEX($A$1:$A$948,SMALL(IF($A$1:$A$948<>"",ROW($A$1:$A$948)),ROW(A1))),"") -> Gerrit Cole | C2: =IFERROR(IF(L2=FALSE,"",CHOOSE(MATCH(RIGHT('Your Roto Auction'!$Q$4,LEN('Your Roto Auction'!$Q$4)-8),$M$1:$AN$1,0),1+SUMPRODUCT(($L$2:$L$949=TRUE)*($M$2:$M$949>M2))+COUNTIFS($L$2:L2,L2,$M$2:M2,M2)-1,1+SUMPRODUCT(($L$2:$L$949=TRUE)*($N$2:$N$949>N2))+COUNTIFS($L$2:L2,L2,$N$2:N2,N2)-1,1+SUMPRODUCT(($L$2:$L$949=TRUE)*($O$2:$O$949<O2))+COUNTIFS($L$2:L2,L2,$O$2:O2,O2)-1,1+SUMPRODUCT(($L$2:$L$949=TRUE)*($P$2:$P$949>P2))+COUNTIFS($L$2:L2,L2,$P$2:P2,P2)-1,1+SUMPRODUCT(($L$2:$L$949=TRUE)*($Q$2:$Q$949>Q2))+COUNTIFS($L$2:L2,L2,$Q$2:Q2,Q2)-1,1+SUMPRODUCT(($L$2:$L$949=TRUE)*($R$2:$R$949>R2))+COUNTIFS($L$2:L2,L2,$R$2:R2,R2)-1,1+SUMPRODUCT(($L$2:$L$949=TRUE)*($S$2:$S$949>S2))+COUNTIFS($L$2:L2,L2,$S$2:S2,S2)-1,1+SUMPRODUCT(($L$2:$L$949=TRUE)*($T$2:$T$949>T2))+COUNTIFS($L$2:L2,L2,$T$2:T2,T2)-1,1+SUMPRODUCT(($L$2:$L$949=TRUE)*($U$2:$U$949>U2))+COUNTIFS($L$2:L2,L2,$U$2:U2,U2)-1,1+SUMPRODUCT(($L$2:$L$949=TRUE)*($V$2:$V$949>V2))+COUNTIFS($L$2:L2,L2,$V$2:V2,V2)-1,1+SUMPRODUCT(($L$2:$L$949=TRUE)*($W$2:$W$949>W2))+COUNTIFS($L$2:L2,L2,$W$2:W2,W2)-1,1+SUMPRODUCT(($L$2:$L$949=TRUE)*($X$2:$X$949>X2))+COUNTIFS($L$2:L2,L2,$X$2:X2,X2)-1,1+SUMPRODUCT(($L$2:$L$949=TRUE)*($Y$2:$Y$949>Y2))+COUNTIFS($L$2:L2,L2,$Y$2:Y2,Y2)-1,1+SUMPRODUCT(($L$2:$L$949=TRUE)*($Z$2:$Z$949>Z2))+COUNTIFS($L$2:L2,L2,$Z$2:Z2,Z2)-1,1+SUMPRODUCT(($L$2:$L$949=TRUE)*($AA$2:$AA$949>AA2))+COUNTIFS($L$2:L2,L2,$AA$2:AA2,AA2)-1,1+SUMPRODUCT(($L$2:$L$949=TRUE)*($AB$2:$AB$949>AB2))+COUNTIFS($L$2:L2,L2,$AB$2:AB2,AB2)-1,1+SUMPRODUCT(($L$2:$L$949=TRUE)*($AC$2:$AC$949>AC2))+COUNTIFS($L$2:L2,L2,$AC$2:AC2,AC2)-1,1+SUMPRODUCT(($L$2:$L$949=TRUE)*($AD$2:$AD$949>AD2))+COUNTIFS($L$2:L2,L2,$AD$2:AD2,AD2)-1,1+SUMPRODUCT(($L$2:$L$949=TRUE)*($AE$2:$AE$949>AE2))+COUNTIFS($L$2:L2,L2,$AE$2:AE2,AE2)-1,1+SUMPRODUCT(($L$2:$L$949=TRUE)*($AF$2:$AF$949>AF2))+COUNTIFS($L$2:L2,L2,$AF$2:AF2,AF2)-1,1+SUMPRODUCT(($L$2:$L$949=TRUE)*($AG$2:$AG$949>AG2))+COUNTIFS($L$2:L2,L2,$AG$2:AG2,AG2)-1,1+SUMPRODUCT(($L$2:$L$949=TRUE)*($AH$2:$AH$949>AH2))+COUNTIFS($L$2:L2,L2,$AH$2:AH2,AH2)-1,1+SUMPRODUCT(($L$2:$L$949=TRUE)*($AI$2:$AI$949>AI2))+COUNTIFS($L$2:L2,L2,$AI$2:AI2,AI2)-1,1+SUMPRODUCT(($L$2:$L$949=TRUE)*($AJ$2:$AJ$949>AJ2))+COUNTIFS($L$2:L2,L2,$AJ$2:AJ2,AJ2)-1,1+SUMPRODUCT(($L$2:$L$949=TRUE)*($AK$2:$AK$949>AK2))+COUNTIFS($L$2:L2,L2,$AK$2:AK2,AK2)-1,1+SUMPRODUCT(($L$2:$L$949=TRUE)*($AL$2:$AL$949>AL2))+COUNTIFS($L$2:L2,L2,$AL$2:AL2,AL2)-1,1+SUMPRODUCT(($L$2:$L$949=TRUE)*($AM$2:$AM$949>AM2))+COUNTIFS($L$2:L2,L2,$AM$2:AM2,AM2)-1,1+SUMPRODUCT(($L$2:$L$949=TRUE)*($AN$2:$AN$949>AN2))+COUNTIFS($L$2:L2,L2,$AN$2:AN2,AN2)-1)),"") -> 708 | D2: Bryan Abreu | E2: =IFERROR(INDEX('Auction Log'!$C$4:$C$806,MATCH(D2,'Auction Log'!$B$4:$B$806,0)),"") ->  | F2: =IFERROR(INDEX('Auction-Rank'!$C$2:$C$948,MATCH(D2,'Auction-Rank'!$A$2:$A$948,0)),"") -> RP | G2: =IFERROR(IF(F2=I2,"",IF(INDEX('Your Roto Auction'!$C$11:$C$634,MATCH(D2,'Your Roto Auction'!$D$11:$D$634,0))="",IF(I2<>"",I2,""),INDEX('Your Roto Auction'!$C$11:$C$634,MATCH(D2,'Your Roto Auction'!$D$11:$D$634,0)))),"") ->  | H2: =IFERROR(IF(I2="",F2,IF(I2<>F2,I2,F2)),"") -> RP | J2: =INDEX('Auction-Rank'!$V$2:$V$948,MATCH(D2,'Auction-Rank'!$A$2:$A$948,0)) -> TRUE | K2: =IF(E2="",FALSE,TRUE) -> FALSE | L2: =IF(J2=FALSE,FALSE,IF(AND('Your Roto Auction'!$Q$6="Hide Drafted Players",K2=TRUE),FALSE,IF(OR('Your Roto Auction'!$Q$5="Show All Positions",AND('Your Roto Auction'!$Q$5="Only Show: C",H2="C"),AND('Your Roto Auction'!$Q$5="Only Show: 1B",H2="1B"),AND('Your Roto Auction'!$Q$5="Only Show: 2B",H2="2B"),AND('Your Roto Auction'!$Q$5="Only Show: 3B",H2="3B"),AND('Your Roto Auction'!$Q$5="Only Show: SS",H2="SS"),AND('Your Roto Auction'!$Q$5="Only Show: OF",H2="OF"),AND('Your Roto Auction'!$Q$5="Only Show: SP",H2="SP"),AND('Your Roto Auction'!$Q$5="Only Show: RP",H2="RP"),AND('Your Roto Auction'!$Q$5="Only Show: CI",OR(H2={"1B","3B"})),AND('Your Roto Auction'!$Q$5="Only Show: MI",OR(H2={"2B","SS"})),AND('Your Roto Auction'!$Q$5="Only Show: IF",OR(H2={"C","1B","2B","3B","SS"})),AND('Your Roto Auction'!$Q$5="Only Show: DH",OR(H2={"C","1B","2B","3B","SS","OF","DH"})),AND('Your Roto Auction'!$Q$5="Only Show: P",OR(H2={"SP","RP"})),AND('Your Roto Auction'!$Q$5="Only Show: LF",ISERROR(SEARCH("LF",VLOOKUP($D2,'Auction-Rank'!$A$2:$D$948,4,FALSE)))=FALSE),AND('Your Roto Auction'!$Q$5="Only Show: RF",ISERROR(SEARCH("RF",VLOOKUP($D2,'Auction-Rank'!$A$2:$D$948,4,FALSE)))=FALSE),AND('Your Roto Auction'!$Q$5="Only Show: CF",ISERROR(SEARCH("CF",VLOOKUP($D2,'Auction-Rank'!$A$2:$D$948,4,FALSE)))=FALSE)),TRUE,FALSE))) -> TRUE | M2: =IFERROR(IF(VLOOKUP($D2,'Inflation-Tracking'!$A$5:$AD$862,22,FALSE)="",-9999,VLOOKUP($D2,'Inflation-Tracking'!$A$5:$AD$862,22,FALSE)),-9999) -> -9999 | N2: =IF(D2="Non-Ranked Player",-1001,IFERROR(VLOOKUP($D2,'All-WERTH'!$C$2:$E$793,3,FALSE),-1000)) -> -1000 | O2: =IF(D2="Non-Ranked Player",10000,IFERROR(IF(VLOOKUP(D2,'Auction-Rank'!$A$2:$X$948,24,FALSE)="",9999,VLOOKUP(D2,'Auction-Rank'!$A$2:$X$948,24,FALSE)),9999)) -> 9999 | P2: =IF($D2="Unlisted Player",-1001,IFERROR(IF(VLOOKUP($D2,'All-WERTH'!$C$2:$AC$793,4,FALSE)="",-1000,VLOOKUP($D2,'All-WERTH'!$C$2:$AC$793,4,FALSE)),-1000)) -> -1000 | Q2: =IF($D2="Unlisted Player",-1001,IFERROR(IF(VLOOKUP($D2,'All-WERTH'!$C$2:$AC$793,5,FALSE)="",-1000,VLOOKUP($D2,'All-WERTH'!$C$2:$AC$793,5,FALSE)),-1000)) -> -1000 | R2: =IF($D2="Unlisted Player",-1001,IFERROR(IF(VLOOKUP($D2,'All-WERTH'!$C$2:$AC$793,6,FALSE)="",-1000,VLOOKUP($D2,'All-WERTH'!$C$2:$AC$793,6,FALSE)),-1000)) -> -1000 | S2: =IF($D2="Unlisted Player",-1001,IFERROR(IF(VLOOKUP($D2,'All-WERTH'!$C$2:$AC$793,7,FALSE)="",-1000,VLOOKUP($D2,'All-WERTH'!$C$2:$AC$793,7,FALSE)),-1000)) -> -1000 | T2: =IF($D2="Unlisted Player",-1001,IFERROR(IF(VLOOKUP($D2,'All-WERTH'!$C$2:$AC$793,8,FALSE)="",-1000,VLOOKUP($D2,'All-WERTH'!$C$2:$AC$793,8,FALSE)),-1000)) -> -1000 | U2: =IF($D2="Unlisted Player",-1001,IFERROR(IF(VLOOKUP($D2,'All-WERTH'!$C$2:$AC$793,9,FALSE)="",-1000,VLOOKUP($D2,'All-WERTH'!$C$2:$AC$793,9,FALSE)),-1000)) -> -1000 | V2: =IF($D2="Unlisted Player",-1001,IFERROR(IF(VLOOKUP($D2,'All-WERTH'!$C$2:$AC$793,10,FALSE)="",-1000,VLOOKUP($D2,'All-WERTH'!$C$2:$AC$793,10,FALSE)),-1000)) -> -1000 | W2: =IF($D2="Unlisted Player",-1001,IFERROR(IF(VLOOKUP($D2,'All-WERTH'!$C$2:$AC$793,11,FALSE)="",-1000,VLOOKUP($D2,'All-WERTH'!$C$2:$AC$793,11,FALSE)),-1000)) -> -1000 | X2: =IF($D2="Unlisted Player",-1001,IFERROR(IF(VLOOKUP($D2,'All-WERTH'!$C$2:$AC$793,12,FALSE)="",-1000,VLOOKUP($D2,'All-WERTH'!$C$2:$AC$793,12,FALSE)),-1000)) -> -1000 | Y2: =IF($D2="Unlisted Player",-1001,IFERROR(IF(VLOOKUP($D2,'All-WERTH'!$C$2:$AC$793,13,FALSE)="",-1000,VLOOKUP($D2,'All-WERTH'!$C$2:$AC$793,13,FALSE)),-1000)) -> -1000 | Z2: =IF($D2="Unlisted Player",-1001,IFERROR(IF(VLOOKUP($D2,'All-WERTH'!$C$2:$AC$793,14,FALSE)="",-1000,VLOOKUP($D2,'All-WERTH'!$C$2:$AC$793,14,FALSE)),-1000)) -> -1000 | AA2: =IF($D2="Unlisted Player",-1001,IFERROR(IF(VLOOKUP($D2,'All-WERTH'!$C$2:$AC$793,15,FALSE)="",-1000,VLOOKUP($D2,'All-WERTH'!$C$2:$AC$793,15,FALSE)),-1000)) -> -1000 | AB2: =IF($D2="Unlisted Player",-1001,IFERROR(IF(VLOOKUP($D2,'All-WERTH'!$C$2:$AC$793,16,FALSE)="",-1000,VLOOKUP($D2,'All-WERTH'!$C$2:$AC$793,16,FALSE)),-1000)) -> -1000 | AC2: =IF($D2="Unlisted Player",-1001,IFERROR(IF(VLOOKUP($D2,'All-WERTH'!$C$2:$AC$793,17,FALSE)="",-1000,VLOOKUP($D2,'All-WERTH'!$C$2:$AC$793,17,FALSE)),-1000)) -> -1000 | AD2: =IF($D2="Unlisted Player",-1001,IFERROR(IF(VLOOKUP($D2,'All-WERTH'!$C$2:$AC$793,18,FALSE)="",-1000,VLOOKUP($D2,'All-WERTH'!$C$2:$AC$793,18,FALSE)),-1000)) -> -1000 | AE2: =IF($D2="Unlisted Player",-1001,IFERROR(IF(VLOOKUP($D2,'All-WERTH'!$C$2:$AC$793,19,FALSE)="",-1000,VLOOKUP($D2,'All-WERTH'!$C$2:$AC$793,19,FALSE)),-1000)) -> -1000 | AF2: =IF($D2="Unlisted Player",-1001,IFERROR(IF(VLOOKUP($D2,'All-WERTH'!$C$2:$AC$793,20,FALSE)="",-1000,VLOOKUP($D2,'All-WERTH'!$C$2:$AC$793,20,FALSE)),-1000)) -> -1000 | AG2: =IF($D2="Unlisted Player",-1001,IFERROR(IF(VLOOKUP($D2,'All-WERTH'!$C$2:$AC$793,21,FALSE)="",-1000,VLOOKUP($D2,'All-WERTH'!$C$2:$AC$793,21,FALSE)),-1000)) -> -1000 | AH2: =IF($D2="Unlisted Player",-1001,IFERROR(IF(VLOOKUP($D2,'All-WERTH'!$C$2:$AC$793,22,FALSE)="",-1000,VLOOKUP($D2,'All-WERTH'!$C$2:$AC$793,22,FALSE)),-1000)) -> -1000 | AI2: =IF($D2="Unlisted Player",-1001,IFERROR(IF(VLOOKUP($D2,'All-WERTH'!$C$2:$AC$793,23,FALSE)="",-1000,VLOOKUP($D2,'All-WERTH'!$C$2:$AC$793,23,FALSE)),-1000)) -> -1000 | AJ2: =IF($D2="Unlisted Player",-1001,IFERROR(IF(VLOOKUP($D2,'All-WERTH'!$C$2:$AC$793,24,FALSE)="",-1000,VLOOKUP($D2,'All-WERTH'!$C$2:$AC$793,24,FALSE)),-1000)) -> -1000 | AK2: =IF($D2="Unlisted Player",-1001,IFERROR(IF(VLOOKUP($D2,'All-WERTH'!$C$2:$AC$793,25,FALSE)="",-1000,VLOOKUP($D2,'All-WERTH'!$C$2:$AC$793,25,FALSE)),-1000)) -> -1000 | AL2: =IF($D2="Unlisted Player",-1001,IFERROR(IF(VLOOKUP($D2,'All-WERTH'!$C$2:$AC$793,26,FALSE)="",-1000,VLOOKUP($D2,'All-WERTH'!$C$2:$AC$793,26,FALSE)),-1000)) -> -1000 | AM2: =IF($D2="Unlisted Player",-1001,IFERROR(IF(VLOOKUP($D2,'All-WERTH'!$C$2:$AC$793,27,FALSE)="",-1000,VLOOKUP($D2,'All-WERTH'!$C$2:$AC$793,27,FALSE)),-1000)) -> -1000 | AN2: =IF(D2="Non-Ranked Player",-1001,IFERROR(VLOOKUP($D2,'All-WERTH'!$C$2:$AF$793,30,FALSE),-1000)) -> -996.9749754
A3: Justin Verlander | B3: =IFERROR(INDEX($A$1:$A$948,SMALL(IF($A$1:$A$948<>"",ROW($A$1:$A$948)),ROW(A2))),"") -> Justin Verlander | C3: =IFERROR(IF(L3=FALSE,"",CHOOSE(MATCH(RIGHT('Your Roto Auction'!$Q$4,LEN('Your Roto Auction'!$Q$4)-8),$M$1:$AN$1,0),1+SUMPRODUCT(($L$2:$L$949=TRUE)*($M$2:$M$949>M3))+COUNTIFS($L$2:L3,L3,$M$2:M3,M3)-1,1+SUMPRODUCT(($L$2:$L$949=TRUE)*($N$2:$N$949>N3))+COUNTIFS($L$2:L3,L3,$N$2:N3,N3)-1,1+SUMPRODUCT(($L$2:$L$949=TRUE)*($O$2:$O$949<O3))+COUNTIFS($L$2:L3,L3,$O$2:O3,O3)-1,1+SUMPRODUCT(($L$2:$L$949=TRUE)*($P$2:$P$949>P3))+COUNTIFS($L$2:L3,L3,$P$2:P3,P3)-1,1+SUMPRODUCT(($L$2:$L$949=TRUE)*($Q$2:$Q$949>Q3))+COUNTIFS($L$2:L3,L3,$Q$2:Q3,Q3)-1,1+SUMPRODUCT(($L$2:$L$949=TRUE)*($R$2:$R$949>R3))+COUNTIFS($L$2:L3,L3,$R$2:R3,R3)-1,1+SUMPRODUCT(($L$2:$L$949=TRUE)*($S$2:$S$949>S3))+COUNTIFS($L$2:L3,L3,$S$2:S3,S3)-1,1+SUMPRODUCT(($L$2:$L$949=TRUE)*($T$2:$T$949>T3))+COUNTIFS($L$2:L3,L3,$T$2:T3,T3)-1,1+SUMPRODUCT(($L$2:$L$949=TRUE)*($U$2:$U$949>U3))+COUNTIFS($L$2:L3,L3,$U$2:U3,U3)-1,1+SUMPRODUCT(($L$2:$L$949=TRUE)*($V$2:$V$949>V3))+COUNTIFS($L$2:L3,L3,$V$2:V3,V3)-1,1+SUMPRODUCT(($L$2:$L$949=TRUE)*($W$2:$W$949>W3))+COUNTIFS($L$2:L3,L3,$W$2:W3,W3)-1,1+SUMPRODUCT(($L$2:$L$949=TRUE)*($X$2:$X$949>X3))+COUNTIFS($L$2:L3,L3,$X$2:X3,X3)-1,1+SUMPRODUCT(($L$2:$L$949=TRUE)*($Y$2:$Y$949>Y3))+COUNTIFS($L$2:L3,L3,$Y$2:Y3,Y3)-1,1+SUMPRODUCT(($L$2:$L$949=TRUE)*($Z$2:$Z$949>Z3))+COUNTIFS($L$2:L3,L3,$Z$2:Z3,Z3)-1,1+SUMPRODUCT(($L$2:$L$949=TRUE)*($AA$2:$AA$949>AA3))+COUNTIFS($L$2:L3,L3,$AA$2:AA3,AA3)-1,1+SUMPRODUCT(($L$2:$L$949=TRUE)*($AB$2:$AB$949>AB3))+COUNTIFS($L$2:L3,L3,$AB$2:AB3,AB3)-1,1+SUMPRODUCT(($L$2:$L$949=TRUE)*($AC$2:$AC$949>AC3))+COUNTIFS($L$2:L3,L3,$AC$2:AC3,AC3)-1,1+SUMPRODUCT(($L$2:$L$949=TRUE)*($AD$2:$AD$949>AD3))+COUNTIFS($L$2:L3,L3,$AD$2:AD3,AD3)-1,1+SUMPRODUCT(($L$2:$L$949=TRUE)*($AE$2:$AE$949>AE3))+COUNTIFS($L$2:L3,L3,$AE$2:AE3,AE3)-1,1+SUMPRODUCT(($L$2:$L$949=TRUE)*($AF$2:$AF$949>AF3))+COUNTIFS($L$2:L3,L3,$AF$2:AF3,AF3)-1,1+SUMPRODUCT(($L$2:$L$949=TRUE)*($AG$2:$AG$949>AG3))+COUNTIFS($L$2:L3,L3,$AG$2:AG3,AG3)-1,1+SUMPRODUCT(($L$2:$L$949=TRUE)*($AH$2:$AH$949>AH3))+COUNTIFS($L$2:L3,L3,$AH$2:AH3,AH3)-1,1+SUMPRODUCT(($L$2:$L$949=TRUE)*($AI$2:$AI$949>AI3))+COUNTIFS($L$2:L3,L3,$AI$2:AI3,AI3)-1,1+SUMPRODUCT(($L$2:$L$949=TRUE)*($AJ$2:$AJ$949>AJ3))+COUNTIFS($L$2:L3,L3,$AJ$2:AJ3,AJ3)-1,1+SUMPRODUCT(($L$2:$L$949=TRUE)*($AK$2:$AK$949>AK3))+COUNTIFS($L$2:L3,L3,$AK$2:AK3,AK3)-1,1+SUMPRODUCT(($L$2:$L$949=TRUE)*($AL$2:$AL$949>AL3))+COUNTIFS($L$2:L3,L3,$AL$2:AL3,AL3)-1,1+SUMPRODUCT(($L$2:$L$949=TRUE)*($AM$2:$AM$949>AM3))+COUNTIFS($L$2:L3,L3,$AM$2:AM3,AM3)-1,1+SUMPRODUCT(($L$2:$L$949=TRUE)*($AN$2:$AN$949>AN3))+COUNTIFS($L$2:L3,L3,$AN$2:AN3,AN3)-1)),"") -> 68 | D3: Jose Abreu | E3: =IFERROR(INDEX('Auction Log'!$C$4:$C$806,MATCH(D3,'Auction Log'!$B$4:$B$806,0)),"") ->  | F3: =IFERROR(INDEX('Auction-Rank'!$C$2:$C$948,MATCH(D3,'Auction-Rank'!$A$2:$A$948,0)),"") -> 1B | G3: =IFERROR(IF(F3=I3,"",IF(INDEX('Your Roto Auction'!$C$11:$C$634,MATCH(D3,'Your Roto Auction'!$D$11:$D$634,0))="",IF(I3<>"",I3,""),INDEX('Your Roto Auction'!$C$11:$C$634,MATCH(D3,'Your Roto Auction'!$D$11:$D$634,0)))),"") ->  | H3: 1B | J3: =INDEX('Auction-Rank'!$V$2:$V$948,MATCH(D3,'Auction-Rank'!$A$2:$A$948,0)) -> TRUE | K3: =IF(E3="",FALSE,TRUE) -> FALSE | L3: =IF(J3=FALSE,FALSE,IF(AND('Your Roto Auction'!$Q$6="Hide Drafted Players",K3=TRUE),FALSE,IF(OR('Your Roto Auction'!$Q$5="Show All Positions",AND('Your Roto Auction'!$Q$5="Only Show: C",H3="C"),AND('Your Roto Auction'!$Q$5="Only Show: 1B",H3="1B"),AND('Your Roto Auction'!$Q$5="Only Show: 2B",H3="2B"),AND('Your Roto Auction'!$Q$5="Only Show: 3B",H3="3B"),AND('Your Roto Auction'!$Q$5="Only Show: SS",H3="SS"),AND('Your Roto Auction'!$Q$5="Only Show: OF",H3="OF"),AND('Your Roto Auction'!$Q$5="Only Show: SP",H3="SP"),AND('Your Roto Auction'!$Q$5="Only Show: RP",H3="RP"),AND('Your Roto Auction'!$Q$5="Only Show: CI",OR(H3={"1B","3B"})),AND('Your Roto Auction'!$Q$5="Only Show: MI",OR(H3={"2B","SS"})),AND('Your Roto Auction'!$Q$5="Only Show: IF",OR(H3={"C","1B","2B","3B","SS"})),AND('Your Roto Auction'!$Q$5="Only Show: DH",OR(H3={"C","1B","2B","3B","SS","OF","DH"})),AND('Your Roto Auction'!$Q$5="Only Show: P",OR(H3={"SP","RP"})),AND('Your Roto Auction'!$Q$5="Only Show: LF",ISERROR(SEARCH("LF",VLOOKUP($D3,'Auction-Rank'!$A$2:$D$948,4,FALSE)))=FALSE),AND('Your Roto Auction'!$Q$5="Only Show: RF",ISERROR(SEARCH("RF",VLOOKUP($D3,'Auction-Rank'!$A$2:$D$948,4,FALSE)))=FALSE),AND('Your Roto Auction'!$Q$5="Only Show: CF",ISERROR(SEARCH("CF",VLOOKUP($D3,'Auction-Rank'!$A$2:$D$948,4,FALSE)))=FALSE)),TRUE,FALSE))) -> TRUE | M3: =IFERROR(IF(VLOOKUP($D3,'Inflation-Tracking'!$A$5:$AD$862,22,FALSE)="",-9999,VLOOKUP($D3,'Inflation-Tracking'!$A$5:$AD$862,22,FALSE)),-9999) -> 16.90173288 | N3: =IF(D3="Non-Ranked Player",-1001,IFERROR(VLOOKUP($D3,'All-WERTH'!$C$2:$E$793,3,FALSE),-1000)) -> 0.9895488432 | O3: =IF(D3="Non-Ranked Player",10000,IFERROR(IF(VLOOKUP(D3,'Auction-Rank'!$A$2:$X$948,24,FALSE)="",9999,VLOOKUP(D3,'Auction-Rank'!$A$2:$X$948,24,FALSE)),9999)) -> 66 | P3: =IF($D3="Unlisted Player",-1001,IFERROR(IF(VLOOKUP($D3,'All-WERTH'!$C$2:$AC$793,4,FALSE)="",-1000,VLOOKUP($D3,'All-WERTH'!$C$2:$AC$793,4,FALSE)),-1000)) -> 0.3818500267 | Q3: =IF($D3="Unlisted Player",-1001,IFERROR(IF(VLOOKUP($D3,'All-WERTH'!$C$2:$AC$793,5,FALSE)="",-1000,VLOOKUP($D3,'All-WERTH'!$C$2:$AC$793,5,FALSE)),-1000)) -> 0.498831599 | R3: =IF($D3="Unlisted Player",-1001,IFERROR(IF(VLOOKUP($D3,'All-WERTH'!$C$2:$AC$793,6,FALSE)="",-1000,VLOOKUP($D3,'All-WERTH'!$C$2:$AC$793,6,FALSE)),-1000)) -> -0.2424096551 | S3: =IF($D3="Unlisted Player",-1001,IFERROR(IF(VLOOKUP($D3,'All-WERTH'!$C$2:$AC$793,7,FALSE)="",-1000,VLOOKUP($D3,'All-WERTH'!$C$2:$AC$793,7,FALSE)),-1000)) -> 1.162209618 | T3: =IF($D3="Unlisted Player",-1001,IFERROR(IF(VLOOKUP($D3,'All-WERTH'!$C$2:$AC$793,8,FALSE)="",-1000,VLOOKUP($D3,'All-WERTH'!$C$2:$AC$793,8,FALSE)),-1000)) -> -0.8109327449 | U3: =IF($D3="Unlisted Player",-1001,IFERROR(IF(VLOOKUP($D3,'All-WERTH'!$C$2:$AC$793,9,FALSE)="",-1000,VLOOKUP($D3,'All-WERTH'!$C$2:$AC$793,9,FALSE)),-1000)) -> -1000 | V3: =IF($D3="Unlisted Player",-1001,IFERROR(IF(VLOOKUP($D3,'All-WERTH'!$C$2:$AC$793,10,FALSE)="",-1000,VLOOKUP($D3,'All-WERTH'!$C$2:$AC$793,10,FALSE)),-1000)) -> -1000 | W3: =IF($D3="Unlisted Player",-1001,IFERROR(IF(VLOOKUP($D3,'All-WERTH'!$C$2:$AC$793,11,FALSE)="",-1000,VLOOKUP($D3,'All-WERTH'!$C$2:$AC$793,11,FALSE)),-1000)) -> -1000 | X3: =IF($D3="Unlisted Player",-1001,IFERROR(IF(VLOOKUP($D3,'All-WERTH'!$C$2:$AC$793,12,FALSE)="",-1000,VLOOKUP($D3,'All-WERTH'!$C$2:$AC$793,12,FALSE)),-1000)) -> -1000 | Y3: =IF($D3="Unlisted Player",-1001,IFERROR(IF(VLOOKUP($D3,'All-WERTH'!$C$2:$AC$793,13,FALSE)="",-1000,VLOOKUP($D3,'All-WERTH'!$C$2:$AC$793,13,FALSE)),-1000)) -> -1000 | Z3: =IF($D3="Unlisted Player",-1001,IFERROR(IF(VLOOKUP($D3,'All-WERTH'!$C$2:$AC$793,14,FALSE)="",-1000,VLOOKUP($D3,'All-WERTH'!$C$2:$AC$793,14,FALSE)),-1000)) -> -1000 | AA3: =IF($D3="Unlisted Player",-1001,IFERROR(IF(VLOOKUP($D3,'All-WERTH'!$C$2:$AC$793,15,FALSE)="",-1000,VLOOKUP($D3,'All-WERTH'!$C$2:$AC$793,15,FALSE)),-1000)) -> -1000 | AB3: =IF($D3="Unlisted Player",-1001,IFERROR(IF(VLOOKUP($D3,'All-WERTH'!$C$2:$AC$793,16,FALSE)="",-1000,VLOOKUP($D3,'All-WERTH'!$C$2:$AC$793,16,FALSE)),-1000)) -> -1000 | AC3: =IF($D3="Unlisted Player",-1001,IFERROR(IF(VLOOKUP($D3,'All-WERTH'!$C$2:$AC$793,17,FALSE)="",-1000,VLOOKUP($D3,'All-WERTH'!$C$2:$AC$793,17,FALSE)),-1000)) -> -1000 | AD3: =IF($D3="Unlisted Player",-1001,IFERROR(IF(VLOOKUP($D3,'All-WERTH'!$C$2:$AC$793,18,FALSE)="",-1000,VLOOKUP($D3,'All-WERTH'!$C$2:$AC$793,18,FALSE)),-1000)) -> -1000 | AE3: =IF($D3="Unlisted Player",-1001,IFERROR(IF(VLOOKUP($D3,'All-WERTH'!$C$2:$AC$793,19,FALSE)="",-1000,VLOOKUP($D3,'All-WERTH'!$C$2:$AC$793,19,FALSE)),-1000)) -> -1000 | AF3: =IF($D3="Unlisted Player",-1001,IFERROR(IF(VLOOKUP($D3,'All-WERTH'!$C$2:$AC$793,20,FALSE)="",-1000,VLOOKUP($D3,'All-WERTH'!$C$2:$AC$793,20,FALSE)),-1000)) -> -1000 | AG3: =IF($D3="Unlisted Player",-1001,IFERROR(IF(VLOOKUP($D3,'All-WERTH'!$C$2:$AC$793,21,FALSE)="",-1000,VLOOKUP($D3,'All-WERTH'!$C$2:$AC$793,21,FALSE)),-1000)) -> -1000 | AH3: =IF($D3="Unlisted Player",-1001,IFERROR(IF(VLOOKUP($D3,'All-WERTH'!$C$2:$AC$793,22,FALSE)="",-1000,VLOOKUP($D3,'All-WERTH'!$C$2:$AC$793,22,FALSE)),-1000)) -> -1000 | AI3: =IF($D3="Unlisted Player",-1001,IFERROR(IF(VLOOKUP($D3,'All-WERTH'!$C$2:$AC$793,23,FALSE)="",-1000,VLOOKUP($D3,'All-WERTH'!$C$2:$AC$793,23,FALSE)),-1000)) -> -1000 | AJ3: =IF($D3="Unlisted Player",-1001,IFERROR(IF(VLOOKUP($D3,'All-WERTH'!$C$2:$AC$793,24,FALSE)="",-1000,VLOOKUP($D3,'All-WERTH'!$C$2:$AC$793,24,FALSE)),-1000)) -> -1000 | AK3: =IF($D3="Unlisted Player",-1001,IFERROR(IF(VLOOKUP($D3,'All-WERTH'!$C$2:$AC$793,25,FALSE)="",-1000,VLOOKUP($D3,'All-WERTH'!$C$2:$AC$793,25,FALSE)),-1000)) -> -1000 | AL3: =IF($D3="Unlisted Player",-1001,IFERROR(IF(VLOOKUP($D3,'All-WERTH'!$C$2:$AC$793,26,FALSE)="",-1000,VLOOKUP($D3,'All-WERTH'!$C$2:$AC$793,26,FALSE)),-1000)) -> -1000 | AM3: =IF($D3="Unlisted Player",-1001,IFERROR(IF(VLOOKUP($D3,'All-WERTH'!$C$2:$AC$793,27,FALSE)="",-1000,VLOOKUP($D3,'All-WERTH'!$C$2:$AC$793,27,FALSE)),-1000)) -> -1000 | AN3: =IF(D3="Non-Ranked Player",-1001,IFERROR(VLOOKUP($D3,'All-WERTH'!$C$2:$AF$793,30,FALSE),-1000)) -> 4.070003833
A4: Jacob deGrom | B4: =IFERROR(INDEX($A$1:$A$948,SMALL(IF($A$1:$A$948<>"",ROW($A$1:$A$948)),ROW(A3))),"") -> Jacob deGrom | C4: =IFERROR(IF(L4=FALSE,"",CHOOSE(MATCH(RIGHT('Your Roto Auction'!$Q$4,LEN('Your Roto Auction'!$Q$4)-8),$M$1:$AN$1,0),1+SUMPRODUCT(($L$2:$L$949=TRUE)*($M$2:$M$949>M4))+COUNTIFS($L$2:L4,L4,$M$2:M4,M4)-1,1+SUMPRODUCT(($L$2:$L$949=TRUE)*($N$2:$N$949>N4))+COUNTIFS($L$2:L4,L4,$N$2:N4,N4)-1,1+SUMPRODUCT(($L$2:$L$949=TRUE)*($O$2:$O$949<O4))+COUNTIFS($L$2:L4,L4,$O$2:O4,O4)-1,1+SUMPRODUCT(($L$2:$L$949=TRUE)*($P$2:$P$949>P4))+COUNTIFS($L$2:L4,L4,$P$2:P4,P4)-1,1+SUMPRODUCT(($L$2:$L$949=TRUE)*($Q$2:$Q$949>Q4))+COUNTIFS($L$2:L4,L4,$Q$2:Q4,Q4)-1,1+SUMPRODUCT(($L$2:$L$949=TRUE)*($R$2:$R$949>R4))+COUNTIFS($L$2:L4,L4,$R$2:R4,R4)-1,1+SUMPRODUCT(($L$2:$L$949=TRUE)*($S$2:$S$949>S4))+COUNTIFS($L$2:L4,L4,$S$2:S4,S4)-1,1+SUMPRODUCT(($L$2:$L$949=TRUE)*($T$2:$T$949>T4))+COUNTIFS($L$2:L4,L4,$T$2:T4,T4)-1,1+SUMPRODUCT(($L$2:$L$949=TRUE)*($U$2:$U$949>U4))+COUNTIFS($L$2:L4,L4,$U$2:U4,U4)-1,1+SUMPRODUCT(($L$2:$L$949=TRUE)*($V$2:$V$949>V4))+COUNTIFS($L$2:L4,L4,$V$2:V4,V4)-1,1+SUMPRODUCT(($L$2:$L$949=TRUE)*($W$2:$W$949>W4))+COUNTIFS($L$2:L4,L4,$W$2:W4,W4)-1,1+SUMPRODUCT(($L$2:$L$949=TRUE)*($X$2:$X$949>X4))+COUNTIFS($L$2:L4,L4,$X$2:X4,X4)-1,1+SUMPRODUCT(($L$2:$L$949=TRUE)*($Y$2:$Y$949>Y4))+COUNTIFS($L$2:L4,L4,$Y$2:Y4,Y4)-1,1+SUMPRODUCT(($L$2:$L$949=TRUE)*($Z$2:$Z$949>Z4))+COUNTIFS($L$2:L4,L4,$Z$2:Z4,Z4)-1,1+SUMPRODUCT(($L$2:$L$949=TRUE)*($AA$2:$AA$949>AA4))+COUNTIFS($L$2:L4,L4,$AA$2:AA4,AA4)-1,1+SUMPRODUCT(($L$2:$L$949=TRUE)*($AB$2:$AB$949>AB4))+COUNTIFS($L$2:L4,L4,$AB$2:AB4,AB4)-1,1+SUMPRODUCT(($L$2:$L$949=TRUE)*($AC$2:$AC$949>AC4))+COUNTIFS($L$2:L4,L4,$AC$2:AC4,AC4)-1,1+SUMPRODUCT(($L$2:$L$949=TRUE)*($AD$2:$AD$949>AD4))+COUNTIFS($L$2:L4,L4,$AD$2:AD4,AD4)-1,1+SUMPRODUCT(($L$2:$L$949=TRUE)*($AE$2:$AE$949>AE4))+COUNTIFS($L$2:L4,L4,$AE$2:AE4,AE4)-1,1+SUMPRODUCT(($L$2:$L$949=TRUE)*($AF$2:$AF$949>AF4))+COUNTIFS($L$2:L4,L4,$AF$2:AF4,AF4)-1,1+SUMPRODUCT(($L$2:$L$949=TRUE)*($AG$2:$AG$949>AG4))+COUNTIFS($L$2:L4,L4,$AG$2:AG4,AG4)-1,1+SUMPRODUCT(($L$2:$L$949=TRUE)*($AH$2:$AH$949>AH4))+COUNTIFS($L$2:L4,L4,$AH$2:AH4,AH4)-1,1+SUMPRODUCT(($L$2:$L$949=TRUE)*($AI$2:$AI$949>AI4))+COUNTIFS($L$2:L4,L4,$AI$2:AI4,AI4)-1,1+SUMPRODUCT(($L$2:$L$949=TRUE)*($AJ$2:$AJ$949>AJ4))+COUNTIFS($L$2:L4,L4,$AJ$2:AJ4,AJ4)-1,1+SUMPRODUCT(($L$2:$L$949=TRUE)*($AK$2:$AK$949>AK4))+COUNTIFS($L$2:L4,L4,$AK$2:AK4,AK4)-1,1+SUMPRODUCT(($L$2:$L$949=TRUE)*($AL$2:$AL$949>AL4))+COUNTIFS($L$2:L4,L4,$AL$2:AL4,AL4)-1,1+SUMPRODUCT(($L$2:$L$949=TRUE)*($AM$2:$AM$949>AM4))+COUNTIFS($L$2:L4,L4,$AM$2:AM4,AM4)-1,1+SUMPRODUCT(($L$2:$L$949=TRUE)*($AN$2:$AN$949>AN4))+COUNTIFS($L$2:L4,L4,$AN$2:AN4,AN4)-1)),"") -> 6 | D4: Ronald Acuna | E4: =IFERROR(INDEX('Auction Log'!$C$4:$C$806,MATCH(D4,'Auction Log'!$B$4:$B$806,0)),"") ->  | F4: =IFERROR(INDEX('Auction-Rank'!$C$2:$C$948,MATCH(D4,'Auction-Rank'!$A$2:$A$948,0)),"") -> OF | G4: =IFERROR(IF(F4=I4,"",IF(INDEX('Your Roto Auction'!$C$11:$C$634,MATCH(D4,'Your Roto Auction'!$D$11:$D$634,0))="",IF(I4<>"",I4,""),INDEX('Your Roto Auction'!$C$11:$C$634,MATCH(D4,'Your Roto Auction'!$D$11:$D$634,0)))),"") ->  | H4: OF | J4: =INDEX('Auction-Rank'!$V$2:$V$948,MATCH(D4,'Auction-Rank'!$A$2:$A$948,0)) -> TRUE | K4: FALSE | L4: =IF(J4=FALSE,FALSE,IF(AND('Your Roto Auction'!$Q$6="Hide Drafted Players",K4=TRUE),FALSE,IF(OR('Your Roto Auction'!$Q$5="Show All Positions",AND('Your Roto Auction'!$Q$5="Only Show: C",H4="C"),AND('Your Roto Auction'!$Q$5="Only Show: 1B",H4="1B"),AND('Your Roto Auction'!$Q$5="Only Show: 2B",H4="2B"),AND('Your Roto Auction'!$Q$5="Only Show: 3B",H4="3B"),AND('Your Roto Auction'!$Q$5="Only Show: SS",H4="SS"),AND('Your Roto Auction'!$Q$5="Only Show: OF",H4="OF"),AND('Your Roto Auction'!$Q$5="Only Show: SP",H4="SP"),AND('Your Roto Auction'!$Q$5="Only Show: RP",H4="RP"),AND('Your Roto Auction'!$Q$5="Only Show: CI",OR(H4={"1B","3B"})),AND('Your Roto Auction'!$Q$5="Only Show: MI",OR(H4={"2B","SS"})),AND('Your Roto Auction'!$Q$5="Only Show: IF",OR(H4={"C","1B","2B","3B","SS"})),AND('Your Roto Auction'!$Q$5="Only Show: DH",OR(H4={"C","1B","2B","3B","SS","OF","DH"})),AND('Your Roto Auction'!$Q$5="Only Show: P",OR(H4={"SP","RP"})),AND('Your Roto Auction'!$Q$5="Only Show: LF",ISERROR(SEARCH("LF",VLOOKUP($D4,'Auction-Rank'!$A$2:$D$948,4,FALSE)))=FALSE),AND('Your Roto Auction'!$Q$5="Only Show: RF",ISERROR(SEARCH("RF",VLOOKUP($D4,'Auction-Rank'!$A$2:$D$948,4,FALSE)))=FALSE),AND('Your Roto Auction'!$Q$5="Only Show: CF",ISERROR(SEARCH("CF",VLOOKUP($D4,'Auction-Rank'!$A$2:$D$948,4,FALSE)))=FALSE)),TRUE,FALSE))) -> TRUE | M4: =IFERROR(IF(VLOOKUP($D4,'Inflation-Tracking'!$A$5:$AD$862,22,FALSE)="",-9999,VLOOKUP($D4,'Inflation-Tracking'!$A$5:$AD$862,22,FALSE)),-9999) -> 45.35264877 | N4: =IF(D4="Non-Ranked Player",-1001,IFERROR(VLOOKUP($D4,'All-WERTH'!$C$2:$E$793,3,FALSE),-1000)) -> 8.195624559 | O4: =IF(D4="Non-Ranked Player",10000,IFERROR(IF(VLOOKUP(D4,'Auction-Rank'!$A$2:$X$948,24,FALSE)="",9999,VLOOKUP(D4,'Auction-Rank'!$A$2:$X$948,24,FALSE)),9999)) -> 1 | P4: =IF($D4="Unlisted Player",-1001,IFERROR(IF(VLOOKUP($D4,'All-WERTH'!$C$2:$AC$793,4,FALSE)="",-1000,VLOOKUP($D4,'All-WERTH'!$C$2:$AC$793,4,FALSE)),-1000)) -> 1.036627399 | Q4: =IF($D4="Unlisted Player",-1001,IFERROR(IF(VLOOKUP($D4,'All-WERTH'!$C$2:$AC$793,5,FALSE)="",-1000,VLOOKUP($D4,'All-WERTH'!$C$2:$AC$793,5,FALSE)),-1000)) -> 1.402061054 | R4: =IF($D4="Unlisted Player",-1001,IFERROR(IF(VLOOKUP($D4,'All-WERTH'!$C$2:$AC$793,6,FALSE)="",-1000,VLOOKUP($D4,'All-WERTH'!$C$2:$AC$793,6,FALSE)),-1000)) -> 2.220964871 | S4: =IF($D4="Unlisted Player",-1001,IFERROR(IF(VLOOKUP($D4,'All-WERTH'!$C$2:$AC$793,7,FALSE)="",-1000,VLOOKUP($D4,'All-WERTH'!$C$2:$AC$793,7,FALSE)),-1000)) -> 1.038671768 | T4: =IF($D4="Unlisted Player",-1001,IFERROR(IF(VLOOKUP($D4,'All-WERTH'!$C$2:$AC$793,8,FALSE)="",-1000,VLOOKUP($D4,'All-WERTH'!$C$2:$AC$793,8,FALSE)),-1000)) -> 2.497299467 | U4: =IF($D4="Unlisted Player",-1001,IFERROR(IF(VLOOKUP($D4,'All-WERTH'!$C$2:$AC$793,9,FALSE)="",-1000,VLOOKUP($D4,'All-WERTH'!$C$2:$AC$793,9,FALSE)),-1000)) -> -1000 | V4: =IF($D4="Unlisted Player",-1001,IFERROR(IF(VLOOKUP($D4,'All-WERTH'!$C$2:$AC$793,10,FALSE)="",-1000,VLOOKUP($D4,'All-WERTH'!$C$2:$AC$793,10,FALSE)),-1000)) -> -1000 | W4: =IF($D4="Unlisted Player",-1001,IFERROR(IF(VLOOKUP($D4,'All-WERTH'!$C$2:$AC$793,11,FALSE)="",-1000,VLOOKUP($D4,'All-WERTH'!$C$2:$AC$793,11,FALSE)),-1000)) -> -1000 | X4: =IF($D4="Unlisted Player",-1001,IFERROR(IF(VLOOKUP($D4,'All-WERTH'!$C$2:$AC$793,12,FALSE)="",-1000,VLOOKUP($D4,'All-WERTH'!$C$2:$AC$793,12,FALSE)),-1000)) -> -1000 | Y4: =IF($D4="Unlisted Player",-1001,IFERROR(IF(VLOOKUP($D4,'All-WERTH'!$C$2:$AC$793,13,FALSE)="",-1000,VLOOKUP($D4,'All-WERTH'!$C$2:$AC$793,13,FALSE)),-1000)) -> -1000 | Z4: =IF($D4="Unlisted Player",-1001,IFERROR(IF(VLOOKUP($D4,'All-WERTH'!$C$2:$AC$793,14,FALSE)="",-1000,VLOOKUP($D4,'All-WERTH'!$C$2:$AC$793,14,FALSE)),-1000)) -> -1000 | AA4: =IF($D4="Unlisted Player",-1001,IFERROR(IF(VLOOKUP($D4,'All-WERTH'!$C$2:$AC$793,15,FALSE)="",-1000,VLOOKUP($D4,'All-WERTH'!$C$2:$AC$793,15,FALSE)),-1000)) -> -1000 | AB4: =IF($D4="Unlisted Player",-1001,IFERROR(IF(VLOOKUP($D4,'All-WERTH'!$C$2:$AC$793,16,FALSE)="",-1000,VLOOKUP($D4,'All-WERTH'!$C$2:$AC$793,16,FALSE)),-1000)) -> -1000 | AC4: =IF($D4="Unlisted Player",-1001,IFERROR(IF(VLOOKUP($D4,'All-WERTH'!$C$2:$AC$793,17,FALSE)="",-1000,VLOOKUP($D4,'All-WERTH'!$C$2:$AC$793,17,FALSE)),-1000)) -> -1000 | AD4: =IF($D4="Unlisted Player",-1001,IFERROR(IF(VLOOKUP($D4,'All-WERTH'!$C$2:$AC$793,18,FALSE)="",-1000,VLOOKUP($D4,'All-WERTH'!$C$2:$AC$793,18,FALSE)),-1000)) -> -1000 | AE4: =IF($D4="Unlisted Player",-1001,IFERROR(IF(VLOOKUP($D4,'All-WERTH'!$C$2:$AC$793,19,FALSE)="",-1000,VLOOKUP($D4,'All-WERTH'!$C$2:$AC$793,19,FALSE)),-1000)) -> -1000 | AF4: =IF($D4="Unlisted Player",-1001,IFERROR(IF(VLOOKUP($D4,'All-WERTH'!$C$2:$AC$793,20,FALSE)="",-1000,VLOOKUP($D4,'All-WERTH'!$C$2:$AC$793,20,FALSE)),-1000)) -> -1000 | AG4: =IF($D4="Unlisted Player",-1001,IFERROR(IF(VLOOKUP($D4,'All-WERTH'!$C$2:$AC$793,21,FALSE)="",-1000,VLOOKUP($D4,'All-WERTH'!$C$2:$AC$793,21,FALSE)),-1000)) -> -1000 | AH4: =IF($D4="Unlisted Player",-1001,IFERROR(IF(VLOOKUP($D4,'All-WERTH'!$C$2:$AC$793,22,FALSE)="",-1000,VLOOKUP($D4,'All-WERTH'!$C$2:$AC$793,22,FALSE)),-1000)) -> -1000 | AI4: =IF($D4="Unlisted Player",-1001,IFERROR(IF(VLOOKUP($D4,'All-WERTH'!$C$2:$AC$793,23,FALSE)="",-1000,VLOOKUP($D4,'All-WERTH'!$C$2:$AC$793,23,FALSE)),-1000)) -> -1000 | AJ4: =IF($D4="Unlisted Player",-1001,IFERROR(IF(VLOOKUP($D4,'All-WERTH'!$C$2:$AC$793,24,FALSE)="",-1000,VLOOKUP($D4,'All-WERTH'!$C$2:$AC$793,24,FALSE)),-1000)) -> -1000 | AK4: =IF($D4="Unlisted Player",-1001,IFERROR(IF(VLOOKUP($D4,'All-WERTH'!$C$2:$AC$793,25,FALSE)="",-1000,VLOOKUP($D4,'All-WERTH'!$C$2:$AC$793,25,FALSE)),-1000)) -> -1000 | AL4: =IF($D4="Unlisted Player",-1001,IFERROR(IF(VLOOKUP($D4,'All-WERTH'!$C$2:$AC$793,26,FALSE)="",-1000,VLOOKUP($D4,'All-WERTH'!$C$2:$AC$793,26,FALSE)),-1000)) -> -1000 | AM4: =IF($D4="Unlisted Player",-1001,IFERROR(IF(VLOOKUP($D4,'All-WERTH'!$C$2:$AC$793,27,FALSE)="",-1000,VLOOKUP($D4,'All-WERTH'!$C$2:$AC$793,27,FALSE)),-1000)) -> -1000 | AN4: =IF(D4="Non-Ranked Player",-1001,IFERROR(VLOOKUP($D4,'All-WERTH'!$C$2:$AF$793,30,FALSE),-1000)) -> 11.41658257
A5: Mike Trout | B5: =IFERROR(INDEX($A$1:$A$948,SMALL(IF($A$1:$A$948<>"",ROW($A$1:$A$948)),ROW(A4))),"") -> Mike Trout | C5: =IFERROR(IF(L5=FALSE,"",CHOOSE(MATCH(RIGHT('Your Roto Auction'!$Q$4,LEN('Your Roto Auction'!$Q$4)-8),$M$1:$AN$1,0),1+SUMPRODUCT(($L$2:$L$949=TRUE)*($M$2:$M$949>M5))+COUNTIFS($L$2:L5,L5,$M$2:M5,M5)-1,1+SUMPRODUCT(($L$2:$L$949=TRUE)*($N$2:$N$949>N5))+COUNTIFS($L$2:L5,L5,$N$2:N5,N5)-1,1+SUMPRODUCT(($L$2:$L$949=TRUE)*($O$2:$O$949<O5))+COUNTIFS($L$2:L5,L5,$O$2:O5,O5)-1,1+SUMPRODUCT(($L$2:$L$949=TRUE)*($P$2:$P$949>P5))+COUNTIFS($L$2:L5,L5,$P$2:P5,P5)-1,1+SUMPRODUCT(($L$2:$L$949=TRUE)*($Q$2:$Q$949>Q5))+COUNTIFS($L$2:L5,L5,$Q$2:Q5,Q5)-1,1+SUMPRODUCT(($L$2:$L$949=TRUE)*($R$2:$R$949>R5))+COUNTIFS($L$2:L5,L5,$R$2:R5,R5)-1,1+SUMPRODUCT(($L$2:$L$949=TRUE)*($S$2:$S$949>S5))+COUNTIFS($L$2:L5,L5,$S$2:S5,S5)-1,1+SUMPRODUCT(($L$2:$L$949=TRUE)*($T$2:$T$949>T5))+COUNTIFS($L$2:L5,L5,$T$2:T5,T5)-1,1+SUMPRODUCT(($L$2:$L$949=TRUE)*($U$2:$U$949>U5))+COUNTIFS($L$2:L5,L5,$U$2:U5,U5)-1,1+SUMPRODUCT(($L$2:$L$949=TRUE)*($V$2:$V$949>V5))+COUNTIFS($L$2:L5,L5,$V$2:V5,V5)-1,1+SUMPRODUCT(($L$2:$L$949=TRUE)*($W$2:$W$949>W5))+COUNTIFS($L$2:L5,L5,$W$2:W5,W5)-1,1+SUMPRODUCT(($L$2:$L$949=TRUE)*($X$2:$X$949>X5))+COUNTIFS($L$2:L5,L5,$X$2:X5,X5)-1,1+SUMPRODUCT(($L$2:$L$949=TRUE)*($Y$2:$Y$949>Y5))+COUNTIFS($L$2:L5,L5,$Y$2:Y5,Y5)-1,1+SUMPRODUCT(($L$2:$L$949=TRUE)*($Z$2:$Z$949>Z5))+COUNTIFS($L$2:L5,L5,$Z$2:Z5,Z5)-1,1+SUMPRODUCT(($L$2:$L$949=TRUE)*($AA$2:$AA$949>AA5))+COUNTIFS($L$2:L5,L5,$AA$2:AA5,AA5)-1,1+SUMPRODUCT(($L$2:$L$949=TRUE)*($AB$2:$AB$949>AB5))+COUNTIFS($L$2:L5,L5,$AB$2:AB5,AB5)-1,1+SUMPRODUCT(($L$2:$L$949=TRUE)*($AC$2:$AC$949>AC5))+COUNTIFS($L$2:L5,L5,$AC$2:AC5,AC5)-1,1+SUMPRODUCT(($L$2:$L$949=TRUE)*($AD$2:$AD$949>AD5))+COUNTIFS($L$2:L5,L5,$AD$2:AD5,AD5)-1,1+SUMPRODUCT(($L$2:$L$949=TRUE)*($AE$2:$AE$949>AE5))+COUNTIFS($L$2:L5,L5,$AE$2:AE5,AE5)-1,1+SUMPRODUCT(($L$2:$L$949=TRUE)*($AF$2:$AF$949>AF5))+COUNTIFS($L$2:L5,L5,$AF$2:AF5,AF5)-1,1+SUMPRODUCT(($L$2:$L$949=TRUE)*($AG$2:$AG$949>AG5))+COUNTIFS($L$2:L5,L5,$AG$2:AG5,AG5)-1,1+SUMPRODUCT(($L$2:$L$949=TRUE)*($AH$2:$AH$949>AH5))+COUNTIFS($L$2:L5,L5,$AH$2:AH5,AH5)-1,1+SUMPRODUCT(($L$2:$L$949=TRUE)*($AI$2:$AI$949>AI5))+COUNTIFS($L$2:L5,L5,$AI$2:AI5,AI5)-1,1+SUMPRODUCT(($L$2:$L$949=TRUE)*($AJ$2:$AJ$949>AJ5))+COUNTIFS($L$2:L5,L5,$AJ$2:AJ5,AJ5)-1,1+SUMPRODUCT(($L$2:$L$949=TRUE)*($AK$2:$AK$949>AK5))+COUNTIFS($L$2:L5,L5,$AK$2:AK5,AK5)-1,1+SUMPRODUCT(($L$2:$L$949=TRUE)*($AL$2:$AL$949>AL5))+COUNTIFS($L$2:L5,L5,$AL$2:AL5,AL5)-1,1+SUMPRODUCT(($L$2:$L$949=TRUE)*($AM$2:$AM$949>AM5))+COUNTIFS($L$2:L5,L5,$AM$2:AM5,AM5)-1,1+SUMPRODUCT(($L$2:$L$949=TRUE)*($AN$2:$AN$949>AN5))+COUNTIFS($L$2:L5,L5,$AN$2:AN5,AN5)-1)),"") -> 247 | D5: Willy Adames | E5: =IFERROR(INDEX('Auction Log'!$C$4:$C$806,MATCH(D5,'Auction Log'!$B$4:$B$806,0)),"") ->  | F5: =IFERROR(INDEX('Auction-Rank'!$C$2:$C$948,MATCH(D5,'Auction-Rank'!$A$2:$A$948,0)),"") -> SS | G5: =IFERROR(IF(F5=I5,"",IF(INDEX('Your Roto Auction'!$C$11:$C$634,MATCH(D5,'Your Roto Auction'!$D$11:$D$634,0))="",IF(I5<>"",I5,""),INDEX('Your Roto Auction'!$C$11:$C$634,MATCH(D5,'Your Roto Auction'!$D$11:$D$634,0)))),"") ->  | H5: SS | J5: =INDEX('Auction-Rank'!$V$2:$V$948,MATCH(D5,'Auction-Rank'!$A$2:$A$948,0)) -> TRUE | K5: FALSE | L5: =IF(J5=FALSE,FALSE,IF(AND('Your Roto Auction'!$Q$6="Hide Drafted Players",K5=TRUE),FALSE,IF(OR('Your Roto Auction'!$Q$5="Show All Positions",AND('Your Roto Auction'!$Q$5="Only Show: C",H5="C"),AND('Your Roto Auction'!$Q$5="Only Show: 1B",H5="1B"),AND('Your Roto Auction'!$Q$5="Only Show: 2B",H5="2B"),AND('Your Roto Auction'!$Q$5="Only Show: 3B",H5="3B"),AND('Your Roto Auction'!$Q$5="Only Show: SS",H5="SS"),AND('Your Roto Auction'!$Q$5="Only Show: OF",H5="OF"),AND('Your Roto Auction'!$Q$5="Only Show: SP",H5="SP"),AND('Your Roto Auction'!$Q$5="Only Show: RP",H5="RP"),AND('Your Roto Auction'!$Q$5="Only Show: CI",OR(H5={"1B","3B"})),AND('Your Roto Auction'!$Q$5="Only Show: MI",OR(H5={"2B","SS"})),AND('Your Roto Auction'!$Q$5="Only Show: IF",OR(H5={"C","1B","2B","3B","SS"})),AND('Your Roto Auction'!$Q$5="Only Show: DH",OR(H5={"C","1B","2B","3B","SS","OF","DH"})),AND('Your Roto Auction'!$Q$5="Only Show: P",OR(H5={"SP","RP"})),AND('Your Roto Auction'!$Q$5="Only Show: LF",ISERROR(SEARCH("LF",VLOOKUP($D5,'Auction-Rank'!$A$2:$D$948,4,FALSE)))=FALSE),AND('Your Roto Auction'!$Q$5="Only Show: RF",ISERROR(SEARCH("RF",VLOOKUP($D5,'Auction-Rank'!$A$2:$D$948,4,FALSE)))=FALSE),AND('Your Roto Auction'!$Q$5="Only Show: CF",ISERROR(SEARCH("CF",VLOOKUP($D5,'Auction-Rank'!$A$2:$D$948,4,FALSE)))=FALSE)),TRUE,FALSE))) -> TRUE | M5: =IFERROR(IF(VLOOKUP($D5,'Inflation-Tracking'!$A$5:$AD$862,22,FALSE)="",-9999,VLOOKUP($D5,'Inflation-Tracking'!$A$5:$AD$862,22,FALSE)),-9999) -> 1.139928526 | N5: =IF(D5="Non-Ranked Player",-1001,IFERROR(VLOOKUP($D5,'All-WERTH'!$C$2:$E$793,3,FALSE),-1000)) -> -3.846032635 | O5: =IF(D5="Non-Ranked Player",10000,IFERROR(IF(VLOOKUP(D5,'Auction-Rank'!$A$2:$X$948,24,FALSE)="",9999,VLOOKUP(D5,'Auction-Rank'!$A$2:$X$948,24,FALSE)),9999)) -> 285 | P5: =IF($D5="Unlisted Player",-1001,IFERROR(IF(VLOOKUP($D5,'All-WERTH'!$C$2:$AC$793,4,FALSE)="",-1000,VLOOKUP($D5,'All-WERTH'!$C$2:$AC$793,4,FALSE)),-1000)) -> -1.031164998 | Q5: =IF($D5="Unlisted Player",-1001,IFERROR(IF(VLOOKUP($D5,'All-WERTH'!$C$2:$AC$793,5,FALSE)="",-1000,VLOOKUP($D5,'All-WERTH'!$C$2:$AC$793,5,FALSE)),-1000)) -> -0.8580642882 | R5: =IF($D5="Unlisted Player",-1001,IFERROR(IF(VLOOKUP($D5,'All-WERTH'!$C$2:$AC$793,6,FALSE)="",-1000,VLOOKUP($D5,'All-WERTH'!$C$2:$AC$793,6,FALSE)),-1000)) -> -0.6610294201 | S5: =IF($D5="Unlisted Player",-1001,IFERROR(IF(VLOOKUP($D5,'All-WERTH'!$C$2:$AC$793,7,FALSE)="",-1000,VLOOKUP($D5,'All-WERTH'!$C$2:$AC$793,7,FALSE)),-1000)) -> -1.044908171 | T5: =IF($D5="Unlisted Player",-1001,IFERROR(IF(VLOOKUP($D5,'All-WERTH'!$C$2:$AC$793,8,FALSE)="",-1000,VLOOKUP($D5,'All-WERTH'!$C$2:$AC$793,8,FALSE)),-1000)) -> -0.2508657587 | U5: =IF($D5="Unlisted Player",-1001,IFERROR(IF(VLOOKUP($D5,'All-WERTH'!$C$2:$AC$793,9,FALSE)="",-1000,VLOOKUP($D5,'All-WERTH'!$C$2:$AC$793,9,FALSE)),-1000)) -> -1000 | V5: =IF($D5="Unlisted Player",-1001,IFERROR(IF(VLOOKUP($D5,'All-WERTH'!$C$2:$AC$793,10,FALSE)="",-1000,VLOOKUP($D5,'All-WERTH'!$C$2:$AC$793,10,FALSE)),-1000)) -> -1000 | W5: =IF($D5="Unlisted Player",-1001,IFERROR(IF(VLOOKUP($D5,'All-WERTH'!$C$2:$AC$793,11,FALSE)="",-1000,VLOOKUP($D5,'All-WERTH'!$C$2:$AC$793,11,FALSE)),-1000)) -> -1000 | X5: =IF($D5="Unlisted Player",-1001,IFERROR(IF(VLOOKUP($D5,'All-WERTH'!$C$2:$AC$793,12,FALSE)="",-1000,VLOOKUP($D5,'All-WERTH'!$C$2:$AC$793,12,FALSE)),-1000)) -> -1000 | Y5: =IF($D5="Unlisted Player",-1001,IFERROR(IF(VLOOKUP($D5,'All-WERTH'!$C$2:$AC$793,13,FALSE)="",-1000,VLOOKUP($D5,'All-WERTH'!$C$2:$AC$793,13,FALSE)),-1000)) -> -1000 | Z5: =IF($D5="Unlisted Player",-1001,IFERROR(IF(VLOOKUP($D5,'All-WERTH'!$C$2:$AC$793,14,FALSE)="",-1000,VLOOKUP($D5,'All-WERTH'!$C$2:$AC$793,14,FALSE)),-1000)) -> -1000 | AA5: =IF($D5="Unlisted Player",-1001,IFERROR(IF(VLOOKUP($D5,'All-WERTH'!$C$2:$AC$793,15,FALSE)="",-1000,VLOOKUP($D5,'All-WERTH'!$C$2:$AC$793,15,FALSE)),-1000)) -> -1000 | AB5: =IF($D5="Unlisted Player",-1001,IFERROR(IF(VLOOKUP($D5,'All-WERTH'!$C$2:$AC$793,16,FALSE)="",-1000,VLOOKUP($D5,'All-WERTH'!$C$2:$AC$793,16,FALSE)),-1000)) -> -1000 | AC5: =IF($D5="Unlisted Player",-1001,IFERROR(IF(VLOOKUP($D5,'All-WERTH'!$C$2:$AC$793,17,FALSE)="",-1000,VLOOKUP($D5,'All-WERTH'!$C$2:$AC$793,17,FALSE)),-1000)) -> -1000 | AD5: =IF($D5="Unlisted Player",-1001,IFERROR(IF(VLOOKUP($D5,'All-WERTH'!$C$2:$AC$793,18,FALSE)="",-1000,VLOOKUP($D5,'All-WERTH'!$C$2:$AC$793,18,FALSE)),-1000)) -> -1000 | AE5: =IF($D5="Unlisted Player",-1001,IFERROR(IF(VLOOKUP($D5,'All-WERTH'!$C$2:$AC$793,19,FALSE)="",-1000,VLOOKUP($D5,'All-WERTH'!$C$2:$AC$793,19,FALSE)),-1000)) -> -1000 | AF5: =IF($D5="Unlisted Player",-1001,IFERROR(IF(VLOOKUP($D5,'All-WERTH'!$C$2:$AC$793,20,FALSE)="",-1000,VLOOKUP($D5,'All-WERTH'!$C$2:$AC$793,20,FALSE)),-1000)) -> -1000 | AG5: =IF($D5="Unlisted Player",-1001,IFERROR(IF(VLOOKUP($D5,'All-WERTH'!$C$2:$AC$793,21,FALSE)="",-1000,VLOOKUP($D5,'All-WERTH'!$C$2:$AC$793,21,FALSE)),-1000)) -> -1000 | AH5: =IF($D5="Unlisted Player",-1001,IFERROR(IF(VLOOKUP($D5,'All-WERTH'!$C$2:$AC$793,22,FALSE)="",-1000,VLOOKUP($D5,'All-WERTH'!$C$2:$AC$793,22,FALSE)),-1000)) -> -1000 | AI5: =IF($D5="Unlisted Player",-1001,IFERROR(IF(VLOOKUP($D5,'All-WERTH'!$C$2:$AC$793,23,FALSE)="",-1000,VLOOKUP($D5,'All-WERTH'!$C$2:$AC$793,23,FALSE)),-1000)) -> -1000 | AJ5: =IF($D5="Unlisted Player",-1001,IFERROR(IF(VLOOKUP($D5,'All-WERTH'!$C$2:$AC$793,24,FALSE)="",-1000,VLOOKUP($D5,'All-WERTH'!$C$2:$AC$793,24,FALSE)),-1000)) -> -1000 | AK5: =IF($D5="Unlisted Player",-1001,IFERROR(IF(VLOOKUP($D5,'All-WERTH'!$C$2:$AC$793,25,FALSE)="",-1000,VLOOKUP($D5,'All-WERTH'!$C$2:$AC$793,25,FALSE)),-1000)) -> -1000 | AL5: =IF($D5="Unlisted Player",-1001,IFERROR(IF(VLOOKUP($D5,'All-WERTH'!$C$2:$AC$793,26,FALSE)="",-1000,VLOOKUP($D5,'All-WERTH'!$C$2:$AC$793,26,FALSE)),-1000)) -> -1000 | AM5: =IF($D5="Unlisted Player",-1001,IFERROR(IF(VLOOKUP($D5,'All-WERTH'!$C$2:$AC$793,27,FALSE)="",-1000,VLOOKUP($D5,'All-WERTH'!$C$2:$AC$793,27,FALSE)),-1000)) -> -1000 | AN5: =IF(D5="Non-Ranked Player",-1001,IFERROR(VLOOKUP($D5,'All-WERTH'!$C$2:$AF$793,30,FALSE),-1000)) -> 0
A6: Max Scherzer | B6: =IFERROR(INDEX($A$1:$A$948,SMALL(IF($A$1:$A$948<>"",ROW($A$1:$A$948)),ROW(A5))),"") -> Max Scherzer | C6: =IFERROR(IF(L6=FALSE,"",CHOOSE(MATCH(RIGHT('Your Roto Auction'!$Q$4,LEN('Your Roto Auction'!$Q$4)-8),$M$1:$AN$1,0),1+SUMPRODUCT(($L$2:$L$949=TRUE)*($M$2:$M$949>M6))+COUNTIFS($L$2:L6,L6,$M$2:M6,M6)-1,1+SUMPRODUCT(($L$2:$L$949=TRUE)*($N$2:$N$949>N6))+COUNTIFS($L$2:L6,L6,$N$2:N6,N6)-1,1+SUMPRODUCT(($L$2:$L$949=TRUE)*($O$2:$O$949<O6))+COUNTIFS($L$2:L6,L6,$O$2:O6,O6)-1,1+SUMPRODUCT(($L$2:$L$949=TRUE)*($P$2:$P$949>P6))+COUNTIFS($L$2:L6,L6,$P$2:P6,P6)-1,1+SUMPRODUCT(($L$2:$L$949=TRUE)*($Q$2:$Q$949>Q6))+COUNTIFS($L$2:L6,L6,$Q$2:Q6,Q6)-1,1+SUMPRODUCT(($L$2:$L$949=TRUE)*($R$2:$R$949>R6))+COUNTIFS($L$2:L6,L6,$R$2:R6,R6)-1,1+SUMPRODUCT(($L$2:$L$949=TRUE)*($S$2:$S$949>S6))+COUNTIFS($L$2:L6,L6,$S$2:S6,S6)-1,1+SUMPRODUCT(($L$2:$L$949=TRUE)*($T$2:$T$949>T6))+COUNTIFS($L$2:L6,L6,$T$2:T6,T6)-1,1+SUMPRODUCT(($L$2:$L$949=TRUE)*($U$2:$U$949>U6))+COUNTIFS($L$2:L6,L6,$U$2:U6,U6)-1,1+SUMPRODUCT(($L$2:$L$949=TRUE)*($V$2:$V$949>V6))+COUNTIFS($L$2:L6,L6,$V$2:V6,V6)-1,1+SUMPRODUCT(($L$2:$L$949=TRUE)*($W$2:$W$949>W6))+COUNTIFS($L$2:L6,L6,$W$2:W6,W6)-1,1+SUMPRODUCT(($L$2:$L$949=TRUE)*($X$2:$X$949>X6))+COUNTIFS($L$2:L6,L6,$X$2:X6,X6)-1,1+SUMPRODUCT(($L$2:$L$949=TRUE)*($Y$2:$Y$949>Y6))+COUNTIFS($L$2:L6,L6,$Y$2:Y6,Y6)-1,1+SUMPRODUCT(($L$2:$L$949=TRUE)*($Z$2:$Z$949>Z6))+COUNTIFS($L$2:L6,L6,$Z$2:Z6,Z6)-1,1+SUMPRODUCT(($L$2:$L$949=TRUE)*($AA$2:$AA$949>AA6))+COUNTIFS($L$2:L6,L6,$AA$2:AA6,AA6)-1,1+SUMPRODUCT(($L$2:$L$949=TRUE)*($AB$2:$AB$949>AB6))+COUNTIFS($L$2:L6,L6,$AB$2:AB6,AB6)-1,1+SUMPRODUCT(($L$2:$L$949=TRUE)*($AC$2:$AC$949>AC6))+COUNTIFS($L$2:L6,L6,$AC$2:AC6,AC6)-1,1+SUMPRODUCT(($L$2:$L$949=TRUE)*($AD$2:$AD$949>AD6))+COUNTIFS($L$2:L6,L6,$AD$2:AD6,AD6)-1,1+SUMPRODUCT(($L$2:$L$949=TRUE)*($AE$2:$AE$949>AE6))+COUNTIFS($L$2:L6,L6,$AE$2:AE6,AE6)-1,1+SUMPRODUCT(($L$2:$L$949=TRUE)*($AF$2:$AF$949>AF6))+COUNTIFS($L$2:L6,L6,$AF$2:AF6,AF6)-1,1+SUMPRODUCT(($L$2:$L$949=TRUE)*($AG$2:$AG$949>AG6))+COUNTIFS($L$2:L6,L6,$AG$2:AG6,AG6)-1,1+SUMPRODUCT(($L$2:$L$949=TRUE)*($AH$2:$AH$949>AH6))+COUNTIFS($L$2:L6,L6,$AH$2:AH6,AH6)-1,1+SUMPRODUCT(($L$2:$L$949=TRUE)*($AI$2:$AI$949>AI6))+COUNTIFS($L$2:L6,L6,$AI$2:AI6,AI6)-1,1+SUMPRODUCT(($L$2:$L$949=TRUE)*($AJ$2:$AJ$949>AJ6))+COUNTIFS($L$2:L6,L6,$AJ$2:AJ6,AJ6)-1,1+SUMPRODUCT(($L$2:$L$949=TRUE)*($AK$2:$AK$949>AK6))+COUNTIFS($L$2:L6,L6,$AK$2:AK6,AK6)-1,1+SUMPRODUCT(($L$2:$L$949=TRUE)*($AL$2:$AL$949>AL6))+COUNTIFS($L$2:L6,L6,$AL$2:AL6,AL6)-1,1+SUMPRODUCT(($L$2:$L$949=TRUE)*($AM$2:$AM$949>AM6))+COUNTIFS($L$2:L6,L6,$AM$2:AM6,AM6)-1,1+SUMPRODUCT(($L$2:$L$949=TRUE)*($AN$2:$AN$949>AN6))+COUNTIFS($L$2:L6,L6,$AN$2:AN6,AN6)-1)),"") -> 684 | D6: Matt Adams | E6: =IFERROR(INDEX('Auction Log'!$C$4:$C$806,MATCH(D6,'Auction Log'!$B$4:$B$806,0)),"") ->  | F6: =IFERROR(INDEX('Auction-Rank'!$C$2:$C$948,MATCH(D6,'Auction-Rank'!$A$2:$A$948,0)),"") -> 1B | G6: =IFERROR(IF(F6=I6,"",IF(INDEX('Your Roto Auction'!$C$11:$C$634,MATCH(D6,'Your Roto Auction'!$D$11:$D$634,0))="",IF(I6<>"",I6,""),INDEX('Your Roto Auction'!$C$11:$C$634,MATCH(D6,'Your Roto Auction'!$D$11:$D$634,0)))),"") ->  | H6: 1B | J6: =INDEX('Auction-Rank'!$V$2:$V$948,MATCH(D6,'Auction-Rank'!$A$2:$A$948,0)) -> TRUE | K6: FALSE | L6: =IF(J6=FALSE,FALSE,IF(AND('Your Roto Auction'!$Q$6="Hide Drafted Players",K6=TRUE),FALSE,IF(OR('Your Roto Auction'!$Q$5="Show All Positions",AND('Your Roto Auction'!$Q$5="Only Show: C",H6="C"),AND('Your Roto Auction'!$Q$5="Only Show: 1B",H6="1B"),AND('Your Roto Auction'!$Q$5="Only Show: 2B",H6="2B"),AND('Your Roto Auction'!$Q$5="Only Show: 3B",H6="3B"),AND('Your Roto Auction'!$Q$5="Only Show: SS",H6="SS"),AND('Your Roto Auction'!$Q$5="Only Show: OF",H6="OF"),AND('Your Roto Auction'!$Q$5="Only Show: SP",H6="SP"),AND('Your Roto Auction'!$Q$5="Only Show: RP",H6="RP"),AND('Your Roto Auction'!$Q$5="Only Show: CI",OR(H6={"1B","3B"})),AND('Your Roto Auction'!$Q$5="Only Show: MI",OR(H6={"2B","SS"})),AND('Your Roto Auction'!$Q$5="Only Show: IF",OR(H6={"C","1B","2B","3B","SS"})),AND('Your Roto Auction'!$Q$5="Only Show: DH",OR(H6={"C","1B","2B","3B","SS","OF","DH"})),AND('Your Roto Auction'!$Q$5="Only Show: P",OR(H6={"SP","RP"})),AND('Your Roto Auction'!$Q$5="Only Show: LF",ISERROR(SEARCH("LF",VLOOKUP($D6,'Auction-Rank'!$A$2:$D$948,4,FALSE)))=FALSE),AND('Your Roto Auction'!$Q$5="Only Show: RF",ISERROR(SEARCH("RF",VLOOKUP($D6,'Auction-Rank'!$A$2:$D$948,4,FALSE)))=FALSE),AND('Your Roto Auction'!$Q$5="Only Show: CF",ISERROR(SEARCH("CF",VLOOKUP($D6,'Auction-Rank'!$A$2:$D$948,4,FALSE)))=FALSE)),TRUE,FALSE))) -> TRUE | M6: =IFERROR(IF(VLOOKUP($D6,'Inflation-Tracking'!$A$5:$AD$862,22,FALSE)="",-9999,VLOOKUP($D6,'Inflation-Tracking'!$A$5:$AD$862,22,FALSE)),-9999) -> -2.428049492 | N6: =IF(D6="Non-Ranked Player",-1001,IFERROR(VLOOKUP($D6,'All-WERTH'!$C$2:$E$793,3,FALSE),-1000)) -> -11.37038516 | O6: =IF(D6="Non-Ranked Player",10000,IFERROR(IF(VLOOKUP(D6,'Auction-Rank'!$A$2:$X$948,24,FALSE)="",9999,VLOOKUP(D6,'Auction-Rank'!$A$2:$X$948,24,FALSE)),9999)) -> 579 | P6: =IF($D6="Unlisted Player",-1001,IFERROR(IF(VLOOKUP($D6,'All-WERTH'!$C$2:$AC$793,4,FALSE)="",-1000,VLOOKUP($D6,'All-WERTH'!$C$2:$AC$793,4,FALSE)),-1000)) -> -1.178300833 | Q6: =IF($D6="Unlisted Player",-1001,IFERROR(IF(VLOOKUP($D6,'All-WERTH'!$C$2:$AC$793,5,FALSE)="",-1000,VLOOKUP($D6,'All-WERTH'!$C$2:$AC$793,5,FALSE)),-1000)) -> -1.893636245 | R6: =IF($D6="Unlisted Player",-1001,IFERROR(IF(VLOOKUP($D6,'All-WERTH'!$C$2:$AC$793,6,FALSE)="",-1000,VLOOKUP($D6,'All-WERTH'!$C$2:$AC$793,6,FALSE)),-1000)) -> -3.898233264 | S6: =IF($D6="Unlisted Player",-1001,IFERROR(IF(VLOOKUP($D6,'All-WERTH'!$C$2:$AC$793,7,FALSE)="",-1000,VLOOKUP($D6,'All-WERTH'!$C$2:$AC$793,7,FALSE)),-1000)) -> -3.331852825 | T6: =IF($D6="Unlisted Player",-1001,IFERROR(IF(VLOOKUP($D6,'All-WERTH'!$C$2:$AC$793,8,FALSE)="",-1000,VLOOKUP($D6,'All-WERTH'!$C$2:$AC$793,8,FALSE)),-1000)) -> -1.068361998 | U6: =IF($D6="Unlisted Player",-1001,IFERROR(IF(VLOOKUP($D6,'All-WERTH'!$C$2:$AC$793,9,FALSE)="",-1000,VLOOKUP($D6,'All-WERTH'!$C$2:$AC$793,9,FALSE)),-1000)) -> -1000 | V6: =IF($D6="Unlisted Player",-1001,IFERROR(IF(VLOOKUP($D6,'All-WERTH'!$C$2:$AC$793,10,FALSE)="",-1000,VLOOKUP($D6,'All-WERTH'!$C$2:$AC$793,10,FALSE)),-1000)) -> -1000 | W6: =IF($D6="Unlisted Player",-1001,IFERROR(IF(VLOOKUP($D6,'All-WERTH'!$C$2:$AC$793,11,FALSE)="",-1000,VLOOKUP($D6,'All-WERTH'!$C$2:$AC$793,11,FALSE)),-1000)) -> -1000 | X6: =IF($D6="Unlisted Player",-1001,IFERROR(IF(VLOOKUP($D6,'All-WERTH'!$C$2:$AC$793,12,FALSE)="",-1000,VLOOKUP($D6,'All-WERTH'!$C$2:$AC$793,12,FALSE)),-1000)) -> -1000 | Y6: =IF($D6="Unlisted Player",-1001,IFERROR(IF(VLOOKUP($D6,'All-WERTH'!$C$2:$AC$793,13,FALSE)="",-1000,VLOOKUP($D6,'All-WERTH'!$C$2:$AC$793,13,FALSE)),-1000)) -> -1000 | Z6: =IF($D6="Unlisted Player",-1001,IFERROR(IF(VLOOKUP($D6,'All-WERTH'!$C$2:$AC$793,14,FALSE)="",-1000,VLOOKUP($D6,'All-WERTH'!$C$2:$AC$793,14,FALSE)),-1000)) -> -1000 | AA6: =IF($D6="Unlisted Player",-1001,IFERROR(IF(VLOOKUP($D6,'All-WERTH'!$C$2:$AC$793,15,FALSE)="",-1000,VLOOKUP($D6,'All-WERTH'!$C$2:$AC$793,15,FALSE)),-1000)) -> -1000 | AB6: =IF($D6="Unlisted Player",-1001,IFERROR(IF(VLOOKUP($D6,'All-WERTH'!$C$2:$AC$793,16,FALSE)="",-1000,VLOOKUP($D6,'All-WERTH'!$C$2:$AC$793,16,FALSE)),-1000)) -> -1000 | AC6: =IF($D6="Unlisted Player",-1001,IFERROR(IF(VLOOKUP($D6,'All-WERTH'!$C$2:$AC$793,17,FALSE)="",-1000,VLOOKUP($D6,'All-WERTH'!$C$2:$AC$793,17,FALSE)),-1000)) -> -1000 | AD6: =IF($D6="Unlisted Player",-1001,IFERROR(IF(VLOOKUP($D6,'All-WERTH'!$C$2:$AC$793,18,FALSE)="",-1000,VLOOKUP($D6,'All-WERTH'!$C$2:$AC$793,18,FALSE)),-1000)) -> -1000 | AE6: =IF($D6="Unlisted Player",-1001,IFERROR(IF(VLOOKUP($D6,'All-WERTH'!$C$2:$AC$793,19,FALSE)="",-1000,VLOOKUP($D6,'All-WERTH'!$C$2:$AC$793,19,FALSE)),-1000)) -> -1000 | AF6: =IF($D6="Unlisted Player",-1001,IFERROR(IF(VLOOKUP($D6,'All-WERTH'!$C$2:$AC$793,20,FALSE)="",-1000,VLOOKUP($D6,'All-WERTH'!$C$2:$AC$793,20,FALSE)),-1000)) -> -1000 | AG6: =IF($D6="Unlisted Player",-1001,IFERROR(IF(VLOOKUP($D6,'All-WERTH'!$C$2:$AC$793,21,FALSE)="",-1000,VLOOKUP($D6,'All-WERTH'!$C$2:$AC$793,21,FALSE)),-1000)) -> -1000 | AH6: =IF($D6="Unlisted Player",-1001,IFERROR(IF(VLOOKUP($D6,'All-WERTH'!$C$2:$AC$793,22,FALSE)="",-1000,VLOOKUP($D6,'All-WERTH'!$C$2:$AC$793,22,FALSE)),-1000)) -> -1000 | AI6: =IF($D6="Unlisted Player",-1001,IFERROR(IF(VLOOKUP($D6,'All-WERTH'!$C$2:$AC$793,23,FALSE)="",-1000,VLOOKUP($D6,'All-WERTH'!$C$2:$AC$793,23,FALSE)),-1000)) -> -1000 | AJ6: =IF($D6="Unlisted Player",-1001,IFERROR(IF(VLOOKUP($D6,'All-WERTH'!$C$2:$AC$793,24,FALSE)="",-1000,VLOOKUP($D6,'All-WERTH'!$C$2:$AC$793,24,FALSE)),-1000)) -> -1000 | AK6: =IF($D6="Unlisted Player",-1001,IFERROR(IF(VLOOKUP($D6,'All-WERTH'!$C$2:$AC$793,25,FALSE)="",-1000,VLOOKUP($D6,'All-WERTH'!$C$2:$AC$793,25,FALSE)),-1000)) -> -1000 | AL6: =IF($D6="Unlisted Player",-1001,IFERROR(IF(VLOOKUP($D6,'All-WERTH'!$C$2:$AC$793,26,FALSE)="",-1000,VLOOKUP($D6,'All-WERTH'!$C$2:$AC$793,26,FALSE)),-1000)) -> -1000 | AM6: =IF($D6="Unlisted Player",-1001,IFERROR(IF(VLOOKUP($D6,'All-WERTH'!$C$2:$AC$793,27,FALSE)="",-1000,VLOOKUP($D6,'All-WERTH'!$C$2:$AC$793,27,FALSE)),-1000)) -> -1000 | AN6: =IF(D6="Non-Ranked Player",-1001,IFERROR(VLOOKUP($D6,'All-WERTH'!$C$2:$AF$793,30,FALSE),-1000)) -> -8.289930175
A7: Ronald Acuna | B7: =IFERROR(INDEX($A$1:$A$948,SMALL(IF($A$1:$A$948<>"",ROW($A$1:$A$948)),ROW(A6))),"") -> Ronald Acuna | C7: =IFERROR(IF(L7=FALSE,"",CHOOSE(MATCH(RIGHT('Your Roto Auction'!$Q$4,LEN('Your Roto Auction'!$Q$4)-8),$M$1:$AN$1,0),1+SUMPRODUCT(($L$2:$L$949=TRUE)*($M$2:$M$949>M7))+COUNTIFS($L$2:L7,L7,$M$2:M7,M7)-1,1+SUMPRODUCT(($L$2:$L$949=TRUE)*($N$2:$N$949>N7))+COUNTIFS($L$2:L7,L7,$N$2:N7,N7)-1,1+SUMPRODUCT(($L$2:$L$949=TRUE)*($O$2:$O$949<O7))+COUNTIFS($L$2:L7,L7,$O$2:O7,O7)-1,1+SUMPRODUCT(($L$2:$L$949=TRUE)*($P$2:$P$949>P7))+COUNTIFS($L$2:L7,L7,$P$2:P7,P7)-1,1+SUMPRODUCT(($L$2:$L$949=TRUE)*($Q$2:$Q$949>Q7))+COUNTIFS($L$2:L7,L7,$Q$2:Q7,Q7)-1,1+SUMPRODUCT(($L$2:$L$949=TRUE)*($R$2:$R$949>R7))+COUNTIFS($L$2:L7,L7,$R$2:R7,R7)-1,1+SUMPRODUCT(($L$2:$L$949=TRUE)*($S$2:$S$949>S7))+COUNTIFS($L$2:L7,L7,$S$2:S7,S7)-1,1+SUMPRODUCT(($L$2:$L$949=TRUE)*($T$2:$T$949>T7))+COUNTIFS($L$2:L7,L7,$T$2:T7,T7)-1,1+SUMPRODUCT(($L$2:$L$949=TRUE)*($U$2:$U$949>U7))+COUNTIFS($L$2:L7,L7,$U$2:U7,U7)-1,1+SUMPRODUCT(($L$2:$L$949=TRUE)*($V$2:$V$949>V7))+COUNTIFS($L$2:L7,L7,$V$2:V7,V7)-1,1+SUMPRODUCT(($L$2:$L$949=TRUE)*($W$2:$W$949>W7))+COUNTIFS($L$2:L7,L7,$W$2:W7,W7)-1,1+SUMPRODUCT(($L$2:$L$949=TRUE)*($X$2:$X$949>X7))+COUNTIFS($L$2:L7,L7,$X$2:X7,X7)-1,1+SUMPRODUCT(($L$2:$L$949=TRUE)*($Y$2:$Y$949>Y7))+COUNTIFS($L$2:L7,L7,$Y$2:Y7,Y7)-1,1+SUMPRODUCT(($L$2:$L$949=TRUE)*($Z$2:$Z$949>Z7))+COUNTIFS($L$2:L7,L7,$Z$2:Z7,Z7)-1,1+SUMPRODUCT(($L$2:$L$949=TRUE)*($AA$2:$AA$949>AA7))+COUNTIFS($L$2:L7,L7,$AA$2:AA7,AA7)-1,1+SUMPRODUCT(($L$2:$L$949=TRUE)*($AB$2:$AB$949>AB7))+COUNTIFS($L$2:L7,L7,$AB$2:AB7,AB7)-1,1+SUMPRODUCT(($L$2:$L$949=TRUE)*($AC$2:$AC$949>AC7))+COUNTIFS($L$2:L7,L7,$AC$2:AC7,AC7)-1,1+SUMPRODUCT(($L$2:$L$949=TRUE)*($AD$2:$AD$949>AD7))+COUNTIFS($L$2:L7,L7,$AD$2:AD7,AD7)-1,1+SUMPRODUCT(($L$2:$L$949=TRUE)*($AE$2:$AE$949>AE7))+COUNTIFS($L$2:L7,L7,$AE$2:AE7,AE7)-1,1+SUMPRODUCT(($L$2:$L$949=TRUE)*($AF$2:$AF$949>AF7))+COUNTIFS($L$2:L7,L7,$AF$2:AF7,AF7)-1,1+SUMPRODUCT(($L$2:$L$949=TRUE)*($AG$2:$AG$949>AG7))+COUNTIFS($L$2:L7,L7,$AG$2:AG7,AG7)-1,1+SUMPRODUCT(($L$2:$L$949=TRUE)*($AH$2:$AH$949>AH7))+COUNTIFS($L$2:L7,L7,$AH$2:AH7,AH7)-1,1+SUMPRODUCT(($L$2:$L$949=TRUE)*($AI$2:$AI$949>AI7))+COUNTIFS($L$2:L7,L7,$AI$2:AI7,AI7)-1,1+SUMPRODUCT(($L$2:$L$949=TRUE)*($AJ$2:$AJ$949>AJ7))+COUNTIFS($L$2:L7,L7,$AJ$2:AJ7,AJ7)-1,1+SUMPRODUCT(($L$2:$L$949=TRUE)*($AK$2:$AK$949>AK7))+COUNTIFS($L$2:L7,L7,$AK$2:AK7,AK7)-1,1+SUMPRODUCT(($L$2:$L$949=TRUE)*($AL$2:$AL$949>AL7))+COUNTIFS($L$2:L7,L7,$AL$2:AL7,AL7)-1,1+SUMPRODUCT(($L$2:$L$949=TRUE)*($AM$2:$AM$949>AM7))+COUNTIFS($L$2:L7,L7,$AM$2:AM7,AM7)-1,1+SUMPRODUCT(($L$2:$L$949=TRUE)*($AN$2:$AN$949>AN7))+COUNTIFS($L$2:L7,L7,$AN$2:AN7,AN7)-1)),"") -> 469 | D7: Jo Adell | E7: =IFERROR(INDEX('Auction Log'!$C$4:$C$806,MATCH(D7,'Auction Log'!$B$4:$B$806,0)),"") ->  | F7: =IFERROR(INDEX('Auction-Rank'!$C$2:$C$948,MATCH(D7,'Auction-Rank'!$A$2:$A$948,0)),"") -> OF | G7: =IFERROR(IF(F7=I7,"",IF(INDEX('Your Roto Auction'!$C$11:$C$634,MATCH(D7,'Your Roto Auction'!$D$11:$D$634,0))="",IF(I7<>"",I7,""),INDEX('Your Roto Auction'!$C$11:$C$634,MATCH(D7,'Your Roto Auction'!$D$11:$D$634,0)))),"") ->  | H7: OF | J7: =INDEX('Auction-Rank'!$V$2:$V$948,MATCH(D7,'Auction-Rank'!$A$2:$A$948,0)) -> TRUE | K7: FALSE | L7: =IF(J7=FALSE,FALSE,IF(AND('Your Roto Auction'!$Q$6="Hide Drafted Players",K7=TRUE),FALSE,IF(OR('Your Roto Auction'!$Q$5="Show All Positions",AND('Your Roto Auction'!$Q$5="Only Show: C",H7="C"),AND('Your Roto Auction'!$Q$5="Only Show: 1B",H7="1B"),AND('Your Roto Auction'!$Q$5="Only Show: 2B",H7="2B"),AND('Your Roto Auction'!$Q$5="Only Show: 3B",H7="3B"),AND('Your Roto Auction'!$Q$5="Only Show: SS",H7="SS"),AND('Your Roto Auction'!$Q$5="Only Show: OF",H7="OF"),AND('Your Roto Auction'!$Q$5="Only Show: SP",H7="SP"),AND('Your Roto Auction'!$Q$5="Only Show: RP",H7="RP"),AND('Your Roto Auction'!$Q$5="Only Show: CI",OR(H7={"1B","3B"})),AND('Your Roto Auction'!$Q$5="Only Show: MI",OR(H7={"2B","SS"})),AND('Your Roto Auction'!$Q$5="Only Show: IF",OR(H7={"C","1B","2B","3B","SS"})),AND('Your Roto Auction'!$Q$5="Only Show: DH",OR(H7={"C","1B","2B","3B","SS","OF","DH"})),AND('Your Roto Auction'!$Q$5="Only Show: P",OR(H7={"SP","RP"})),AND('Your Roto Auction'!$Q$5="Only Show: LF",ISERROR(SEARCH("LF",VLOOKUP($D7,'Auction-Rank'!$A$2:$D$948,4,FALSE)))=FALSE),AND('Your Roto Auction'!$Q$5="Only Show: RF",ISERROR(SEARCH("RF",VLOOKUP($D7,'Auction-Rank'!$A$2:$D$948,4,FALSE)))=FALSE),AND('Your Roto Auction'!$Q$5="Only Show: CF",ISERROR(SEARCH("CF",VLOOKUP($D7,'Auction-Rank'!$A$2:$D$948,4,FALSE)))=FALSE)),TRUE,FALSE))) -> TRUE | M7: =IFERROR(IF(VLOOKUP($D7,'Inflation-Tracking'!$A$5:$AD$862,22,FALSE)="",-9999,VLOOKUP($D7,'Inflation-Tracking'!$A$5:$AD$862,22,FALSE)),-9999) -> -1.036693265 | N7: =IF(D7="Non-Ranked Player",-1001,IFERROR(VLOOKUP($D7,'All-WERTH'!$C$2:$E$793,3,FALSE),-1000)) -> -6.760471847 | O7: =IF(D7="Non-Ranked Player",10000,IFERROR(IF(VLOOKUP(D7,'Auction-Rank'!$A$2:$X$948,24,FALSE)="",9999,VLOOKUP(D7,'Auction-Rank'!$A$2:$X$948,24,FALSE)),9999)) -> 268 | P7: =IF($D7="Unlisted Player",-1001,IFERROR(IF(VLOOKUP($D7,'All-WERTH'!$C$2:$AC$793,4,FALSE)="",-1000,VLOOKUP($D7,'All-WERTH'!$C$2:$AC$793,4,FALSE)),-1000)) -> -1.180059423 | Q7: =IF($D7="Unlisted Player",-1001,IFERROR(IF(VLOOKUP($D7,'All-WERTH'!$C$2:$AC$793,5,FALSE)="",-1000,VLOOKUP($D7,'All-WERTH'!$C$2:$AC$793,5,FALSE)),-1000)) -> -1.543162863 | R7: =IF($D7="Unlisted Player",-1001,IFERROR(IF(VLOOKUP($D7,'All-WERTH'!$C$2:$AC$793,6,FALSE)="",-1000,VLOOKUP($D7,'All-WERTH'!$C$2:$AC$793,6,FALSE)),-1000)) -> -1.870306281 | S7: =IF($D7="Unlisted Player",-1001,IFERROR(IF(VLOOKUP($D7,'All-WERTH'!$C$2:$AC$793,7,FALSE)="",-1000,VLOOKUP($D7,'All-WERTH'!$C$2:$AC$793,7,FALSE)),-1000)) -> -1.950940242 | T7: =IF($D7="Unlisted Player",-1001,IFERROR(IF(VLOOKUP($D7,'All-WERTH'!$C$2:$AC$793,8,FALSE)="",-1000,VLOOKUP($D7,'All-WERTH'!$C$2:$AC$793,8,FALSE)),-1000)) -> -0.2160030379 | U7: =IF($D7="Unlisted Player",-1001,IFERROR(IF(VLOOKUP($D7,'All-WERTH'!$C$2:$AC$793,9,FALSE)="",-1000,VLOOKUP($D7,'All-WERTH'!$C$2:$AC$793,9,FALSE)),-1000)) -> -1000 | V7: =IF($D7="Unlisted Player",-1001,IFERROR(IF(VLOOKUP($D7,'All-WERTH'!$C$2:$AC$793,10,FALSE)="",-1000,VLOOKUP($D7,'All-WERTH'!$C$2:$AC$793,10,FALSE)),-1000)) -> -1000 | W7: =IF($D7="Unlisted Player",-1001,IFERROR(IF(VLOOKUP($D7,'All-WERTH'!$C$2:$AC$793,11,FALSE)="",-1000,VLOOKUP($D7,'All-WERTH'!$C$2:$AC$793,11,FALSE)),-1000)) -> -1000 | X7: =IF($D7="Unlisted Player",-1001,IFERROR(IF(VLOOKUP($D7,'All-WERTH'!$C$2:$AC$793,12,FALSE)="",-1000,VLOOKUP($D7,'All-WERTH'!$C$2:$AC$793,12,FALSE)),-1000)) -> -1000 | Y7: =IF($D7="Unlisted Player",-1001,IFERROR(IF(VLOOKUP($D7,'All-WERTH'!$C$2:$AC$793,13,FALSE)="",-1000,VLOOKUP($D7,'All-WERTH'!$C$2:$AC$793,13,FALSE)),-1000)) -> -1000 | Z7: =IF($D7="Unlisted Player",-1001,IFERROR(IF(VLOOKUP($D7,'All-WERTH'!$C$2:$AC$793,14,FALSE)="",-1000,VLOOKUP($D7,'All-WERTH'!$C$2:$AC$793,14,FALSE)),-1000)) -> -1000 | AA7: =IF($D7="Unlisted Player",-1001,IFERROR(IF(VLOOKUP($D7,'All-WERTH'!$C$2:$AC$793,15,FALSE)="",-1000,VLOOKUP($D7,'All-WERTH'!$C$2:$AC$793,15,FALSE)),-1000)) -> -1000 | AB7: =IF($D7="Unlisted Player",-1001,IFERROR(IF(VLOOKUP($D7,'All-WERTH'!$C$2:$AC$793,16,FALSE)="",-1000,VLOOKUP($D7,'All-WERTH'!$C$2:$AC$793,16,FALSE)),-1000)) -> -1000 | AC7: =IF($D7="Unlisted Player",-1001,IFERROR(IF(VLOOKUP($D7,'All-WERTH'!$C$2:$AC$793,17,FALSE)="",-1000,VLOOKUP($D7,'All-WERTH'!$C$2:$AC$793,17,FALSE)),-1000)) -> -1000 | AD7: =IF($D7="Unlisted Player",-1001,IFERROR(IF(VLOOKUP($D7,'All-WERTH'!$C$2:$AC$793,18,FALSE)="",-1000,VLOOKUP($D7,'All-WERTH'!$C$2:$AC$793,18,FALSE)),-1000)) -> -1000 | AE7: =IF($D7="Unlisted Player",-1001,IFERROR(IF(VLOOKUP($D7,'All-WERTH'!$C$2:$AC$793,19,FALSE)="",-1000,VLOOKUP($D7,'All-WERTH'!$C$2:$AC$793,19,FALSE)),-1000)) -> -1000 | AF7: =IF($D7="Unlisted Player",-1001,IFERROR(IF(VLOOKUP($D7,'All-WERTH'!$C$2:$AC$793,20,FALSE)="",-1000,VLOOKUP($D7,'All-WERTH'!$C$2:$AC$793,20,FALSE)),-1000)) -> -1000 | AG7: =IF($D7="Unlisted Player",-1001,IFERROR(IF(VLOOKUP($D7,'All-WERTH'!$C$2:$AC$793,21,FALSE)="",-1000,VLOOKUP($D7,'All-WERTH'!$C$2:$AC$793,21,FALSE)),-1000)) -> -1000 | AH7: =IF($D7="Unlisted Player",-1001,IFERROR(IF(VLOOKUP($D7,'All-WERTH'!$C$2:$AC$793,22,FALSE)="",-1000,VLOOKUP($D7,'All-WERTH'!$C$2:$AC$793,22,FALSE)),-1000)) -> -1000 | AI7: =IF($D7="Unlisted Player",-1001,IFERROR(IF(VLOOKUP($D7,'All-WERTH'!$C$2:$AC$793,23,FALSE)="",-1000,VLOOKUP($D7,'All-WERTH'!$C$2:$AC$793,23,FALSE)),-1000)) -> -1000 | AJ7: =IF($D7="Unlisted Player",-1001,IFERROR(IF(VLOOKUP($D7,'All-WERTH'!$C$2:$AC$793,24,FALSE)="",-1000,VLOOKUP($D7,'All-WERTH'!$C$2:$AC$793,24,FALSE)),-1000)) -> -1000 | AK7: =IF($D7="Unlisted Player",-1001,IFERROR(IF(VLOOKUP($D7,'All-WERTH'!$C$2:$AC$793,25,FALSE)="",-1000,VLOOKUP($D7,'All-WERTH'!$C$2:$AC$793,25,FALSE)),-1000)) -> -1000 | AL7: =IF($D7="Unlisted Player",-1001,IFERROR(IF(VLOOKUP($D7,'All-WERTH'!$C$2:$AC$793,26,FALSE)="",-1000,VLOOKUP($D7,'All-WERTH'!$C$2:$AC$793,26,FALSE)),-1000)) -> -1000 | AM7: =IF($D7="Unlisted Player",-1001,IFERROR(IF(VLOOKUP($D7,'All-WERTH'!$C$2:$AC$793,27,FALSE)="",-1000,VLOOKUP($D7,'All-WERTH'!$C$2:$AC$793,27,FALSE)),-1000)) -> -1000 | AN7: =IF(D7="Non-Ranked Player",-1001,IFERROR(VLOOKUP($D7,'All-WERTH'!$C$2:$AF$793,30,FALSE),-1000)) -> -3.539513838
A8: Cody Bellinger | B8: =IFERROR(INDEX($A$1:$A$948,SMALL(IF($A$1:$A$948<>"",ROW($A$1:$A$948)),ROW(A7))),"") -> Cody Bellinger | C8: =IFERROR(IF(L8=FALSE,"",CHOOSE(MATCH(RIGHT('Your Roto Auction'!$Q$4,LEN('Your Roto Auction'!$Q$4)-8),$M$1:$AN$1,0),1+SUMPRODUCT(($L$2:$L$949=TRUE)*($M$2:$M$949>M8))+COUNTIFS($L$2:L8,L8,$M$2:M8,M8)-1,1+SUMPRODUCT(($L$2:$L$949=TRUE)*($N$2:$N$949>N8))+COUNTIFS($L$2:L8,L8,$N$2:N8,N8)-1,1+SUMPRODUCT(($L$2:$L$949=TRUE)*($O$2:$O$949<O8))+COUNTIFS($L$2:L8,L8,$O$2:O8,O8)-1,1+SUMPRODUCT(($L$2:$L$949=TRUE)*($P$2:$P$949>P8))+COUNTIFS($L$2:L8,L8,$P$2:P8,P8)-1,1+SUMPRODUCT(($L$2:$L$949=TRUE)*($Q$2:$Q$949>Q8))+COUNTIFS($L$2:L8,L8,$Q$2:Q8,Q8)-1,1+SUMPRODUCT(($L$2:$L$949=TRUE)*($R$2:$R$949>R8))+COUNTIFS($L$2:L8,L8,$R$2:R8,R8)-1,1+SUMPRODUCT(($L$2:$L$949=TRUE)*($S$2:$S$949>S8))+COUNTIFS($L$2:L8,L8,$S$2:S8,S8)-1,1+SUMPRODUCT(($L$2:$L$949=TRUE)*($T$2:$T$949>T8))+COUNTIFS($L$2:L8,L8,$T$2:T8,T8)-1,1+SUMPRODUCT(($L$2:$L$949=TRUE)*($U$2:$U$949>U8))+COUNTIFS($L$2:L8,L8,$U$2:U8,U8)-1,1+SUMPRODUCT(($L$2:$L$949=TRUE)*($V$2:$V$949>V8))+COUNTIFS($L$2:L8,L8,$V$2:V8,V8)-1,1+SUMPRODUCT(($L$2:$L$949=TRUE)*($W$2:$W$949>W8))+COUNTIFS($L$2:L8,L8,$W$2:W8,W8)-1,1+SUMPRODUCT(($L$2:$L$949=TRUE)*($X$2:$X$949>X8))+COUNTIFS($L$2:L8,L8,$X$2:X8,X8)-1,1+SUMPRODUCT(($L$2:$L$949=TRUE)*($Y$2:$Y$949>Y8))+COUNTIFS($L$2:L8,L8,$Y$2:Y8,Y8)-1,1+SUMPRODUCT(($L$2:$L$949=TRUE)*($Z$2:$Z$949>Z8))+COUNTIFS($L$2:L8,L8,$Z$2:Z8,Z8)-1,1+SUMPRODUCT(($L$2:$L$949=TRUE)*($AA$2:$AA$949>AA8))+COUNTIFS($L$2:L8,L8,$AA$2:AA8,AA8)-1,1+SUMPRODUCT(($L$2:$L$949=TRUE)*($AB$2:$AB$949>AB8))+COUNTIFS($L$2:L8,L8,$AB$2:AB8,AB8)-1,1+SUMPRODUCT(($L$2:$L$949=TRUE)*($AC$2:$AC$949>AC8))+COUNTIFS($L$2:L8,L8,$AC$2:AC8,AC8)-1,1+SUMPRODUCT(($L$2:$L$949=TRUE)*($AD$2:$AD$949>AD8))+COUNTIFS($L$2:L8,L8,$AD$2:AD8,AD8)-1,1+SUMPRODUCT(($L$2:$L$949=TRUE)*($AE$2:$AE$949>AE8))+COUNTIFS($L$2:L8,L8,$AE$2:AE8,AE8)-1,1+SUMPRODUCT(($L$2:$L$949=TRUE)*($AF$2:$AF$949>AF8))+COUNTIFS($L$2:L8,L8,$AF$2:AF8,AF8)-1,1+SUMPRODUCT(($L$2:$L$949=TRUE)*($AG$2:$AG$949>AG8))+COUNTIFS($L$2:L8,L8,$AG$2:AG8,AG8)-1,1+SUMPRODUCT(($L$2:$L$949=TRUE)*($AH$2:$AH$949>AH8))+COUNTIFS($L$2:L8,L8,$AH$2:AH8,AH8)-1,1+SUMPRODUCT(($L$2:$L$949=TRUE)*($AI$2:$AI$949>AI8))+COUNTIFS($L$2:L8,L8,$AI$2:AI8,AI8)-1,1+SUMPRODUCT(($L$2:$L$949=TRUE)*($AJ$2:$AJ$949>AJ8))+COUNTIFS($L$2:L8,L8,$AJ$2:AJ8,AJ8)-1,1+SUMPRODUCT(($L$2:$L$949=TRUE)*($AK$2:$AK$949>AK8))+COUNTIFS($L$2:L8,L8,$AK$2:AK8,AK8)-1,1+SUMPRODUCT(($L$2:$L$949=TRUE)*($AL$2:$AL$949>AL8))+COUNTIFS($L$2:L8,L8,$AL$2:AL8,AL8)-1,1+SUMPRODUCT(($L$2:$L$949=TRUE)*($AM$2:$AM$949>AM8))+COUNTIFS($L$2:L8,L8,$AM$2:AM8,AM8)-1,1+SUMPRODUCT(($L$2:$L$949=TRUE)*($AN$2:$AN$949>AN8))+COUNTIFS($L$2:L8,L8,$AN$2:AN8,AN8)-1)),"") -> 700 | D8: Ehire Adrianza | E8: =IFERROR(INDEX('Auction Log'!$C$4:$C$806,MATCH(D8,'Auction Log'!$B$4:$B$806,0)),"") ->  | F8: =IFERROR(INDEX('Auction-Rank'!$C$2:$C$948,MATCH(D8,'Auction-Rank'!$A$2:$A$948,0)),"") -> SS | G8: =IFERROR(IF(F8=I8,"",IF(INDEX('Your Roto Auction'!$C$11:$C$634,MATCH(D8,'Your Roto Auction'!$D$11:$D$634,0))="",IF(I8<>"",I8,""),INDEX('Your Roto Auction'!$C$11:$C$634,MATCH(D8,'Your Roto Auction'!$D$11:$D$634,0)))),"") ->  | H8: SS | J8: =INDEX('Auction-Rank'!$V$2:$V$948,MATCH(D8,'Auction-Rank'!$A$2:$A$948,0)) -> TRUE | K8: FALSE | L8: =IF(J8=FALSE,FALSE,IF(AND('Your Roto Auction'!$Q$6="Hide Drafted Players",K8=TRUE),FALSE,IF(OR('Your Roto Auction'!$Q$5="Show All Positions",AND('Your Roto Auction'!$Q$5="Only Show: C",H8="C"),AND('Your Roto Auction'!$Q$5="Only Show: 1B",H8="1B"),AND('Your Roto Auction'!$Q$5="Only Show: 2B",H8="2B"),AND('Your Roto Auction'!$Q$5="Only Show: 3B",H8="3B"),AND('Your Roto Auction'!$Q$5="Only Show: SS",H8="SS"),AND('Your Roto Auction'!$Q$5="Only Show: OF",H8="OF"),AND('Your Roto Auction'!$Q$5="Only Show: SP",H8="SP"),AND('Your Roto Auction'!$Q$5="Only Show: RP",H8="RP"),AND('Your Roto Auction'!$Q$5="Only Show: CI",OR(H8={"1B","3B"})),AND('Your Roto Auction'!$Q$5="Only Show: MI",OR(H8={"2B","SS"})),AND('Your Roto Auction'!$Q$5="Only Show: IF",OR(H8={"C","1B","2B","3B","SS"})),AND('Your Roto Auction'!$Q$5="Only Show: DH",OR(H8={"C","1B","2B","3B","SS","OF","DH"})),AND('Your Roto Auction'!$Q$5="Only Show: P",OR(H8={"SP","RP"})),AND('Your Roto Auction'!$Q$5="Only Show: LF",ISERROR(SEARCH("LF",VLOOKUP($D8,'Auction-Rank'!$A$2:$D$948,4,FALSE)))=FALSE),AND('Your Roto Auction'!$Q$5="Only Show: RF",ISERROR(SEARCH("RF",VLOOKUP($D8,'Auction-Rank'!$A$2:$D$948,4,FALSE)))=FALSE),AND('Your Roto Auction'!$Q$5="Only Show: CF",ISERROR(SEARCH("CF",VLOOKUP($D8,'Auction-Rank'!$A$2:$D$948,4,FALSE)))=FALSE)),TRUE,FALSE))) -> TRUE | M8: =IFERROR(IF(VLOOKUP($D8,'Inflation-Tracking'!$A$5:$AD$862,22,FALSE)="",-9999,VLOOKUP($D8,'Inflation-Tracking'!$A$5:$AD$862,22,FALSE)),-9999) -> -2.435208705 | N8: =IF(D8="Non-Ranked Player",-1001,IFERROR(VLOOKUP($D8,'All-WERTH'!$C$2:$E$793,3,FALSE),-1000)) -> -12.16040604 | O8: =IF(D8="Non-Ranked Player",10000,IFERROR(IF(VLOOKUP(D8,'Auction-Rank'!$A$2:$X$948,24,FALSE)="",9999,VLOOKUP(D8,'Auction-Rank'!$A$2:$X$948,24,FALSE)),9999)) -> 9999 | P8: =IF($D8="Unlisted Player",-1001,IFERROR(IF(VLOOKUP($D8,'All-WERTH'!$C$2:$AC$793,4,FALSE)="",-1000,VLOOKUP($D8,'All-WERTH'!$C$2:$AC$793,4,FALSE)),-1000)) -> -0.7991018098 | Q8: =IF($D8="Unlisted Player",-1001,IFERROR(IF(VLOOKUP($D8,'All-WERTH'!$C$2:$AC$793,5,FALSE)="",-1000,VLOOKUP($D8,'All-WERTH'!$C$2:$AC$793,5,FALSE)),-1000)) -> -2.827897397 | R8: =IF($D8="Unlisted Player",-1001,IFERROR(IF(VLOOKUP($D8,'All-WERTH'!$C$2:$AC$793,6,FALSE)="",-1000,VLOOKUP($D8,'All-WERTH'!$C$2:$AC$793,6,FALSE)),-1000)) -> -3.795776685 | S8: =IF($D8="Unlisted Player",-1001,IFERROR(IF(VLOOKUP($D8,'All-WERTH'!$C$2:$AC$793,7,FALSE)="",-1000,VLOOKUP($D8,'All-WERTH'!$C$2:$AC$793,7,FALSE)),-1000)) -> -3.868991981 | T8: =IF($D8="Unlisted Player",-1001,IFERROR(IF(VLOOKUP($D8,'All-WERTH'!$C$2:$AC$793,8,FALSE)="",-1000,VLOOKUP($D8,'All-WERTH'!$C$2:$AC$793,8,FALSE)),-1000)) -> -0.8686381696 | U8: =IF($D8="Unlisted Player",-1001,IFERROR(IF(VLOOKUP($D8,'All-WERTH'!$C$2:$AC$793,9,FALSE)="",-1000,VLOOKUP($D8,'All-WERTH'!$C$2:$AC$793,9,FALSE)),-1000)) -> -1000 | V8: =IF($D8="Unlisted Player",-1001,IFERROR(IF(VLOOKUP($D8,'All-WERTH'!$C$2:$AC$793,10,FALSE)="",-1000,VLOOKUP($D8,'All-WERTH'!$C$2:$AC$793,10,FALSE)),-1000)) -> -1000 | W8: =IF($D8="Unlisted Player",-1001,IFERROR(IF(VLOOKUP($D8,'All-WERTH'!$C$2:$AC$793,11,FALSE)="",-1000,VLOOKUP($D8,'All-WERTH'!$C$2:$AC$793,11,FALSE)),-1000)) -> -1000 | X8: =IF($D8="Unlisted Player",-1001,IFERROR(IF(VLOOKUP($D8,'All-WERTH'!$C$2:$AC$793,12,FALSE)="",-1000,VLOOKUP($D8,'All-WERTH'!$C$2:$AC$793,12,FALSE)),-1000)) -> -1000 | Y8: =IF($D8="Unlisted Player",-1001,IFERROR(IF(VLOOKUP($D8,'All-WERTH'!$C$2:$AC$793,13,FALSE)="",-1000,VLOOKUP($D8,'All-WERTH'!$C$2:$AC$793,13,FALSE)),-1000)) -> -1000 | Z8: =IF($D8="Unlisted Player",-1001,IFERROR(IF(VLOOKUP($D8,'All-WERTH'!$C$2:$AC$793,14,FALSE)="",-1000,VLOOKUP($D8,'All-WERTH'!$C$2:$AC$793,14,FALSE)),-1000)) -> -1000 | AA8: =IF($D8="Unlisted Player",-1001,IFERROR(IF(VLOOKUP($D8,'All-WERTH'!$C$2:$AC$793,15,FALSE)="",-1000,VLOOKUP($D8,'All-WERTH'!$C$2:$AC$793,15,FALSE)),-1000)) -> -1000 | AB8: =IF($D8="Unlisted Player",-1001,IFERROR(IF(VLOOKUP($D8,'All-WERTH'!$C$2:$AC$793,16,FALSE)="",-1000,VLOOKUP($D8,'All-WERTH'!$C$2:$AC$793,16,FALSE)),-1000)) -> -1000 | AC8: =IF($D8="Unlisted Player",-1001,IFERROR(IF(VLOOKUP($D8,'All-WERTH'!$C$2:$AC$793,17,FALSE)="",-1000,VLOOKUP($D8,'All-WERTH'!$C$2:$AC$793,17,FALSE)),-1000)) -> -1000 | AD8: =IF($D8="Unlisted Player",-1001,IFERROR(IF(VLOOKUP($D8,'All-WERTH'!$C$2:$AC$793,18,FALSE)="",-1000,VLOOKUP($D8,'All-WERTH'!$C$2:$AC$793,18,FALSE)),-1000)) -> -1000 | AE8: =IF($D8="Unlisted Player",-1001,IFERROR(IF(VLOOKUP($D8,'All-WERTH'!$C$2:$AC$793,19,FALSE)="",-1000,VLOOKUP($D8,'All-WERTH'!$C$2:$AC$793,19,FALSE)),-1000)) -> -1000 | AF8: =IF($D8="Unlisted Player",-1001,IFERROR(IF(VLOOKUP($D8,'All-WERTH'!$C$2:$AC$793,20,FALSE)="",-1000,VLOOKUP($D8,'All-WERTH'!$C$2:$AC$793,20,FALSE)),-1000)) -> -1000 | AG8: =IF($D8="Unlisted Player",-1001,IFERROR(IF(VLOOKUP($D8,'All-WERTH'!$C$2:$AC$793,21,FALSE)="",-1000,VLOOKUP($D8,'All-WERTH'!$C$2:$AC$793,21,FALSE)),-1000)) -> -1000 | AH8: =IF($D8="Unlisted Player",-1001,IFERROR(IF(VLOOKUP($D8,'All-WERTH'!$C$2:$AC$793,22,FALSE)="",-1000,VLOOKUP($D8,'All-WERTH'!$C$2:$AC$793,22,FALSE)),-1000)) -> -1000 | AI8: =IF($D8="Unlisted Player",-1001,IFERROR(IF(VLOOKUP($D8,'All-WERTH'!$C$2:$AC$793,23,FALSE)="",-1000,VLOOKUP($D8,'All-WERTH'!$C$2:$AC$793,23,FALSE)),-1000)) -> -1000 | AJ8: =IF($D8="Unlisted Player",-1001,IFERROR(IF(VLOOKUP($D8,'All-WERTH'!$C$2:$AC$793,24,FALSE)="",-1000,VLOOKUP($D8,'All-WERTH'!$C$2:$AC$793,24,FALSE)),-1000)) -> -1000 | AK8: =IF($D8="Unlisted Player",-1001,IFERROR(IF(VLOOKUP($D8,'All-WERTH'!$C$2:$AC$793,25,FALSE)="",-1000,VLOOKUP($D8,'All-WERTH'!$C$2:$AC$793,25,FALSE)),-1000)) -> -1000 | AL8: =IF($D8="Unlisted Player",-1001,IFERROR(IF(VLOOKUP($D8,'All-WERTH'!$C$2:$AC$793,26,FALSE)="",-1000,VLOOKUP($D8,'All-WERTH'!$C$2:$AC$793,26,FALSE)),-1000)) -> -1000 | AM8: =IF($D8="Unlisted Player",-1001,IFERROR(IF(VLOOKUP($D8,'All-WERTH'!$C$2:$AC$793,27,FALSE)="",-1000,VLOOKUP($D8,'All-WERTH'!$C$2:$AC$793,27,FALSE)),-1000)) -> -1000 | AN8: =IF(D8="Non-Ranked Player",-1001,IFERROR(VLOOKUP($D8,'All-WERTH'!$C$2:$AF$793,30,FALSE),-1000)) -> -8.314373406
A9: Christian Yelich | B9: =IFERROR(INDEX($A$1:$A$948,SMALL(IF($A$1:$A$948<>"",ROW($A$1:$A$948)),ROW(A8))),"") -> Christian Yelich | C9: =IFERROR(IF(L9=FALSE,"",CHOOSE(MATCH(RIGHT('Your Roto Auction'!$Q$4,LEN('Your Roto Auction'!$Q$4)-8),$M$1:$AN$1,0),1+SUMPRODUCT(($L$2:$L$949=TRUE)*($M$2:$M$949>M9))+COUNTIFS($L$2:L9,L9,$M$2:M9,M9)-1,1+SUMPRODUCT(($L$2:$L$949=TRUE)*($N$2:$N$949>N9))+COUNTIFS($L$2:L9,L9,$N$2:N9,N9)-1,1+SUMPRODUCT(($L$2:$L$949=TRUE)*($O$2:$O$949<O9))+COUNTIFS($L$2:L9,L9,$O$2:O9,O9)-1,1+SUMPRODUCT(($L$2:$L$949=TRUE)*($P$2:$P$949>P9))+COUNTIFS($L$2:L9,L9,$P$2:P9,P9)-1,1+SUMPRODUCT(($L$2:$L$949=TRUE)*($Q$2:$Q$949>Q9))+COUNTIFS($L$2:L9,L9,$Q$2:Q9,Q9)-1,1+SUMPRODUCT(($L$2:$L$949=TRUE)*($R$2:$R$949>R9))+COUNTIFS($L$2:L9,L9,$R$2:R9,R9)-1,1+SUMPRODUCT(($L$2:$L$949=TRUE)*($S$2:$S$949>S9))+COUNTIFS($L$2:L9,L9,$S$2:S9,S9)-1,1+SUMPRODUCT(($L$2:$L$949=TRUE)*($T$2:$T$949>T9))+COUNTIFS($L$2:L9,L9,$T$2:T9,T9)-1,1+SUMPRODUCT(($L$2:$L$949=TRUE)*($U$2:$U$949>U9))+COUNTIFS($L$2:L9,L9,$U$2:U9,U9)-1,1+SUMPRODUCT(($L$2:$L$949=TRUE)*($V$2:$V$949>V9))+COUNTIFS($L$2:L9,L9,$V$2:V9,V9)-1,1+SUMPRODUCT(($L$2:$L$949=TRUE)*($W$2:$W$949>W9))+COUNTIFS($L$2:L9,L9,$W$2:W9,W9)-1,1+SUMPRODUCT(($L$2:$L$949=TRUE)*($X$2:$X$949>X9))+COUNTIFS($L$2:L9,L9,$X$2:X9,X9)-1,1+SUMPRODUCT(($L$2:$L$949=TRUE)*($Y$2:$Y$949>Y9))+COUNTIFS($L$2:L9,L9,$Y$2:Y9,Y9)-1,1+SUMPRODUCT(($L$2:$L$949=TRUE)*($Z$2:$Z$949>Z9))+COUNTIFS($L$2:L9,L9,$Z$2:Z9,Z9)-1,1+SUMPRODUCT(($L$2:$L$949=TRUE)*($AA$2:$AA$949>AA9))+COUNTIFS($L$2:L9,L9,$AA$2:AA9,AA9)-1,1+SUMPRODUCT(($L$2:$L$949=TRUE)*($AB$2:$AB$949>AB9))+COUNTIFS($L$2:L9,L9,$AB$2:AB9,AB9)-1,1+SUMPRODUCT(($L$2:$L$949=TRUE)*($AC$2:$AC$949>AC9))+COUNTIFS($L$2:L9,L9,$AC$2:AC9,AC9)-1,1+SUMPRODUCT(($L$2:$L$949=TRUE)*($AD$2:$AD$949>AD9))+COUNTIFS($L$2:L9,L9,$AD$2:AD9,AD9)-1,1+SUMPRODUCT(($L$2:$L$949=TRUE)*($AE$2:$AE$949>AE9))+COUNTIFS($L$2:L9,L9,$AE$2:AE9,AE9)-1,1+SUMPRODUCT(($L$2:$L$949=TRUE)*($AF$2:$AF$949>AF9))+COUNTIFS($L$2:L9,L9,$AF$2:AF9,AF9)-1,1+SUMPRODUCT(($L$2:$L$949=TRUE)*($AG$2:$AG$949>AG9))+COUNTIFS($L$2:L9,L9,$AG$2:AG9,AG9)-1,1+SUMPRODUCT(($L$2:$L$949=TRUE)*($AH$2:$AH$949>AH9))+COUNTIFS($L$2:L9,L9,$AH$2:AH9,AH9)-1,1+SUMPRODUCT(($L$2:$L$949=TRUE)*($AI$2:$AI$949>AI9))+COUNTIFS($L$2:L9,L9,$AI$2:AI9,AI9)-1,1+SUMPRODUCT(($L$2:$L$949=TRUE)*($AJ$2:$AJ$949>AJ9))+COUNTIFS($L$2:L9,L9,$AJ$2:AJ9,AJ9)-1,1+SUMPRODUCT(($L$2:$L$949=TRUE)*($AK$2:$AK$949>AK9))+COUNTIFS($L$2:L9,L9,$AK$2:AK9,AK9)-1,1+SUMPRODUCT(($L$2:$L$949=TRUE)*($AL$2:$AL$949>AL9))+COUNTIFS($L$2:L9,L9,$AL$2:AL9,AL9)-1,1+SUMPRODUCT(($L$2:$L$949=TRUE)*($AM$2:$AM$949>AM9))+COUNTIFS($L$2:L9,L9,$AM$2:AM9,AM9)-1,1+SUMPRODUCT(($L$2:$L$949=TRUE)*($AN$2:$AN$949>AN9))+COUNTIFS($L$2:L9,L9,$AN$2:AN9,AN9)-1)),"") -> 709 | D9: Dario Agrazal | E9: =IFERROR(INDEX('Auction Log'!$C$4:$C$806,MATCH(D9,'Auction Log'!$B$4:$B$806,0)),"") ->  | F9: =IFERROR(INDEX('Auction-Rank'!$C$2:$C$948,MATCH(D9,'Auction-Rank'!$A$2:$A$948,0)),"") -> RP | G9: =IFERROR(IF(F9=I9,"",IF(INDEX('Your Roto Auction'!$C$11:$C$634,MATCH(D9,'Your Roto Auction'!$D$11:$D$634,0))="",IF(I9<>"",I9,""),INDEX('Your Roto Auction'!$C$11:$C$634,MATCH(D9,'Your Roto Auction'!$D$11:$D$634,0)))),"") ->  | H9: RP | J9: =INDEX('Auction-Rank'!$V$2:$V$948,MATCH(D9,'Auction-Rank'!$A$2:$A$948,0)) -> TRUE | K9: FALSE | L9: =IF(J9=FALSE,FALSE,IF(AND('Your Roto Auction'!$Q$6="Hide Drafted Players",K9=TRUE),FALSE,IF(OR('Your Roto Auction'!$Q$5="Show All Positions",AND('Your Roto Auction'!$Q$5="Only Show: C",H9="C"),AND('Your Roto Auction'!$Q$5="Only Show: 1B",H9="1B"),AND('Your Roto Auction'!$Q$5="Only Show: 2B",H9="2B"),AND('Your Roto Auction'!$Q$5="Only Show: 3B",H9="3B"),AND('Your Roto Auction'!$Q$5="Only Show: SS",H9="SS"),AND('Your Roto Auction'!$Q$5="Only Show: OF",H9="OF"),AND('Your Roto Auction'!$Q$5="Only Show: SP",H9="SP"),AND('Your Roto Auction'!$Q$5="Only Show: RP",H9="RP"),AND('Your Roto Auction'!$Q$5="Only Show: CI",OR(H9={"1B","3B"})),AND('Your Roto Auction'!$Q$5="Only Show: MI",OR(H9={"2B","SS"})),AND('Your Roto Auction'!$Q$5="Only Show: IF",OR(H9={"C","1B","2B","3B","SS"})),AND('Your Roto Auction'!$Q$5="Only Show: DH",OR(H9={"C","1B","2B","3B","SS","OF","DH"})),AND('Your Roto Auction'!$Q$5="Only Show: P",OR(H9={"SP","RP"})),AND('Your Roto Auction'!$Q$5="Only Show: LF",ISERROR(SEARCH("LF",VLOOKUP($D9,'Auction-Rank'!$A$2:$D$948,4,FALSE)))=FALSE),AND('Your Roto Auction'!$Q$5="Only Show: RF",ISERROR(SEARCH("RF",VLOOKUP($D9,'Auction-Rank'!$A$2:$D$948,4,FALSE)))=FALSE),AND('Your Roto Auction'!$Q$5="Only Show: CF",ISERROR(SEARCH("CF",VLOOKUP($D9,'Auction-Rank'!$A$2:$D$948,4,FALSE)))=FALSE)),TRUE,FALSE))) -> TRUE | M9: =IFERROR(IF(VLOOKUP($D9,'Inflation-Tracking'!$A$5:$AD$862,22,FALSE)="",-9999,VLOOKUP($D9,'Inflation-Tracking'!$A$5:$AD$862,22,FALSE)),-9999) -> -9999 | N9: =IF(D9="Non-Ranked Player",-1001,IFERROR(VLOOKUP($D9,'All-WERTH'!$C$2:$E$793,3,FALSE),-1000)) -> -1000 | O9: =IF(D9="Non-Ranked Player",10000,IFERROR(IF(VLOOKUP(D9,'Auction-Rank'!$A$2:$X$948,24,FALSE)="",9999,VLOOKUP(D9,'Auction-Rank'!$A$2:$X$948,24,FALSE)),9999)) -> 9999 | P9: =IF($D9="Unlisted Player",-1001,IFERROR(IF(VLOOKUP($D9,'All-WERTH'!$C$2:$AC$793,4,FALSE)="",-1000,VLOOKUP($D9,'All-WERTH'!$C$2:$AC$793,4,FALSE)),-1000)) -> -1000 | Q9: =IF($D9="Unlisted Player",-1001,IFERROR(IF(VLOOKUP($D9,'All-WERTH'!$C$2:$AC$793,5,FALSE)="",-1000,VLOOKUP($D9,'All-WERTH'!$C$2:$AC$793,5,FALSE)),-1000)) -> -1000 | R9: =IF($D9="Unlisted Player",-1001,IFERROR(IF(VLOOKUP($D9,'All-WERTH'!$C$2:$AC$793,6,FALSE)="",-1000,VLOOKUP($D9,'All-WERTH'!$C$2:$AC$793,6,FALSE)),-1000)) -> -1000 | S9: =IF($D9="Unlisted Player",-1001,IFERROR(IF(VLOOKUP($D9,'All-WERTH'!$C$2:$AC$793,7,FALSE)="",-1000,VLOOKUP($D9,'All-WERTH'!$C$2:$AC$793,7,FALSE)),-1000)) -> -1000 | T9: =IF($D9="Unlisted Player",-1001,IFERROR(IF(VLOOKUP($D9,'All-WERTH'!$C$2:$AC$793,8,FALSE)="",-1000,VLOOKUP($D9,'All-WERTH'!$C$2:$AC$793,8,FALSE)),-1000)) -> -1000 | U9: =IF($D9="Unlisted Player",-1001,IFERROR(IF(VLOOKUP($D9,'All-WERTH'!$C$2:$AC$793,9,FALSE)="",-1000,VLOOKUP($D9,'All-WERTH'!$C$2:$AC$793,9,FALSE)),-1000)) -> -1000 | V9: =IF($D9="Unlisted Player",-1001,IFERROR(IF(VLOOKUP($D9,'All-WERTH'!$C$2:$AC$793,10,FALSE)="",-1000,VLOOKUP($D9,'All-WERTH'!$C$2:$AC$793,10,FALSE)),-1000)) -> -1000 | W9: =IF($D9="Unlisted Player",-1001,IFERROR(IF(VLOOKUP($D9,'All-WERTH'!$C$2:$AC$793,11,FALSE)="",-1000,VLOOKUP($D9,'All-WERTH'!$C$2:$AC$793,11,FALSE)),-1000)) -> -1000 | X9: =IF($D9="Unlisted Player",-1001,IFERROR(IF(VLOOKUP($D9,'All-WERTH'!$C$2:$AC$793,12,FALSE)="",-1000,VLOOKUP($D9,'All-WERTH'!$C$2:$AC$793,12,FALSE)),-1000)) -> -1000 | Y9: =IF($D9="Unlisted Player",-1001,IFERROR(IF(VLOOKUP($D9,'All-WERTH'!$C$2:$AC$793,13,FALSE)="",-1000,VLOOKUP($D9,'All-WERTH'!$C$2:$AC$793,13,FALSE)),-1000)) -> -1000 | Z9: =IF($D9="Unlisted Player",-1001,IFERROR(IF(VLOOKUP($D9,'All-WERTH'!$C$2:$AC$793,14,FALSE)="",-1000,VLOOKUP($D9,'All-WERTH'!$C$2:$AC$793,14,FALSE)),-1000)) -> -1000 | AA9: =IF($D9="Unlisted Player",-1001,IFERROR(IF(VLOOKUP($D9,'All-WERTH'!$C$2:$AC$793,15,FALSE)="",-1000,VLOOKUP($D9,'All-WERTH'!$C$2:$AC$793,15,FALSE)),-1000)) -> -1000 | AB9: =IF($D9="Unlisted Player",-1001,IFERROR(IF(VLOOKUP($D9,'All-WERTH'!$C$2:$AC$793,16,FALSE)="",-1000,VLOOKUP($D9,'All-WERTH'!$C$2:$AC$793,16,FALSE)),-1000)) -> -1000 | AC9: =IF($D9="Unlisted Player",-1001,IFERROR(IF(VLOOKUP($D9,'All-WERTH'!$C$2:$AC$793,17,FALSE)="",-1000,VLOOKUP($D9,'All-WERTH'!$C$2:$AC$793,17,FALSE)),-1000)) -> -1000 | AD9: =IF($D9="Unlisted Player",-1001,IFERROR(IF(VLOOKUP($D9,'All-WERTH'!$C$2:$AC$793,18,FALSE)="",-1000,VLOOKUP($D9,'All-WERTH'!$C$2:$AC$793,18,FALSE)),-1000)) -> -1000 | AE9: =IF($D9="Unlisted Player",-1001,IFERROR(IF(VLOOKUP($D9,'All-WERTH'!$C$2:$AC$793,19,FALSE)="",-1000,VLOOKUP($D9,'All-WERTH'!$C$2:$AC$793,19,FALSE)),-1000)) -> -1000 | AF9: =IF($D9="Unlisted Player",-1001,IFERROR(IF(VLOOKUP($D9,'All-WERTH'!$C$2:$AC$793,20,FALSE)="",-1000,VLOOKUP($D9,'All-WERTH'!$C$2:$AC$793,20,FALSE)),-1000)) -> -1000 | AG9: =IF($D9="Unlisted Player",-1001,IFERROR(IF(VLOOKUP($D9,'All-WERTH'!$C$2:$AC$793,21,FALSE)="",-1000,VLOOKUP($D9,'All-WERTH'!$C$2:$AC$793,21,FALSE)),-1000)) -> -1000 | AH9: =IF($D9="Unlisted Player",-1001,IFERROR(IF(VLOOKUP($D9,'All-WERTH'!$C$2:$AC$793,22,FALSE)="",-1000,VLOOKUP($D9,'All-WERTH'!$C$2:$AC$793,22,FALSE)),-1000)) -> -1000 | AI9: =IF($D9="Unlisted Player",-1001,IFERROR(IF(VLOOKUP($D9,'All-WERTH'!$C$2:$AC$793,23,FALSE)="",-1000,VLOOKUP($D9,'All-WERTH'!$C$2:$AC$793,23,FALSE)),-1000)) -> -1000 | AJ9: =IF($D9="Unlisted Player",-1001,IFERROR(IF(VLOOKUP($D9,'All-WERTH'!$C$2:$AC$793,24,FALSE)="",-1000,VLOOKUP($D9,'All-WERTH'!$C$2:$AC$793,24,FALSE)),-1000)) -> -1000 | AK9: =IF($D9="Unlisted Player",-1001,IFERROR(IF(VLOOKUP($D9,'All-WERTH'!$C$2:$AC$793,25,FALSE)="",-1000,VLOOKUP($D9,'All-WERTH'!$C$2:$AC$793,25,FALSE)),-1000)) -> -1000 | AL9: =IF($D9="Unlisted Player",-1001,IFERROR(IF(VLOOKUP($D9,'All-WERTH'!$C$2:$AC$793,26,FALSE)="",-1000,VLOOKUP($D9,'All-WERTH'!$C$2:$AC$793,26,FALSE)),-1000)) -> -1000 | AM9: =IF($D9="Unlisted Player",-1001,IFERROR(IF(VLOOKUP($D9,'All-WERTH'!$C$2:$AC$793,27,FALSE)="",-1000,VLOOKUP($D9,'All-WERTH'!$C$2:$AC$793,27,FALSE)),-1000)) -> -1000 | AN9: =IF(D9="Non-Ranked Player",-1001,IFERROR(VLOOKUP($D9,'All-WERTH'!$C$2:$AF$793,30,FALSE),-1000)) -> -996.9749754
A10: Juan Soto | B10: =IFERROR(INDEX($A$1:$A$948,SMALL(IF($A$1:$A$948<>"",ROW($A$1:$A$948)),ROW(A9))),"") -> Juan Soto | C10: =IFERROR(IF(L10=FALSE,"",CHOOSE(MATCH(RIGHT('Your Roto Auction'!$Q$4,LEN('Your Roto Auction'!$Q$4)-8),$M$1:$AN$1,0),1+SUMPRODUCT(($L$2:$L$949=TRUE)*($M$2:$M$949>M10))+COUNTIFS($L$2:L10,L10,$M$2:M10,M10)-1,1+SUMPRODUCT(($L$2:$L$949=TRUE)*($N$2:$N$949>N10))+COUNTIFS($L$2:L10,L10,$N$2:N10,N10)-1,1+SUMPRODUCT(($L$2:$L$949=TRUE)*($O$2:$O$949<O10))+COUNTIFS($L$2:L10,L10,$O$2:O10,O10)-1,1+SUMPRODUCT(($L$2:$L$949=TRUE)*($P$2:$P$949>P10))+COUNTIFS($L$2:L10,L10,$P$2:P10,P10)-1,1+SUMPRODUCT(($L$2:$L$949=TRUE)*($Q$2:$Q$949>Q10))+COUNTIFS($L$2:L10,L10,$Q$2:Q10,Q10)-1,1+SUMPRODUCT(($L$2:$L$949=TRUE)*($R$2:$R$949>R10))+COUNTIFS($L$2:L10,L10,$R$2:R10,R10)-1,1+SUMPRODUCT(($L$2:$L$949=TRUE)*($S$2:$S$949>S10))+COUNTIFS($L$2:L10,L10,$S$2:S10,S10)-1,1+SUMPRODUCT(($L$2:$L$949=TRUE)*($T$2:$T$949>T10))+COUNTIFS($L$2:L10,L10,$T$2:T10,T10)-1,1+SUMPRODUCT(($L$2:$L$949=TRUE)*($U$2:$U$949>U10))+COUNTIFS($L$2:L10,L10,$U$2:U10,U10)-1,1+SUMPRODUCT(($L$2:$L$949=TRUE)*($V$2:$V$949>V10))+COUNTIFS($L$2:L10,L10,$V$2:V10,V10)-1,1+SUMPRODUCT(($L$2:$L$949=TRUE)*($W$2:$W$949>W10))+COUNTIFS($L$2:L10,L10,$W$2:W10,W10)-1,1+SUMPRODUCT(($L$2:$L$949=TRUE)*($X$2:$X$949>X10))+COUNTIFS($L$2:L10,L10,$X$2:X10,X10)-1,1+SUMPRODUCT(($L$2:$L$949=TRUE)*($Y$2:$Y$949>Y10))+COUNTIFS($L$2:L10,L10,$Y$2:Y10,Y10)-1,1+SUMPRODUCT(($L$2:$L$949=TRUE)*($Z$2:$Z$949>Z10))+COUNTIFS($L$2:L10,L10,$Z$2:Z10,Z10)-1,1+SUMPRODUCT(($L$2:$L$949=TRUE)*($AA$2:$AA$949>AA10))+COUNTIFS($L$2:L10,L10,$AA$2:AA10,AA10)-1,1+SUMPRODUCT(($L$2:$L$949=TRUE)*($AB$2:$AB$949>AB10))+COUNTIFS($L$2:L10,L10,$AB$2:AB10,AB10)-1,1+SUMPRODUCT(($L$2:$L$949=TRUE)*($AC$2:$AC$949>AC10))+COUNTIFS($L$2:L10,L10,$AC$2:AC10,AC10)-1,1+SUMPRODUCT(($L$2:$L$949=TRUE)*($AD$2:$AD$949>AD10))+COUNTIFS($L$2:L10,L10,$AD$2:AD10,AD10)-1,1+SUMPRODUCT(($L$2:$L$949=TRUE)*($AE$2:$AE$949>AE10))+COUNTIFS($L$2:L10,L10,$AE$2:AE10,AE10)-1,1+SUMPRODUCT(($L$2:$L$949=TRUE)*($AF$2:$AF$949>AF10))+COUNTIFS($L$2:L10,L10,$AF$2:AF10,AF10)-1,1+SUMPRODUCT(($L$2:$L$949=TRUE)*($AG$2:$AG$949>AG10))+COUNTIFS($L$2:L10,L10,$AG$2:AG10,AG10)-1,1+SUMPRODUCT(($L$2:$L$949=TRUE)*($AH$2:$AH$949>AH10))+COUNTIFS($L$2:L10,L10,$AH$2:AH10,AH10)-1,1+SUMPRODUCT(($L$2:$L$949=TRUE)*($AI$2:$AI$949>AI10))+COUNTIFS($L$2:L10,L10,$AI$2:AI10,AI10)-1,1+SUMPRODUCT(($L$2:$L$949=TRUE)*($AJ$2:$AJ$949>AJ10))+COUNTIFS($L$2:L10,L10,$AJ$2:AJ10,AJ10)-1,1+SUMPRODUCT(($L$2:$L$949=TRUE)*($AK$2:$AK$949>AK10))+COUNTIFS($L$2:L10,L10,$AK$2:AK10,AK10)-1,1+SUMPRODUCT(($L$2:$L$949=TRUE)*($AL$2:$AL$949>AL10))+COUNTIFS($L$2:L10,L10,$AL$2:AL10,AL10)-1,1+SUMPRODUCT(($L$2:$L$949=TRUE)*($AM$2:$AM$949>AM10))+COUNTIFS($L$2:L10,L10,$AM$2:AM10,AM10)-1,1+SUMPRODUCT(($L$2:$L$949=TRUE)*($AN$2:$AN$949>AN10))+COUNTIFS($L$2:L10,L10,$AN$2:AN10,AN10)-1)),"") -> 503 | D10: Jesus Aguilar | E10: =IFERROR(INDEX('Auction Log'!$C$4:$C$806,MATCH(D10,'Auction Log'!$B$4:$B$806,0)),"") ->  | F10: =IFERROR(INDEX('Auction-Rank'!$C$2:$C$948,MATCH(D10,'Auction-Rank'!$A$2:$A$948,0)),"") -> 1B | G10: =IFERROR(IF(F10=I10,"",IF(INDEX('Your Roto Auction'!$C$11:$C$634,MATCH(D10,'Your Roto Auction'!$D$11:$D$634,0))="",IF(I10<>"",I10,""),INDEX('Your Roto Auction'!$C$11:$C$634,MATCH(D10,'Your Roto Auction'!$D$11:$D$634,0)))),"") ->  | H10: 1B | J10: =INDEX('Auction-Rank'!$V$2:$V$948,MATCH(D10,'Auction-Rank'!$A$2:$A$948,0)) -> TRUE | K10: FALSE | L10: =IF(J10=FALSE,FALSE,IF(AND('Your Roto Auction'!$Q$6="Hide Drafted Players",K10=TRUE),FALSE,IF(OR('Your Roto Auction'!$Q$5="Show All Positions",AND('Your Roto Auction'!$Q$5="Only Show: C",H10="C"),AND('Your Roto Auction'!$Q$5="Only Show: 1B",H10="1B"),AND('Your Roto Auction'!$Q$5="Only Show: 2B",H10="2B"),AND('Your Roto Auction'!$Q$5="Only Show: 3B",H10="3B"),AND('Your Roto Auction'!$Q$5="Only Show: SS",H10="SS"),AND('Your Roto Auction'!$Q$5="Only Show: OF",H10="OF"),AND('Your Roto Auction'!$Q$5="Only Show: SP",H10="SP"),AND('Your Roto Auction'!$Q$5="Only Show: RP",H10="RP"),AND('Your Roto Auction'!$Q$5="Only Show: CI",OR(H10={"1B","3B"})),AND('Your Roto Auction'!$Q$5="Only Show: MI",OR(H10={"2B","SS"})),AND('Your Roto Auction'!$Q$5="Only Show: IF",OR(H10={"C","1B","2B","3B","SS"})),AND('Your Roto Auction'!$Q$5="Only Show: DH",OR(H10={"C","1B","2B","3B","SS","OF","DH"})),AND('Your Roto Auction'!$Q$5="Only Show: P",OR(H10={"SP","RP"})),AND('Your Roto Auction'!$Q$5="Only Show: LF",ISERROR(SEARCH("LF",VLOOKUP($D10,'Auction-Rank'!$A$2:$D$948,4,FALSE)))=FALSE),AND('Your Roto Auction'!$Q$5="Only Show: RF",ISERROR(SEARCH("RF",VLOOKUP($D10,'Auction-Rank'!$A$2:$D$948,4,FALSE)))=FALSE),AND('Your Roto Auction'!$Q$5="Only Show: CF",ISERROR(SEARCH("CF",VLOOKUP($D10,'Auction-Rank'!$A$2:$D$948,4,FALSE)))=FALSE)),TRUE,FALSE))) -> TRUE | M10: =IFERROR(IF(VLOOKUP($D10,'Inflation-Tracking'!$A$5:$AD$862,22,FALSE)="",-9999,VLOOKUP($D10,'Inflation-Tracking'!$A$5:$AD$862,22,FALSE)),-9999) -> -1.218572864 | N10: =IF(D10="Non-Ranked Player",-1001,IFERROR(VLOOKUP($D10,'All-WERTH'!$C$2:$E$793,3,FALSE),-1000)) -> -7.24094842 | O10: =IF(D10="Non-Ranked Player",10000,IFERROR(IF(VLOOKUP(D10,'Auction-Rank'!$A$2:$X$948,24,FALSE)="",9999,VLOOKUP(D10,'Auction-Rank'!$A$2:$X$948,24,FALSE)),9999)) -> 322 | P10: =IF($D10="Unlisted Player",-1001,IFERROR(IF(VLOOKUP($D10,'All-WERTH'!$C$2:$AC$793,4,FALSE)="",-1000,VLOOKUP($D10,'All-WERTH'!$C$2:$AC$793,4,FALSE)),-1000)) -> -1.371028373 | Q10: =IF($D10="Unlisted Player",-1001,IFERROR(IF(VLOOKUP($D10,'All-WERTH'!$C$2:$AC$793,5,FALSE)="",-1000,VLOOKUP($D10,'All-WERTH'!$C$2:$AC$793,5,FALSE)),-1000)) -> -0.9941336601 | R10: =IF($D10="Unlisted Player",-1001,IFERROR(IF(VLOOKUP($D10,'All-WERTH'!$C$2:$AC$793,6,FALSE)="",-1000,VLOOKUP($D10,'All-WERTH'!$C$2:$AC$793,6,FALSE)),-1000)) -> -2.236215852 | S10: =IF($D10="Unlisted Player",-1001,IFERROR(IF(VLOOKUP($D10,'All-WERTH'!$C$2:$AC$793,7,FALSE)="",-1000,VLOOKUP($D10,'All-WERTH'!$C$2:$AC$793,7,FALSE)),-1000)) -> -1.601227918 | T10: =IF($D10="Unlisted Player",-1001,IFERROR(IF(VLOOKUP($D10,'All-WERTH'!$C$2:$AC$793,8,FALSE)="",-1000,VLOOKUP($D10,'All-WERTH'!$C$2:$AC$793,8,FALSE)),-1000)) -> -1.038342617 | U10: =IF($D10="Unlisted Player",-1001,IFERROR(IF(VLOOKUP($D10,'All-WERTH'!$C$2:$AC$793,9,FALSE)="",-1000,VLOOKUP($D10,'All-WERTH'!$C$2:$AC$793,9,FALSE)),-1000)) -> -1000 | V10: =IF($D10="Unlisted Player",-1001,IFERROR(IF(VLOOKUP($D10,'All-WERTH'!$C$2:$AC$793,10,FALSE)="",-1000,VLOOKUP($D10,'All-WERTH'!$C$2:$AC$793,10,FALSE)),-1000)) -> -1000 | W10: =IF($D10="Unlisted Player",-1001,IFERROR(IF(VLOOKUP($D10,'All-WERTH'!$C$2:$AC$793,11,FALSE)="",-1000,VLOOKUP($D10,'All-WERTH'!$C$2:$AC$793,11,FALSE)),-1000)) -> -1000 | X10: =IF($D10="Unlisted Player",-1001,IFERROR(IF(VLOOKUP($D10,'All-WERTH'!$C$2:$AC$793,12,FALSE)="",-1000,VLOOKUP($D10,'All-WERTH'!$C$2:$AC$793,12,FALSE)),-1000)) -> -1000 | Y10: =IF($D10="Unlisted Player",-1001,IFERROR(IF(VLOOKUP($D10,'All-WERTH'!$C$2:$AC$793,13,FALSE)="",-1000,VLOOKUP($D10,'All-WERTH'!$C$2:$AC$793,13,FALSE)),-1000)) -> -1000 | Z10: =IF($D10="Unlisted Player",-1001,IFERROR(IF(VLOOKUP($D10,'All-WERTH'!$C$2:$AC$793,14,FALSE)="",-1000,VLOOKUP($D10,'All-WERTH'!$C$2:$AC$793,14,FALSE)),-1000)) -> -1000 | AA10: =IF($D10="Unlisted Player",-1001,IFERROR(IF(VLOOKUP($D10,'All-WERTH'!$C$2:$AC$793,15,FALSE)="",-1000,VLOOKUP($D10,'All-WERTH'!$C$2:$AC$793,15,FALSE)),-1000)) -> -1000 | AB10: =IF($D10="Unlisted Player",-1001,IFERROR(IF(VLOOKUP($D10,'All-WERTH'!$C$2:$AC$793,16,FALSE)="",-1000,VLOOKUP($D10,'All-WERTH'!$C$2:$AC$793,16,FALSE)),-1000)) -> -1000 | AC10: =IF($D10="Unlisted Player",-1001,IFERROR(IF(VLOOKUP($D10,'All-WERTH'!$C$2:$AC$793,17,FALSE)="",-1000,VLOOKUP($D10,'All-WERTH'!$C$2:$AC$793,17,FALSE)),-1000)) -> -1000 | AD10: =IF($D10="Unlisted Player",-1001,IFERROR(IF(VLOOKUP($D10,'All-WERTH'!$C$2:$AC$793,18,FALSE)="",-1000,VLOOKUP($D10,'All-WERTH'!$C$2:$AC$793,18,FALSE)),-1000)) -> -1000 | AE10: =IF($D10="Unlisted Player",-1001,IFERROR(IF(VLOOKUP($D10,'All-WERTH'!$C$2:$AC$793,19,FALSE)="",-1000,VLOOKUP($D10,'All-WERTH'!$C$2:$AC$793,19,FALSE)),-1000)) -> -1000 | AF10: =IF($D10="Unlisted Player",-1001,IFERROR(IF(VLOOKUP($D10,'All-WERTH'!$C$2:$AC$793,20,FALSE)="",-1000,VLOOKUP($D10,'All-WERTH'!$C$2:$AC$793,20,FALSE)),-1000)) -> -1000 | AG10: =IF($D10="Unlisted Player",-1001,IFERROR(IF(VLOOKUP($D10,'All-WERTH'!$C$2:$AC$793,21,FALSE)="",-1000,VLOOKUP($D10,'All-WERTH'!$C$2:$AC$793,21,FALSE)),-1000)) -> -1000 | AH10: =IF($D10="Unlisted Player",-1001,IFERROR(IF(VLOOKUP($D10,'All-WERTH'!$C$2:$AC$793,22,FALSE)="",-1000,VLOOKUP($D10,'All-WERTH'!$C$2:$AC$793,22,FALSE)),-1000)) -> -1000 | AI10: =IF($D10="Unlisted Player",-1001,IFERROR(IF(VLOOKUP($D10,'All-WERTH'!$C$2:$AC$793,23,FALSE)="",-1000,VLOOKUP($D10,'All-WERTH'!$C$2:$AC$793,23,FALSE)),-1000)) -> -1000 | AJ10: =IF($D10="Unlisted Player",-1001,IFERROR(IF(VLOOKUP($D10,'All-WERTH'!$C$2:$AC$793,24,FALSE)="",-1000,VLOOKUP($D10,'All-WERTH'!$C$2:$AC$793,24,FALSE)),-1000)) -> -1000 | AK10: =IF($D10="Unlisted Player",-1001,IFERROR(IF(VLOOKUP($D10,'All-WERTH'!$C$2:$AC$793,25,FALSE)="",-1000,VLOOKUP($D10,'All-WERTH'!$C$2:$AC$793,25,FALSE)),-1000)) -> -1000 | AL10: =IF($D10="Unlisted Player",-1001,IFERROR(IF(VLOOKUP($D10,'All-WERTH'!$C$2:$AC$793,26,FALSE)="",-1000,VLOOKUP($D10,'All-WERTH'!$C$2:$AC$793,26,FALSE)),-1000)) -> -1000 | AM10: =IF($D10="Unlisted Player",-1001,IFERROR(IF(VLOOKUP($D10,'All-WERTH'!$C$2:$AC$793,27,FALSE)="",-1000,VLOOKUP($D10,'All-WERTH'!$C$2:$AC$793,27,FALSE)),-1000)) -> -1000 | AN10: =IF(D10="Non-Ranked Player",-1001,IFERROR(VLOOKUP($D10,'All-WERTH'!$C$2:$AF$793,30,FALSE),-1000)) -> -4.16049343
A11: Nolan Arenado | B11: =IFERROR(INDEX($A$1:$A$948,SMALL(IF($A$1:$A$948<>"",ROW($A$1:$A$948)),ROW(A10))),"") -> Nolan Arenado | C11: =IFERROR(IF(L11=FALSE,"",CHOOSE(MATCH(RIGHT('Your Roto Auction'!$Q$4,LEN('Your Roto Auction'!$Q$4)-8),$M$1:$AN$1,0),1+SUMPRODUCT(($L$2:$L$949=TRUE)*($M$2:$M$949>M11))+COUNTIFS($L$2:L11,L11,$M$2:M11,M11)-1,1+SUMPRODUCT(($L$2:$L$949=TRUE)*($N$2:$N$949>N11))+COUNTIFS($L$2:L11,L11,$N$2:N11,N11)-1,1+SUMPRODUCT(($L$2:$L$949=TRUE)*($O$2:$O$949<O11))+COUNTIFS($L$2:L11,L11,$O$2:O11,O11)-1,1+SUMPRODUCT(($L$2:$L$949=TRUE)*($P$2:$P$949>P11))+COUNTIFS($L$2:L11,L11,$P$2:P11,P11)-1,1+SUMPRODUCT(($L$2:$L$949=TRUE)*($Q$2:$Q$949>Q11))+COUNTIFS($L$2:L11,L11,$Q$2:Q11,Q11)-1,1+SUMPRODUCT(($L$2:$L$949=TRUE)*($R$2:$R$949>R11))+COUNTIFS($L$2:L11,L11,$R$2:R11,R11)-1,1+SUMPRODUCT(($L$2:$L$949=TRUE)*($S$2:$S$949>S11))+COUNTIFS($L$2:L11,L11,$S$2:S11,S11)-1,1+SUMPRODUCT(($L$2:$L$949=TRUE)*($T$2:$T$949>T11))+COUNTIFS($L$2:L11,L11,$T$2:T11,T11)-1,1+SUMPRODUCT(($L$2:$L$949=TRUE)*($U$2:$U$949>U11))+COUNTIFS($L$2:L11,L11,$U$2:U11,U11)-1,1+SUMPRODUCT(($L$2:$L$949=TRUE)*($V$2:$V$949>V11))+COUNTIFS($L$2:L11,L11,$V$2:V11,V11)-1,1+SUMPRODUCT(($L$2:$L$949=TRUE)*($W$2:$W$949>W11))+COUNTIFS($L$2:L11,L11,$W$2:W11,W11)-1,1+SUMPRODUCT(($L$2:$L$949=TRUE)*($X$2:$X$949>X11))+COUNTIFS($L$2:L11,L11,$X$2:X11,X11)-1,1+SUMPRODUCT(($L$2:$L$949=TRUE)*($Y$2:$Y$949>Y11))+COUNTIFS($L$2:L11,L11,$Y$2:Y11,Y11)-1,1+SUMPRODUCT(($L$2:$L$949=TRUE)*($Z$2:$Z$949>Z11))+COUNTIFS($L$2:L11,L11,$Z$2:Z11,Z11)-1,1+SUMPRODUCT(($L$2:$L$949=TRUE)*($AA$2:$AA$949>AA11))+COUNTIFS($L$2:L11,L11,$AA$2:AA11,AA11)-1,1+SUMPRODUCT(($L$2:$L$949=TRUE)*($AB$2:$AB$949>AB11))+COUNTIFS($L$2:L11,L11,$AB$2:AB11,AB11)-1,1+SUMPRODUCT(($L$2:$L$949=TRUE)*($AC$2:$AC$949>AC11))+COUNTIFS($L$2:L11,L11,$AC$2:AC11,AC11)-1,1+SUMPRODUCT(($L$2:$L$949=TRUE)*($AD$2:$AD$949>AD11))+COUNTIFS($L$2:L11,L11,$AD$2:AD11,AD11)-1,1+SUMPRODUCT(($L$2:$L$949=TRUE)*($AE$2:$AE$949>AE11))+COUNTIFS($L$2:L11,L11,$AE$2:AE11,AE11)-1,1+SUMPRODUCT(($L$2:$L$949=TRUE)*($AF$2:$AF$949>AF11))+COUNTIFS($L$2:L11,L11,$AF$2:AF11,AF11)-1,1+SUMPRODUCT(($L$2:$L$949=TRUE)*($AG$2:$AG$949>AG11))+COUNTIFS($L$2:L11,L11,$AG$2:AG11,AG11)-1,1+SUMPRODUCT(($L$2:$L$949=TRUE)*($AH$2:$AH$949>AH11))+COUNTIFS($L$2:L11,L11,$AH$2:AH11,AH11)-1,1+SUMPRODUCT(($L$2:$L$949=TRUE)*($AI$2:$AI$949>AI11))+COUNTIFS($L$2:L11,L11,$AI$2:AI11,AI11)-1,1+SUMPRODUCT(($L$2:$L$949=TRUE)*($AJ$2:$AJ$949>AJ11))+COUNTIFS($L$2:L11,L11,$AJ$2:AJ11,AJ11)-1,1+SUMPRODUCT(($L$2:$L$949=TRUE)*($AK$2:$AK$949>AK11))+COUNTIFS($L$2:L11,L11,$AK$2:AK11,AK11)-1,1+SUMPRODUCT(($L$2:$L$949=TRUE)*($AL$2:$AL$949>AL11))+COUNTIFS($L$2:L11,L11,$AL$2:AL11,AL11)-1,1+SUMPRODUCT(($L$2:$L$949=TRUE)*($AM$2:$AM$949>AM11))+COUNTIFS($L$2:L11,L11,$AM$2:AM11,AM11)-1,1+SUMPRODUCT(($L$2:$L$949=TRUE)*($AN$2:$AN$949>AN11))+COUNTIFS($L$2:L11,L11,$AN$2:AN11,AN11)-1)),"") -> 274 | D11: Nick Ahmed | E11: =IFERROR(INDEX('Auction Log'!$C$4:$C$806,MATCH(D11,'Auction Log'!$B$4:$B$806,0)),"") ->  | F11: =IFERROR(INDEX('Auction-Rank'!$C$2:$C$948,MATCH(D11,'Auction-Rank'!$A$2:$A$948,0)),"") -> SS | G11: =IFERROR(IF(F11=I11,"",IF(INDEX('Your Roto Auction'!$C$11:$C$634,MATCH(D11,'Your Roto Auction'!$D$11:$D$634,0))="",IF(I11<>"",I11,""),INDEX('Your Roto Auction'!$C$11:$C$634,MATCH(D11,'Your Roto Auction'!$D$11:$D$634,0)))),"") ->  | H11: SS | J11: =INDEX('Auction-Rank'!$V$2:$V$948,MATCH(D11,'Auction-Rank'!$A$2:$A$948,0)) -> TRUE | K11: FALSE | L11: =IF(J11=FALSE,FALSE,IF(AND('Your Roto Auction'!$Q$6="Hide Drafted Players",K11=TRUE),FALSE,IF(OR('Your Roto Auction'!$Q$5="Show All Positions",AND('Your Roto Auction'!$Q$5="Only Show: C",H11="C"),AND('Your Roto Auction'!$Q$5="Only Show: 1B",H11="1B"),AND('Your Roto Auction'!$Q$5="Only Show: 2B",H11="2B"),AND('Your Roto Auction'!$Q$5="Only Show: 3B",H11="3B"),AND('Your Roto Auction'!$Q$5="Only Show: SS",H11="SS"),AND('Your Roto Auction'!$Q$5="Only Show: OF",H11="OF"),AND('Your Roto Auction'!$Q$5="Only Show: SP",H11="SP"),AND('Your Roto Auction'!$Q$5="Only Show: RP",H11="RP"),AND('Your Roto Auction'!$Q$5="Only Show: CI",OR(H11={"1B","3B"})),AND('Your Roto Auction'!$Q$5="Only Show: MI",OR(H11={"2B","SS"})),AND('Your Roto Auction'!$Q$5="Only Show: IF",OR(H11={"C","1B","2B","3B","SS"})),AND('Your Roto Auction'!$Q$5="Only Show: DH",OR(H11={"C","1B","2B","3B","SS","OF","DH"})),AND('Your Roto Auction'!$Q$5="Only Show: P",OR(H11={"SP","RP"})),AND('Your Roto Auction'!$Q$5="Only Show: LF",ISERROR(SEARCH("LF",VLOOKUP($D11,'Auction-Rank'!$A$2:$D$948,4,FALSE)))=FALSE),AND('Your Roto Auction'!$Q$5="Only Show: RF",ISERROR(SEARCH("RF",VLOOKUP($D11,'Auction-Rank'!$A$2:$D$948,4,FALSE)))=FALSE),AND('Your Roto Auction'!$Q$5="Only Show: CF",ISERROR(SEARCH("CF",VLOOKUP($D11,'Auction-Rank'!$A$2:$D$948,4,FALSE)))=FALSE)),TRUE,FALSE))) -> TRUE | M11: =IFERROR(IF(VLOOKUP($D11,'Inflation-Tracking'!$A$5:$AD$862,22,FALSE)="",-9999,VLOOKUP($D11,'Inflation-Tracking'!$A$5:$AD$862,22,FALSE)),-9999) -> 0.9922660238 | N11: =IF(D11="Non-Ranked Player",-1001,IFERROR(VLOOKUP($D11,'All-WERTH'!$C$2:$E$793,3,FALSE),-1000)) -> -4.350187036 | O11: =IF(D11="Non-Ranked Player",10000,IFERROR(IF(VLOOKUP(D11,'Auction-Rank'!$A$2:$X$948,24,FALSE)="",9999,VLOOKUP(D11,'Auction-Rank'!$A$2:$X$948,24,FALSE)),9999)) -> 324 | P11: =IF($D11="Unlisted Player",-1001,IFERROR(IF(VLOOKUP($D11,'All-WERTH'!$C$2:$AC$793,4,FALSE)="",-1000,VLOOKUP($D11,'All-WERTH'!$C$2:$AC$793,4,FALSE)),-1000)) -> -1.429661351 | Q11: =IF($D11="Unlisted Player",-1001,IFERROR(IF(VLOOKUP($D11,'All-WERTH'!$C$2:$AC$793,5,FALSE)="",-1000,VLOOKUP($D11,'All-WERTH'!$C$2:$AC$793,5,FALSE)),-1000)) -> -1.075586177 | R11: =IF($D11="Unlisted Player",-1001,IFERROR(IF(VLOOKUP($D11,'All-WERTH'!$C$2:$AC$793,6,FALSE)="",-1000,VLOOKUP($D11,'All-WERTH'!$C$2:$AC$793,6,FALSE)),-1000)) -> -0.8930623261 | S11: =IF($D11="Unlisted Player",-1001,IFERROR(IF(VLOOKUP($D11,'All-WERTH'!$C$2:$AC$793,7,FALSE)="",-1000,VLOOKUP($D11,'All-WERTH'!$C$2:$AC$793,7,FALSE)),-1000)) -> -0.6815896483 | T11: =IF($D11="Unlisted Player",-1001,IFERROR(IF(VLOOKUP($D11,'All-WERTH'!$C$2:$AC$793,8,FALSE)="",-1000,VLOOKUP($D11,'All-WERTH'!$C$2:$AC$793,8,FALSE)),-1000)) -> -0.2702875344 | U11: =IF($D11="Unlisted Player",-1001,IFERROR(IF(VLOOKUP($D11,'All-WERTH'!$C$2:$AC$793,9,FALSE)="",-1000,VLOOKUP($D11,'All-WERTH'!$C$2:$AC$793,9,FALSE)),-1000)) -> -1000 | V11: =IF($D11="Unlisted Player",-1001,IFERROR(IF(VLOOKUP($D11,'All-WERTH'!$C$2:$AC$793,10,FALSE)="",-1000,VLOOKUP($D11,'All-WERTH'!$C$2:$AC$793,10,FALSE)),-1000)) -> -1000 | W11: =IF($D11="Unlisted Player",-1001,IFERROR(IF(VLOOKUP($D11,'All-WERTH'!$C$2:$AC$793,11,FALSE)="",-1000,VLOOKUP($D11,'All-WERTH'!$C$2:$AC$793,11,FALSE)),-1000)) -> -1000 | X11: =IF($D11="Unlisted Player",-1001,IFERROR(IF(VLOOKUP($D11,'All-WERTH'!$C$2:$AC$793,12,FALSE)="",-1000,VLOOKUP($D11,'All-WERTH'!$C$2:$AC$793,12,FALSE)),-1000)) -> -1000 | Y11: =IF($D11="Unlisted Player",-1001,IFERROR(IF(VLOOKUP($D11,'All-WERTH'!$C$2:$AC$793,13,FALSE)="",-1000,VLOOKUP($D11,'All-WERTH'!$C$2:$AC$793,13,FALSE)),-1000)) -> -1000 | Z11: =IF($D11="Unlisted Player",-1001,IFERROR(IF(VLOOKUP($D11,'All-WERTH'!$C$2:$AC$793,14,FALSE)="",-1000,VLOOKUP($D11,'All-WERTH'!$C$2:$AC$793,14,FALSE)),-1000)) -> -1000 | AA11: =IF($D11="Unlisted Player",-1001,IFERROR(IF(VLOOKUP($D11,'All-WERTH'!$C$2:$AC$793,15,FALSE)="",-1000,VLOOKUP($D11,'All-WERTH'!$C$2:$AC$793,15,FALSE)),-1000)) -> -1000 | AB11: =IF($D11="Unlisted Player",-1001,IFERROR(IF(VLOOKUP($D11,'All-WERTH'!$C$2:$AC$793,16,FALSE)="",-1000,VLOOKUP($D11,'All-WERTH'!$C$2:$AC$793,16,FALSE)),-1000)) -> -1000 | AC11: =IF($D11="Unlisted Player",-1001,IFERROR(IF(VLOOKUP($D11,'All-WERTH'!$C$2:$AC$793,17,FALSE)="",-1000,VLOOKUP($D11,'All-WERTH'!$C$2:$AC$793,17,FALSE)),-1000)) -> -1000 | AD11: =IF($D11="Unlisted Player",-1001,IFERROR(IF(VLOOKUP($D11,'All-WERTH'!$C$2:$AC$793,18,FALSE)="",-1000,VLOOKUP($D11,'All-WERTH'!$C$2:$AC$793,18,FALSE)),-1000)) -> -1000 | AE11: =IF($D11="Unlisted Player",-1001,IFERROR(IF(VLOOKUP($D11,'All-WERTH'!$C$2:$AC$793,19,FALSE)="",-1000,VLOOKUP($D11,'All-WERTH'!$C$2:$AC$793,19,FALSE)),-1000)) -> -1000 | AF11: =IF($D11="Unlisted Player",-1001,IFERROR(IF(VLOOKUP($D11,'All-WERTH'!$C$2:$AC$793,20,FALSE)="",-1000,VLOOKUP($D11,'All-WERTH'!$C$2:$AC$793,20,FALSE)),-1000)) -> -1000 | AG11: =IF($D11="Unlisted Player",-1001,IFERROR(IF(VLOOKUP($D11,'All-WERTH'!$C$2:$AC$793,21,FALSE)="",-1000,VLOOKUP($D11,'All-WERTH'!$C$2:$AC$793,21,FALSE)),-1000)) -> -1000 | AH11: =IF($D11="Unlisted Player",-1001,IFERROR(IF(VLOOKUP($D11,'All-WERTH'!$C$2:$AC$793,22,FALSE)="",-1000,VLOOKUP($D11,'All-WERTH'!$C$2:$AC$793,22,FALSE)),-1000)) -> -1000 | AI11: =IF($D11="Unlisted Player",-1001,IFERROR(IF(VLOOKUP($D11,'All-WERTH'!$C$2:$AC$793,23,FALSE)="",-1000,VLOOKUP($D11,'All-WERTH'!$C$2:$AC$793,23,FALSE)),-1000)) -> -1000 | AJ11: =IF($D11="Unlisted Player",-1001,IFERROR(IF(VLOOKUP($D11,'All-WERTH'!$C$2:$AC$793,24,FALSE)="",-1000,VLOOKUP($D11,'All-WERTH'!$C$2:$AC$793,24,FALSE)),-1000)) -> -1000 | AK11: =IF($D11="Unlisted Player",-1001,IFERROR(IF(VLOOKUP($D11,'All-WERTH'!$C$2:$AC$793,25,FALSE)="",-1000,VLOOKUP($D11,'All-WERTH'!$C$2:$AC$793,25,FALSE)),-1000)) -> -1000 | AL11: =IF($D11="Unlisted Player",-1001,IFERROR(IF(VLOOKUP($D11,'All-WERTH'!$C$2:$AC$793,26,FALSE)="",-1000,VLOOKUP($D11,'All-WERTH'!$C$2:$AC$793,26,FALSE)),-1000)) -> -1000 | AM11: =IF($D11="Unlisted Player",-1001,IFERROR(IF(VLOOKUP($D11,'All-WERTH'!$C$2:$AC$793,27,FALSE)="",-1000,VLOOKUP($D11,'All-WERTH'!$C$2:$AC$793,27,FALSE)),-1000)) -> -1000 | AN11: =IF(D11="Non-Ranked Player",-1001,IFERROR(VLOOKUP($D11,'All-WERTH'!$C$2:$AF$793,30,FALSE),-1000)) -> -0.5041544006
A12: Francisco Lindor | B12: =IFERROR(INDEX($A$1:$A$948,SMALL(IF($A$1:$A$948<>"",ROW($A$1:$A$948)),ROW(A11))),"") -> Francisco Lindor | C12: =IFERROR(IF(L12=FALSE,"",CHOOSE(MATCH(RIGHT('Your Roto Auction'!$Q$4,LEN('Your Roto Auction'!$Q$4)-8),$M$1:$AN$1,0),1+SUMPRODUCT(($L$2:$L$949=TRUE)*($M$2:$M$949>M12))+COUNTIFS($L$2:L12,L12,$M$2:M12,M12)-1,1+SUMPRODUCT(($L$2:$L$949=TRUE)*($N$2:$N$949>N12))+COUNTIFS($L$2:L12,L12,$N$2:N12,N12)-1,1+SUMPRODUCT(($L$2:$L$949=TRUE)*($O$2:$O$949<O12))+COUNTIFS($L$2:L12,L12,$O$2:O12,O12)-1,1+SUMPRODUCT(($L$2:$L$949=TRUE)*($P$2:$P$949>P12))+COUNTIFS($L$2:L12,L12,$P$2:P12,P12)-1,1+SUMPRODUCT(($L$2:$L$949=TRUE)*($Q$2:$Q$949>Q12))+COUNTIFS($L$2:L12,L12,$Q$2:Q12,Q12)-1,1+SUMPRODUCT(($L$2:$L$949=TRUE)*($R$2:$R$949>R12))+COUNTIFS($L$2:L12,L12,$R$2:R12,R12)-1,1+SUMPRODUCT(($L$2:$L$949=TRUE)*($S$2:$S$949>S12))+COUNTIFS($L$2:L12,L12,$S$2:S12,S12)-1,1+SUMPRODUCT(($L$2:$L$949=TRUE)*($T$2:$T$949>T12))+COUNTIFS($L$2:L12,L12,$T$2:T12,T12)-1,1+SUMPRODUCT(($L$2:$L$949=TRUE)*($U$2:$U$949>U12))+COUNTIFS($L$2:L12,L12,$U$2:U12,U12)-1,1+SUMPRODUCT(($L$2:$L$949=TRUE)*($V$2:$V$949>V12))+COUNTIFS($L$2:L12,L12,$V$2:V12,V12)-1,1+SUMPRODUCT(($L$2:$L$949=TRUE)*($W$2:$W$949>W12))+COUNTIFS($L$2:L12,L12,$W$2:W12,W12)-1,1+SUMPRODUCT(($L$2:$L$949=TRUE)*($X$2:$X$949>X12))+COUNTIFS($L$2:L12,L12,$X$2:X12,X12)-1,1+SUMPRODUCT(($L$2:$L$949=TRUE)*($Y$2:$Y$949>Y12))+COUNTIFS($L$2:L12,L12,$Y$2:Y12,Y12)-1,1+SUMPRODUCT(($L$2:$L$949=TRUE)*($Z$2:$Z$949>Z12))+COUNTIFS($L$2:L12,L12,$Z$2:Z12,Z12)-1,1+SUMPRODUCT(($L$2:$L$949=TRUE)*($AA$2:$AA$949>AA12))+COUNTIFS($L$2:L12,L12,$AA$2:AA12,AA12)-1,1+SUMPRODUCT(($L$2:$L$949=TRUE)*($AB$2:$AB$949>AB12))+COUNTIFS($L$2:L12,L12,$AB$2:AB12,AB12)-1,1+SUMPRODUCT(($L$2:$L$949=TRUE)*($AC$2:$AC$949>AC12))+COUNTIFS($L$2:L12,L12,$AC$2:AC12,AC12)-1,1+SUMPRODUCT(($L$2:$L$949=TRUE)*($AD$2:$AD$949>AD12))+COUNTIFS($L$2:L12,L12,$AD$2:AD12,AD12)-1,1+SUMPRODUCT(($L$2:$L$949=TRUE)*($AE$2:$AE$949>AE12))+COUNTIFS($L$2:L12,L12,$AE$2:AE12,AE12)-1,1+SUMPRODUCT(($L$2:$L$949=TRUE)*($AF$2:$AF$949>AF12))+COUNTIFS($L$2:L12,L12,$AF$2:AF12,AF12)-1,1+SUMPRODUCT(($L$2:$L$949=TRUE)*($AG$2:$AG$949>AG12))+COUNTIFS($L$2:L12,L12,$AG$2:AG12,AG12)-1,1+SUMPRODUCT(($L$2:$L$949=TRUE)*($AH$2:$AH$949>AH12))+COUNTIFS($L$2:L12,L12,$AH$2:AH12,AH12)-1,1+SUMPRODUCT(($L$2:$L$949=TRUE)*($AI$2:$AI$949>AI12))+COUNTIFS($L$2:L12,L12,$AI$2:AI12,AI12)-1,1+SUMPRODUCT(($L$2:$L$949=TRUE)*($AJ$2:$AJ$949>AJ12))+COUNTIFS($L$2:L12,L12,$AJ$2:AJ12,AJ12)-1,1+SUMPRODUCT(($L$2:$L$949=TRUE)*($AK$2:$AK$949>AK12))+COUNTIFS($L$2:L12,L12,$AK$2:AK12,AK12)-1,1+SUMPRODUCT(($L$2:$L$949=TRUE)*($AL$2:$AL$949>AL12))+COUNTIFS($L$2:L12,L12,$AL$2:AL12,AL12)-1,1+SUMPRODUCT(($L$2:$L$949=TRUE)*($AM$2:$AM$949>AM12))+COUNTIFS($L$2:L12,L12,$AM$2:AM12,AM12)-1,1+SUMPRODUCT(($L$2:$L$949=TRUE)*($AN$2:$AN$949>AN12))+COUNTIFS($L$2:L12,L12,$AN$2:AN12,AN12)-1)),"") -> 249 | D12: Shogo Akiyama | E12: =IFERROR(INDEX('Auction Log'!$C$4:$C$806,MATCH(D12,'Auction Log'!$B$4:$B$806,0)),"") ->  | F12: =IFERROR(INDEX('Auction-Rank'!$C$2:$C$948,MATCH(D12,'Auction-Rank'!$A$2:$A$948,0)),"") -> OF | G12: =IFERROR(IF(F12=I12,"",IF(INDEX('Your Roto Auction'!$C$11:$C$634,MATCH(D12,'Your Roto Auction'!$D$11:$D$634,0))="",IF(I12<>"",I12,""),INDEX('Your Roto Auction'!$C$11:$C$634,MATCH(D12,'Your Roto Auction'!$D$11:$D$634,0)))),"") ->  | H12: OF | J12: =INDEX('Auction-Rank'!$V$2:$V$948,MATCH(D12,'Auction-Rank'!$A$2:$A$948,0)) -> TRUE | K12: FALSE | L12: =IF(J12=FALSE,FALSE,IF(AND('Your Roto Auction'!$Q$6="Hide Drafted Players",K12=TRUE),FALSE,IF(OR('Your Roto Auction'!$Q$5="Show All Positions",AND('Your Roto Auction'!$Q$5="Only Show: C",H12="C"),AND('Your Roto Auction'!$Q$5="Only Show: 1B",H12="1B"),AND('Your Roto Auction'!$Q$5="Only Show: 2B",H12="2B"),AND('Your Roto Auction'!$Q$5="Only Show: 3B",H12="3B"),AND('Your Roto Auction'!$Q$5="Only Show: SS",H12="SS"),AND('Your Roto Auction'!$Q$5="Only Show: OF",H12="OF"),AND('Your Roto Auction'!$Q$5="Only Show: SP",H12="SP"),AND('Your Roto Auction'!$Q$5="Only Show: RP",H12="RP"),AND('Your Roto Auction'!$Q$5="Only Show: CI",OR(H12={"1B","3B"})),AND('Your Roto Auction'!$Q$5="Only Show: MI",OR(H12={"2B","SS"})),AND('Your Roto Auction'!$Q$5="Only Show: IF",OR(H12={"C","1B","2B","3B","SS"})),AND('Your Roto Auction'!$Q$5="Only Show: DH",OR(H12={"C","1B","2B","3B","SS","OF","DH"})),AND('Your Roto Auction'!$Q$5="Only Show: P",OR(H12={"SP","RP"})),AND('Your Roto Auction'!$Q$5="Only Show: LF",ISERROR(SEARCH("LF",VLOOKUP($D12,'Auction-Rank'!$A$2:$D$948,4,FALSE)))=FALSE),AND('Your Roto Auction'!$Q$5="Only Show: RF",ISERROR(SEARCH("RF",VLOOKUP($D12,'Auction-Rank'!$A$2:$D$948,4,FALSE)))=FALSE),AND('Your Roto Auction'!$Q$5="Only Show: CF",ISERROR(SEARCH("CF",VLOOKUP($D12,'Auction-Rank'!$A$2:$D$948,4,FALSE)))=FALSE)),TRUE,FALSE))) -> TRUE | M12: =IFERROR(IF(VLOOKUP($D12,'Inflation-Tracking'!$A$5:$AD$862,22,FALSE)="",-9999,VLOOKUP($D12,'Inflation-Tracking'!$A$5:$AD$862,22,FALSE)),-9999) -> -0.1935405194 | N12: =IF(D12="Non-Ranked Player",-1001,IFERROR(VLOOKUP($D12,'All-WERTH'!$C$2:$E$793,3,FALSE),-1000)) -> -3.881750714 | O12: =IF(D12="Non-Ranked Player",10000,IFERROR(IF(VLOOKUP(D12,'Auction-Rank'!$A$2:$X$948,24,FALSE)="",9999,VLOOKUP(D12,'Auction-Rank'!$A$2:$X$948,24,FALSE)),9999)) -> 371 | P12: =IF($D12="Unlisted Player",-1001,IFERROR(IF(VLOOKUP($D12,'All-WERTH'!$C$2:$AC$793,4,FALSE)="",-1000,VLOOKUP($D12,'All-WERTH'!$C$2:$AC$793,4,FALSE)),-1000)) -> -0.1571777946 | Q12: =IF($D12="Unlisted Player",-1001,IFERROR(IF(VLOOKUP($D12,'All-WERTH'!$C$2:$AC$793,5,FALSE)="",-1000,VLOOKUP($D12,'All-WERTH'!$C$2:$AC$793,5,FALSE)),-1000)) -> -1.418392485 | R12: =IF($D12="Unlisted Player",-1001,IFERROR(IF(VLOOKUP($D12,'All-WERTH'!$C$2:$AC$793,6,FALSE)="",-1000,VLOOKUP($D12,'All-WERTH'!$C$2:$AC$793,6,FALSE)),-1000)) -> -0.8389425399 | S12: =IF($D12="Unlisted Player",-1001,IFERROR(IF(VLOOKUP($D12,'All-WERTH'!$C$2:$AC$793,7,FALSE)="",-1000,VLOOKUP($D12,'All-WERTH'!$C$2:$AC$793,7,FALSE)),-1000)) -> -1.338260846 | T12: =IF($D12="Unlisted Player",-1001,IFERROR(IF(VLOOKUP($D12,'All-WERTH'!$C$2:$AC$793,8,FALSE)="",-1000,VLOOKUP($D12,'All-WERTH'!$C$2:$AC$793,8,FALSE)),-1000)) -> -0.1289770484 | U12: =IF($D12="Unlisted Player",-1001,IFERROR(IF(VLOOKUP($D12,'All-WERTH'!$C$2:$AC$793,9,FALSE)="",-1000,VLOOKUP($D12,'All-WERTH'!$C$2:$AC$793,9,FALSE)),-1000)) -> -1000 | V12: =IF($D12="Unlisted Player",-1001,IFERROR(IF(VLOOKUP($D12,'All-WERTH'!$C$2:$AC$793,10,FALSE)="",-1000,VLOOKUP($D12,'All-WERTH'!$C$2:$AC$793,10,FALSE)),-1000)) -> -1000 | W12: =IF($D12="Unlisted Player",-1001,IFERROR(IF(VLOOKUP($D12,'All-WERTH'!$C$2:$AC$793,11,FALSE)="",-1000,VLOOKUP($D12,'All-WERTH'!$C$2:$AC$793,11,FALSE)),-1000)) -> -1000 | X12: =IF($D12="Unlisted Player",-1001,IFERROR(IF(VLOOKUP($D12,'All-WERTH'!$C$2:$AC$793,12,FALSE)="",-1000,VLOOKUP($D12,'All-WERTH'!$C$2:$AC$793,12,FALSE)),-1000)) -> -1000 | Y12: =IF($D12="Unlisted Player",-1001,IFERROR(IF(VLOOKUP($D12,'All-WERTH'!$C$2:$AC$793,13,FALSE)="",-1000,VLOOKUP($D12,'All-WERTH'!$C$2:$AC$793,13,FALSE)),-1000)) -> -1000 | Z12: =IF($D12="Unlisted Player",-1001,IFERROR(IF(VLOOKUP($D12,'All-WERTH'!$C$2:$AC$793,14,FALSE)="",-1000,VLOOKUP($D12,'All-WERTH'!$C$2:$AC$793,14,FALSE)),-1000)) -> -1000 | AA12: =IF($D12="Unlisted Player",-1001,IFERROR(IF(VLOOKUP($D12,'All-WERTH'!$C$2:$AC$793,15,FALSE)="",-1000,VLOOKUP($D12,'All-WERTH'!$C$2:$AC$793,15,FALSE)),-1000)) -> -1000 | AB12: =IF($D12="Unlisted Player",-1001,IFERROR(IF(VLOOKUP($D12,'All-WERTH'!$C$2:$AC$793,16,FALSE)="",-1000,VLOOKUP($D12,'All-WERTH'!$C$2:$AC$793,16,FALSE)),-1000)) -> -1000 | AC12: =IF($D12="Unlisted Player",-1001,IFERROR(IF(VLOOKUP($D12,'All-WERTH'!$C$2:$AC$793,17,FALSE)="",-1000,VLOOKUP($D12,'All-WERTH'!$C$2:$AC$793,17,FALSE)),-1000)) -> -1000 | AD12: =IF($D12="Unlisted Player",-1001,IFERROR(IF(VLOOKUP($D12,'All-WERTH'!$C$2:$AC$793,18,FALSE)="",-1000,VLOOKUP($D12,'All-WERTH'!$C$2:$AC$793,18,FALSE)),-1000)) -> -1000 | AE12: =IF($D12="Unlisted Player",-1001,IFERROR(IF(VLOOKUP($D12,'All-WERTH'!$C$2:$AC$793,19,FALSE)="",-1000,VLOOKUP($D12,'All-WERTH'!$C$2:$AC$793,19,FALSE)),-1000)) -> -1000 | AF12: =IF($D12="Unlisted Player",-1001,IFERROR(IF(VLOOKUP($D12,'All-WERTH'!$C$2:$AC$793,20,FALSE)="",-1000,VLOOKUP($D12,'All-WERTH'!$C$2:$AC$793,20,FALSE)),-1000)) -> -1000 | AG12: =IF($D12="Unlisted Player",-1001,IFERROR(IF(VLOOKUP($D12,'All-WERTH'!$C$2:$AC$793,21,FALSE)="",-1000,VLOOKUP($D12,'All-WERTH'!$C$2:$AC$793,21,FALSE)),-1000)) -> -1000 | AH12: =IF($D12="Unlisted Player",-1001,IFERROR(IF(VLOOKUP($D12,'All-WERTH'!$C$2:$AC$793,22,FALSE)="",-1000,VLOOKUP($D12,'All-WERTH'!$C$2:$AC$793,22,FALSE)),-1000)) -> -1000 | AI12: =IF($D12="Unlisted Player",-1001,IFERROR(IF(VLOOKUP($D12,'All-WERTH'!$C$2:$AC$793,23,FALSE)="",-1000,VLOOKUP($D12,'All-WERTH'!$C$2:$AC$793,23,FALSE)),-1000)) -> -1000 | AJ12: =IF($D12="Unlisted Player",-1001,IFERROR(IF(VLOOKUP($D12,'All-WERTH'!$C$2:$AC$793,24,FALSE)="",-1000,VLOOKUP($D12,'All-WERTH'!$C$2:$AC$793,24,FALSE)),-1000)) -> -1000 | AK12: =IF($D12="Unlisted Player",-1001,IFERROR(IF(VLOOKUP($D12,'All-WERTH'!$C$2:$AC$793,25,FALSE)="",-1000,VLOOKUP($D12,'All-WERTH'!$C$2:$AC$793,25,FALSE)),-1000)) -> -1000 | AL12: =IF($D12="Unlisted Player",-1001,IFERROR(IF(VLOOKUP($D12,'All-WERTH'!$C$2:$AC$793,26,FALSE)="",-1000,VLOOKUP($D12,'All-WERTH'!$C$2:$AC$793,26,FALSE)),-1000)) -> -1000 | AM12: =IF($D12="Unlisted Player",-1001,IFERROR(IF(VLOOKUP($D12,'All-WERTH'!$C$2:$AC$793,27,FALSE)="",-1000,VLOOKUP($D12,'All-WERTH'!$C$2:$AC$793,27,FALSE)),-1000)) -> -1000 | AN12: =IF(D12="Non-Ranked Player",-1001,IFERROR(VLOOKUP($D12,'All-WERTH'!$C$2:$AF$793,30,FALSE),-1000)) -> -0.6607927051
A13: Mookie Betts | B13: =IFERROR(INDEX($A$1:$A$948,SMALL(IF($A$1:$A$948<>"",ROW($A$1:$A$948)),ROW(A12))),"") -> Mookie Betts | C13: =IFERROR(IF(L13=FALSE,"",CHOOSE(MATCH(RIGHT('Your Roto Auction'!$Q$4,LEN('Your Roto Auction'!$Q$4)-8),$M$1:$AN$1,0),1+SUMPRODUCT(($L$2:$L$949=TRUE)*($M$2:$M$949>M13))+COUNTIFS($L$2:L13,L13,$M$2:M13,M13)-1,1+SUMPRODUCT(($L$2:$L$949=TRUE)*($N$2:$N$949>N13))+COUNTIFS($L$2:L13,L13,$N$2:N13,N13)-1,1+SUMPRODUCT(($L$2:$L$949=TRUE)*($O$2:$O$949<O13))+COUNTIFS($L$2:L13,L13,$O$2:O13,O13)-1,1+SUMPRODUCT(($L$2:$L$949=TRUE)*($P$2:$P$949>P13))+COUNTIFS($L$2:L13,L13,$P$2:P13,P13)-1,1+SUMPRODUCT(($L$2:$L$949=TRUE)*($Q$2:$Q$949>Q13))+COUNTIFS($L$2:L13,L13,$Q$2:Q13,Q13)-1,1+SUMPRODUCT(($L$2:$L$949=TRUE)*($R$2:$R$949>R13))+COUNTIFS($L$2:L13,L13,$R$2:R13,R13)-1,1+SUMPRODUCT(($L$2:$L$949=TRUE)*($S$2:$S$949>S13))+COUNTIFS($L$2:L13,L13,$S$2:S13,S13)-1,1+SUMPRODUCT(($L$2:$L$949=TRUE)*($T$2:$T$949>T13))+COUNTIFS($L$2:L13,L13,$T$2:T13,T13)-1,1+SUMPRODUCT(($L$2:$L$949=TRUE)*($U$2:$U$949>U13))+COUNTIFS($L$2:L13,L13,$U$2:U13,U13)-1,1+SUMPRODUCT(($L$2:$L$949=TRUE)*($V$2:$V$949>V13))+COUNTIFS($L$2:L13,L13,$V$2:V13,V13)-1,1+SUMPRODUCT(($L$2:$L$949=TRUE)*($W$2:$W$949>W13))+COUNTIFS($L$2:L13,L13,$W$2:W13,W13)-1,1+SUMPRODUCT(($L$2:$L$949=TRUE)*($X$2:$X$949>X13))+COUNTIFS($L$2:L13,L13,$X$2:X13,X13)-1,1+SUMPRODUCT(($L$2:$L$949=TRUE)*($Y$2:$Y$949>Y13))+COUNTIFS($L$2:L13,L13,$Y$2:Y13,Y13)-1,1+SUMPRODUCT(($L$2:$L$949=TRUE)*($Z$2:$Z$949>Z13))+COUNTIFS($L$2:L13,L13,$Z$2:Z13,Z13)-1,1+SUMPRODUCT(($L$2:$L$949=TRUE)*($AA$2:$AA$949>AA13))+COUNTIFS($L$2:L13,L13,$AA$2:AA13,AA13)-1,1+SUMPRODUCT(($L$2:$L$949=TRUE)*($AB$2:$AB$949>AB13))+COUNTIFS($L$2:L13,L13,$AB$2:AB13,AB13)-1,1+SUMPRODUCT(($L$2:$L$949=TRUE)*($AC$2:$AC$949>AC13))+COUNTIFS($L$2:L13,L13,$AC$2:AC13,AC13)-1,1+SUMPRODUCT(($L$2:$L$949=TRUE)*($AD$2:$AD$949>AD13))+COUNTIFS($L$2:L13,L13,$AD$2:AD13,AD13)-1,1+SUMPRODUCT(($L$2:$L$949=TRUE)*($AE$2:$AE$949>AE13))+COUNTIFS($L$2:L13,L13,$AE$2:AE13,AE13)-1,1+SUMPRODUCT(($L$2:$L$949=TRUE)*($AF$2:$AF$949>AF13))+COUNTIFS($L$2:L13,L13,$AF$2:AF13,AF13)-1,1+SUMPRODUCT(($L$2:$L$949=TRUE)*($AG$2:$AG$949>AG13))+COUNTIFS($L$2:L13,L13,$AG$2:AG13,AG13)-1,1+SUMPRODUCT(($L$2:$L$949=TRUE)*($AH$2:$AH$949>AH13))+COUNTIFS($L$2:L13,L13,$AH$2:AH13,AH13)-1,1+SUMPRODUCT(($L$2:$L$949=TRUE)*($AI$2:$AI$949>AI13))+COUNTIFS($L$2:L13,L13,$AI$2:AI13,AI13)-1,1+SUMPRODUCT(($L$2:$L$949=TRUE)*($AJ$2:$AJ$949>AJ13))+COUNTIFS($L$2:L13,L13,$AJ$2:AJ13,AJ13)-1,1+SUMPRODUCT(($L$2:$L$949=TRUE)*($AK$2:$AK$949>AK13))+COUNTIFS($L$2:L13,L13,$AK$2:AK13,AK13)-1,1+SUMPRODUCT(($L$2:$L$949=TRUE)*($AL$2:$AL$949>AL13))+COUNTIFS($L$2:L13,L13,$AL$2:AL13,AL13)-1,1+SUMPRODUCT(($L$2:$L$949=TRUE)*($AM$2:$AM$949>AM13))+COUNTIFS($L$2:L13,L13,$AM$2:AM13,AM13)-1,1+SUMPRODUCT(($L$2:$L$949=TRUE)*($AN$2:$AN$949>AN13))+COUNTIFS($L$2:L13,L13,$AN$2:AN13,AN13)-1)),"") -> 310 | D13: Hanser Alberto | E13: =IFERROR(INDEX('Auction Log'!$C$4:$C$806,MATCH(D13,'Auction Log'!$B$4:$B$806,0)),"") ->  | F13: =IFERROR(INDEX('Auction-Rank'!$C$2:$C$948,MATCH(D13,'Auction-Rank'!$A$2:$A$948,0)),"") -> 2B | G13: =IFERROR(IF(F13=I13,"",IF(INDEX('Your Roto Auction'!$C$11:$C$634,MATCH(D13,'Your Roto Auction'!$D$11:$D$634,0))="",IF(I13<>"",I13,""),INDEX('Your Roto Auction'!$C$11:$C$634,MATCH(D13,'Your Roto Auction'!$D$11:$D$634,0)))),"") ->  | H13: 2B | J13: =INDEX('Auction-Rank'!$V$2:$V$948,MATCH(D13,'Auction-Rank'!$A$2:$A$948,0)) -> TRUE | K13: FALSE | L13: =IF(J13=FALSE,FALSE,IF(AND('Your Roto Auction'!$Q$6="Hide Drafted Players",K13=TRUE),FALSE,IF(OR('Your Roto Auction'!$Q$5="Show All Positions",AND('Your Roto Auction'!$Q$5="Only Show: C",H13="C"),AND('Your Roto Auction'!$Q$5="Only Show: 1B",H13="1B"),AND('Your Roto Auction'!$Q$5="Only Show: 2B",H13="2B"),AND('Your Roto Auction'!$Q$5="Only Show: 3B",H13="3B"),AND('Your Roto Auction'!$Q$5="Only Show: SS",H13="SS"),AND('Your Roto Auction'!$Q$5="Only Show: OF",H13="OF"),AND('Your Roto Auction'!$Q$5="Only Show: SP",H13="SP"),AND('Your Roto Auction'!$Q$5="Only Show: RP",H13="RP"),AND('Your Roto Auction'!$Q$5="Only Show: CI",OR(H13={"1B","3B"})),AND('Your Roto Auction'!$Q$5="Only Show: MI",OR(H13={"2B","SS"})),AND('Your Roto Auction'!$Q$5="Only Show: IF",OR(H13={"C","1B","2B","3B","SS"})),AND('Your Roto Auction'!$Q$5="Only Show: DH",OR(H13={"C","1B","2B","3B","SS","OF","DH"})),AND('Your Roto Auction'!$Q$5="Only Show: P",OR(H13={"SP","RP"})),AND('Your Roto Auction'!$Q$5="Only Show: LF",ISERROR(SEARCH("LF",VLOOKUP($D13,'Auction-Rank'!$A$2:$D$948,4,FALSE)))=FALSE),AND('Your Roto Auction'!$Q$5="Only Show: RF",ISERROR(SEARCH("RF",VLOOKUP($D13,'Auction-Rank'!$A$2:$D$948,4,FALSE)))=FALSE),AND('Your Roto Auction'!$Q$5="Only Show: CF",ISERROR(SEARCH("CF",VLOOKUP($D13,'Auction-Rank'!$A$2:$D$948,4,FALSE)))=FALSE)),TRUE,FALSE))) -> TRUE | M13: =IFERROR(IF(VLOOKUP($D13,'Inflation-Tracking'!$A$5:$AD$862,22,FALSE)="",-9999,VLOOKUP($D13,'Inflation-Tracking'!$A$5:$AD$862,22,FALSE)),-9999) -> -0.490970201 | N13: =IF(D13="Non-Ranked Player",-1001,IFERROR(VLOOKUP($D13,'All-WERTH'!$C$2:$E$793,3,FALSE),-1000)) -> -4.914775792 | O13: =IF(D13="Non-Ranked Player",10000,IFERROR(IF(VLOOKUP(D13,'Auction-Rank'!$A$2:$X$948,24,FALSE)="",9999,VLOOKUP(D13,'Auction-Rank'!$A$2:$X$948,24,FALSE)),9999)) -> 326 | P13: =IF($D13="Unlisted Player",-1001,IFERROR(IF(VLOOKUP($D13,'All-WERTH'!$C$2:$AC$793,4,FALSE)="",-1000,VLOOKUP($D13,'All-WERTH'!$C$2:$AC$793,4,FALSE)),-1000)) -> 0.7119147874 | Q13: =IF($D13="Unlisted Player",-1001,IFERROR(IF(VLOOKUP($D13,'All-WERTH'!$C$2:$AC$793,5,FALSE)="",-1000,VLOOKUP($D13,'All-WERTH'!$C$2:$AC$793,5,FALSE)),-1000)) -> -1.708587308 | R13: =IF($D13="Unlisted Player",-1001,IFERROR(IF(VLOOKUP($D13,'All-WERTH'!$C$2:$AC$793,6,FALSE)="",-1000,VLOOKUP($D13,'All-WERTH'!$C$2:$AC$793,6,FALSE)),-1000)) -> -1.48838487 | S13: =IF($D13="Unlisted Player",-1001,IFERROR(IF(VLOOKUP($D13,'All-WERTH'!$C$2:$AC$793,7,FALSE)="",-1000,VLOOKUP($D13,'All-WERTH'!$C$2:$AC$793,7,FALSE)),-1000)) -> -1.770683409 | T13: =IF($D13="Unlisted Player",-1001,IFERROR(IF(VLOOKUP($D13,'All-WERTH'!$C$2:$AC$793,8,FALSE)="",-1000,VLOOKUP($D13,'All-WERTH'!$C$2:$AC$793,8,FALSE)),-1000)) -> -0.6590349933 | U13: =IF($D13="Unlisted Player",-1001,IFERROR(IF(VLOOKUP($D13,'All-WERTH'!$C$2:$AC$793,9,FALSE)="",-1000,VLOOKUP($D13,'All-WERTH'!$C$2:$AC$793,9,FALSE)),-1000)) -> -1000 | V13: =IF($D13="Unlisted Player",-1001,IFERROR(IF(VLOOKUP($D13,'All-WERTH'!$C$2:$AC$793,10,FALSE)="",-1000,VLOOKUP($D13,'All-WERTH'!$C$2:$AC$793,10,FALSE)),-1000)) -> -1000 | W13: =IF($D13="Unlisted Player",-1001,IFERROR(IF(VLOOKUP($D13,'All-WERTH'!$C$2:$AC$793,11,FALSE)="",-1000,VLOOKUP($D13,'All-WERTH'!$C$2:$AC$793,11,FALSE)),-1000)) -> -1000 | X13: =IF($D13="Unlisted Player",-1001,IFERROR(IF(VLOOKUP($D13,'All-WERTH'!$C$2:$AC$793,12,FALSE)="",-1000,VLOOKUP($D13,'All-WERTH'!$C$2:$AC$793,12,FALSE)),-1000)) -> -1000 | Y13: =IF($D13="Unlisted Player",-1001,IFERROR(IF(VLOOKUP($D13,'All-WERTH'!$C$2:$AC$793,13,FALSE)="",-1000,VLOOKUP($D13,'All-WERTH'!$C$2:$AC$793,13,FALSE)),-1000)) -> -1000 | Z13: =IF($D13="Unlisted Player",-1001,IFERROR(IF(VLOOKUP($D13,'All-WERTH'!$C$2:$AC$793,14,FALSE)="",-1000,VLOOKUP($D13,'All-WERTH'!$C$2:$AC$793,14,FALSE)),-1000)) -> -1000 | AA13: =IF($D13="Unlisted Player",-1001,IFERROR(IF(VLOOKUP($D13,'All-WERTH'!$C$2:$AC$793,15,FALSE)="",-1000,VLOOKUP($D13,'All-WERTH'!$C$2:$AC$793,15,FALSE)),-1000)) -> -1000 | AB13: =IF($D13="Unlisted Player",-1001,IFERROR(IF(VLOOKUP($D13,'All-WERTH'!$C$2:$AC$793,16,FALSE)="",-1000,VLOOKUP($D13,'All-WERTH'!$C$2:$AC$793,16,FALSE)),-1000)) -> -1000 | AC13: =IF($D13="Unlisted Player",-1001,IFERROR(IF(VLOOKUP($D13,'All-WERTH'!$C$2:$AC$793,17,FALSE)="",-1000,VLOOKUP($D13,'All-WERTH'!$C$2:$AC$793,17,FALSE)),-1000)) -> -1000 | AD13: =IF($D13="Unlisted Player",-1001,IFERROR(IF(VLOOKUP($D13,'All-WERTH'!$C$2:$AC$793,18,FALSE)="",-1000,VLOOKUP($D13,'All-WERTH'!$C$2:$AC$793,18,FALSE)),-1000)) -> -1000 | AE13: =IF($D13="Unlisted Player",-1001,IFERROR(IF(VLOOKUP($D13,'All-WERTH'!$C$2:$AC$793,19,FALSE)="",-1000,VLOOKUP($D13,'All-WERTH'!$C$2:$AC$793,19,FALSE)),-1000)) -> -1000 | AF13: =IF($D13="Unlisted Player",-1001,IFERROR(IF(VLOOKUP($D13,'All-WERTH'!$C$2:$AC$793,20,FALSE)="",-1000,VLOOKUP($D13,'All-WERTH'!$C$2:$AC$793,20,FALSE)),-1000)) -> -1000 | AG13: =IF($D13="Unlisted Player",-1001,IFERROR(IF(VLOOKUP($D13,'All-WERTH'!$C$2:$AC$793,21,FALSE)="",-1000,VLOOKUP($D13,'All-WERTH'!$C$2:$AC$793,21,FALSE)),-1000)) -> -1000 | AH13: =IF($D13="Unlisted Player",-1001,IFERROR(IF(VLOOKUP($D13,'All-WERTH'!$C$2:$AC$793,22,FALSE)="",-1000,VLOOKUP($D13,'All-WERTH'!$C$2:$AC$793,22,FALSE)),-1000)) -> -1000 | AI13: =IF($D13="Unlisted Player",-1001,IFERROR(IF(VLOOKUP($D13,'All-WERTH'!$C$2:$AC$793,23,FALSE)="",-1000,VLOOKUP($D13,'All-WERTH'!$C$2:$AC$793,23,FALSE)),-1000)) -> -1000 | AJ13: =IF($D13="Unlisted Player",-1001,IFERROR(IF(VLOOKUP($D13,'All-WERTH'!$C$2:$AC$793,24,FALSE)="",-1000,VLOOKUP($D13,'All-WERTH'!$C$2:$AC$793,24,FALSE)),-1000)) -> -1000 | AK13: =IF($D13="Unlisted Player",-1001,IFERROR(IF(VLOOKUP($D13,'All-WERTH'!$C$2:$AC$793,25,FALSE)="",-1000,VLOOKUP($D13,'All-WERTH'!$C$2:$AC$793,25,FALSE)),-1000)) -> -1000 | AL13: =IF($D13="Unlisted Player",-1001,IFERROR(IF(VLOOKUP($D13,'All-WERTH'!$C$2:$AC$793,26,FALSE)="",-1000,VLOOKUP($D13,'All-WERTH'!$C$2:$AC$793,26,FALSE)),-1000)) -> -1000 | AM13: =IF($D13="Unlisted Player",-1001,IFERROR(IF(VLOOKUP($D13,'All-WERTH'!$C$2:$AC$793,27,FALSE)="",-1000,VLOOKUP($D13,'All-WERTH'!$C$2:$AC$793,27,FALSE)),-1000)) -> -1000 | AN13: =IF(D13="Non-Ranked Player",-1001,IFERROR(VLOOKUP($D13,'All-WERTH'!$C$2:$AF$793,30,FALSE),-1000)) -> -1.676287365
A14: Rafael Devers | B14: =IFERROR(INDEX($A$1:$A$948,SMALL(IF($A$1:$A$948<>"",ROW($A$1:$A$948)),ROW(A13))),"") -> Rafael Devers | C14: =IFERROR(IF(L14=FALSE,"",CHOOSE(MATCH(RIGHT('Your Roto Auction'!$Q$4,LEN('Your Roto Auction'!$Q$4)-8),$M$1:$AN$1,0),1+SUMPRODUCT(($L$2:$L$949=TRUE)*($M$2:$M$949>M14))+COUNTIFS($L$2:L14,L14,$M$2:M14,M14)-1,1+SUMPRODUCT(($L$2:$L$949=TRUE)*($N$2:$N$949>N14))+COUNTIFS($L$2:L14,L14,$N$2:N14,N14)-1,1+SUMPRODUCT(($L$2:$L$949=TRUE)*($O$2:$O$949<O14))+COUNTIFS($L$2:L14,L14,$O$2:O14,O14)-1,1+SUMPRODUCT(($L$2:$L$949=TRUE)*($P$2:$P$949>P14))+COUNTIFS($L$2:L14,L14,$P$2:P14,P14)-1,1+SUMPRODUCT(($L$2:$L$949=TRUE)*($Q$2:$Q$949>Q14))+COUNTIFS($L$2:L14,L14,$Q$2:Q14,Q14)-1,1+SUMPRODUCT(($L$2:$L$949=TRUE)*($R$2:$R$949>R14))+COUNTIFS($L$2:L14,L14,$R$2:R14,R14)-1,1+SUMPRODUCT(($L$2:$L$949=TRUE)*($S$2:$S$949>S14))+COUNTIFS($L$2:L14,L14,$S$2:S14,S14)-1,1+SUMPRODUCT(($L$2:$L$949=TRUE)*($T$2:$T$949>T14))+COUNTIFS($L$2:L14,L14,$T$2:T14,T14)-1,1+SUMPRODUCT(($L$2:$L$949=TRUE)*($U$2:$U$949>U14))+COUNTIFS($L$2:L14,L14,$U$2:U14,U14)-1,1+SUMPRODUCT(($L$2:$L$949=TRUE)*($V$2:$V$949>V14))+COUNTIFS($L$2:L14,L14,$V$2:V14,V14)-1,1+SUMPRODUCT(($L$2:$L$949=TRUE)*($W$2:$W$949>W14))+COUNTIFS($L$2:L14,L14,$W$2:W14,W14)-1,1+SUMPRODUCT(($L$2:$L$949=TRUE)*($X$2:$X$949>X14))+COUNTIFS($L$2:L14,L14,$X$2:X14,X14)-1,1+SUMPRODUCT(($L$2:$L$949=TRUE)*($Y$2:$Y$949>Y14))+COUNTIFS($L$2:L14,L14,$Y$2:Y14,Y14)-1,1+SUMPRODUCT(($L$2:$L$949=TRUE)*($Z$2:$Z$949>Z14))+COUNTIFS($L$2:L14,L14,$Z$2:Z14,Z14)-1,1+SUMPRODUCT(($L$2:$L$949=TRUE)*($AA$2:$AA$949>AA14))+COUNTIFS($L$2:L14,L14,$AA$2:AA14,AA14)-1,1+SUMPRODUCT(($L$2:$L$949=TRUE)*($AB$2:$AB$949>AB14))+COUNTIFS($L$2:L14,L14,$AB$2:AB14,AB14)-1,1+SUMPRODUCT(($L$2:$L$949=TRUE)*($AC$2:$AC$949>AC14))+COUNTIFS($L$2:L14,L14,$AC$2:AC14,AC14)-1,1+SUMPRODUCT(($L$2:$L$949=TRUE)*($AD$2:$AD$949>AD14))+COUNTIFS($L$2:L14,L14,$AD$2:AD14,AD14)-1,1+SUMPRODUCT(($L$2:$L$949=TRUE)*($AE$2:$AE$949>AE14))+COUNTIFS($L$2:L14,L14,$AE$2:AE14,AE14)-1,1+SUMPRODUCT(($L$2:$L$949=TRUE)*($AF$2:$AF$949>AF14))+COUNTIFS($L$2:L14,L14,$AF$2:AF14,AF14)-1,1+SUMPRODUCT(($L$2:$L$949=TRUE)*($AG$2:$AG$949>AG14))+COUNTIFS($L$2:L14,L14,$AG$2:AG14,AG14)-1,1+SUMPRODUCT(($L$2:$L$949=TRUE)*($AH$2:$AH$949>AH14))+COUNTIFS($L$2:L14,L14,$AH$2:AH14,AH14)-1,1+SUMPRODUCT(($L$2:$L$949=TRUE)*($AI$2:$AI$949>AI14))+COUNTIFS($L$2:L14,L14,$AI$2:AI14,AI14)-1,1+SUMPRODUCT(($L$2:$L$949=TRUE)*($AJ$2:$AJ$949>AJ14))+COUNTIFS($L$2:L14,L14,$AJ$2:AJ14,AJ14)-1,1+SUMPRODUCT(($L$2:$L$949=TRUE)*($AK$2:$AK$949>AK14))+COUNTIFS($L$2:L14,L14,$AK$2:AK14,AK14)-1,1+SUMPRODUCT(($L$2:$L$949=TRUE)*($AL$2:$AL$949>AL14))+COUNTIFS($L$2:L14,L14,$AL$2:AL14,AL14)-1,1+SUMPRODUCT(($L$2:$L$949=TRUE)*($AM$2:$AM$949>AM14))+COUNTIFS($L$2:L14,L14,$AM$2:AM14,AM14)-1,1+SUMPRODUCT(($L$2:$L$949=TRUE)*($AN$2:$AN$949>AN14))+COUNTIFS($L$2:L14,L14,$AN$2:AN14,AN14)-1)),"") -> 29 | D14: Ozzie Albies | E14: =IFERROR(INDEX('Auction Log'!$C$4:$C$806,MATCH(D14,'Auction Log'!$B$4:$B$806,0)),"") ->  | F14: =IFERROR(INDEX('Auction-Rank'!$C$2:$C$948,MATCH(D14,'Auction-Rank'!$A$2:$A$948,0)),"") -> 2B | G14: =IFERROR(IF(F14=I14,"",IF(INDEX('Your Roto Auction'!$C$11:$C$634,MATCH(D14,'Your Roto Auction'!$D$11:$D$634,0))="",IF(I14<>"",I14,""),INDEX('Your Roto Auction'!$C$11:$C$634,MATCH(D14,'Your Roto Auction'!$D$11:$D$634,0)))),"") ->  | H14: 2B | J14: =INDEX('Auction-Rank'!$V$2:$V$948,MATCH(D14,'Auction-Rank'!$A$2:$A$948,0)) -> TRUE | K14: FALSE | L14: =IF(J14=FALSE,FALSE,IF(AND('Your Roto Auction'!$Q$6="Hide Drafted Players",K14=TRUE),FALSE,IF(OR('Your Roto Auction'!$Q$5="Show All Positions",AND('Your Roto Auction'!$Q$5="Only Show: C",H14="C"),AND('Your Roto Auction'!$Q$5="Only Show: 1B",H14="1B"),AND('Your Roto Auction'!$Q$5="Only Show: 2B",H14="2B"),AND('Your Roto Auction'!$Q$5="Only Show: 3B",H14="3B"),AND('Your Roto Auction'!$Q$5="Only Show: SS",H14="SS"),AND('Your Roto Auction'!$Q$5="Only Show: OF",H14="OF"),AND('Your Roto Auction'!$Q$5="Only Show: SP",H14="SP"),AND('Your Roto Auction'!$Q$5="Only Show: RP",H14="RP"),AND('Your Roto Auction'!$Q$5="Only Show: CI",OR(H14={"1B","3B"})),AND('Your Roto Auction'!$Q$5="Only Show: MI",OR(H14={"2B","SS"})),AND('Your Roto Auction'!$Q$5="Only Show: IF",OR(H14={"C","1B","2B","3B","SS"})),AND('Your Roto Auction'!$Q$5="Only Show: DH",OR(H14={"C","1B","2B","3B","SS","OF","DH"})),AND('Your Roto Auction'!$Q$5="Only Show: P",OR(H14={"SP","RP"})),AND('Your Roto Auction'!$Q$5="Only Show: LF",ISERROR(SEARCH("LF",VLOOKUP($D14,'Auction-Rank'!$A$2:$D$948,4,FALSE)))=FALSE),AND('Your Roto Auction'!$Q$5="Only Show: RF",ISERROR(SEARCH("RF",VLOOKUP($D14,'Auction-Rank'!$A$2:$D$948,4,FALSE)))=FALSE),AND('Your Roto Auction'!$Q$5="Only Show: CF",ISERROR(SEARCH("CF",VLOOKUP($D14,'Auction-Rank'!$A$2:$D$948,4,FALSE)))=FALSE)),TRUE,FALSE))) -> TRUE | M14: =IFERROR(IF(VLOOKUP($D14,'Inflation-Tracking'!$A$5:$AD$862,22,FALSE)="",-9999,VLOOKUP($D14,'Inflation-Tracking'!$A$5:$AD$862,22,FALSE)),-9999) -> 27.13371472 | N14: =IF(D14="Non-Ranked Player",-1001,IFERROR(VLOOKUP($D14,'All-WERTH'!$C$2:$E$793,3,FALSE),-1000)) -> 3.473611726 | O14: =IF(D14="Non-Ranked Player",10000,IFERROR(IF(VLOOKUP(D14,'Auction-Rank'!$A$2:$X$948,24,FALSE)="",9999,VLOOKUP(D14,'Auction-Rank'!$A$2:$X$948,24,FALSE)),9999)) -> 40 | P14: =IF($D14="Unlisted Player",-1001,IFERROR(IF(VLOOKUP($D14,'All-WERTH'!$C$2:$AC$793,4,FALSE)="",-1000,VLOOKUP($D14,'All-WERTH'!$C$2:$AC$793,4,FALSE)),-1000)) -> 1.380993434 | Q14: =IF($D14="Unlisted Player",-1001,IFERROR(IF(VLOOKUP($D14,'All-WERTH'!$C$2:$AC$793,5,FALSE)="",-1000,VLOOKUP($D14,'All-WERTH'!$C$2:$AC$793,5,FALSE)),-1000)) -> -0.1444208745 | R14: =IF($D14="Unlisted Player",-1001,IFERROR(IF(VLOOKUP($D14,'All-WERTH'!$C$2:$AC$793,6,FALSE)="",-1000,VLOOKUP($D14,'All-WERTH'!$C$2:$AC$793,6,FALSE)),-1000)) -> 1.34360458 | S14: =IF($D14="Unlisted Player",-1001,IFERROR(IF(VLOOKUP($D14,'All-WERTH'!$C$2:$AC$793,7,FALSE)="",-1000,VLOOKUP($D14,'All-WERTH'!$C$2:$AC$793,7,FALSE)),-1000)) -> 0.2275759565 | T14: =IF($D14="Unlisted Player",-1001,IFERROR(IF(VLOOKUP($D14,'All-WERTH'!$C$2:$AC$793,8,FALSE)="",-1000,VLOOKUP($D14,'All-WERTH'!$C$2:$AC$793,8,FALSE)),-1000)) -> 0.6658586298 | U14: =IF($D14="Unlisted Player",-1001,IFERROR(IF(VLOOKUP($D14,'All-WERTH'!$C$2:$AC$793,9,FALSE)="",-1000,VLOOKUP($D14,'All-WERTH'!$C$2:$AC$793,9,FALSE)),-1000)) -> -1000 | V14: =IF($D14="Unlisted Player",-1001,IFERROR(IF(VLOOKUP($D14,'All-WERTH'!$C$2:$AC$793,10,FALSE)="",-1000,VLOOKUP($D14,'All-WERTH'!$C$2:$AC$793,10,FALSE)),-1000)) -> -1000 | W14: =IF($D14="Unlisted Player",-1001,IFERROR(IF(VLOOKUP($D14,'All-WERTH'!$C$2:$AC$793,11,FALSE)="",-1000,VLOOKUP($D14,'All-WERTH'!$C$2:$AC$793,11,FALSE)),-1000)) -> -1000 | X14: =IF($D14="Unlisted Player",-1001,IFERROR(IF(VLOOKUP($D14,'All-WERTH'!$C$2:$AC$793,12,FALSE)="",-1000,VLOOKUP($D14,'All-WERTH'!$C$2:$AC$793,12,FALSE)),-1000)) -> -1000 | Y14: =IF($D14="Unlisted Player",-1001,IFERROR(IF(VLOOKUP($D14,'All-WERTH'!$C$2:$AC$793,13,FALSE)="",-1000,VLOOKUP($D14,'All-WERTH'!$C$2:$AC$793,13,FALSE)),-1000)) -> -1000 | Z14: =IF($D14="Unlisted Player",-1001,IFERROR(IF(VLOOKUP($D14,'All-WERTH'!$C$2:$AC$793,14,FALSE)="",-1000,VLOOKUP($D14,'All-WERTH'!$C$2:$AC$793,14,FALSE)),-1000)) -> -1000 | AA14: =IF($D14="Unlisted Player",-1001,IFERROR(IF(VLOOKUP($D14,'All-WERTH'!$C$2:$AC$793,15,FALSE)="",-1000,VLOOKUP($D14,'All-WERTH'!$C$2:$AC$793,15,FALSE)),-1000)) -> -1000 | AB14: =IF($D14="Unlisted Player",-1001,IFERROR(IF(VLOOKUP($D14,'All-WERTH'!$C$2:$AC$793,16,FALSE)="",-1000,VLOOKUP($D14,'All-WERTH'!$C$2:$AC$793,16,FALSE)),-1000)) -> -1000 | AC14: =IF($D14="Unlisted Player",-1001,IFERROR(IF(VLOOKUP($D14,'All-WERTH'!$C$2:$AC$793,17,FALSE)="",-1000,VLOOKUP($D14,'All-WERTH'!$C$2:$AC$793,17,FALSE)),-1000)) -> -1000 | AD14: =IF($D14="Unlisted Player",-1001,IFERROR(IF(VLOOKUP($D14,'All-WERTH'!$C$2:$AC$793,18,FALSE)="",-1000,VLOOKUP($D14,'All-WERTH'!$C$2:$AC$793,18,FALSE)),-1000)) -> -1000 | AE14: =IF($D14="Unlisted Player",-1001,IFERROR(IF(VLOOKUP($D14,'All-WERTH'!$C$2:$AC$793,19,FALSE)="",-1000,VLOOKUP($D14,'All-WERTH'!$C$2:$AC$793,19,FALSE)),-1000)) -> -1000 | AF14: =IF($D14="Unlisted Player",-1001,IFERROR(IF(VLOOKUP($D14,'All-WERTH'!$C$2:$AC$793,20,FALSE)="",-1000,VLOOKUP($D14,'All-WERTH'!$C$2:$AC$793,20,FALSE)),-1000)) -> -1000 | AG14: =IF($D14="Unlisted Player",-1001,IFERROR(IF(VLOOKUP($D14,'All-WERTH'!$C$2:$AC$793,21,FALSE)="",-1000,VLOOKUP($D14,'All-WERTH'!$C$2:$AC$793,21,FALSE)),-1000)) -> -1000 | AH14: =IF($D14="Unlisted Player",-1001,IFERROR(IF(VLOOKUP($D14,'All-WERTH'!$C$2:$AC$793,22,FALSE)="",-1000,VLOOKUP($D14,'All-WERTH'!$C$2:$AC$793,22,FALSE)),-1000)) -> -1000 | AI14: =IF($D14="Unlisted Player",-1001,IFERROR(IF(VLOOKUP($D14,'All-WERTH'!$C$2:$AC$793,23,FALSE)="",-1000,VLOOKUP($D14,'All-WERTH'!$C$2:$AC$793,23,FALSE)),-1000)) -> -1000 | AJ14: =IF($D14="Unlisted Player",-1001,IFERROR(IF(VLOOKUP($D14,'All-WERTH'!$C$2:$AC$793,24,FALSE)="",-1000,VLOOKUP($D14,'All-WERTH'!$C$2:$AC$793,24,FALSE)),-1000)) -> -1000 | AK14: =IF($D14="Unlisted Player",-1001,IFERROR(IF(VLOOKUP($D14,'All-WERTH'!$C$2:$AC$793,25,FALSE)="",-1000,VLOOKUP($D14,'All-WERTH'!$C$2:$AC$793,25,FALSE)),-1000)) -> -1000 | AL14: =IF($D14="Unlisted Player",-1001,IFERROR(IF(VLOOKUP($D14,'All-WERTH'!$C$2:$AC$793,26,FALSE)="",-1000,VLOOKUP($D14,'All-WERTH'!$C$2:$AC$793,26,FALSE)),-1000)) -> -1000 | AM14: =IF($D14="Unlisted Player",-1001,IFERROR(IF(VLOOKUP($D14,'All-WERTH'!$C$2:$AC$793,27,FALSE)="",-1000,VLOOKUP($D14,'All-WERTH'!$C$2:$AC$793,27,FALSE)),-1000)) -> -1000 | AN14: =IF(D14="Non-Ranked Player",-1001,IFERROR(VLOOKUP($D14,'All-WERTH'!$C$2:$AF$793,30,FALSE),-1000)) -> 6.712100153
A15: Trevor Story | B15: =IFERROR(INDEX($A$1:$A$948,SMALL(IF($A$1:$A$948<>"",ROW($A$1:$A$948)),ROW(A14))),"") -> Trevor Story | C15: =IFERROR(IF(L15=FALSE,"",CHOOSE(MATCH(RIGHT('Your Roto Auction'!$Q$4,LEN('Your Roto Auction'!$Q$4)-8),$M$1:$AN$1,0),1+SUMPRODUCT(($L$2:$L$949=TRUE)*($M$2:$M$949>M15))+COUNTIFS($L$2:L15,L15,$M$2:M15,M15)-1,1+SUMPRODUCT(($L$2:$L$949=TRUE)*($N$2:$N$949>N15))+COUNTIFS($L$2:L15,L15,$N$2:N15,N15)-1,1+SUMPRODUCT(($L$2:$L$949=TRUE)*($O$2:$O$949<O15))+COUNTIFS($L$2:L15,L15,$O$2:O15,O15)-1,1+SUMPRODUCT(($L$2:$L$949=TRUE)*($P$2:$P$949>P15))+COUNTIFS($L$2:L15,L15,$P$2:P15,P15)-1,1+SUMPRODUCT(($L$2:$L$949=TRUE)*($Q$2:$Q$949>Q15))+COUNTIFS($L$2:L15,L15,$Q$2:Q15,Q15)-1,1+SUMPRODUCT(($L$2:$L$949=TRUE)*($R$2:$R$949>R15))+COUNTIFS($L$2:L15,L15,$R$2:R15,R15)-1,1+SUMPRODUCT(($L$2:$L$949=TRUE)*($S$2:$S$949>S15))+COUNTIFS($L$2:L15,L15,$S$2:S15,S15)-1,1+SUMPRODUCT(($L$2:$L$949=TRUE)*($T$2:$T$949>T15))+COUNTIFS($L$2:L15,L15,$T$2:T15,T15)-1,1+SUMPRODUCT(($L$2:$L$949=TRUE)*($U$2:$U$949>U15))+COUNTIFS($L$2:L15,L15,$U$2:U15,U15)-1,1+SUMPRODUCT(($L$2:$L$949=TRUE)*($V$2:$V$949>V15))+COUNTIFS($L$2:L15,L15,$V$2:V15,V15)-1,1+SUMPRODUCT(($L$2:$L$949=TRUE)*($W$2:$W$949>W15))+COUNTIFS($L$2:L15,L15,$W$2:W15,W15)-1,1+SUMPRODUCT(($L$2:$L$949=TRUE)*($X$2:$X$949>X15))+COUNTIFS($L$2:L15,L15,$X$2:X15,X15)-1,1+SUMPRODUCT(($L$2:$L$949=TRUE)*($Y$2:$Y$949>Y15))+COUNTIFS($L$2:L15,L15,$Y$2:Y15,Y15)-1,1+SUMPRODUCT(($L$2:$L$949=TRUE)*($Z$2:$Z$949>Z15))+COUNTIFS($L$2:L15,L15,$Z$2:Z15,Z15)-1,1+SUMPRODUCT(($L$2:$L$949=TRUE)*($AA$2:$AA$949>AA15))+COUNTIFS($L$2:L15,L15,$AA$2:AA15,AA15)-1,1+SUMPRODUCT(($L$2:$L$949=TRUE)*($AB$2:$AB$949>AB15))+COUNTIFS($L$2:L15,L15,$AB$2:AB15,AB15)-1,1+SUMPRODUCT(($L$2:$L$949=TRUE)*($AC$2:$AC$949>AC15))+COUNTIFS($L$2:L15,L15,$AC$2:AC15,AC15)-1,1+SUMPRODUCT(($L$2:$L$949=TRUE)*($AD$2:$AD$949>AD15))+COUNTIFS($L$2:L15,L15,$AD$2:AD15,AD15)-1,1+SUMPRODUCT(($L$2:$L$949=TRUE)*($AE$2:$AE$949>AE15))+COUNTIFS($L$2:L15,L15,$AE$2:AE15,AE15)-1,1+SUMPRODUCT(($L$2:$L$949=TRUE)*($AF$2:$AF$949>AF15))+COUNTIFS($L$2:L15,L15,$AF$2:AF15,AF15)-1,1+SUMPRODUCT(($L$2:$L$949=TRUE)*($AG$2:$AG$949>AG15))+COUNTIFS($L$2:L15,L15,$AG$2:AG15,AG15)-1,1+SUMPRODUCT(($L$2:$L$949=TRUE)*($AH$2:$AH$949>AH15))+COUNTIFS($L$2:L15,L15,$AH$2:AH15,AH15)-1,1+SUMPRODUCT(($L$2:$L$949=TRUE)*($AI$2:$AI$949>AI15))+COUNTIFS($L$2:L15,L15,$AI$2:AI15,AI15)-1,1+SUMPRODUCT(($L$2:$L$949=TRUE)*($AJ$2:$AJ$949>AJ15))+COUNTIFS($L$2:L15,L15,$AJ$2:AJ15,AJ15)-1,1+SUMPRODUCT(($L$2:$L$949=TRUE)*($AK$2:$AK$949>AK15))+COUNTIFS($L$2:L15,L15,$AK$2:AK15,AK15)-1,1+SUMPRODUCT(($L$2:$L$949=TRUE)*($AL$2:$AL$949>AL15))+COUNTIFS($L$2:L15,L15,$AL$2:AL15,AL15)-1,1+SUMPRODUCT(($L$2:$L$949=TRUE)*($AM$2:$AM$949>AM15))+COUNTIFS($L$2:L15,L15,$AM$2:AM15,AM15)-1,1+SUMPRODUCT(($L$2:$L$949=TRUE)*($AN$2:$AN$949>AN15))+COUNTIFS($L$2:L15,L15,$AN$2:AN15,AN15)-1)),"") -> 524 | D15: Sandy Alcantara | E15: =IFERROR(INDEX('Auction Log'!$C$4:$C$806,MATCH(D15,'Auction Log'!$B$4:$B$806,0)),"") ->  | F15: =IFERROR(INDEX('Auction-Rank'!$C$2:$C$948,MATCH(D15,'Auction-Rank'!$A$2:$A$948,0)),"") -> SP | G15: =IFERROR(IF(F15=I15,"",IF(INDEX('Your Roto Auction'!$C$11:$C$634,MATCH(D15,'Your Roto Auction'!$D$11:$D$634,0))="",IF(I15<>"",I15,""),INDEX('Your Roto Auction'!$C$11:$C$634,MATCH(D15,'Your Roto Auction'!$D$11:$D$634,0)))),"") ->  | H15: SP | J15: =INDEX('Auction-Rank'!$V$2:$V$948,MATCH(D15,'Auction-Rank'!$A$2:$A$948,0)) -> TRUE | K15: FALSE | L15: =IF(J15=FALSE,FALSE,IF(AND('Your Roto Auction'!$Q$6="Hide Drafted Players",K15=TRUE),FALSE,IF(OR('Your Roto Auction'!$Q$5="Show All Positions",AND('Your Roto Auction'!$Q$5="Only Show: C",H15="C"),AND('Your Roto Auction'!$Q$5="Only Show: 1B",H15="1B"),AND('Your Roto Auction'!$Q$5="Only Show: 2B",H15="2B"),AND('Your Roto Auction'!$Q$5="Only Show: 3B",H15="3B"),AND('Your Roto Auction'!$Q$5="Only Show: SS",H15="SS"),AND('Your Roto Auction'!$Q$5="Only Show: OF",H15="OF"),AND('Your Roto Auction'!$Q$5="Only Show: SP",H15="SP"),AND('Your Roto Auction'!$Q$5="Only Show: RP",H15="RP"),AND('Your Roto Auction'!$Q$5="Only Show: CI",OR(H15={"1B","3B"})),AND('Your Roto Auction'!$Q$5="Only Show: MI",OR(H15={"2B","SS"})),AND('Your Roto Auction'!$Q$5="Only Show: IF",OR(H15={"C","1B","2B","3B","SS"})),AND('Your Roto Auction'!$Q$5="Only Show: DH",OR(H15={"C","1B","2B","3B","SS","OF","DH"})),AND('Your Roto Auction'!$Q$5="Only Show: P",OR(H15={"SP","RP"})),AND('Your Roto Auction'!$Q$5="Only Show: LF",ISERROR(SEARCH("LF",VLOOKUP($D15,'Auction-Rank'!$A$2:$D$948,4,FALSE)))=FALSE),AND('Your Roto Auction'!$Q$5="Only Show: RF",ISERROR(SEARCH("RF",VLOOKUP($D15,'Auction-Rank'!$A$2:$D$948,4,FALSE)))=FALSE),AND('Your Roto Auction'!$Q$5="Only Show: CF",ISERROR(SEARCH("CF",VLOOKUP($D15,'Auction-Rank'!$A$2:$D$948,4,FALSE)))=FALSE)),TRUE,FALSE))) -> TRUE | M15: =IFERROR(IF(VLOOKUP($D15,'Inflation-Tracking'!$A$5:$AD$862,22,FALSE)="",-9999,VLOOKUP($D15,'Inflation-Tracking'!$A$5:$AD$862,22,FALSE)),-9999) -> -1.082051204 | N15: =IF(D15="Non-Ranked Player",-1001,IFERROR(VLOOKUP($D15,'All-WERTH'!$C$2:$E$793,3,FALSE),-1000)) -> -7.551970049 | O15: =IF(D15="Non-Ranked Player",10000,IFERROR(IF(VLOOKUP(D15,'Auction-Rank'!$A$2:$X$948,24,FALSE)="",9999,VLOOKUP(D15,'Auction-Rank'!$A$2:$X$948,24,FALSE)),9999)) -> 247 | P15: =IF($D15="Unlisted Player",-1001,IFERROR(IF(VLOOKUP($D15,'All-WERTH'!$C$2:$AC$793,4,FALSE)="",-1000,VLOOKUP($D15,'All-WERTH'!$C$2:$AC$793,4,FALSE)),-1000)) -> -1000 | Q15: =IF($D15="Unlisted Player",-1001,IFERROR(IF(VLOOKUP($D15,'All-WERTH'!$C$2:$AC$793,5,FALSE)="",-1000,VLOOKUP($D15,'All-WERTH'!$C$2:$AC$793,5,FALSE)),-1000)) -> -1000 | R15: =IF($D15="Unlisted Player",-1001,IFERROR(IF(VLOOKUP($D15,'All-WERTH'!$C$2:$AC$793,6,FALSE)="",-1000,VLOOKUP($D15,'All-WERTH'!$C$2:$AC$793,6,FALSE)),-1000)) -> -1000 | S15: =IF($D15="Unlisted Player",-1001,IFERROR(IF(VLOOKUP($D15,'All-WERTH'!$C$2:$AC$793,7,FALSE)="",-1000,VLOOKUP($D15,'All-WERTH'!$C$2:$AC$793,7,FALSE)),-1000)) -> -1000 | T15: =IF($D15="Unlisted Player",-1001,IFERROR(IF(VLOOKUP($D15,'All-WERTH'!$C$2:$AC$793,8,FALSE)="",-1000,VLOOKUP($D15,'All-WERTH'!$C$2:$AC$793,8,FALSE)),-1000)) -> -1000 | U15: =IF($D15="Unlisted Player",-1001,IFERROR(IF(VLOOKUP($D15,'All-WERTH'!$C$2:$AC$793,9,FALSE)="",-1000,VLOOKUP($D15,'All-WERTH'!$C$2:$AC$793,9,FALSE)),-1000)) -> -1000 | V15: =IF($D15="Unlisted Player",-1001,IFERROR(IF(VLOOKUP($D15,'All-WERTH'!$C$2:$AC$793,10,FALSE)="",-1000,VLOOKUP($D15,'All-WERTH'!$C$2:$AC$793,10,FALSE)),-1000)) -> -1000 | W15: =IF($D15="Unlisted Player",-1001,IFERROR(IF(VLOOKUP($D15,'All-WERTH'!$C$2:$AC$793,11,FALSE)="",-1000,VLOOKUP($D15,'All-WERTH'!$C$2:$AC$793,11,FALSE)),-1000)) -> -1000 | X15: =IF($D15="Unlisted Player",-1001,IFERROR(IF(VLOOKUP($D15,'All-WERTH'!$C$2:$AC$793,12,FALSE)="",-1000,VLOOKUP($D15,'All-WERTH'!$C$2:$AC$793,12,FALSE)),-1000)) -> -1000 | Y15: =IF($D15="Unlisted Player",-1001,IFERROR(IF(VLOOKUP($D15,'All-WERTH'!$C$2:$AC$793,13,FALSE)="",-1000,VLOOKUP($D15,'All-WERTH'!$C$2:$AC$793,13,FALSE)),-1000)) -> -1000 | Z15: =IF($D15="Unlisted Player",-1001,IFERROR(IF(VLOOKUP($D15,'All-WERTH'!$C$2:$AC$793,14,FALSE)="",-1000,VLOOKUP($D15,'All-WERTH'!$C$2:$AC$793,14,FALSE)),-1000)) -> -1000 | AA15: =IF($D15="Unlisted Player",-1001,IFERROR(IF(VLOOKUP($D15,'All-WERTH'!$C$2:$AC$793,15,FALSE)="",-1000,VLOOKUP($D15,'All-WERTH'!$C$2:$AC$793,15,FALSE)),-1000)) -> -1000 | AB15: =IF($D15="Unlisted Player",-1001,IFERROR(IF(VLOOKUP($D15,'All-WERTH'!$C$2:$AC$793,16,FALSE)="",-1000,VLOOKUP($D15,'All-WERTH'!$C$2:$AC$793,16,FALSE)),-1000)) -> -0.326692853 | AC15: =IF($D15="Unlisted Player",-1001,IFERROR(IF(VLOOKUP($D15,'All-WERTH'!$C$2:$AC$793,17,FALSE)="",-1000,VLOOKUP($D15,'All-WERTH'!$C$2:$AC$793,17,FALSE)),-1000)) -> -0.4472348245 | AD15: =IF($D15="Unlisted Player",-1001,IFERROR(IF(VLOOKUP($D15,'All-WERTH'!$C$2:$AC$793,18,FALSE)="",-1000,VLOOKUP($D15,'All-WERTH'!$C$2:$AC$793,18,FALSE)),-1000)) -> -0.3576846821 | AE15: =IF($D15="Unlisted Player",-1001,IFERROR(IF(VLOOKUP($D15,'All-WERTH'!$C$2:$AC$793,19,FALSE)="",-1000,VLOOKUP($D15,'All-WERTH'!$C$2:$AC$793,19,FALSE)),-1000)) -> -2.665706726 | AF15: =IF($D15="Unlisted Player",-1001,IFERROR(IF(VLOOKUP($D15,'All-WERTH'!$C$2:$AC$793,20,FALSE)="",-1000,VLOOKUP($D15,'All-WERTH'!$C$2:$AC$793,20,FALSE)),-1000)) -> -3.754650964 | AG15: =IF($D15="Unlisted Player",-1001,IFERROR(IF(VLOOKUP($D15,'All-WERTH'!$C$2:$AC$793,21,FALSE)="",-1000,VLOOKUP($D15,'All-WERTH'!$C$2:$AC$793,21,FALSE)),-1000)) -> -1000 | AH15: =IF($D15="Unlisted Player",-1001,IFERROR(IF(VLOOKUP($D15,'All-WERTH'!$C$2:$AC$793,22,FALSE)="",-1000,VLOOKUP($D15,'All-WERTH'!$C$2:$AC$793,22,FALSE)),-1000)) -> -1000 | AI15: =IF($D15="Unlisted Player",-1001,IFERROR(IF(VLOOKUP($D15,'All-WERTH'!$C$2:$AC$793,23,FALSE)="",-1000,VLOOKUP($D15,'All-WERTH'!$C$2:$AC$793,23,FALSE)),-1000)) -> -1000 | AJ15: =IF($D15="Unlisted Player",-1001,IFERROR(IF(VLOOKUP($D15,'All-WERTH'!$C$2:$AC$793,24,FALSE)="",-1000,VLOOKUP($D15,'All-WERTH'!$C$2:$AC$793,24,FALSE)),-1000)) -> -1000 | AK15: =IF($D15="Unlisted Player",-1001,IFERROR(IF(VLOOKUP($D15,'All-WERTH'!$C$2:$AC$793,25,FALSE)="",-1000,VLOOKUP($D15,'All-WERTH'!$C$2:$AC$793,25,FALSE)),-1000)) -> -1000 | AL15: =IF($D15="Unlisted Player",-1001,IFERROR(IF(VLOOKUP($D15,'All-WERTH'!$C$2:$AC$793,26,FALSE)="",-1000,VLOOKUP($D15,'All-WERTH'!$C$2:$AC$793,26,FALSE)),-1000)) -> -1000 | AM15: =IF($D15="Unlisted Player",-1001,IFERROR(IF(VLOOKUP($D15,'All-WERTH'!$C$2:$AC$793,27,FALSE)="",-1000,VLOOKUP($D15,'All-WERTH'!$C$2:$AC$793,27,FALSE)),-1000)) -> -1000 | AN15: =IF(D15="Non-Ranked Player",-1001,IFERROR(VLOOKUP($D15,'All-WERTH'!$C$2:$AF$793,30,FALSE),-1000)) -> -4.456999153
A16: Alex Bregman | B16: =IFERROR(INDEX($A$1:$A$948,SMALL(IF($A$1:$A$948<>"",ROW($A$1:$A$948)),ROW(A15))),"") -> Alex Bregman | C16: =IFERROR(IF(L16=FALSE,"",CHOOSE(MATCH(RIGHT('Your Roto Auction'!$Q$4,LEN('Your Roto Auction'!$Q$4)-8),$M$1:$AN$1,0),1+SUMPRODUCT(($L$2:$L$949=TRUE)*($M$2:$M$949>M16))+COUNTIFS($L$2:L16,L16,$M$2:M16,M16)-1,1+SUMPRODUCT(($L$2:$L$949=TRUE)*($N$2:$N$949>N16))+COUNTIFS($L$2:L16,L16,$N$2:N16,N16)-1,1+SUMPRODUCT(($L$2:$L$949=TRUE)*($O$2:$O$949<O16))+COUNTIFS($L$2:L16,L16,$O$2:O16,O16)-1,1+SUMPRODUCT(($L$2:$L$949=TRUE)*($P$2:$P$949>P16))+COUNTIFS($L$2:L16,L16,$P$2:P16,P16)-1,1+SUMPRODUCT(($L$2:$L$949=TRUE)*($Q$2:$Q$949>Q16))+COUNTIFS($L$2:L16,L16,$Q$2:Q16,Q16)-1,1+SUMPRODUCT(($L$2:$L$949=TRUE)*($R$2:$R$949>R16))+COUNTIFS($L$2:L16,L16,$R$2:R16,R16)-1,1+SUMPRODUCT(($L$2:$L$949=TRUE)*($S$2:$S$949>S16))+COUNTIFS($L$2:L16,L16,$S$2:S16,S16)-1,1+SUMPRODUCT(($L$2:$L$949=TRUE)*($T$2:$T$949>T16))+COUNTIFS($L$2:L16,L16,$T$2:T16,T16)-1,1+SUMPRODUCT(($L$2:$L$949=TRUE)*($U$2:$U$949>U16))+COUNTIFS($L$2:L16,L16,$U$2:U16,U16)-1,1+SUMPRODUCT(($L$2:$L$949=TRUE)*($V$2:$V$949>V16))+COUNTIFS($L$2:L16,L16,$V$2:V16,V16)-1,1+SUMPRODUCT(($L$2:$L$949=TRUE)*($W$2:$W$949>W16))+COUNTIFS($L$2:L16,L16,$W$2:W16,W16)-1,1+SUMPRODUCT(($L$2:$L$949=TRUE)*($X$2:$X$949>X16))+COUNTIFS($L$2:L16,L16,$X$2:X16,X16)-1,1+SUMPRODUCT(($L$2:$L$949=TRUE)*($Y$2:$Y$949>Y16))+COUNTIFS($L$2:L16,L16,$Y$2:Y16,Y16)-1,1+SUMPRODUCT(($L$2:$L$949=TRUE)*($Z$2:$Z$949>Z16))+COUNTIFS($L$2:L16,L16,$Z$2:Z16,Z16)-1,1+SUMPRODUCT(($L$2:$L$949=TRUE)*($AA$2:$AA$949>AA16))+COUNTIFS($L$2:L16,L16,$AA$2:AA16,AA16)-1,1+SUMPRODUCT(($L$2:$L$949=TRUE)*($AB$2:$AB$949>AB16))+COUNTIFS($L$2:L16,L16,$AB$2:AB16,AB16)-1,1+SUMPRODUCT(($L$2:$L$949=TRUE)*($AC$2:$AC$949>AC16))+COUNTIFS($L$2:L16,L16,$AC$2:AC16,AC16)-1,1+SUMPRODUCT(($L$2:$L$949=TRUE)*($AD$2:$AD$949>AD16))+COUNTIFS($L$2:L16,L16,$AD$2:AD16,AD16)-1,1+SUMPRODUCT(($L$2:$L$949=TRUE)*($AE$2:$AE$949>AE16))+COUNTIFS($L$2:L16,L16,$AE$2:AE16,AE16)-1,1+SUMPRODUCT(($L$2:$L$949=TRUE)*($AF$2:$AF$949>AF16))+COUNTIFS($L$2:L16,L16,$AF$2:AF16,AF16)-1,1+SUMPRODUCT(($L$2:$L$949=TRUE)*($AG$2:$AG$949>AG16))+COUNTIFS($L$2:L16,L16,$AG$2:AG16,AG16)-1,1+SUMPRODUCT(($L$2:$L$949=TRUE)*($AH$2:$AH$949>AH16))+COUNTIFS($L$2:L16,L16,$AH$2:AH16,AH16)-1,1+SUMPRODUCT(($L$2:$L$949=TRUE)*($AI$2:$AI$949>AI16))+COUNTIFS($L$2:L16,L16,$AI$2:AI16,AI16)-1,1+SUMPRODUCT(($L$2:$L$949=TRUE)*($AJ$2:$AJ$949>AJ16))+COUNTIFS($L$2:L16,L16,$AJ$2:AJ16,AJ16)-1,1+SUMPRODUCT(($L$2:$L$949=TRUE)*($AK$2:$AK$949>AK16))+COUNTIFS($L$2:L16,L16,$AK$2:AK16,AK16)-1,1+SUMPRODUCT(($L$2:$L$949=TRUE)*($AL$2:$AL$949>AL16))+COUNTIFS($L$2:L16,L16,$AL$2:AL16,AL16)-1,1+SUMPRODUCT(($L$2:$L$949=TRUE)*($AM$2:$AM$949>AM16))+COUNTIFS($L$2:L16,L16,$AM$2:AM16,AM16)-1,1+SUMPRODUCT(($L$2:$L$949=TRUE)*($AN$2:$AN$949>AN16))+COUNTIFS($L$2:L16,L16,$AN$2:AN16,AN16)-1)),"") -> 574 | D16: Jorge Alfaro | E16: =IFERROR(INDEX('Auction Log'!$C$4:$C$806,MATCH(D16,'Auction Log'!$B$4:$B$806,0)),"") ->  | F16: =IFERROR(INDEX('Auction-Rank'!$C$2:$C$948,MATCH(D16,'Auction-Rank'!$A$2:$A$948,0)),"") -> C | G16: =IFERROR(IF(F16=I16,"",IF(INDEX('Your Roto Auction'!$C$11:$C$634,MATCH(D16,'Your Roto Auction'!$D$11:$D$634,0))="",IF(I16<>"",I16,""),INDEX('Your Roto Auction'!$C$11:$C$634,MATCH(D16,'Your Roto Auction'!$D$11:$D$634,0)))),"") ->  | H16: C | J16: =INDEX('Auction-Rank'!$V$2:$V$948,MATCH(D16,'Auction-Rank'!$A$2:$A$948,0)) -> TRUE | K16: FALSE | L16: =IF(J16=FALSE,FALSE,IF(AND('Your Roto Auction'!$Q$6="Hide Drafted Players",K16=TRUE),FALSE,IF(OR('Your Roto Auction'!$Q$5="Show All Positions",AND('Your Roto Auction'!$Q$5="Only Show: C",H16="C"),AND('Your Roto Auction'!$Q$5="Only Show: 1B",H16="1B"),AND('Your Roto Auction'!$Q$5="Only Show: 2B",H16="2B"),AND('Your Roto Auction'!$Q$5="Only Show: 3B",H16="3B"),AND('Your Roto Auction'!$Q$5="Only Show: SS",H16="SS"),AND('Your Roto Auction'!$Q$5="Only Show: OF",H16="OF"),AND('Your Roto Auction'!$Q$5="Only Show: SP",H16="SP"),AND('Your Roto Auction'!$Q$5="Only Show: RP",H16="RP"),AND('Your Roto Auction'!$Q$5="Only Show: CI",OR(H16={"1B","3B"})),AND('Your Roto Auction'!$Q$5="Only Show: MI",OR(H16={"2B","SS"})),AND('Your Roto Auction'!$Q$5="Only Show: IF",OR(H16={"C","1B","2B","3B","SS"})),AND('Your Roto Auction'!$Q$5="Only Show: DH",OR(H16={"C","1B","2B","3B","SS","OF","DH"})),AND('Your Roto Auction'!$Q$5="Only Show: P",OR(H16={"SP","RP"})),AND('Your Roto Auction'!$Q$5="Only Show: LF",ISERROR(SEARCH("LF",VLOOKUP($D16,'Auction-Rank'!$A$2:$D$948,4,FALSE)))=FALSE),AND('Your Roto Auction'!$Q$5="Only Show: RF",ISERROR(SEARCH("RF",VLOOKUP($D16,'Auction-Rank'!$A$2:$D$948,4,FALSE)))=FALSE),AND('Your Roto Auction'!$Q$5="Only Show: CF",ISERROR(SEARCH("CF",VLOOKUP($D16,'Auction-Rank'!$A$2:$D$948,4,FALSE)))=FALSE)),TRUE,FALSE))) -> TRUE | M16: =IFERROR(IF(VLOOKUP($D16,'Inflation-Tracking'!$A$5:$AD$862,22,FALSE)="",-9999,VLOOKUP($D16,'Inflation-Tracking'!$A$5:$AD$862,22,FALSE)),-9999) -> 1.011409424 | N16: =IF(D16="Non-Ranked Player",-1001,IFERROR(VLOOKUP($D16,'All-WERTH'!$C$2:$E$793,3,FALSE),-1000)) -> -8.429840414 | O16: =IF(D16="Non-Ranked Player",10000,IFERROR(IF(VLOOKUP(D16,'Auction-Rank'!$A$2:$X$948,24,FALSE)="",9999,VLOOKUP(D16,'Auction-Rank'!$A$2:$X$948,24,FALSE)),9999)) -> 313 | P16: =IF($D16="Unlisted Player",-1001,IFERROR(IF(VLOOKUP($D16,'All-WERTH'!$C$2:$AC$793,4,FALSE)="",-1000,VLOOKUP($D16,'All-WERTH'!$C$2:$AC$793,4,FALSE)),-1000)) -> -1.522033831 | Q16: =IF($D16="Unlisted Player",-1001,IFERROR(IF(VLOOKUP($D16,'All-WERTH'!$C$2:$AC$793,5,FALSE)="",-1000,VLOOKUP($D16,'All-WERTH'!$C$2:$AC$793,5,FALSE)),-1000)) -> -1.48806143 | R16: =IF($D16="Unlisted Player",-1001,IFERROR(IF(VLOOKUP($D16,'All-WERTH'!$C$2:$AC$793,6,FALSE)="",-1000,VLOOKUP($D16,'All-WERTH'!$C$2:$AC$793,6,FALSE)),-1000)) -> -2.638243403 | S16: =IF($D16="Unlisted Player",-1001,IFERROR(IF(VLOOKUP($D16,'All-WERTH'!$C$2:$AC$793,7,FALSE)="",-1000,VLOOKUP($D16,'All-WERTH'!$C$2:$AC$793,7,FALSE)),-1000)) -> -2.079431904 | T16: =IF($D16="Unlisted Player",-1001,IFERROR(IF(VLOOKUP($D16,'All-WERTH'!$C$2:$AC$793,8,FALSE)="",-1000,VLOOKUP($D16,'All-WERTH'!$C$2:$AC$793,8,FALSE)),-1000)) -> -0.7020698449 | U16: =IF($D16="Unlisted Player",-1001,IFERROR(IF(VLOOKUP($D16,'All-WERTH'!$C$2:$AC$793,9,FALSE)="",-1000,VLOOKUP($D16,'All-WERTH'!$C$2:$AC$793,9,FALSE)),-1000)) -> -1000 | V16: =IF($D16="Unlisted Player",-1001,IFERROR(IF(VLOOKUP($D16,'All-WERTH'!$C$2:$AC$793,10,FALSE)="",-1000,VLOOKUP($D16,'All-WERTH'!$C$2:$AC$793,10,FALSE)),-1000)) -> -1000 | W16: =IF($D16="Unlisted Player",-1001,IFERROR(IF(VLOOKUP($D16,'All-WERTH'!$C$2:$AC$793,11,FALSE)="",-1000,VLOOKUP($D16,'All-WERTH'!$C$2:$AC$793,11,FALSE)),-1000)) -> -1000 | X16: =IF($D16="Unlisted Player",-1001,IFERROR(IF(VLOOKUP($D16,'All-WERTH'!$C$2:$AC$793,12,FALSE)="",-1000,VLOOKUP($D16,'All-WERTH'!$C$2:$AC$793,12,FALSE)),-1000)) -> -1000 | Y16: =IF($D16="Unlisted Player",-1001,IFERROR(IF(VLOOKUP($D16,'All-WERTH'!$C$2:$AC$793,13,FALSE)="",-1000,VLOOKUP($D16,'All-WERTH'!$C$2:$AC$793,13,FALSE)),-1000)) -> -1000 | Z16: =IF($D16="Unlisted Player",-1001,IFERROR(IF(VLOOKUP($D16,'All-WERTH'!$C$2:$AC$793,14,FALSE)="",-1000,VLOOKUP($D16,'All-WERTH'!$C$2:$AC$793,14,FALSE)),-1000)) -> -1000 | AA16: =IF($D16="Unlisted Player",-1001,IFERROR(IF(VLOOKUP($D16,'All-WERTH'!$C$2:$AC$793,15,FALSE)="",-1000,VLOOKUP($D16,'All-WERTH'!$C$2:$AC$793,15,FALSE)),-1000)) -> -1000 | AB16: =IF($D16="Unlisted Player",-1001,IFERROR(IF(VLOOKUP($D16,'All-WERTH'!$C$2:$AC$793,16,FALSE)="",-1000,VLOOKUP($D16,'All-WERTH'!$C$2:$AC$793,16,FALSE)),-1000)) -> -1000 | AC16: =IF($D16="Unlisted Player",-1001,IFERROR(IF(VLOOKUP($D16,'All-WERTH'!$C$2:$AC$793,17,FALSE)="",-1000,VLOOKUP($D16,'All-WERTH'!$C$2:$AC$793,17,FALSE)),-1000)) -> -1000 | AD16: =IF($D16="Unlisted Player",-1001,IFERROR(IF(VLOOKUP($D16,'All-WERTH'!$C$2:$AC$793,18,FALSE)="",-1000,VLOOKUP($D16,'All-WERTH'!$C$2:$AC$793,18,FALSE)),-1000)) -> -1000 | AE16: =IF($D16="Unlisted Player",-1001,IFERROR(IF(VLOOKUP($D16,'All-WERTH'!$C$2:$AC$793,19,FALSE)="",-1000,VLOOKUP($D16,'All-WERTH'!$C$2:$AC$793,19,FALSE)),-1000)) -> -1000 | AF16: =IF($D16="Unlisted Player",-1001,IFERROR(IF(VLOOKUP($D16,'All-WERTH'!$C$2:$AC$793,20,FALSE)="",-1000,VLOOKUP($D16,'All-WERTH'!$C$2:$AC$793,20,FALSE)),-1000)) -> -1000 | AG16: =IF($D16="Unlisted Player",-1001,IFERROR(IF(VLOOKUP($D16,'All-WERTH'!$C$2:$AC$793,21,FALSE)="",-1000,VLOOKUP($D16,'All-WERTH'!$C$2:$AC$793,21,FALSE)),-1000)) -> -1000 | AH16: =IF($D16="Unlisted Player",-1001,IFERROR(IF(VLOOKUP($D16,'All-WERTH'!$C$2:$AC$793,22,FALSE)="",-1000,VLOOKUP($D16,'All-WERTH'!$C$2:$AC$793,22,FALSE)),-1000)) -> -1000 | AI16: =IF($D16="Unlisted Player",-1001,IFERROR(IF(VLOOKUP($D16,'All-WERTH'!$C$2:$AC$793,23,FALSE)="",-1000,VLOOKUP($D16,'All-WERTH'!$C$2:$AC$793,23,FALSE)),-1000)) -> -1000 | AJ16: =IF($D16="Unlisted Player",-1001,IFERROR(IF(VLOOKUP($D16,'All-WERTH'!$C$2:$AC$793,24,FALSE)="",-1000,VLOOKUP($D16,'All-WERTH'!$C$2:$AC$793,24,FALSE)),-1000)) -> -1000 | AK16: =IF($D16="Unlisted Player",-1001,IFERROR(IF(VLOOKUP($D16,'All-WERTH'!$C$2:$AC$793,25,FALSE)="",-1000,VLOOKUP($D16,'All-WERTH'!$C$2:$AC$793,25,FALSE)),-1000)) -> -1000 | AL16: =IF($D16="Unlisted Player",-1001,IFERROR(IF(VLOOKUP($D16,'All-WERTH'!$C$2:$AC$793,26,FALSE)="",-1000,VLOOKUP($D16,'All-WERTH'!$C$2:$AC$793,26,FALSE)),-1000)) -> -1000 | AM16: =IF($D16="Unlisted Player",-1001,IFERROR(IF(VLOOKUP($D16,'All-WERTH'!$C$2:$AC$793,27,FALSE)="",-1000,VLOOKUP($D16,'All-WERTH'!$C$2:$AC$793,27,FALSE)),-1000)) -> -1000 | AN16: =IF(D16="Non-Ranked Player",-1001,IFERROR(VLOOKUP($D16,'All-WERTH'!$C$2:$AF$793,30,FALSE),-1000)) -> -0.4387943463
A17: J.D. Martinez | B17: =IFERROR(INDEX($A$1:$A$948,SMALL(IF($A$1:$A$948<>"",ROW($A$1:$A$948)),ROW(A16))),"") -> J.D. Martinez | C17: =IFERROR(IF(L17=FALSE,"",CHOOSE(MATCH(RIGHT('Your Roto Auction'!$Q$4,LEN('Your Roto Auction'!$Q$4)-8),$M$1:$AN$1,0),1+SUMPRODUCT(($L$2:$L$949=TRUE)*($M$2:$M$949>M17))+COUNTIFS($L$2:L17,L17,$M$2:M17,M17)-1,1+SUMPRODUCT(($L$2:$L$949=TRUE)*($N$2:$N$949>N17))+COUNTIFS($L$2:L17,L17,$N$2:N17,N17)-1,1+SUMPRODUCT(($L$2:$L$949=TRUE)*($O$2:$O$949<O17))+COUNTIFS($L$2:L17,L17,$O$2:O17,O17)-1,1+SUMPRODUCT(($L$2:$L$949=TRUE)*($P$2:$P$949>P17))+COUNTIFS($L$2:L17,L17,$P$2:P17,P17)-1,1+SUMPRODUCT(($L$2:$L$949=TRUE)*($Q$2:$Q$949>Q17))+COUNTIFS($L$2:L17,L17,$Q$2:Q17,Q17)-1,1+SUMPRODUCT(($L$2:$L$949=TRUE)*($R$2:$R$949>R17))+COUNTIFS($L$2:L17,L17,$R$2:R17,R17)-1,1+SUMPRODUCT(($L$2:$L$949=TRUE)*($S$2:$S$949>S17))+COUNTIFS($L$2:L17,L17,$S$2:S17,S17)-1,1+SUMPRODUCT(($L$2:$L$949=TRUE)*($T$2:$T$949>T17))+COUNTIFS($L$2:L17,L17,$T$2:T17,T17)-1,1+SUMPRODUCT(($L$2:$L$949=TRUE)*($U$2:$U$949>U17))+COUNTIFS($L$2:L17,L17,$U$2:U17,U17)-1,1+SUMPRODUCT(($L$2:$L$949=TRUE)*($V$2:$V$949>V17))+COUNTIFS($L$2:L17,L17,$V$2:V17,V17)-1,1+SUMPRODUCT(($L$2:$L$949=TRUE)*($W$2:$W$949>W17))+COUNTIFS($L$2:L17,L17,$W$2:W17,W17)-1,1+SUMPRODUCT(($L$2:$L$949=TRUE)*($X$2:$X$949>X17))+COUNTIFS($L$2:L17,L17,$X$2:X17,X17)-1,1+SUMPRODUCT(($L$2:$L$949=TRUE)*($Y$2:$Y$949>Y17))+COUNTIFS($L$2:L17,L17,$Y$2:Y17,Y17)-1,1+SUMPRODUCT(($L$2:$L$949=TRUE)*($Z$2:$Z$949>Z17))+COUNTIFS($L$2:L17,L17,$Z$2:Z17,Z17)-1,1+SUMPRODUCT(($L$2:$L$949=TRUE)*($AA$2:$AA$949>AA17))+COUNTIFS($L$2:L17,L17,$AA$2:AA17,AA17)-1,1+SUMPRODUCT(($L$2:$L$949=TRUE)*($AB$2:$AB$949>AB17))+COUNTIFS($L$2:L17,L17,$AB$2:AB17,AB17)-1,1+SUMPRODUCT(($L$2:$L$949=TRUE)*($AC$2:$AC$949>AC17))+COUNTIFS($L$2:L17,L17,$AC$2:AC17,AC17)-1,1+SUMPRODUCT(($L$2:$L$949=TRUE)*($AD$2:$AD$949>AD17))+COUNTIFS($L$2:L17,L17,$AD$2:AD17,AD17)-1,1+SUMPRODUCT(($L$2:$L$949=TRUE)*($AE$2:$AE$949>AE17))+COUNTIFS($L$2:L17,L17,$AE$2:AE17,AE17)-1,1+SUMPRODUCT(($L$2:$L$949=TRUE)*($AF$2:$AF$949>AF17))+COUNTIFS($L$2:L17,L17,$AF$2:AF17,AF17)-1,1+SUMPRODUCT(($L$2:$L$949=TRUE)*($AG$2:$AG$949>AG17))+COUNTIFS($L$2:L17,L17,$AG$2:AG17,AG17)-1,1+SUMPRODUCT(($L$2:$L$949=TRUE)*($AH$2:$AH$949>AH17))+COUNTIFS($L$2:L17,L17,$AH$2:AH17,AH17)-1,1+SUMPRODUCT(($L$2:$L$949=TRUE)*($AI$2:$AI$949>AI17))+COUNTIFS($L$2:L17,L17,$AI$2:AI17,AI17)-1,1+SUMPRODUCT(($L$2:$L$949=TRUE)*($AJ$2:$AJ$949>AJ17))+COUNTIFS($L$2:L17,L17,$AJ$2:AJ17,AJ17)-1,1+SUMPRODUCT(($L$2:$L$949=TRUE)*($AK$2:$AK$949>AK17))+COUNTIFS($L$2:L17,L17,$AK$2:AK17,AK17)-1,1+SUMPRODUCT(($L$2:$L$949=TRUE)*($AL$2:$AL$949>AL17))+COUNTIFS($L$2:L17,L17,$AL$2:AL17,AL17)-1,1+SUMPRODUCT(($L$2:$L$949=TRUE)*($AM$2:$AM$949>AM17))+COUNTIFS($L$2:L17,L17,$AM$2:AM17,AM17)-1,1+SUMPRODUCT(($L$2:$L$949=TRUE)*($AN$2:$AN$949>AN17))+COUNTIFS($L$2:L17,L17,$AN$2:AN17,AN17)-1)),"") -> 641 | D17: Kolby Allard | E17: =IFERROR(INDEX('Auction Log'!$C$4:$C$806,MATCH(D17,'Auction Log'!$B$4:$B$806,0)),"") ->  | F17: =IFERROR(INDEX('Auction-Rank'!$C$2:$C$948,MATCH(D17,'Auction-Rank'!$A$2:$A$948,0)),"") -> SP | G17: =IFERROR(IF(F17=I17,"",IF(INDEX('Your Roto Auction'!$C$11:$C$634,MATCH(D17,'Your Roto Auction'!$D$11:$D$634,0))="",IF(I17<>"",I17,""),INDEX('Your Roto Auction'!$C$11:$C$634,MATCH(D17,'Your Roto Auction'!$D$11:$D$634,0)))),"") ->  | H17: SP | J17: =INDEX('Auction-Rank'!$V$2:$V$948,MATCH(D17,'Auction-Rank'!$A$2:$A$948,0)) -> TRUE | K17: FALSE | L17: =IF(J17=FALSE,FALSE,IF(AND('Your Roto Auction'!$Q$6="Hide Drafted Players",K17=TRUE),FALSE,IF(OR('Your Roto Auction'!$Q$5="Show All Positions",AND('Your Roto Auction'!$Q$5="Only Show: C",H17="C"),AND('Your Roto Auction'!$Q$5="Only Show: 1B",H17="1B"),AND('Your Roto Auction'!$Q$5="Only Show: 2B",H17="2B"),AND('Your Roto Auction'!$Q$5="Only Show: 3B",H17="3B"),AND('Your Roto Auction'!$Q$5="Only Show: SS",H17="SS"),AND('Your Roto Auction'!$Q$5="Only Show: OF",H17="OF"),AND('Your Roto Auction'!$Q$5="Only Show: SP",H17="SP"),AND('Your Roto Auction'!$Q$5="Only Show: RP",H17="RP"),AND('Your Roto Auction'!$Q$5="Only Show: CI",OR(H17={"1B","3B"})),AND('Your Roto Auction'!$Q$5="Only Show: MI",OR(H17={"2B","SS"})),AND('Your Roto Auction'!$Q$5="Only Show: IF",OR(H17={"C","1B","2B","3B","SS"})),AND('Your Roto Auction'!$Q$5="Only Show: DH",OR(H17={"C","1B","2B","3B","SS","OF","DH"})),AND('Your Roto Auction'!$Q$5="Only Show: P",OR(H17={"SP","RP"})),AND('Your Roto Auction'!$Q$5="Only Show: LF",ISERROR(SEARCH("LF",VLOOKUP($D17,'Auction-Rank'!$A$2:$D$948,4,FALSE)))=FALSE),AND('Your Roto Auction'!$Q$5="Only Show: RF",ISERROR(SEARCH("RF",VLOOKUP($D17,'Auction-Rank'!$A$2:$D$948,4,FALSE)))=FALSE),AND('Your Roto Auction'!$Q$5="Only Show: CF",ISERROR(SEARCH("CF",VLOOKUP($D17,'Auction-Rank'!$A$2:$D$948,4,FALSE)))=FALSE)),TRUE,FALSE))) -> TRUE | M17: =IFERROR(IF(VLOOKUP($D17,'Inflation-Tracking'!$A$5:$AD$862,22,FALSE)="",-9999,VLOOKUP($D17,'Inflation-Tracking'!$A$5:$AD$862,22,FALSE)),-9999) -> -1.649922121 | N17: =IF(D17="Non-Ranked Player",-1001,IFERROR(VLOOKUP($D17,'All-WERTH'!$C$2:$E$793,3,FALSE),-1000)) -> -9.891046225 | O17: =IF(D17="Non-Ranked Player",10000,IFERROR(IF(VLOOKUP(D17,'Auction-Rank'!$A$2:$X$948,24,FALSE)="",9999,VLOOKUP(D17,'Auction-Rank'!$A$2:$X$948,24,FALSE)),9999)) -> 577 | P17: =IF($D17="Unlisted Player",-1001,IFERROR(IF(VLOOKUP($D17,'All-WERTH'!$C$2:$AC$793,4,FALSE)="",-1000,VLOOKUP($D17,'All-WERTH'!$C$2:$AC$793,4,FALSE)),-1000)) -> -1000 | Q17: =IF($D17="Unlisted Player",-1001,IFERROR(IF(VLOOKUP($D17,'All-WERTH'!$C$2:$AC$793,5,FALSE)="",-1000,VLOOKUP($D17,'All-WERTH'!$C$2:$AC$793,5,FALSE)),-1000)) -> -1000 | R17: =IF($D17="Unlisted Player",-1001,IFERROR(IF(VLOOKUP($D17,'All-WERTH'!$C$2:$AC$793,6,FALSE)="",-1000,VLOOKUP($D17,'All-WERTH'!$C$2:$AC$793,6,FALSE)),-1000)) -> -1000 | S17: =IF($D17="Unlisted Player",-1001,IFERROR(IF(VLOOKUP($D17,'All-WERTH'!$C$2:$AC$793,7,FALSE)="",-1000,VLOOKUP($D17,'All-WERTH'!$C$2:$AC$793,7,FALSE)),-1000)) -> -1000 | T17: =IF($D17="Unlisted Player",-1001,IFERROR(IF(VLOOKUP($D17,'All-WERTH'!$C$2:$AC$793,8,FALSE)="",-1000,VLOOKUP($D17,'All-WERTH'!$C$2:$AC$793,8,FALSE)),-1000)) -> -1000 | U17: =IF($D17="Unlisted Player",-1001,IFERROR(IF(VLOOKUP($D17,'All-WERTH'!$C$2:$AC$793,9,FALSE)="",-1000,VLOOKUP($D17,'All-WERTH'!$C$2:$AC$793,9,FALSE)),-1000)) -> -1000 | V17: =IF($D17="Unlisted Player",-1001,IFERROR(IF(VLOOKUP($D17,'All-WERTH'!$C$2:$AC$793,10,FALSE)="",-1000,VLOOKUP($D17,'All-WERTH'!$C$2:$AC$793,10,FALSE)),-1000)) -> -1000 | W17: =IF($D17="Unlisted Player",-1001,IFERROR(IF(VLOOKUP($D17,'All-WERTH'!$C$2:$AC$793,11,FALSE)="",-1000,VLOOKUP($D17,'All-WERTH'!$C$2:$AC$793,11,FALSE)),-1000)) -> -1000 | X17: =IF($D17="Unlisted Player",-1001,IFERROR(IF(VLOOKUP($D17,'All-WERTH'!$C$2:$AC$793,12,FALSE)="",-1000,VLOOKUP($D17,'All-WERTH'!$C$2:$AC$793,12,FALSE)),-1000)) -> -1000 | Y17: =IF($D17="Unlisted Player",-1001,IFERROR(IF(VLOOKUP($D17,'All-WERTH'!$C$2:$AC$793,13,FALSE)="",-1000,VLOOKUP($D17,'All-WERTH'!$C$2:$AC$793,13,FALSE)),-1000)) -> -1000 | Z17: =IF($D17="Unlisted Player",-1001,IFERROR(IF(VLOOKUP($D17,'All-WERTH'!$C$2:$AC$793,14,FALSE)="",-1000,VLOOKUP($D17,'All-WERTH'!$C$2:$AC$793,14,FALSE)),-1000)) -> -1000 | AA17: =IF($D17="Unlisted Player",-1001,IFERROR(IF(VLOOKUP($D17,'All-WERTH'!$C$2:$AC$793,15,FALSE)="",-1000,VLOOKUP($D17,'All-WERTH'!$C$2:$AC$793,15,FALSE)),-1000)) -> -1000 | AB17: =IF($D17="Unlisted Player",-1001,IFERROR(IF(VLOOKUP($D17,'All-WERTH'!$C$2:$AC$793,16,FALSE)="",-1000,VLOOKUP($D17,'All-WERTH'!$C$2:$AC$793,16,FALSE)),-1000)) -> -1.539192381 | AC17: =IF($D17="Unlisted Player",-1001,IFERROR(IF(VLOOKUP($D17,'All-WERTH'!$C$2:$AC$793,17,FALSE)="",-1000,VLOOKUP($D17,'All-WERTH'!$C$2:$AC$793,17,FALSE)),-1000)) -> -0.4472348245 | AD17: =IF($D17="Unlisted Player",-1001,IFERROR(IF(VLOOKUP($D17,'All-WERTH'!$C$2:$AC$793,18,FALSE)="",-1000,VLOOKUP($D17,'All-WERTH'!$C$2:$AC$793,18,FALSE)),-1000)) -> -1.830145232 | AE17: =IF($D17="Unlisted Player",-1001,IFERROR(IF(VLOOKUP($D17,'All-WERTH'!$C$2:$AC$793,19,FALSE)="",-1000,VLOOKUP($D17,'All-WERTH'!$C$2:$AC$793,19,FALSE)),-1000)) -> -2.572921953 | AF17: =IF($D17="Unlisted Player",-1001,IFERROR(IF(VLOOKUP($D17,'All-WERTH'!$C$2:$AC$793,20,FALSE)="",-1000,VLOOKUP($D17,'All-WERTH'!$C$2:$AC$793,20,FALSE)),-1000)) -> -3.501551834 | AG17: =IF($D17="Unlisted Player",-1001,IFERROR(IF(VLOOKUP($D17,'All-WERTH'!$C$2:$AC$793,21,FALSE)="",-1000,VLOOKUP($D17,'All-WERTH'!$C$2:$AC$793,21,FALSE)),-1000)) -> -1000 | AH17: =IF($D17="Unlisted Player",-1001,IFERROR(IF(VLOOKUP($D17,'All-WERTH'!$C$2:$AC$793,22,FALSE)="",-1000,VLOOKUP($D17,'All-WERTH'!$C$2:$AC$793,22,FALSE)),-1000)) -> -1000 | AI17: =IF($D17="Unlisted Player",-1001,IFERROR(IF(VLOOKUP($D17,'All-WERTH'!$C$2:$AC$793,23,FALSE)="",-1000,VLOOKUP($D17,'All-WERTH'!$C$2:$AC$793,23,FALSE)),-1000)) -> -1000 | AJ17: =IF($D17="Unlisted Player",-1001,IFERROR(IF(VLOOKUP($D17,'All-WERTH'!$C$2:$AC$793,24,FALSE)="",-1000,VLOOKUP($D17,'All-WERTH'!$C$2:$AC$793,24,FALSE)),-1000)) -> -1000 | AK17: =IF($D17="Unlisted Player",-1001,IFERROR(IF(VLOOKUP($D17,'All-WERTH'!$C$2:$AC$793,25,FALSE)="",-1000,VLOOKUP($D17,'All-WERTH'!$C$2:$AC$793,25,FALSE)),-1000)) -> -1000 | AL17: =IF($D17="Unlisted Player",-1001,IFERROR(IF(VLOOKUP($D17,'All-WERTH'!$C$2:$AC$793,26,FALSE)="",-1000,VLOOKUP($D17,'All-WERTH'!$C$2:$AC$793,26,FALSE)),-1000)) -> -1000 | AM17: =IF($D17="Unlisted Player",-1001,IFERROR(IF(VLOOKUP($D17,'All-WERTH'!$C$2:$AC$793,27,FALSE)="",-1000,VLOOKUP($D17,'All-WERTH'!$C$2:$AC$793,27,FALSE)),-1000)) -> -1000 | AN17: =IF(D17="Non-Ranked Player",-1001,IFERROR(VLOOKUP($D17,'All-WERTH'!$C$2:$AF$793,30,FALSE),-1000)) -> -6.796075329
A18: Walker Buehler | B18: =IFERROR(INDEX($A$1:$A$948,SMALL(IF($A$1:$A$948<>"",ROW($A$1:$A$948)),ROW(A17))),"") -> Walker Buehler | C18: =IFERROR(IF(L18=FALSE,"",CHOOSE(MATCH(RIGHT('Your Roto Auction'!$Q$4,LEN('Your Roto Auction'!$Q$4)-8),$M$1:$AN$1,0),1+SUMPRODUCT(($L$2:$L$949=TRUE)*($M$2:$M$949>M18))+COUNTIFS($L$2:L18,L18,$M$2:M18,M18)-1,1+SUMPRODUCT(($L$2:$L$949=TRUE)*($N$2:$N$949>N18))+COUNTIFS($L$2:L18,L18,$N$2:N18,N18)-1,1+SUMPRODUCT(($L$2:$L$949=TRUE)*($O$2:$O$949<O18))+COUNTIFS($L$2:L18,L18,$O$2:O18,O18)-1,1+SUMPRODUCT(($L$2:$L$949=TRUE)*($P$2:$P$949>P18))+COUNTIFS($L$2:L18,L18,$P$2:P18,P18)-1,1+SUMPRODUCT(($L$2:$L$949=TRUE)*($Q$2:$Q$949>Q18))+COUNTIFS($L$2:L18,L18,$Q$2:Q18,Q18)-1,1+SUMPRODUCT(($L$2:$L$949=TRUE)*($R$2:$R$949>R18))+COUNTIFS($L$2:L18,L18,$R$2:R18,R18)-1,1+SUMPRODUCT(($L$2:$L$949=TRUE)*($S$2:$S$949>S18))+COUNTIFS($L$2:L18,L18,$S$2:S18,S18)-1,1+SUMPRODUCT(($L$2:$L$949=TRUE)*($T$2:$T$949>T18))+COUNTIFS($L$2:L18,L18,$T$2:T18,T18)-1,1+SUMPRODUCT(($L$2:$L$949=TRUE)*($U$2:$U$949>U18))+COUNTIFS($L$2:L18,L18,$U$2:U18,U18)-1,1+SUMPRODUCT(($L$2:$L$949=TRUE)*($V$2:$V$949>V18))+COUNTIFS($L$2:L18,L18,$V$2:V18,V18)-1,1+SUMPRODUCT(($L$2:$L$949=TRUE)*($W$2:$W$949>W18))+COUNTIFS($L$2:L18,L18,$W$2:W18,W18)-1,1+SUMPRODUCT(($L$2:$L$949=TRUE)*($X$2:$X$949>X18))+COUNTIFS($L$2:L18,L18,$X$2:X18,X18)-1,1+SUMPRODUCT(($L$2:$L$949=TRUE)*($Y$2:$Y$949>Y18))+COUNTIFS($L$2:L18,L18,$Y$2:Y18,Y18)-1,1+SUMPRODUCT(($L$2:$L$949=TRUE)*($Z$2:$Z$949>Z18))+COUNTIFS($L$2:L18,L18,$Z$2:Z18,Z18)-1,1+SUMPRODUCT(($L$2:$L$949=TRUE)*($AA$2:$AA$949>AA18))+COUNTIFS($L$2:L18,L18,$AA$2:AA18,AA18)-1,1+SUMPRODUCT(($L$2:$L$949=TRUE)*($AB$2:$AB$949>AB18))+COUNTIFS($L$2:L18,L18,$AB$2:AB18,AB18)-1,1+SUMPRODUCT(($L$2:$L$949=TRUE)*($AC$2:$AC$949>AC18))+COUNTIFS($L$2:L18,L18,$AC$2:AC18,AC18)-1,1+SUMPRODUCT(($L$2:$L$949=TRUE)*($AD$2:$AD$949>AD18))+COUNTIFS($L$2:L18,L18,$AD$2:AD18,AD18)-1,1+SUMPRODUCT(($L$2:$L$949=TRUE)*($AE$2:$AE$949>AE18))+COUNTIFS($L$2:L18,L18,$AE$2:AE18,AE18)-1,1+SUMPRODUCT(($L$2:$L$949=TRUE)*($AF$2:$AF$949>AF18))+COUNTIFS($L$2:L18,L18,$AF$2:AF18,AF18)-1,1+SUMPRODUCT(($L$2:$L$949=TRUE)*($AG$2:$AG$949>AG18))+COUNTIFS($L$2:L18,L18,$AG$2:AG18,AG18)-1,1+SUMPRODUCT(($L$2:$L$949=TRUE)*($AH$2:$AH$949>AH18))+COUNTIFS($L$2:L18,L18,$AH$2:AH18,AH18)-1,1+SUMPRODUCT(($L$2:$L$949=TRUE)*($AI$2:$AI$949>AI18))+COUNTIFS($L$2:L18,L18,$AI$2:AI18,AI18)-1,1+SUMPRODUCT(($L$2:$L$949=TRUE)*($AJ$2:$AJ$949>AJ18))+COUNTIFS($L$2:L18,L18,$AJ$2:AJ18,AJ18)-1,1+SUMPRODUCT(($L$2:$L$949=TRUE)*($AK$2:$AK$949>AK18))+COUNTIFS($L$2:L18,L18,$AK$2:AK18,AK18)-1,1+SUMPRODUCT(($L$2:$L$949=TRUE)*($AL$2:$AL$949>AL18))+COUNTIFS($L$2:L18,L18,$AL$2:AL18,AL18)-1,1+SUMPRODUCT(($L$2:$L$949=TRUE)*($AM$2:$AM$949>AM18))+COUNTIFS($L$2:L18,L18,$AM$2:AM18,AM18)-1,1+SUMPRODUCT(($L$2:$L$949=TRUE)*($AN$2:$AN$949>AN18))+COUNTIFS($L$2:L18,L18,$AN$2:AN18,AN18)-1)),"") -> 640 | D18: Austin Allen | E18: =IFERROR(INDEX('Auction Log'!$C$4:$C$806,MATCH(D18,'Auction Log'!$B$4:$B$806,0)),"") ->  | F18: =IFERROR(INDEX('Auction-Rank'!$C$2:$C$948,MATCH(D18,'Auction-Rank'!$A$2:$A$948,0)),"") -> C | G18: =IFERROR(IF(F18=I18,"",IF(INDEX('Your Roto Auction'!$C$11:$C$634,MATCH(D18,'Your Roto Auction'!$D$11:$D$634,0))="",IF(I18<>"",I18,""),INDEX('Your Roto Auction'!$C$11:$C$634,MATCH(D18,'Your Roto Auction'!$D$11:$D$634,0)))),"") ->  | H18: C | J18: =INDEX('Auction-Rank'!$V$2:$V$948,MATCH(D18,'Auction-Rank'!$A$2:$A$948,0)) -> TRUE | K18: FALSE | L18: =IF(J18=FALSE,FALSE,IF(AND('Your Roto Auction'!$Q$6="Hide Drafted Players",K18=TRUE),FALSE,IF(OR('Your Roto Auction'!$Q$5="Show All Positions",AND('Your Roto Auction'!$Q$5="Only Show: C",H18="C"),AND('Your Roto Auction'!$Q$5="Only Show: 1B",H18="1B"),AND('Your Roto Auction'!$Q$5="Only Show: 2B",H18="2B"),AND('Your Roto Auction'!$Q$5="Only Show: 3B",H18="3B"),AND('Your Roto Auction'!$Q$5="Only Show: SS",H18="SS"),AND('Your Roto Auction'!$Q$5="Only Show: OF",H18="OF"),AND('Your Roto Auction'!$Q$5="Only Show: SP",H18="SP"),AND('Your Roto Auction'!$Q$5="Only Show: RP",H18="RP"),AND('Your Roto Auction'!$Q$5="Only Show: CI",OR(H18={"1B","3B"})),AND('Your Roto Auction'!$Q$5="Only Show: MI",OR(H18={"2B","SS"})),AND('Your Roto Auction'!$Q$5="Only Show: IF",OR(H18={"C","1B","2B","3B","SS"})),AND('Your Roto Auction'!$Q$5="Only Show: DH",OR(H18={"C","1B","2B","3B","SS","OF","DH"})),AND('Your Roto Auction'!$Q$5="Only Show: P",OR(H18={"SP","RP"})),AND('Your Roto Auction'!$Q$5="Only Show: LF",ISERROR(SEARCH("LF",VLOOKUP($D18,'Auction-Rank'!$A$2:$D$948,4,FALSE)))=FALSE),AND('Your Roto Auction'!$Q$5="Only Show: RF",ISERROR(SEARCH("RF",VLOOKUP($D18,'Auction-Rank'!$A$2:$D$948,4,FALSE)))=FALSE),AND('Your Roto Auction'!$Q$5="Only Show: CF",ISERROR(SEARCH("CF",VLOOKUP($D18,'Auction-Rank'!$A$2:$D$948,4,FALSE)))=FALSE)),TRUE,FALSE))) -> TRUE | M18: =IFERROR(IF(VLOOKUP($D18,'Inflation-Tracking'!$A$5:$AD$862,22,FALSE)="",-9999,VLOOKUP($D18,'Inflation-Tracking'!$A$5:$AD$862,22,FALSE)),-9999) -> -0.54266437 | N18: =IF(D18="Non-Ranked Player",-1001,IFERROR(VLOOKUP($D18,'All-WERTH'!$C$2:$E$793,3,FALSE),-1000)) -> -9.843829444 | O18: =IF(D18="Non-Ranked Player",10000,IFERROR(IF(VLOOKUP(D18,'Auction-Rank'!$A$2:$X$948,24,FALSE)="",9999,VLOOKUP(D18,'Auction-Rank'!$A$2:$X$948,24,FALSE)),9999)) -> 9999 | P18: =IF($D18="Unlisted Player",-1001,IFERROR(IF(VLOOKUP($D18,'All-WERTH'!$C$2:$AC$793,4,FALSE)="",-1000,VLOOKUP($D18,'All-WERTH'!$C$2:$AC$793,4,FALSE)),-1000)) -> -1.301801565 | Q18: =IF($D18="Unlisted Player",-1001,IFERROR(IF(VLOOKUP($D18,'All-WERTH'!$C$2:$AC$793,5,FALSE)="",-1000,VLOOKUP($D18,'All-WERTH'!$C$2:$AC$793,5,FALSE)),-1000)) -> -1.957166254 | R18: =IF($D18="Unlisted Player",-1001,IFERROR(IF(VLOOKUP($D18,'All-WERTH'!$C$2:$AC$793,6,FALSE)="",-1000,VLOOKUP($D18,'All-WERTH'!$C$2:$AC$793,6,FALSE)),-1000)) -> -2.972603756 | S18: =IF($D18="Unlisted Player",-1001,IFERROR(IF(VLOOKUP($D18,'All-WERTH'!$C$2:$AC$793,7,FALSE)="",-1000,VLOOKUP($D18,'All-WERTH'!$C$2:$AC$793,7,FALSE)),-1000)) -> -2.586201184 | T18: =IF($D18="Unlisted Player",-1001,IFERROR(IF(VLOOKUP($D18,'All-WERTH'!$C$2:$AC$793,8,FALSE)="",-1000,VLOOKUP($D18,'All-WERTH'!$C$2:$AC$793,8,FALSE)),-1000)) -> -1.026056685 | U18: =IF($D18="Unlisted Player",-1001,IFERROR(IF(VLOOKUP($D18,'All-WERTH'!$C$2:$AC$793,9,FALSE)="",-1000,VLOOKUP($D18,'All-WERTH'!$C$2:$AC$793,9,FALSE)),-1000)) -> -1000 | V18: =IF($D18="Unlisted Player",-1001,IFERROR(IF(VLOOKUP($D18,'All-WERTH'!$C$2:$AC$793,10,FALSE)="",-1000,VLOOKUP($D18,'All-WERTH'!$C$2:$AC$793,10,FALSE)),-1000)) -> -1000 | W18: =IF($D18="Unlisted Player",-1001,IFERROR(IF(VLOOKUP($D18,'All-WERTH'!$C$2:$AC$793,11,FALSE)="",-1000,VLOOKUP($D18,'All-WERTH'!$C$2:$AC$793,11,FALSE)),-1000)) -> -1000 | X18: =IF($D18="Unlisted Player",-1001,IFERROR(IF(VLOOKUP($D18,'All-WERTH'!$C$2:$AC$793,12,FALSE)="",-1000,VLOOKUP($D18,'All-WERTH'!$C$2:$AC$793,12,FALSE)),-1000)) -> -1000 | Y18: =IF($D18="Unlisted Player",-1001,IFERROR(IF(VLOOKUP($D18,'All-WERTH'!$C$2:$AC$793,13,FALSE)="",-1000,VLOOKUP($D18,'All-WERTH'!$C$2:$AC$793,13,FALSE)),-1000)) -> -1000 | Z18: =IF($D18="Unlisted Player",-1001,IFERROR(IF(VLOOKUP($D18,'All-WERTH'!$C$2:$AC$793,14,FALSE)="",-1000,VLOOKUP($D18,'All-WERTH'!$C$2:$AC$793,14,FALSE)),-1000)) -> -1000 | AA18: =IF($D18="Unlisted Player",-1001,IFERROR(IF(VLOOKUP($D18,'All-WERTH'!$C$2:$AC$793,15,FALSE)="",-1000,VLOOKUP($D18,'All-WERTH'!$C$2:$AC$793,15,FALSE)),-1000)) -> -1000 | AB18: =IF($D18="Unlisted Player",-1001,IFERROR(IF(VLOOKUP($D18,'All-WERTH'!$C$2:$AC$793,16,FALSE)="",-1000,VLOOKUP($D18,'All-WERTH'!$C$2:$AC$793,16,FALSE)),-1000)) -> -1000 | AC18: =IF($D18="Unlisted Player",-1001,IFERROR(IF(VLOOKUP($D18,'All-WERTH'!$C$2:$AC$793,17,FALSE)="",-1000,VLOOKUP($D18,'All-WERTH'!$C$2:$AC$793,17,FALSE)),-1000)) -> -1000 | AD18: =IF($D18="Unlisted Player",-1001,IFERROR(IF(VLOOKUP($D18,'All-WERTH'!$C$2:$AC$793,18,FALSE)="",-1000,VLOOKUP($D18,'All-WERTH'!$C$2:$AC$793,18,FALSE)),-1000)) -> -1000 | AE18: =IF($D18="Unlisted Player",-1001,IFERROR(IF(VLOOKUP($D18,'All-WERTH'!$C$2:$AC$793,19,FALSE)="",-1000,VLOOKUP($D18,'All-WERTH'!$C$2:$AC$793,19,FALSE)),-1000)) -> -1000 | AF18: =IF($D18="Unlisted Player",-1001,IFERROR(IF(VLOOKUP($D18,'All-WERTH'!$C$2:$AC$793,20,FALSE)="",-1000,VLOOKUP($D18,'All-WERTH'!$C$2:$AC$793,20,FALSE)),-1000)) -> -1000 | AG18: =IF($D18="Unlisted Player",-1001,IFERROR(IF(VLOOKUP($D18,'All-WERTH'!$C$2:$AC$793,21,FALSE)="",-1000,VLOOKUP($D18,'All-WERTH'!$C$2:$AC$793,21,FALSE)),-1000)) -> -1000 | AH18: =IF($D18="Unlisted Player",-1001,IFERROR(IF(VLOOKUP($D18,'All-WERTH'!$C$2:$AC$793,22,FALSE)="",-1000,VLOOKUP($D18,'All-WERTH'!$C$2:$AC$793,22,FALSE)),-1000)) -> -1000 | AI18: =IF($D18="Unlisted Player",-1001,IFERROR(IF(VLOOKUP($D18,'All-WERTH'!$C$2:$AC$793,23,FALSE)="",-1000,VLOOKUP($D18,'All-WERTH'!$C$2:$AC$793,23,FALSE)),-1000)) -> -1000 | AJ18: =IF($D18="Unlisted Player",-1001,IFERROR(IF(VLOOKUP($D18,'All-WERTH'!$C$2:$AC$793,24,FALSE)="",-1000,VLOOKUP($D18,'All-WERTH'!$C$2:$AC$793,24,FALSE)),-1000)) -> -1000 | AK18: =IF($D18="Unlisted Player",-1001,IFERROR(IF(VLOOKUP($D18,'All-WERTH'!$C$2:$AC$793,25,FALSE)="",-1000,VLOOKUP($D18,'All-WERTH'!$C$2:$AC$793,25,FALSE)),-1000)) -> -1000 | AL18: =IF($D18="Unlisted Player",-1001,IFERROR(IF(VLOOKUP($D18,'All-WERTH'!$C$2:$AC$793,26,FALSE)="",-1000,VLOOKUP($D18,'All-WERTH'!$C$2:$AC$793,26,FALSE)),-1000)) -> -1000 | AM18: =IF($D18="Unlisted Player",-1001,IFERROR(IF(VLOOKUP($D18,'All-WERTH'!$C$2:$AC$793,27,FALSE)="",-1000,VLOOKUP($D18,'All-WERTH'!$C$2:$AC$793,27,FALSE)),-1000)) -> -1000 | AN18: =IF(D18="Non-Ranked Player",-1001,IFERROR(VLOOKUP($D18,'All-WERTH'!$C$2:$AF$793,30,FALSE),-1000)) -> -1.852783376
A19: Shane Bieber | B19: =IFERROR(INDEX($A$1:$A$948,SMALL(IF($A$1:$A$948<>"",ROW($A$1:$A$948)),ROW(A18))),"") -> Shane Bieber | C19: =IFERROR(IF(L19=FALSE,"",CHOOSE(MATCH(RIGHT('Your Roto Auction'!$Q$4,LEN('Your Roto Auction'!$Q$4)-8),$M$1:$AN$1,0),1+SUMPRODUCT(($L$2:$L$949=TRUE)*($M$2:$M$949>M19))+COUNTIFS($L$2:L19,L19,$M$2:M19,M19)-1,1+SUMPRODUCT(($L$2:$L$949=TRUE)*($N$2:$N$949>N19))+COUNTIFS($L$2:L19,L19,$N$2:N19,N19)-1,1+SUMPRODUCT(($L$2:$L$949=TRUE)*($O$2:$O$949<O19))+COUNTIFS($L$2:L19,L19,$O$2:O19,O19)-1,1+SUMPRODUCT(($L$2:$L$949=TRUE)*($P$2:$P$949>P19))+COUNTIFS($L$2:L19,L19,$P$2:P19,P19)-1,1+SUMPRODUCT(($L$2:$L$949=TRUE)*($Q$2:$Q$949>Q19))+COUNTIFS($L$2:L19,L19,$Q$2:Q19,Q19)-1,1+SUMPRODUCT(($L$2:$L$949=TRUE)*($R$2:$R$949>R19))+COUNTIFS($L$2:L19,L19,$R$2:R19,R19)-1,1+SUMPRODUCT(($L$2:$L$949=TRUE)*($S$2:$S$949>S19))+COUNTIFS($L$2:L19,L19,$S$2:S19,S19)-1,1+SUMPRODUCT(($L$2:$L$949=TRUE)*($T$2:$T$949>T19))+COUNTIFS($L$2:L19,L19,$T$2:T19,T19)-1,1+SUMPRODUCT(($L$2:$L$949=TRUE)*($U$2:$U$949>U19))+COUNTIFS($L$2:L19,L19,$U$2:U19,U19)-1,1+SUMPRODUCT(($L$2:$L$949=TRUE)*($V$2:$V$949>V19))+COUNTIFS($L$2:L19,L19,$V$2:V19,V19)-1,1+SUMPRODUCT(($L$2:$L$949=TRUE)*($W$2:$W$949>W19))+COUNTIFS($L$2:L19,L19,$W$2:W19,W19)-1,1+SUMPRODUCT(($L$2:$L$949=TRUE)*($X$2:$X$949>X19))+COUNTIFS($L$2:L19,L19,$X$2:X19,X19)-1,1+SUMPRODUCT(($L$2:$L$949=TRUE)*($Y$2:$Y$949>Y19))+COUNTIFS($L$2:L19,L19,$Y$2:Y19,Y19)-1,1+SUMPRODUCT(($L$2:$L$949=TRUE)*($Z$2:$Z$949>Z19))+COUNTIFS($L$2:L19,L19,$Z$2:Z19,Z19)-1,1+SUMPRODUCT(($L$2:$L$949=TRUE)*($AA$2:$AA$949>AA19))+COUNTIFS($L$2:L19,L19,$AA$2:AA19,AA19)-1,1+SUMPRODUCT(($L$2:$L$949=TRUE)*($AB$2:$AB$949>AB19))+COUNTIFS($L$2:L19,L19,$AB$2:AB19,AB19)-1,1+SUMPRODUCT(($L$2:$L$949=TRUE)*($AC$2:$AC$949>AC19))+COUNTIFS($L$2:L19,L19,$AC$2:AC19,AC19)-1,1+SUMPRODUCT(($L$2:$L$949=TRUE)*($AD$2:$AD$949>AD19))+COUNTIFS($L$2:L19,L19,$AD$2:AD19,AD19)-1,1+SUMPRODUCT(($L$2:$L$949=TRUE)*($AE$2:$AE$949>AE19))+COUNTIFS($L$2:L19,L19,$AE$2:AE19,AE19)-1,1+SUMPRODUCT(($L$2:$L$949=TRUE)*($AF$2:$AF$949>AF19))+COUNTIFS($L$2:L19,L19,$AF$2:AF19,AF19)-1,1+SUMPRODUCT(($L$2:$L$949=TRUE)*($AG$2:$AG$949>AG19))+COUNTIFS($L$2:L19,L19,$AG$2:AG19,AG19)-1,1+SUMPRODUCT(($L$2:$L$949=TRUE)*($AH$2:$AH$949>AH19))+COUNTIFS($L$2:L19,L19,$AH$2:AH19,AH19)-1,1+SUMPRODUCT(($L$2:$L$949=TRUE)*($AI$2:$AI$949>AI19))+COUNTIFS($L$2:L19,L19,$AI$2:AI19,AI19)-1,1+SUMPRODUCT(($L$2:$L$949=TRUE)*($AJ$2:$AJ$949>AJ19))+COUNTIFS($L$2:L19,L19,$AJ$2:AJ19,AJ19)-1,1+SUMPRODUCT(($L$2:$L$949=TRUE)*($AK$2:$AK$949>AK19))+COUNTIFS($L$2:L19,L19,$AK$2:AK19,AK19)-1,1+SUMPRODUCT(($L$2:$L$949=TRUE)*($AL$2:$AL$949>AL19))+COUNTIFS($L$2:L19,L19,$AL$2:AL19,AL19)-1,1+SUMPRODUCT(($L$2:$L$949=TRUE)*($AM$2:$AM$949>AM19))+COUNTIFS($L$2:L19,L19,$AM$2:AM19,AM19)-1,1+SUMPRODUCT(($L$2:$L$949=TRUE)*($AN$2:$AN$949>AN19))+COUNTIFS($L$2:L19,L19,$AN$2:AN19,AN19)-1)),"") -> 620 | D19: Greg Allen | E19: =IFERROR(INDEX('Auction Log'!$C$4:$C$806,MATCH(D19,'Auction Log'!$B$4:$B$806,0)),"") ->  | F19: =IFERROR(INDEX('Auction-Rank'!$C$2:$C$948,MATCH(D19,'Auction-Rank'!$A$2:$A$948,0)),"") -> OF | G19: =IFERROR(IF(F19=I19,"",IF(INDEX('Your Roto Auction'!$C$11:$C$634,MATCH(D19,'Your Roto Auction'!$D$11:$D$634,0))="",IF(I19<>"",I19,""),INDEX('Your Roto Auction'!$C$11:$C$634,MATCH(D19,'Your Roto Auction'!$D$11:$D$634,0)))),"") ->  | H19: OF | J19: =INDEX('Auction-Rank'!$V$2:$V$948,MATCH(D19,'Auction-Rank'!$A$2:$A$948,0)) -> TRUE | K19: FALSE | L19: =IF(J19=FALSE,FALSE,IF(AND('Your Roto Auction'!$Q$6="Hide Drafted Players",K19=TRUE),FALSE,IF(OR('Your Roto Auction'!$Q$5="Show All Positions",AND('Your Roto Auction'!$Q$5="Only Show: C",H19="C"),AND('Your Roto Auction'!$Q$5="Only Show: 1B",H19="1B"),AND('Your Roto Auction'!$Q$5="Only Show: 2B",H19="2B"),AND('Your Roto Auction'!$Q$5="Only Show: 3B",H19="3B"),AND('Your Roto Auction'!$Q$5="Only Show: SS",H19="SS"),AND('Your Roto Auction'!$Q$5="Only Show: OF",H19="OF"),AND('Your Roto Auction'!$Q$5="Only Show: SP",H19="SP"),AND('Your Roto Auction'!$Q$5="Only Show: RP",H19="RP"),AND('Your Roto Auction'!$Q$5="Only Show: CI",OR(H19={"1B","3B"})),AND('Your Roto Auction'!$Q$5="Only Show: MI",OR(H19={"2B","SS"})),AND('Your Roto Auction'!$Q$5="Only Show: IF",OR(H19={"C","1B","2B","3B","SS"})),AND('Your Roto Auction'!$Q$5="Only Show: DH",OR(H19={"C","1B","2B","3B","SS","OF","DH"})),AND('Your Roto Auction'!$Q$5="Only Show: P",OR(H19={"SP","RP"})),AND('Your Roto Auction'!$Q$5="Only Show: LF",ISERROR(SEARCH("LF",VLOOKUP($D19,'Auction-Rank'!$A$2:$D$948,4,FALSE)))=FALSE),AND('Your Roto Auction'!$Q$5="Only Show: RF",ISERROR(SEARCH("RF",VLOOKUP($D19,'Auction-Rank'!$A$2:$D$948,4,FALSE)))=FALSE),AND('Your Roto Auction'!$Q$5="Only Show: CF",ISERROR(SEARCH("CF",VLOOKUP($D19,'Auction-Rank'!$A$2:$D$948,4,FALSE)))=FALSE)),TRUE,FALSE))) -> TRUE | M19: =IFERROR(IF(VLOOKUP($D19,'Inflation-Tracking'!$A$5:$AD$862,22,FALSE)="",-9999,VLOOKUP($D19,'Inflation-Tracking'!$A$5:$AD$862,22,FALSE)),-9999) -> -1.839293641 | N19: =IF(D19="Non-Ranked Player",-1001,IFERROR(VLOOKUP($D19,'All-WERTH'!$C$2:$E$793,3,FALSE),-1000)) -> -9.500737686 | O19: =IF(D19="Non-Ranked Player",10000,IFERROR(IF(VLOOKUP(D19,'Auction-Rank'!$A$2:$X$948,24,FALSE)="",9999,VLOOKUP(D19,'Auction-Rank'!$A$2:$X$948,24,FALSE)),9999)) -> 583 | P19: =IF($D19="Unlisted Player",-1001,IFERROR(IF(VLOOKUP($D19,'All-WERTH'!$C$2:$AC$793,4,FALSE)="",-1000,VLOOKUP($D19,'All-WERTH'!$C$2:$AC$793,4,FALSE)),-1000)) -> -1.169794606 | Q19: =IF($D19="Unlisted Player",-1001,IFERROR(IF(VLOOKUP($D19,'All-WERTH'!$C$2:$AC$793,5,FALSE)="",-1000,VLOOKUP($D19,'All-WERTH'!$C$2:$AC$793,5,FALSE)),-1000)) -> -2.617134517 | R19: =IF($D19="Unlisted Player",-1001,IFERROR(IF(VLOOKUP($D19,'All-WERTH'!$C$2:$AC$793,6,FALSE)="",-1000,VLOOKUP($D19,'All-WERTH'!$C$2:$AC$793,6,FALSE)),-1000)) -> -2.715579518 | S19: =IF($D19="Unlisted Player",-1001,IFERROR(IF(VLOOKUP($D19,'All-WERTH'!$C$2:$AC$793,7,FALSE)="",-1000,VLOOKUP($D19,'All-WERTH'!$C$2:$AC$793,7,FALSE)),-1000)) -> -3.279308741 | T19: =IF($D19="Unlisted Player",-1001,IFERROR(IF(VLOOKUP($D19,'All-WERTH'!$C$2:$AC$793,8,FALSE)="",-1000,VLOOKUP($D19,'All-WERTH'!$C$2:$AC$793,8,FALSE)),-1000)) -> 0.2810796951 | U19: =IF($D19="Unlisted Player",-1001,IFERROR(IF(VLOOKUP($D19,'All-WERTH'!$C$2:$AC$793,9,FALSE)="",-1000,VLOOKUP($D19,'All-WERTH'!$C$2:$AC$793,9,FALSE)),-1000)) -> -1000 | V19: =IF($D19="Unlisted Player",-1001,IFERROR(IF(VLOOKUP($D19,'All-WERTH'!$C$2:$AC$793,10,FALSE)="",-1000,VLOOKUP($D19,'All-WERTH'!$C$2:$AC$793,10,FALSE)),-1000)) -> -1000 | W19: =IF($D19="Unlisted Player",-1001,IFERROR(IF(VLOOKUP($D19,'All-WERTH'!$C$2:$AC$793,11,FALSE)="",-1000,VLOOKUP($D19,'All-WERTH'!$C$2:$AC$793,11,FALSE)),-1000)) -> -1000 | X19: =IF($D19="Unlisted Player",-1001,IFERROR(IF(VLOOKUP($D19,'All-WERTH'!$C$2:$AC$793,12,FALSE)="",-1000,VLOOKUP($D19,'All-WERTH'!$C$2:$AC$793,12,FALSE)),-1000)) -> -1000 | Y19: =IF($D19="Unlisted Player",-1001,IFERROR(IF(VLOOKUP($D19,'All-WERTH'!$C$2:$AC$793,13,FALSE)="",-1000,VLOOKUP($D19,'All-WERTH'!$C$2:$AC$793,13,FALSE)),-1000)) -> -1000 | Z19: =IF($D19="Unlisted Player",-1001,IFERROR(IF(VLOOKUP($D19,'All-WERTH'!$C$2:$AC$793,14,FALSE)="",-1000,VLOOKUP($D19,'All-WERTH'!$C$2:$AC$793,14,FALSE)),-1000)) -> -1000 | AA19: =IF($D19="Unlisted Player",-1001,IFERROR(IF(VLOOKUP($D19,'All-WERTH'!$C$2:$AC$793,15,FALSE)="",-1000,VLOOKUP($D19,'All-WERTH'!$C$2:$AC$793,15,FALSE)),-1000)) -> -1000 | AB19: =IF($D19="Unlisted Player",-1001,IFERROR(IF(VLOOKUP($D19,'All-WERTH'!$C$2:$AC$793,16,FALSE)="",-1000,VLOOKUP($D19,'All-WERTH'!$C$2:$AC$793,16,FALSE)),-1000)) -> -1000 | AC19: =IF($D19="Unlisted Player",-1001,IFERROR(IF(VLOOKUP($D19,'All-WERTH'!$C$2:$AC$793,17,FALSE)="",-1000,VLOOKUP($D19,'All-WERTH'!$C$2:$AC$793,17,FALSE)),-1000)) -> -1000 | AD19: =IF($D19="Unlisted Player",-1001,IFERROR(IF(VLOOKUP($D19,'All-WERTH'!$C$2:$AC$793,18,FALSE)="",-1000,VLOOKUP($D19,'All-WERTH'!$C$2:$AC$793,18,FALSE)),-1000)) -> -1000 | AE19: =IF($D19="Unlisted Player",-1001,IFERROR(IF(VLOOKUP($D19,'All-WERTH'!$C$2:$AC$793,19,FALSE)="",-1000,VLOOKUP($D19,'All-WERTH'!$C$2:$AC$793,19,FALSE)),-1000)) -> -1000 | AF19: =IF($D19="Unlisted Player",-1001,IFERROR(IF(VLOOKUP($D19,'All-WERTH'!$C$2:$AC$793,20,FALSE)="",-1000,VLOOKUP($D19,'All-WERTH'!$C$2:$AC$793,20,FALSE)),-1000)) -> -1000 | AG19: =IF($D19="Unlisted Player",-1001,IFERROR(IF(VLOOKUP($D19,'All-WERTH'!$C$2:$AC$793,21,FALSE)="",-1000,VLOOKUP($D19,'All-WERTH'!$C$2:$AC$793,21,FALSE)),-1000)) -> -1000 | AH19: =IF($D19="Unlisted Player",-1001,IFERROR(IF(VLOOKUP($D19,'All-WERTH'!$C$2:$AC$793,22,FALSE)="",-1000,VLOOKUP($D19,'All-WERTH'!$C$2:$AC$793,22,FALSE)),-1000)) -> -1000 | AI19: =IF($D19="Unlisted Player",-1001,IFERROR(IF(VLOOKUP($D19,'All-WERTH'!$C$2:$AC$793,23,FALSE)="",-1000,VLOOKUP($D19,'All-WERTH'!$C$2:$AC$793,23,FALSE)),-1000)) -> -1000 | AJ19: =IF($D19="Unlisted Player",-1001,IFERROR(IF(VLOOKUP($D19,'All-WERTH'!$C$2:$AC$793,24,FALSE)="",-1000,VLOOKUP($D19,'All-WERTH'!$C$2:$AC$793,24,FALSE)),-1000)) -> -1000 | AK19: =IF($D19="Unlisted Player",-1001,IFERROR(IF(VLOOKUP($D19,'All-WERTH'!$C$2:$AC$793,25,FALSE)="",-1000,VLOOKUP($D19,'All-WERTH'!$C$2:$AC$793,25,FALSE)),-1000)) -> -1000 | AL19: =IF($D19="Unlisted Player",-1001,IFERROR(IF(VLOOKUP($D19,'All-WERTH'!$C$2:$AC$793,26,FALSE)="",-1000,VLOOKUP($D19,'All-WERTH'!$C$2:$AC$793,26,FALSE)),-1000)) -> -1000 | AM19: =IF($D19="Unlisted Player",-1001,IFERROR(IF(VLOOKUP($D19,'All-WERTH'!$C$2:$AC$793,27,FALSE)="",-1000,VLOOKUP($D19,'All-WERTH'!$C$2:$AC$793,27,FALSE)),-1000)) -> -1000 | AN19: =IF(D19="Non-Ranked Player",-1001,IFERROR(VLOOKUP($D19,'All-WERTH'!$C$2:$AF$793,30,FALSE),-1000)) -> -6.279779677
A20: Jose Ramirez | B20: =IFERROR(INDEX($A$1:$A$948,SMALL(IF($A$1:$A$948<>"",ROW($A$1:$A$948)),ROW(A19))),"") -> Jose Ramirez | C20: =IFERROR(IF(L20=FALSE,"",CHOOSE(MATCH(RIGHT('Your Roto Auction'!$Q$4,LEN('Your Roto Auction'!$Q$4)-8),$M$1:$AN$1,0),1+SUMPRODUCT(($L$2:$L$949=TRUE)*($M$2:$M$949>M20))+COUNTIFS($L$2:L20,L20,$M$2:M20,M20)-1,1+SUMPRODUCT(($L$2:$L$949=TRUE)*($N$2:$N$949>N20))+COUNTIFS($L$2:L20,L20,$N$2:N20,N20)-1,1+SUMPRODUCT(($L$2:$L$949=TRUE)*($O$2:$O$949<O20))+COUNTIFS($L$2:L20,L20,$O$2:O20,O20)-1,1+SUMPRODUCT(($L$2:$L$949=TRUE)*($P$2:$P$949>P20))+COUNTIFS($L$2:L20,L20,$P$2:P20,P20)-1,1+SUMPRODUCT(($L$2:$L$949=TRUE)*($Q$2:$Q$949>Q20))+COUNTIFS($L$2:L20,L20,$Q$2:Q20,Q20)-1,1+SUMPRODUCT(($L$2:$L$949=TRUE)*($R$2:$R$949>R20))+COUNTIFS($L$2:L20,L20,$R$2:R20,R20)-1,1+SUMPRODUCT(($L$2:$L$949=TRUE)*($S$2:$S$949>S20))+COUNTIFS($L$2:L20,L20,$S$2:S20,S20)-1,1+SUMPRODUCT(($L$2:$L$949=TRUE)*($T$2:$T$949>T20))+COUNTIFS($L$2:L20,L20,$T$2:T20,T20)-1,1+SUMPRODUCT(($L$2:$L$949=TRUE)*($U$2:$U$949>U20))+COUNTIFS($L$2:L20,L20,$U$2:U20,U20)-1,1+SUMPRODUCT(($L$2:$L$949=TRUE)*($V$2:$V$949>V20))+COUNTIFS($L$2:L20,L20,$V$2:V20,V20)-1,1+SUMPRODUCT(($L$2:$L$949=TRUE)*($W$2:$W$949>W20))+COUNTIFS($L$2:L20,L20,$W$2:W20,W20)-1,1+SUMPRODUCT(($L$2:$L$949=TRUE)*($X$2:$X$949>X20))+COUNTIFS($L$2:L20,L20,$X$2:X20,X20)-1,1+SUMPRODUCT(($L$2:$L$949=TRUE)*($Y$2:$Y$949>Y20))+COUNTIFS($L$2:L20,L20,$Y$2:Y20,Y20)-1,1+SUMPRODUCT(($L$2:$L$949=TRUE)*($Z$2:$Z$949>Z20))+COUNTIFS($L$2:L20,L20,$Z$2:Z20,Z20)-1,1+SUMPRODUCT(($L$2:$L$949=TRUE)*($AA$2:$AA$949>AA20))+COUNTIFS($L$2:L20,L20,$AA$2:AA20,AA20)-1,1+SUMPRODUCT(($L$2:$L$949=TRUE)*($AB$2:$AB$949>AB20))+COUNTIFS($L$2:L20,L20,$AB$2:AB20,AB20)-1,1+SUMPRODUCT(($L$2:$L$949=TRUE)*($AC$2:$AC$949>AC20))+COUNTIFS($L$2:L20,L20,$AC$2:AC20,AC20)-1,1+SUMPRODUCT(($L$2:$L$949=TRUE)*($AD$2:$AD$949>AD20))+COUNTIFS($L$2:L20,L20,$AD$2:AD20,AD20)-1,1+SUMPRODUCT(($L$2:$L$949=TRUE)*($AE$2:$AE$949>AE20))+COUNTIFS($L$2:L20,L20,$AE$2:AE20,AE20)-1,1+SUMPRODUCT(($L$2:$L$949=TRUE)*($AF$2:$AF$949>AF20))+COUNTIFS($L$2:L20,L20,$AF$2:AF20,AF20)-1,1+SUMPRODUCT(($L$2:$L$949=TRUE)*($AG$2:$AG$949>AG20))+COUNTIFS($L$2:L20,L20,$AG$2:AG20,AG20)-1,1+SUMPRODUCT(($L$2:$L$949=TRUE)*($AH$2:$AH$949>AH20))+COUNTIFS($L$2:L20,L20,$AH$2:AH20,AH20)-1,1+SUMPRODUCT(($L$2:$L$949=TRUE)*($AI$2:$AI$949>AI20))+COUNTIFS($L$2:L20,L20,$AI$2:AI20,AI20)-1,1+SUMPRODUCT(($L$2:$L$949=TRUE)*($AJ$2:$AJ$949>AJ20))+COUNTIFS($L$2:L20,L20,$AJ$2:AJ20,AJ20)-1,1+SUMPRODUCT(($L$2:$L$949=TRUE)*($AK$2:$AK$949>AK20))+COUNTIFS($L$2:L20,L20,$AK$2:AK20,AK20)-1,1+SUMPRODUCT(($L$2:$L$949=TRUE)*($AL$2:$AL$949>AL20))+COUNTIFS($L$2:L20,L20,$AL$2:AL20,AL20)-1,1+SUMPRODUCT(($L$2:$L$949=TRUE)*($AM$2:$AM$949>AM20))+COUNTIFS($L$2:L20,L20,$AM$2:AM20,AM20)-1,1+SUMPRODUCT(($L$2:$L$949=TRUE)*($AN$2:$AN$949>AN20))+COUNTIFS($L$2:L20,L20,$AN$2:AN20,AN20)-1)),"") -> 588 | D20: Logan Allen | E20: =IFERROR(INDEX('Auction Log'!$C$4:$C$806,MATCH(D20,'Auction Log'!$B$4:$B$806,0)),"") ->  | F20: =IFERROR(INDEX('Auction-Rank'!$C$2:$C$948,MATCH(D20,'Auction-Rank'!$A$2:$A$948,0)),"") -> RP | G20: =IFERROR(IF(F20=I20,"",IF(INDEX('Your Roto Auction'!$C$11:$C$634,MATCH(D20,'Your Roto Auction'!$D$11:$D$634,0))="",IF(I20<>"",I20,""),INDEX('Your Roto Auction'!$C$11:$C$634,MATCH(D20,'Your Roto Auction'!$D$11:$D$634,0)))),"") ->  | H20: RP | J20: =INDEX('Auction-Rank'!$V$2:$V$948,MATCH(D20,'Auction-Rank'!$A$2:$A$948,0)) -> TRUE | K20: FALSE | L20: =IF(J20=FALSE,FALSE,IF(AND('Your Roto Auction'!$Q$6="Hide Drafted Players",K20=TRUE),FALSE,IF(OR('Your Roto Auction'!$Q$5="Show All Positions",AND('Your Roto Auction'!$Q$5="Only Show: C",H20="C"),AND('Your Roto Auction'!$Q$5="Only Show: 1B",H20="1B"),AND('Your Roto Auction'!$Q$5="Only Show: 2B",H20="2B"),AND('Your Roto Auction'!$Q$5="Only Show: 3B",H20="3B"),AND('Your Roto Auction'!$Q$5="Only Show: SS",H20="SS"),AND('Your Roto Auction'!$Q$5="Only Show: OF",H20="OF"),AND('Your Roto Auction'!$Q$5="Only Show: SP",H20="SP"),AND('Your Roto Auction'!$Q$5="Only Show: RP",H20="RP"),AND('Your Roto Auction'!$Q$5="Only Show: CI",OR(H20={"1B","3B"})),AND('Your Roto Auction'!$Q$5="Only Show: MI",OR(H20={"2B","SS"})),AND('Your Roto Auction'!$Q$5="Only Show: IF",OR(H20={"C","1B","2B","3B","SS"})),AND('Your Roto Auction'!$Q$5="Only Show: DH",OR(H20={"C","1B","2B","3B","SS","OF","DH"})),AND('Your Roto Auction'!$Q$5="Only Show: P",OR(H20={"SP","RP"})),AND('Your Roto Auction'!$Q$5="Only Show: LF",ISERROR(SEARCH("LF",VLOOKUP($D20,'Auction-Rank'!$A$2:$D$948,4,FALSE)))=FALSE),AND('Your Roto Auction'!$Q$5="Only Show: RF",ISERROR(SEARCH("RF",VLOOKUP($D20,'Auction-Rank'!$A$2:$D$948,4,FALSE)))=FALSE),AND('Your Roto Auction'!$Q$5="Only Show: CF",ISERROR(SEARCH("CF",VLOOKUP($D20,'Auction-Rank'!$A$2:$D$948,4,FALSE)))=FALSE)),TRUE,FALSE))) -> TRUE | M20: =IFERROR(IF(VLOOKUP($D20,'Inflation-Tracking'!$A$5:$AD$862,22,FALSE)="",-9999,VLOOKUP($D20,'Inflation-Tracking'!$A$5:$AD$862,22,FALSE)),-9999) -> -1.37329604 | N20: =IF(D20="Non-Ranked Player",-1001,IFERROR(VLOOKUP($D20,'All-WERTH'!$C$2:$E$793,3,FALSE),-1000)) -> -8.681669331 | O20: =IF(D20="Non-Ranked Player",10000,IFERROR(IF(VLOOKUP(D20,'Auction-Rank'!$A$2:$X$948,24,FALSE)="",9999,VLOOKUP(D20,'Auction-Rank'!$A$2:$X$948,24,FALSE)),9999)) -> 9999 | P20: =IF($D20="Unlisted Player",-1001,IFERROR(IF(VLOOKUP($D20,'All-WERTH'!$C$2:$AC$793,4,FALSE)="",-1000,VLOOKUP($D20,'All-WERTH'!$C$2:$AC$793,4,FALSE)),-1000)) -> -1000 | Q20: =IF($D20="Unlisted Player",-1001,IFERROR(IF(VLOOKUP($D20,'All-WERTH'!$C$2:$AC$793,5,FALSE)="",-1000,VLOOKUP($D20,'All-WERTH'!$C$2:$AC$793,5,FALSE)),-1000)) -> -1000 | R20: =IF($D20="Unlisted Player",-1001,IFERROR(IF(VLOOKUP($D20,'All-WERTH'!$C$2:$AC$793,6,FALSE)="",-1000,VLOOKUP($D20,'All-WERTH'!$C$2:$AC$793,6,FALSE)),-1000)) -> -1000 | S20: =IF($D20="Unlisted Player",-1001,IFERROR(IF(VLOOKUP($D20,'All-WERTH'!$C$2:$AC$793,7,FALSE)="",-1000,VLOOKUP($D20,'All-WERTH'!$C$2:$AC$793,7,FALSE)),-1000)) -> -1000 | T20: =IF($D20="Unlisted Player",-1001,IFERROR(IF(VLOOKUP($D20,'All-WERTH'!$C$2:$AC$793,8,FALSE)="",-1000,VLOOKUP($D20,'All-WERTH'!$C$2:$AC$793,8,FALSE)),-1000)) -> -1000 | U20: =IF($D20="Unlisted Player",-1001,IFERROR(IF(VLOOKUP($D20,'All-WERTH'!$C$2:$AC$793,9,FALSE)="",-1000,VLOOKUP($D20,'All-WERTH'!$C$2:$AC$793,9,FALSE)),-1000)) -> -1000 | V20: =IF($D20="Unlisted Player",-1001,IFERROR(IF(VLOOKUP($D20,'All-WERTH'!$C$2:$AC$793,10,FALSE)="",-1000,VLOOKUP($D20,'All-WERTH'!$C$2:$AC$793,10,FALSE)),-1000)) -> -1000 | W20: =IF($D20="Unlisted Player",-1001,IFERROR(IF(VLOOKUP($D20,'All-WERTH'!$C$2:$AC$793,11,FALSE)="",-1000,VLOOKUP($D20,'All-WERTH'!$C$2:$AC$793,11,FALSE)),-1000)) -> -1000 | X20: =IF($D20="Unlisted Player",-1001,IFERROR(IF(VLOOKUP($D20,'All-WERTH'!$C$2:$AC$793,12,FALSE)="",-1000,VLOOKUP($D20,'All-WERTH'!$C$2:$AC$793,12,FALSE)),-1000)) -> -1000 | Y20: =IF($D20="Unlisted Player",-1001,IFERROR(IF(VLOOKUP($D20,'All-WERTH'!$C$2:$AC$793,13,FALSE)="",-1000,VLOOKUP($D20,'All-WERTH'!$C$2:$AC$793,13,FALSE)),-1000)) -> -1000 | Z20: =IF($D20="Unlisted Player",-1001,IFERROR(IF(VLOOKUP($D20,'All-WERTH'!$C$2:$AC$793,14,FALSE)="",-1000,VLOOKUP($D20,'All-WERTH'!$C$2:$AC$793,14,FALSE)),-1000)) -> -1000 | AA20: =IF($D20="Unlisted Player",-1001,IFERROR(IF(VLOOKUP($D20,'All-WERTH'!$C$2:$AC$793,15,FALSE)="",-1000,VLOOKUP($D20,'All-WERTH'!$C$2:$AC$793,15,FALSE)),-1000)) -> -1000 | AB20: =IF($D20="Unlisted Player",-1001,IFERROR(IF(VLOOKUP($D20,'All-WERTH'!$C$2:$AC$793,16,FALSE)="",-1000,VLOOKUP($D20,'All-WERTH'!$C$2:$AC$793,16,FALSE)),-1000)) -> -1.190336433 | AC20: =IF($D20="Unlisted Player",-1001,IFERROR(IF(VLOOKUP($D20,'All-WERTH'!$C$2:$AC$793,17,FALSE)="",-1000,VLOOKUP($D20,'All-WERTH'!$C$2:$AC$793,17,FALSE)),-1000)) -> -0.4472348245 | AD20: =IF($D20="Unlisted Player",-1001,IFERROR(IF(VLOOKUP($D20,'All-WERTH'!$C$2:$AC$793,18,FALSE)="",-1000,VLOOKUP($D20,'All-WERTH'!$C$2:$AC$793,18,FALSE)),-1000)) -> -1.508734654 | AE20: =IF($D20="Unlisted Player",-1001,IFERROR(IF(VLOOKUP($D20,'All-WERTH'!$C$2:$AC$793,19,FALSE)="",-1000,VLOOKUP($D20,'All-WERTH'!$C$2:$AC$793,19,FALSE)),-1000)) -> -2.628700068 | AF20: =IF($D20="Unlisted Player",-1001,IFERROR(IF(VLOOKUP($D20,'All-WERTH'!$C$2:$AC$793,20,FALSE)="",-1000,VLOOKUP($D20,'All-WERTH'!$C$2:$AC$793,20,FALSE)),-1000)) -> -2.906663352 | AG20: =IF($D20="Unlisted Player",-1001,IFERROR(IF(VLOOKUP($D20,'All-WERTH'!$C$2:$AC$793,21,FALSE)="",-1000,VLOOKUP($D20,'All-WERTH'!$C$2:$AC$793,21,FALSE)),-1000)) -> -1000 | AH20: =IF($D20="Unlisted Player",-1001,IFERROR(IF(VLOOKUP($D20,'All-WERTH'!$C$2:$AC$793,22,FALSE)="",-1000,VLOOKUP($D20,'All-WERTH'!$C$2:$AC$793,22,FALSE)),-1000)) -> -1000 | AI20: =IF($D20="Unlisted Player",-1001,IFERROR(IF(VLOOKUP($D20,'All-WERTH'!$C$2:$AC$793,23,FALSE)="",-1000,VLOOKUP($D20,'All-WERTH'!$C$2:$AC$793,23,FALSE)),-1000)) -> -1000 | AJ20: =IF($D20="Unlisted Player",-1001,IFERROR(IF(VLOOKUP($D20,'All-WERTH'!$C$2:$AC$793,24,FALSE)="",-1000,VLOOKUP($D20,'All-WERTH'!$C$2:$AC$793,24,FALSE)),-1000)) -> -1000 | AK20: =IF($D20="Unlisted Player",-1001,IFERROR(IF(VLOOKUP($D20,'All-WERTH'!$C$2:$AC$793,25,FALSE)="",-1000,VLOOKUP($D20,'All-WERTH'!$C$2:$AC$793,25,FALSE)),-1000)) -> -1000 | AL20: =IF($D20="Unlisted Player",-1001,IFERROR(IF(VLOOKUP($D20,'All-WERTH'!$C$2:$AC$793,26,FALSE)="",-1000,VLOOKUP($D20,'All-WERTH'!$C$2:$AC$793,26,FALSE)),-1000)) -> -1000 | AM20: =IF($D20="Unlisted Player",-1001,IFERROR(IF(VLOOKUP($D20,'All-WERTH'!$C$2:$AC$793,27,FALSE)="",-1000,VLOOKUP($D20,'All-WERTH'!$C$2:$AC$793,27,FALSE)),-1000)) -> -1000 | AN20: =IF(D20="Non-Ranked Player",-1001,IFERROR(VLOOKUP($D20,'All-WERTH'!$C$2:$AF$793,30,FALSE),-1000)) -> -5.656644772
A21: Freddie Freeman | B21: =IFERROR(INDEX($A$1:$A$948,SMALL(IF($A$1:$A$948<>"",ROW($A$1:$A$948)),ROW(A20))),"") -> Freddie Freeman | C21: =IFERROR(IF(L21=FALSE,"",CHOOSE(MATCH(RIGHT('Your Roto Auction'!$Q$4,LEN('Your Roto Auction'!$Q$4)-8),$M$1:$AN$1,0),1+SUMPRODUCT(($L$2:$L$949=TRUE)*($M$2:$M$949>M21))+COUNTIFS($L$2:L21,L21,$M$2:M21,M21)-1,1+SUMPRODUCT(($L$2:$L$949=TRUE)*($N$2:$N$949>N21))+COUNTIFS($L$2:L21,L21,$N$2:N21,N21)-1,1+SUMPRODUCT(($L$2:$L$949=TRUE)*($O$2:$O$949<O21))+COUNTIFS($L$2:L21,L21,$O$2:O21,O21)-1,1+SUMPRODUCT(($L$2:$L$949=TRUE)*($P$2:$P$949>P21))+COUNTIFS($L$2:L21,L21,$P$2:P21,P21)-1,1+SUMPRODUCT(($L$2:$L$949=TRUE)*($Q$2:$Q$949>Q21))+COUNTIFS($L$2:L21,L21,$Q$2:Q21,Q21)-1,1+SUMPRODUCT(($L$2:$L$949=TRUE)*($R$2:$R$949>R21))+COUNTIFS($L$2:L21,L21,$R$2:R21,R21)-1,1+SUMPRODUCT(($L$2:$L$949=TRUE)*($S$2:$S$949>S21))+COUNTIFS($L$2:L21,L21,$S$2:S21,S21)-1,1+SUMPRODUCT(($L$2:$L$949=TRUE)*($T$2:$T$949>T21))+COUNTIFS($L$2:L21,L21,$T$2:T21,T21)-1,1+SUMPRODUCT(($L$2:$L$949=TRUE)*($U$2:$U$949>U21))+COUNTIFS($L$2:L21,L21,$U$2:U21,U21)-1,1+SUMPRODUCT(($L$2:$L$949=TRUE)*($V$2:$V$949>V21))+COUNTIFS($L$2:L21,L21,$V$2:V21,V21)-1,1+SUMPRODUCT(($L$2:$L$949=TRUE)*($W$2:$W$949>W21))+COUNTIFS($L$2:L21,L21,$W$2:W21,W21)-1,1+SUMPRODUCT(($L$2:$L$949=TRUE)*($X$2:$X$949>X21))+COUNTIFS($L$2:L21,L21,$X$2:X21,X21)-1,1+SUMPRODUCT(($L$2:$L$949=TRUE)*($Y$2:$Y$949>Y21))+COUNTIFS($L$2:L21,L21,$Y$2:Y21,Y21)-1,1+SUMPRODUCT(($L$2:$L$949=TRUE)*($Z$2:$Z$949>Z21))+COUNTIFS($L$2:L21,L21,$Z$2:Z21,Z21)-1,1+SUMPRODUCT(($L$2:$L$949=TRUE)*($AA$2:$AA$949>AA21))+COUNTIFS($L$2:L21,L21,$AA$2:AA21,AA21)-1,1+SUMPRODUCT(($L$2:$L$949=TRUE)*($AB$2:$AB$949>AB21))+COUNTIFS($L$2:L21,L21,$AB$2:AB21,AB21)-1,1+SUMPRODUCT(($L$2:$L$949=TRUE)*($AC$2:$AC$949>AC21))+COUNTIFS($L$2:L21,L21,$AC$2:AC21,AC21)-1,1+SUMPRODUCT(($L$2:$L$949=TRUE)*($AD$2:$AD$949>AD21))+COUNTIFS($L$2:L21,L21,$AD$2:AD21,AD21)-1,1+SUMPRODUCT(($L$2:$L$949=TRUE)*($AE$2:$AE$949>AE21))+COUNTIFS($L$2:L21,L21,$AE$2:AE21,AE21)-1,1+SUMPRODUCT(($L$2:$L$949=TRUE)*($AF$2:$AF$949>AF21))+COUNTIFS($L$2:L21,L21,$AF$2:AF21,AF21)-1,1+SUMPRODUCT(($L$2:$L$949=TRUE)*($AG$2:$AG$949>AG21))+COUNTIFS($L$2:L21,L21,$AG$2:AG21,AG21)-1,1+SUMPRODUCT(($L$2:$L$949=TRUE)*($AH$2:$AH$949>AH21))+COUNTIFS($L$2:L21,L21,$AH$2:AH21,AH21)-1,1+SUMPRODUCT(($L$2:$L$949=TRUE)*($AI$2:$AI$949>AI21))+COUNTIFS($L$2:L21,L21,$AI$2:AI21,AI21)-1,1+SUMPRODUCT(($L$2:$L$949=TRUE)*($AJ$2:$AJ$949>AJ21))+COUNTIFS($L$2:L21,L21,$AJ$2:AJ21,AJ21)-1,1+SUMPRODUCT(($L$2:$L$949=TRUE)*($AK$2:$AK$949>AK21))+COUNTIFS($L$2:L21,L21,$AK$2:AK21,AK21)-1,1+SUMPRODUCT(($L$2:$L$949=TRUE)*($AL$2:$AL$949>AL21))+COUNTIFS($L$2:L21,L21,$AL$2:AL21,AL21)-1,1+SUMPRODUCT(($L$2:$L$949=TRUE)*($AM$2:$AM$949>AM21))+COUNTIFS($L$2:L21,L21,$AM$2:AM21,AM21)-1,1+SUMPRODUCT(($L$2:$L$949=TRUE)*($AN$2:$AN$949>AN21))+COUNTIFS($L$2:L21,L21,$AN$2:AN21,AN21)-1)),"") -> 580 | D21: Albert Almora | E21: =IFERROR(INDEX('Auction Log'!$C$4:$C$806,MATCH(D21,'Auction Log'!$B$4:$B$806,0)),"") ->  | F21: =IFERROR(INDEX('Auction-Rank'!$C$2:$C$948,MATCH(D21,'Auction-Rank'!$A$2:$A$948,0)),"") -> OF | G21: =IFERROR(IF(F21=I21,"",IF(INDEX('Your Roto Auction'!$C$11:$C$634,MATCH(D21,'Your Roto Auction'!$D$11:$D$634,0))="",IF(I21<>"",I21,""),INDEX('Your Roto Auction'!$C$11:$C$634,MATCH(D21,'Your Roto Auction'!$D$11:$D$634,0)))),"") ->  | H21: OF | J21: =INDEX('Auction-Rank'!$V$2:$V$948,MATCH(D21,'Auction-Rank'!$A$2:$A$948,0)) -> TRUE | K21: FALSE | L21: =IF(J21=FALSE,FALSE,IF(AND('Your Roto Auction'!$Q$6="Hide Drafted Players",K21=TRUE),FALSE,IF(OR('Your Roto Auction'!$Q$5="Show All Positions",AND('Your Roto Auction'!$Q$5="Only Show: C",H21="C"),AND('Your Roto Auction'!$Q$5="Only Show: 1B",H21="1B"),AND('Your Roto Auction'!$Q$5="Only Show: 2B",H21="2B"),AND('Your Roto Auction'!$Q$5="Only Show: 3B",H21="3B"),AND('Your Roto Auction'!$Q$5="Only Show: SS",H21="SS"),AND('Your Roto Auction'!$Q$5="Only Show: OF",H21="OF"),AND('Your Roto Auction'!$Q$5="Only Show: SP",H21="SP"),AND('Your Roto Auction'!$Q$5="Only Show: RP",H21="RP"),AND('Your Roto Auction'!$Q$5="Only Show: CI",OR(H21={"1B","3B"})),AND('Your Roto Auction'!$Q$5="Only Show: MI",OR(H21={"2B","SS"})),AND('Your Roto Auction'!$Q$5="Only Show: IF",OR(H21={"C","1B","2B","3B","SS"})),AND('Your Roto Auction'!$Q$5="Only Show: DH",OR(H21={"C","1B","2B","3B","SS","OF","DH"})),AND('Your Roto Auction'!$Q$5="Only Show: P",OR(H21={"SP","RP"})),AND('Your Roto Auction'!$Q$5="Only Show: LF",ISERROR(SEARCH("LF",VLOOKUP($D21,'Auction-Rank'!$A$2:$D$948,4,FALSE)))=FALSE),AND('Your Roto Auction'!$Q$5="Only Show: RF",ISERROR(SEARCH("RF",VLOOKUP($D21,'Auction-Rank'!$A$2:$D$948,4,FALSE)))=FALSE),AND('Your Roto Auction'!$Q$5="Only Show: CF",ISERROR(SEARCH("CF",VLOOKUP($D21,'Auction-Rank'!$A$2:$D$948,4,FALSE)))=FALSE)),TRUE,FALSE))) -> TRUE | M21: =IFERROR(IF(VLOOKUP($D21,'Inflation-Tracking'!$A$5:$AD$862,22,FALSE)="",-9999,VLOOKUP($D21,'Inflation-Tracking'!$A$5:$AD$862,22,FALSE)),-9999) -> -1.579044139 | N21: =IF(D21="Non-Ranked Player",-1001,IFERROR(VLOOKUP($D21,'All-WERTH'!$C$2:$E$793,3,FALSE),-1000)) -> -8.612184876 | O21: =IF(D21="Non-Ranked Player",10000,IFERROR(IF(VLOOKUP(D21,'Auction-Rank'!$A$2:$X$948,24,FALSE)="",9999,VLOOKUP(D21,'Auction-Rank'!$A$2:$X$948,24,FALSE)),9999)) -> 9999 | P21: =IF($D21="Unlisted Player",-1001,IFERROR(IF(VLOOKUP($D21,'All-WERTH'!$C$2:$AC$793,4,FALSE)="",-1000,VLOOKUP($D21,'All-WERTH'!$C$2:$AC$793,4,FALSE)),-1000)) -> -0.4869483993 | Q21: =IF($D21="Unlisted Player",-1001,IFERROR(IF(VLOOKUP($D21,'All-WERTH'!$C$2:$AC$793,5,FALSE)="",-1000,VLOOKUP($D21,'All-WERTH'!$C$2:$AC$793,5,FALSE)),-1000)) -> -2.114250852 | R21: =IF($D21="Unlisted Player",-1001,IFERROR(IF(VLOOKUP($D21,'All-WERTH'!$C$2:$AC$793,6,FALSE)="",-1000,VLOOKUP($D21,'All-WERTH'!$C$2:$AC$793,6,FALSE)),-1000)) -> -2.546954116 | S21: =IF($D21="Unlisted Player",-1001,IFERROR(IF(VLOOKUP($D21,'All-WERTH'!$C$2:$AC$793,7,FALSE)="",-1000,VLOOKUP($D21,'All-WERTH'!$C$2:$AC$793,7,FALSE)),-1000)) -> -2.742205193 | T21: =IF($D21="Unlisted Player",-1001,IFERROR(IF(VLOOKUP($D21,'All-WERTH'!$C$2:$AC$793,8,FALSE)="",-1000,VLOOKUP($D21,'All-WERTH'!$C$2:$AC$793,8,FALSE)),-1000)) -> -0.7218263159 | U21: =IF($D21="Unlisted Player",-1001,IFERROR(IF(VLOOKUP($D21,'All-WERTH'!$C$2:$AC$793,9,FALSE)="",-1000,VLOOKUP($D21,'All-WERTH'!$C$2:$AC$793,9,FALSE)),-1000)) -> -1000 | V21: =IF($D21="Unlisted Player",-1001,IFERROR(IF(VLOOKUP($D21,'All-WERTH'!$C$2:$AC$793,10,FALSE)="",-1000,VLOOKUP($D21,'All-WERTH'!$C$2:$AC$793,10,FALSE)),-1000)) -> -1000 | W21: =IF($D21="Unlisted Player",-1001,IFERROR(IF(VLOOKUP($D21,'All-WERTH'!$C$2:$AC$793,11,FALSE)="",-1000,VLOOKUP($D21,'All-WERTH'!$C$2:$AC$793,11,FALSE)),-1000)) -> -1000 | X21: =IF($D21="Unlisted Player",-1001,IFERROR(IF(VLOOKUP($D21,'All-WERTH'!$C$2:$AC$793,12,FALSE)="",-1000,VLOOKUP($D21,'All-WERTH'!$C$2:$AC$793,12,FALSE)),-1000)) -> -1000 | Y21: =IF($D21="Unlisted Player",-1001,IFERROR(IF(VLOOKUP($D21,'All-WERTH'!$C$2:$AC$793,13,FALSE)="",-1000,VLOOKUP($D21,'All-WERTH'!$C$2:$AC$793,13,FALSE)),-1000)) -> -1000 | Z21: =IF($D21="Unlisted Player",-1001,IFERROR(IF(VLOOKUP($D21,'All-WERTH'!$C$2:$AC$793,14,FALSE)="",-1000,VLOOKUP($D21,'All-WERTH'!$C$2:$AC$793,14,FALSE)),-1000)) -> -1000 | AA21: =IF($D21="Unlisted Player",-1001,IFERROR(IF(VLOOKUP($D21,'All-WERTH'!$C$2:$AC$793,15,FALSE)="",-1000,VLOOKUP($D21,'All-WERTH'!$C$2:$AC$793,15,FALSE)),-1000)) -> -1000 | AB21: =IF($D21="Unlisted Player",-1001,IFERROR(IF(VLOOKUP($D21,'All-WERTH'!$C$2:$AC$793,16,FALSE)="",-1000,VLOOKUP($D21,'All-WERTH'!$C$2:$AC$793,16,FALSE)),-1000)) -> -1000 | AC21: =IF($D21="Unlisted Player",-1001,IFERROR(IF(VLOOKUP($D21,'All-WERTH'!$C$2:$AC$793,17,FALSE)="",-1000,VLOOKUP($D21,'All-WERTH'!$C$2:$AC$793,17,FALSE)),-1000)) -> -1000 | AD21: =IF($D21="Unlisted Player",-1001,IFERROR(IF(VLOOKUP($D21,'All-WERTH'!$C$2:$AC$793,18,FALSE)="",-1000,VLOOKUP($D21,'All-WERTH'!$C$2:$AC$793,18,FALSE)),-1000)) -> -1000 | AE21: =IF($D21="Unlisted Player",-1001,IFERROR(IF(VLOOKUP($D21,'All-WERTH'!$C$2:$AC$793,19,FALSE)="",-1000,VLOOKUP($D21,'All-WERTH'!$C$2:$AC$793,19,FALSE)),-1000)) -> -1000 | AF21: =IF($D21="Unlisted Player",-1001,IFERROR(IF(VLOOKUP($D21,'All-WERTH'!$C$2:$AC$793,20,FALSE)="",-1000,VLOOKUP($D21,'All-WERTH'!$C$2:$AC$793,20,FALSE)),-1000)) -> -1000 | AG21: =IF($D21="Unlisted Player",-1001,IFERROR(IF(VLOOKUP($D21,'All-WERTH'!$C$2:$AC$793,21,FALSE)="",-1000,VLOOKUP($D21,'All-WERTH'!$C$2:$AC$793,21,FALSE)),-1000)) -> -1000 | AH21: =IF($D21="Unlisted Player",-1001,IFERROR(IF(VLOOKUP($D21,'All-WERTH'!$C$2:$AC$793,22,FALSE)="",-1000,VLOOKUP($D21,'All-WERTH'!$C$2:$AC$793,22,FALSE)),-1000)) -> -1000 | AI21: =IF($D21="Unlisted Player",-1001,IFERROR(IF(VLOOKUP($D21,'All-WERTH'!$C$2:$AC$793,23,FALSE)="",-1000,VLOOKUP($D21,'All-WERTH'!$C$2:$AC$793,23,FALSE)),-1000)) -> -1000 | AJ21: =IF($D21="Unlisted Player",-1001,IFERROR(IF(VLOOKUP($D21,'All-WERTH'!$C$2:$AC$793,24,FALSE)="",-1000,VLOOKUP($D21,'All-WERTH'!$C$2:$AC$793,24,FALSE)),-1000)) -> -1000 | AK21: =IF($D21="Unlisted Player",-1001,IFERROR(IF(VLOOKUP($D21,'All-WERTH'!$C$2:$AC$793,25,FALSE)="",-1000,VLOOKUP($D21,'All-WERTH'!$C$2:$AC$793,25,FALSE)),-1000)) -> -1000 | AL21: =IF($D21="Unlisted Player",-1001,IFERROR(IF(VLOOKUP($D21,'All-WERTH'!$C$2:$AC$793,26,FALSE)="",-1000,VLOOKUP($D21,'All-WERTH'!$C$2:$AC$793,26,FALSE)),-1000)) -> -1000 | AM21: =IF($D21="Unlisted Player",-1001,IFERROR(IF(VLOOKUP($D21,'All-WERTH'!$C$2:$AC$793,27,FALSE)="",-1000,VLOOKUP($D21,'All-WERTH'!$C$2:$AC$793,27,FALSE)),-1000)) -> -1000 | AN21: =IF(D21="Non-Ranked Player",-1001,IFERROR(VLOOKUP($D21,'All-WERTH'!$C$2:$AF$793,30,FALSE),-1000)) -> -5.391226867
A22: Trea Turner | B22: =IFERROR(INDEX($A$1:$A$948,SMALL(IF($A$1:$A$948<>"",ROW($A$1:$A$948)),ROW(A21))),"") -> Trea Turner | C22: =IFERROR(IF(L22=FALSE,"",CHOOSE(MATCH(RIGHT('Your Roto Auction'!$Q$4,LEN('Your Roto Auction'!$Q$4)-8),$M$1:$AN$1,0),1+SUMPRODUCT(($L$2:$L$949=TRUE)*($M$2:$M$949>M22))+COUNTIFS($L$2:L22,L22,$M$2:M22,M22)-1,1+SUMPRODUCT(($L$2:$L$949=TRUE)*($N$2:$N$949>N22))+COUNTIFS($L$2:L22,L22,$N$2:N22,N22)-1,1+SUMPRODUCT(($L$2:$L$949=TRUE)*($O$2:$O$949<O22))+COUNTIFS($L$2:L22,L22,$O$2:O22,O22)-1,1+SUMPRODUCT(($L$2:$L$949=TRUE)*($P$2:$P$949>P22))+COUNTIFS($L$2:L22,L22,$P$2:P22,P22)-1,1+SUMPRODUCT(($L$2:$L$949=TRUE)*($Q$2:$Q$949>Q22))+COUNTIFS($L$2:L22,L22,$Q$2:Q22,Q22)-1,1+SUMPRODUCT(($L$2:$L$949=TRUE)*($R$2:$R$949>R22))+COUNTIFS($L$2:L22,L22,$R$2:R22,R22)-1,1+SUMPRODUCT(($L$2:$L$949=TRUE)*($S$2:$S$949>S22))+COUNTIFS($L$2:L22,L22,$S$2:S22,S22)-1,1+SUMPRODUCT(($L$2:$L$949=TRUE)*($T$2:$T$949>T22))+COUNTIFS($L$2:L22,L22,$T$2:T22,T22)-1,1+SUMPRODUCT(($L$2:$L$949=TRUE)*($U$2:$U$949>U22))+COUNTIFS($L$2:L22,L22,$U$2:U22,U22)-1,1+SUMPRODUCT(($L$2:$L$949=TRUE)*($V$2:$V$949>V22))+COUNTIFS($L$2:L22,L22,$V$2:V22,V22)-1,1+SUMPRODUCT(($L$2:$L$949=TRUE)*($W$2:$W$949>W22))+COUNTIFS($L$2:L22,L22,$W$2:W22,W22)-1,1+SUMPRODUCT(($L$2:$L$949=TRUE)*($X$2:$X$949>X22))+COUNTIFS($L$2:L22,L22,$X$2:X22,X22)-1,1+SUMPRODUCT(($L$2:$L$949=TRUE)*($Y$2:$Y$949>Y22))+COUNTIFS($L$2:L22,L22,$Y$2:Y22,Y22)-1,1+SUMPRODUCT(($L$2:$L$949=TRUE)*($Z$2:$Z$949>Z22))+COUNTIFS($L$2:L22,L22,$Z$2:Z22,Z22)-1,1+SUMPRODUCT(($L$2:$L$949=TRUE)*($AA$2:$AA$949>AA22))+COUNTIFS($L$2:L22,L22,$AA$2:AA22,AA22)-1,1+SUMPRODUCT(($L$2:$L$949=TRUE)*($AB$2:$AB$949>AB22))+COUNTIFS($L$2:L22,L22,$AB$2:AB22,AB22)-1,1+SUMPRODUCT(($L$2:$L$949=TRUE)*($AC$2:$AC$949>AC22))+COUNTIFS($L$2:L22,L22,$AC$2:AC22,AC22)-1,1+SUMPRODUCT(($L$2:$L$949=TRUE)*($AD$2:$AD$949>AD22))+COUNTIFS($L$2:L22,L22,$AD$2:AD22,AD22)-1,1+SUMPRODUCT(($L$2:$L$949=TRUE)*($AE$2:$AE$949>AE22))+COUNTIFS($L$2:L22,L22,$AE$2:AE22,AE22)-1,1+SUMPRODUCT(($L$2:$L$949=TRUE)*($AF$2:$AF$949>AF22))+COUNTIFS($L$2:L22,L22,$AF$2:AF22,AF22)-1,1+SUMPRODUCT(($L$2:$L$949=TRUE)*($AG$2:$AG$949>AG22))+COUNTIFS($L$2:L22,L22,$AG$2:AG22,AG22)-1,1+SUMPRODUCT(($L$2:$L$949=TRUE)*($AH$2:$AH$949>AH22))+COUNTIFS($L$2:L22,L22,$AH$2:AH22,AH22)-1,1+SUMPRODUCT(($L$2:$L$949=TRUE)*($AI$2:$AI$949>AI22))+COUNTIFS($L$2:L22,L22,$AI$2:AI22,AI22)-1,1+SUMPRODUCT(($L$2:$L$949=TRUE)*($AJ$2:$AJ$949>AJ22))+COUNTIFS($L$2:L22,L22,$AJ$2:AJ22,AJ22)-1,1+SUMPRODUCT(($L$2:$L$949=TRUE)*($AK$2:$AK$949>AK22))+COUNTIFS($L$2:L22,L22,$AK$2:AK22,AK22)-1,1+SUMPRODUCT(($L$2:$L$949=TRUE)*($AL$2:$AL$949>AL22))+COUNTIFS($L$2:L22,L22,$AL$2:AL22,AL22)-1,1+SUMPRODUCT(($L$2:$L$949=TRUE)*($AM$2:$AM$949>AM22))+COUNTIFS($L$2:L22,L22,$AM$2:AM22,AM22)-1,1+SUMPRODUCT(($L$2:$L$949=TRUE)*($AN$2:$AN$949>AN22))+COUNTIFS($L$2:L22,L22,$AN$2:AN22,AN22)-1)),"") -> 40 | D22: Pete Alonso | E22: =IFERROR(INDEX('Auction Log'!$C$4:$C$806,MATCH(D22,'Auction Log'!$B$4:$B$806,0)),"") ->  | F22: =IFERROR(INDEX('Auction-Rank'!$C$2:$C$948,MATCH(D22,'Auction-Rank'!$A$2:$A$948,0)),"") -> 1B | G22: =IFERROR(IF(F22=I22,"",IF(INDEX('Your Roto Auction'!$C$11:$C$634,MATCH(D22,'Your Roto Auction'!$D$11:$D$634,0))="",IF(I22<>"",I22,""),INDEX('Your Roto Auction'!$C$11:$C$634,MATCH(D22,'Your Roto Auction'!$D$11:$D$634,0)))),"") ->  | H22: 1B | J22: =INDEX('Auction-Rank'!$V$2:$V$948,MATCH(D22,'Auction-Rank'!$A$2:$A$948,0)) -> TRUE | K22: FALSE | L22: =IF(J22=FALSE,FALSE,IF(AND('Your Roto Auction'!$Q$6="Hide Drafted Players",K22=TRUE),FALSE,IF(OR('Your Roto Auction'!$Q$5="Show All Positions",AND('Your Roto Auction'!$Q$5="Only Show: C",H22="C"),AND('Your Roto Auction'!$Q$5="Only Show: 1B",H22="1B"),AND('Your Roto Auction'!$Q$5="Only Show: 2B",H22="2B"),AND('Your Roto Auction'!$Q$5="Only Show: 3B",H22="3B"),AND('Your Roto Auction'!$Q$5="Only Show: SS",H22="SS"),AND('Your Roto Auction'!$Q$5="Only Show: OF",H22="OF"),AND('Your Roto Auction'!$Q$5="Only Show: SP",H22="SP"),AND('Your Roto Auction'!$Q$5="Only Show: RP",H22="RP"),AND('Your Roto Auction'!$Q$5="Only Show: CI",OR(H22={"1B","3B"})),AND('Your Roto Auction'!$Q$5="Only Show: MI",OR(H22={"2B","SS"})),AND('Your Roto Auction'!$Q$5="Only Show: IF",OR(H22={"C","1B","2B","3B","SS"})),AND('Your Roto Auction'!$Q$5="Only Show: DH",OR(H22={"C","1B","2B","3B","SS","OF","DH"})),AND('Your Roto Auction'!$Q$5="Only Show: P",OR(H22={"SP","RP"})),AND('Your Roto Auction'!$Q$5="Only Show: LF",ISERROR(SEARCH("LF",VLOOKUP($D22,'Auction-Rank'!$A$2:$D$948,4,FALSE)))=FALSE),AND('Your Roto Auction'!$Q$5="Only Show: RF",ISERROR(SEARCH("RF",VLOOKUP($D22,'Auction-Rank'!$A$2:$D$948,4,FALSE)))=FALSE),AND('Your Roto Auction'!$Q$5="Only Show: CF",ISERROR(SEARCH("CF",VLOOKUP($D22,'Auction-Rank'!$A$2:$D$948,4,FALSE)))=FALSE)),TRUE,FALSE))) -> TRUE | M22: =IFERROR(IF(VLOOKUP($D22,'Inflation-Tracking'!$A$5:$AD$862,22,FALSE)="",-9999,VLOOKUP($D22,'Inflation-Tracking'!$A$5:$AD$862,22,FALSE)),-9999) -> 22.51092505 | N22: =IF(D22="Non-Ranked Player",-1001,IFERROR(VLOOKUP($D22,'All-WERTH'!$C$2:$E$793,3,FALSE),-1000)) -> 2.437951139 | O22: =IF(D22="Non-Ranked Player",10000,IFERROR(IF(VLOOKUP(D22,'Auction-Rank'!$A$2:$X$948,24,FALSE)="",9999,VLOOKUP(D22,'Auction-Rank'!$A$2:$X$948,24,FALSE)),9999)) -> 34 | P22: =IF($D22="Unlisted Player",-1001,IFERROR(IF(VLOOKUP($D22,'All-WERTH'!$C$2:$AC$793,4,FALSE)="",-1000,VLOOKUP($D22,'All-WERTH'!$C$2:$AC$793,4,FALSE)),-1000)) -> -1.074384473 | Q22: =IF($D22="Unlisted Player",-1001,IFERROR(IF(VLOOKUP($D22,'All-WERTH'!$C$2:$AC$793,5,FALSE)="",-1000,VLOOKUP($D22,'All-WERTH'!$C$2:$AC$793,5,FALSE)),-1000)) -> 2.198206934 | R22: =IF($D22="Unlisted Player",-1001,IFERROR(IF(VLOOKUP($D22,'All-WERTH'!$C$2:$AC$793,6,FALSE)="",-1000,VLOOKUP($D22,'All-WERTH'!$C$2:$AC$793,6,FALSE)),-1000)) -> 0.6890806576 | S22: =IF($D22="Unlisted Player",-1001,IFERROR(IF(VLOOKUP($D22,'All-WERTH'!$C$2:$AC$793,7,FALSE)="",-1000,VLOOKUP($D22,'All-WERTH'!$C$2:$AC$793,7,FALSE)),-1000)) -> 1.538410762 | T22: =IF($D22="Unlisted Player",-1001,IFERROR(IF(VLOOKUP($D22,'All-WERTH'!$C$2:$AC$793,8,FALSE)="",-1000,VLOOKUP($D22,'All-WERTH'!$C$2:$AC$793,8,FALSE)),-1000)) -> -0.9133627415 | U22: =IF($D22="Unlisted Player",-1001,IFERROR(IF(VLOOKUP($D22,'All-WERTH'!$C$2:$AC$793,9,FALSE)="",-1000,VLOOKUP($D22,'All-WERTH'!$C$2:$AC$793,9,FALSE)),-1000)) -> -1000 | V22: =IF($D22="Unlisted Player",-1001,IFERROR(IF(VLOOKUP($D22,'All-WERTH'!$C$2:$AC$793,10,FALSE)="",-1000,VLOOKUP($D22,'All-WERTH'!$C$2:$AC$793,10,FALSE)),-1000)) -> -1000 | W22: =IF($D22="Unlisted Player",-1001,IFERROR(IF(VLOOKUP($D22,'All-WERTH'!$C$2:$AC$793,11,FALSE)="",-1000,VLOOKUP($D22,'All-WERTH'!$C$2:$AC$793,11,FALSE)),-1000)) -> -1000 | X22: =IF($D22="Unlisted Player",-1001,IFERROR(IF(VLOOKUP($D22,'All-WERTH'!$C$2:$AC$793,12,FALSE)="",-1000,VLOOKUP($D22,'All-WERTH'!$C$2:$AC$793,12,FALSE)),-1000)) -> -1000 | Y22: =IF($D22="Unlisted Player",-1001,IFERROR(IF(VLOOKUP($D22,'All-WERTH'!$C$2:$AC$793,13,FALSE)="",-1000,VLOOKUP($D22,'All-WERTH'!$C$2:$AC$793,13,FALSE)),-1000)) -> -1000 | Z22: =IF($D22="Unlisted Player",-1001,IFERROR(IF(VLOOKUP($D22,'All-WERTH'!$C$2:$AC$793,14,FALSE)="",-1000,VLOOKUP($D22,'All-WERTH'!$C$2:$AC$793,14,FALSE)),-1000)) -> -1000 | AA22: =IF($D22="Unlisted Player",-1001,IFERROR(IF(VLOOKUP($D22,'All-WERTH'!$C$2:$AC$793,15,FALSE)="",-1000,VLOOKUP($D22,'All-WERTH'!$C$2:$AC$793,15,FALSE)),-1000)) -> -1000 | AB22: =IF($D22="Unlisted Player",-1001,IFERROR(IF(VLOOKUP($D22,'All-WERTH'!$C$2:$AC$793,16,FALSE)="",-1000,VLOOKUP($D22,'All-WERTH'!$C$2:$AC$793,16,FALSE)),-1000)) -> -1000 | AC22: =IF($D22="Unlisted Player",-1001,IFERROR(IF(VLOOKUP($D22,'All-WERTH'!$C$2:$AC$793,17,FALSE)="",-1000,VLOOKUP($D22,'All-WERTH'!$C$2:$AC$793,17,FALSE)),-1000)) -> -1000 | AD22: =IF($D22="Unlisted Player",-1001,IFERROR(IF(VLOOKUP($D22,'All-WERTH'!$C$2:$AC$793,18,FALSE)="",-1000,VLOOKUP($D22,'All-WERTH'!$C$2:$AC$793,18,FALSE)),-1000)) -> -1000 | AE22: =IF($D22="Unlisted Player",-1001,IFERROR(IF(VLOOKUP($D22,'All-WERTH'!$C$2:$AC$793,19,FALSE)="",-1000,VLOOKUP($D22,'All-WERTH'!$C$2:$AC$793,19,FALSE)),-1000)) -> -1000 | AF22: =IF($D22="Unlisted Player",-1001,IFERROR(IF(VLOOKUP($D22,'All-WERTH'!$C$2:$AC$793,20,FALSE)="",-1000,VLOOKUP($D22,'All-WERTH'!$C$2:$AC$793,20,FALSE)),-1000)) -> -1000 | AG22: =IF($D22="Unlisted Player",-1001,IFERROR(IF(VLOOKUP($D22,'All-WERTH'!$C$2:$AC$793,21,FALSE)="",-1000,VLOOKUP($D22,'All-WERTH'!$C$2:$AC$793,21,FALSE)),-1000)) -> -1000 | AH22: =IF($D22="Unlisted Player",-1001,IFERROR(IF(VLOOKUP($D22,'All-WERTH'!$C$2:$AC$793,22,FALSE)="",-1000,VLOOKUP($D22,'All-WERTH'!$C$2:$AC$793,22,FALSE)),-1000)) -> -1000 | AI22: =IF($D22="Unlisted Player",-1001,IFERROR(IF(VLOOKUP($D22,'All-WERTH'!$C$2:$AC$793,23,FALSE)="",-1000,VLOOKUP($D22,'All-WERTH'!$C$2:$AC$793,23,FALSE)),-1000)) -> -1000 | AJ22: =IF($D22="Unlisted Player",-1001,IFERROR(IF(VLOOKUP($D22,'All-WERTH'!$C$2:$AC$793,24,FALSE)="",-1000,VLOOKUP($D22,'All-WERTH'!$C$2:$AC$793,24,FALSE)),-1000)) -> -1000 | AK22: =IF($D22="Unlisted Player",-1001,IFERROR(IF(VLOOKUP($D22,'All-WERTH'!$C$2:$AC$793,25,FALSE)="",-1000,VLOOKUP($D22,'All-WERTH'!$C$2:$AC$793,25,FALSE)),-1000)) -> -1000 | AL22: =IF($D22="Unlisted Player",-1001,IFERROR(IF(VLOOKUP($D22,'All-WERTH'!$C$2:$AC$793,26,FALSE)="",-1000,VLOOKUP($D22,'All-WERTH'!$C$2:$AC$793,26,FALSE)),-1000)) -> -1000 | AM22: =IF($D22="Unlisted Player",-1001,IFERROR(IF(VLOOKUP($D22,'All-WERTH'!$C$2:$AC$793,27,FALSE)="",-1000,VLOOKUP($D22,'All-WERTH'!$C$2:$AC$793,27,FALSE)),-1000)) -> -1000 | AN22: =IF(D22="Non-Ranked Player",-1001,IFERROR(VLOOKUP($D22,'All-WERTH'!$C$2:$AF$793,30,FALSE),-1000)) -> 5.518406129
A23: Jack Flaherty | B23: =IFERROR(INDEX($A$1:$A$948,SMALL(IF($A$1:$A$948<>"",ROW($A$1:$A$948)),ROW(A22))),"") -> Jack Flaherty | C23: =IFERROR(IF(L23=FALSE,"",CHOOSE(MATCH(RIGHT('Your Roto Auction'!$Q$4,LEN('Your Roto Auction'!$Q$4)-8),$M$1:$AN$1,0),1+SUMPRODUCT(($L$2:$L$949=TRUE)*($M$2:$M$949>M23))+COUNTIFS($L$2:L23,L23,$M$2:M23,M23)-1,1+SUMPRODUCT(($L$2:$L$949=TRUE)*($N$2:$N$949>N23))+COUNTIFS($L$2:L23,L23,$N$2:N23,N23)-1,1+SUMPRODUCT(($L$2:$L$949=TRUE)*($O$2:$O$949<O23))+COUNTIFS($L$2:L23,L23,$O$2:O23,O23)-1,1+SUMPRODUCT(($L$2:$L$949=TRUE)*($P$2:$P$949>P23))+COUNTIFS($L$2:L23,L23,$P$2:P23,P23)-1,1+SUMPRODUCT(($L$2:$L$949=TRUE)*($Q$2:$Q$949>Q23))+COUNTIFS($L$2:L23,L23,$Q$2:Q23,Q23)-1,1+SUMPRODUCT(($L$2:$L$949=TRUE)*($R$2:$R$949>R23))+COUNTIFS($L$2:L23,L23,$R$2:R23,R23)-1,1+SUMPRODUCT(($L$2:$L$949=TRUE)*($S$2:$S$949>S23))+COUNTIFS($L$2:L23,L23,$S$2:S23,S23)-1,1+SUMPRODUCT(($L$2:$L$949=TRUE)*($T$2:$T$949>T23))+COUNTIFS($L$2:L23,L23,$T$2:T23,T23)-1,1+SUMPRODUCT(($L$2:$L$949=TRUE)*($U$2:$U$949>U23))+COUNTIFS($L$2:L23,L23,$U$2:U23,U23)-1,1+SUMPRODUCT(($L$2:$L$949=TRUE)*($V$2:$V$949>V23))+COUNTIFS($L$2:L23,L23,$V$2:V23,V23)-1,1+SUMPRODUCT(($L$2:$L$949=TRUE)*($W$2:$W$949>W23))+COUNTIFS($L$2:L23,L23,$W$2:W23,W23)-1,1+SUMPRODUCT(($L$2:$L$949=TRUE)*($X$2:$X$949>X23))+COUNTIFS($L$2:L23,L23,$X$2:X23,X23)-1,1+SUMPRODUCT(($L$2:$L$949=TRUE)*($Y$2:$Y$949>Y23))+COUNTIFS($L$2:L23,L23,$Y$2:Y23,Y23)-1,1+SUMPRODUCT(($L$2:$L$949=TRUE)*($Z$2:$Z$949>Z23))+COUNTIFS($L$2:L23,L23,$Z$2:Z23,Z23)-1,1+SUMPRODUCT(($L$2:$L$949=TRUE)*($AA$2:$AA$949>AA23))+COUNTIFS($L$2:L23,L23,$AA$2:AA23,AA23)-1,1+SUMPRODUCT(($L$2:$L$949=TRUE)*($AB$2:$AB$949>AB23))+COUNTIFS($L$2:L23,L23,$AB$2:AB23,AB23)-1,1+SUMPRODUCT(($L$2:$L$949=TRUE)*($AC$2:$AC$949>AC23))+COUNTIFS($L$2:L23,L23,$AC$2:AC23,AC23)-1,1+SUMPRODUCT(($L$2:$L$949=TRUE)*($AD$2:$AD$949>AD23))+COUNTIFS($L$2:L23,L23,$AD$2:AD23,AD23)-1,1+SUMPRODUCT(($L$2:$L$949=TRUE)*($AE$2:$AE$949>AE23))+COUNTIFS($L$2:L23,L23,$AE$2:AE23,AE23)-1,1+SUMPRODUCT(($L$2:$L$949=TRUE)*($AF$2:$AF$949>AF23))+COUNTIFS($L$2:L23,L23,$AF$2:AF23,AF23)-1,1+SUMPRODUCT(($L$2:$L$949=TRUE)*($AG$2:$AG$949>AG23))+COUNTIFS($L$2:L23,L23,$AG$2:AG23,AG23)-1,1+SUMPRODUCT(($L$2:$L$949=TRUE)*($AH$2:$AH$949>AH23))+COUNTIFS($L$2:L23,L23,$AH$2:AH23,AH23)-1,1+SUMPRODUCT(($L$2:$L$949=TRUE)*($AI$2:$AI$949>AI23))+COUNTIFS($L$2:L23,L23,$AI$2:AI23,AI23)-1,1+SUMPRODUCT(($L$2:$L$949=TRUE)*($AJ$2:$AJ$949>AJ23))+COUNTIFS($L$2:L23,L23,$AJ$2:AJ23,AJ23)-1,1+SUMPRODUCT(($L$2:$L$949=TRUE)*($AK$2:$AK$949>AK23))+COUNTIFS($L$2:L23,L23,$AK$2:AK23,AK23)-1,1+SUMPRODUCT(($L$2:$L$949=TRUE)*($AL$2:$AL$949>AL23))+COUNTIFS($L$2:L23,L23,$AL$2:AL23,AL23)-1,1+SUMPRODUCT(($L$2:$L$949=TRUE)*($AM$2:$AM$949>AM23))+COUNTIFS($L$2:L23,L23,$AM$2:AM23,AM23)-1,1+SUMPRODUCT(($L$2:$L$949=TRUE)*($AN$2:$AN$949>AN23))+COUNTIFS($L$2:L23,L23,$AN$2:AN23,AN23)-1)),"") -> 676 | D23: Yonder Alonso | E23: =IFERROR(INDEX('Auction Log'!$C$4:$C$806,MATCH(D23,'Auction Log'!$B$4:$B$806,0)),"") ->  | F23: =IFERROR(INDEX('Auction-Rank'!$C$2:$C$948,MATCH(D23,'Auction-Rank'!$A$2:$A$948,0)),"") -> 1B | G23: =IFERROR(IF(F23=I23,"",IF(INDEX('Your Roto Auction'!$C$11:$C$634,MATCH(D23,'Your Roto Auction'!$D$11:$D$634,0))="",IF(I23<>"",I23,""),INDEX('Your Roto Auction'!$C$11:$C$634,MATCH(D23,'Your Roto Auction'!$D$11:$D$634,0)))),"") ->  | H23: 1B | J23: =INDEX('Auction-Rank'!$V$2:$V$948,MATCH(D23,'Auction-Rank'!$A$2:$A$948,0)) -> TRUE | K23: FALSE | L23: =IF(J23=FALSE,FALSE,IF(AND('Your Roto Auction'!$Q$6="Hide Drafted Players",K23=TRUE),FALSE,IF(OR('Your Roto Auction'!$Q$5="Show All Positions",AND('Your Roto Auction'!$Q$5="Only Show: C",H23="C"),AND('Your Roto Auction'!$Q$5="Only Show: 1B",H23="1B"),AND('Your Roto Auction'!$Q$5="Only Show: 2B",H23="2B"),AND('Your Roto Auction'!$Q$5="Only Show: 3B",H23="3B"),AND('Your Roto Auction'!$Q$5="Only Show: SS",H23="SS"),AND('Your Roto Auction'!$Q$5="Only Show: OF",H23="OF"),AND('Your Roto Auction'!$Q$5="Only Show: SP",H23="SP"),AND('Your Roto Auction'!$Q$5="Only Show: RP",H23="RP"),AND('Your Roto Auction'!$Q$5="Only Show: CI",OR(H23={"1B","3B"})),AND('Your Roto Auction'!$Q$5="Only Show: MI",OR(H23={"2B","SS"})),AND('Your Roto Auction'!$Q$5="Only Show: IF",OR(H23={"C","1B","2B","3B","SS"})),AND('Your Roto Auction'!$Q$5="Only Show: DH",OR(H23={"C","1B","2B","3B","SS","OF","DH"})),AND('Your Roto Auction'!$Q$5="Only Show: P",OR(H23={"SP","RP"})),AND('Your Roto Auction'!$Q$5="Only Show: LF",ISERROR(SEARCH("LF",VLOOKUP($D23,'Auction-Rank'!$A$2:$D$948,4,FALSE)))=FALSE),AND('Your Roto Auction'!$Q$5="Only Show: RF",ISERROR(SEARCH("RF",VLOOKUP($D23,'Auction-Rank'!$A$2:$D$948,4,FALSE)))=FALSE),AND('Your Roto Auction'!$Q$5="Only Show: CF",ISERROR(SEARCH("CF",VLOOKUP($D23,'Auction-Rank'!$A$2:$D$948,4,FALSE)))=FALSE)),TRUE,FALSE))) -> TRUE | M23: =IFERROR(IF(VLOOKUP($D23,'Inflation-Tracking'!$A$5:$AD$862,22,FALSE)="",-9999,VLOOKUP($D23,'Inflation-Tracking'!$A$5:$AD$862,22,FALSE)),-9999) -> -2.278878332 | N23: =IF(D23="Non-Ranked Player",-1001,IFERROR(VLOOKUP($D23,'All-WERTH'!$C$2:$E$793,3,FALSE),-1000)) -> -10.86107985 | O23: =IF(D23="Non-Ranked Player",10000,IFERROR(IF(VLOOKUP(D23,'Auction-Rank'!$A$2:$X$948,24,FALSE)="",9999,VLOOKUP(D23,'Auction-Rank'!$A$2:$X$948,24,FALSE)),9999)) -> 9999 | P23: =IF($D23="Unlisted Player",-1001,IFERROR(IF(VLOOKUP($D23,'All-WERTH'!$C$2:$AC$793,4,FALSE)="",-1000,VLOOKUP($D23,'All-WERTH'!$C$2:$AC$793,4,FALSE)),-1000)) -> -1.02569747 | Q23: =IF($D23="Unlisted Player",-1001,IFERROR(IF(VLOOKUP($D23,'All-WERTH'!$C$2:$AC$793,5,FALSE)="",-1000,VLOOKUP($D23,'All-WERTH'!$C$2:$AC$793,5,FALSE)),-1000)) -> -2.266744029 | R23: =IF($D23="Unlisted Player",-1001,IFERROR(IF(VLOOKUP($D23,'All-WERTH'!$C$2:$AC$793,6,FALSE)="",-1000,VLOOKUP($D23,'All-WERTH'!$C$2:$AC$793,6,FALSE)),-1000)) -> -3.429411181 | S23: =IF($D23="Unlisted Player",-1001,IFERROR(IF(VLOOKUP($D23,'All-WERTH'!$C$2:$AC$793,7,FALSE)="",-1000,VLOOKUP($D23,'All-WERTH'!$C$2:$AC$793,7,FALSE)),-1000)) -> -3.103948291 | T23: =IF($D23="Unlisted Player",-1001,IFERROR(IF(VLOOKUP($D23,'All-WERTH'!$C$2:$AC$793,8,FALSE)="",-1000,VLOOKUP($D23,'All-WERTH'!$C$2:$AC$793,8,FALSE)),-1000)) -> -1.035278883 | U23: =IF($D23="Unlisted Player",-1001,IFERROR(IF(VLOOKUP($D23,'All-WERTH'!$C$2:$AC$793,9,FALSE)="",-1000,VLOOKUP($D23,'All-WERTH'!$C$2:$AC$793,9,FALSE)),-1000)) -> -1000 | V23: =IF($D23="Unlisted Player",-1001,IFERROR(IF(VLOOKUP($D23,'All-WERTH'!$C$2:$AC$793,10,FALSE)="",-1000,VLOOKUP($D23,'All-WERTH'!$C$2:$AC$793,10,FALSE)),-1000)) -> -1000 | W23: =IF($D23="Unlisted Player",-1001,IFERROR(IF(VLOOKUP($D23,'All-WERTH'!$C$2:$AC$793,11,FALSE)="",-1000,VLOOKUP($D23,'All-WERTH'!$C$2:$AC$793,11,FALSE)),-1000)) -> -1000 | X23: =IF($D23="Unlisted Player",-1001,IFERROR(IF(VLOOKUP($D23,'All-WERTH'!$C$2:$AC$793,12,FALSE)="",-1000,VLOOKUP($D23,'All-WERTH'!$C$2:$AC$793,12,FALSE)),-1000)) -> -1000 | Y23: =IF($D23="Unlisted Player",-1001,IFERROR(IF(VLOOKUP($D23,'All-WERTH'!$C$2:$AC$793,13,FALSE)="",-1000,VLOOKUP($D23,'All-WERTH'!$C$2:$AC$793,13,FALSE)),-1000)) -> -1000 | Z23: =IF($D23="Unlisted Player",-1001,IFERROR(IF(VLOOKUP($D23,'All-WERTH'!$C$2:$AC$793,14,FALSE)="",-1000,VLOOKUP($D23,'All-WERTH'!$C$2:$AC$793,14,FALSE)),-1000)) -> -1000 | AA23: =IF($D23="Unlisted Player",-1001,IFERROR(IF(VLOOKUP($D23,'All-WERTH'!$C$2:$AC$793,15,FALSE)="",-1000,VLOOKUP($D23,'All-WERTH'!$C$2:$AC$793,15,FALSE)),-1000)) -> -1000 | AB23: =IF($D23="Unlisted Player",-1001,IFERROR(IF(VLOOKUP($D23,'All-WERTH'!$C$2:$AC$793,16,FALSE)="",-1000,VLOOKUP($D23,'All-WERTH'!$C$2:$AC$793,16,FALSE)),-1000)) -> -1000 | AC23: =IF($D23="Unlisted Player",-1001,IFERROR(IF(VLOOKUP($D23,'All-WERTH'!$C$2:$AC$793,17,FALSE)="",-1000,VLOOKUP($D23,'All-WERTH'!$C$2:$AC$793,17,FALSE)),-1000)) -> -1000 | AD23: =IF($D23="Unlisted Player",-1001,IFERROR(IF(VLOOKUP($D23,'All-WERTH'!$C$2:$AC$793,18,FALSE)="",-1000,VLOOKUP($D23,'All-WERTH'!$C$2:$AC$793,18,FALSE)),-1000)) -> -1000 | AE23: =IF($D23="Unlisted Player",-1001,IFERROR(IF(VLOOKUP($D23,'All-WERTH'!$C$2:$AC$793,19,FALSE)="",-1000,VLOOKUP($D23,'All-WERTH'!$C$2:$AC$793,19,FALSE)),-1000)) -> -1000 | AF23: =IF($D23="Unlisted Player",-1001,IFERROR(IF(VLOOKUP($D23,'All-WERTH'!$C$2:$AC$793,20,FALSE)="",-1000,VLOOKUP($D23,'All-WERTH'!$C$2:$AC$793,20,FALSE)),-1000)) -> -1000 | AG23: =IF($D23="Unlisted Player",-1001,IFERROR(IF(VLOOKUP($D23,'All-WERTH'!$C$2:$AC$793,21,FALSE)="",-1000,VLOOKUP($D23,'All-WERTH'!$C$2:$AC$793,21,FALSE)),-1000)) -> -1000 | AH23: =IF($D23="Unlisted Player",-1001,IFERROR(IF(VLOOKUP($D23,'All-WERTH'!$C$2:$AC$793,22,FALSE)="",-1000,VLOOKUP($D23,'All-WERTH'!$C$2:$AC$793,22,FALSE)),-1000)) -> -1000 | AI23: =IF($D23="Unlisted Player",-1001,IFERROR(IF(VLOOKUP($D23,'All-WERTH'!$C$2:$AC$793,23,FALSE)="",-1000,VLOOKUP($D23,'All-WERTH'!$C$2:$AC$793,23,FALSE)),-1000)) -> -1000 | AJ23: =IF($D23="Unlisted Player",-1001,IFERROR(IF(VLOOKUP($D23,'All-WERTH'!$C$2:$AC$793,24,FALSE)="",-1000,VLOOKUP($D23,'All-WERTH'!$C$2:$AC$793,24,FALSE)),-1000)) -> -1000 | AK23: =IF($D23="Unlisted Player",-1001,IFERROR(IF(VLOOKUP($D23,'All-WERTH'!$C$2:$AC$793,25,FALSE)="",-1000,VLOOKUP($D23,'All-WERTH'!$C$2:$AC$793,25,FALSE)),-1000)) -> -1000 | AL23: =IF($D23="Unlisted Player",-1001,IFERROR(IF(VLOOKUP($D23,'All-WERTH'!$C$2:$AC$793,26,FALSE)="",-1000,VLOOKUP($D23,'All-WERTH'!$C$2:$AC$793,26,FALSE)),-1000)) -> -1000 | AM23: =IF($D23="Unlisted Player",-1001,IFERROR(IF(VLOOKUP($D23,'All-WERTH'!$C$2:$AC$793,27,FALSE)="",-1000,VLOOKUP($D23,'All-WERTH'!$C$2:$AC$793,27,FALSE)),-1000)) -> -1000 | AN23: =IF(D23="Non-Ranked Player",-1001,IFERROR(VLOOKUP($D23,'All-WERTH'!$C$2:$AF$793,30,FALSE),-1000)) -> -7.780624864
A24: Stephen Strasburg | B24: =IFERROR(INDEX($A$1:$A$948,SMALL(IF($A$1:$A$948<>"",ROW($A$1:$A$948)),ROW(A23))),"") -> Stephen Strasburg | C24: =IFERROR(IF(L24=FALSE,"",CHOOSE(MATCH(RIGHT('Your Roto Auction'!$Q$4,LEN('Your Roto Auction'!$Q$4)-8),$M$1:$AN$1,0),1+SUMPRODUCT(($L$2:$L$949=TRUE)*($M$2:$M$949>M24))+COUNTIFS($L$2:L24,L24,$M$2:M24,M24)-1,1+SUMPRODUCT(($L$2:$L$949=TRUE)*($N$2:$N$949>N24))+COUNTIFS($L$2:L24,L24,$N$2:N24,N24)-1,1+SUMPRODUCT(($L$2:$L$949=TRUE)*($O$2:$O$949<O24))+COUNTIFS($L$2:L24,L24,$O$2:O24,O24)-1,1+SUMPRODUCT(($L$2:$L$949=TRUE)*($P$2:$P$949>P24))+COUNTIFS($L$2:L24,L24,$P$2:P24,P24)-1,1+SUMPRODUCT(($L$2:$L$949=TRUE)*($Q$2:$Q$949>Q24))+COUNTIFS($L$2:L24,L24,$Q$2:Q24,Q24)-1,1+SUMPRODUCT(($L$2:$L$949=TRUE)*($R$2:$R$949>R24))+COUNTIFS($L$2:L24,L24,$R$2:R24,R24)-1,1+SUMPRODUCT(($L$2:$L$949=TRUE)*($S$2:$S$949>S24))+COUNTIFS($L$2:L24,L24,$S$2:S24,S24)-1,1+SUMPRODUCT(($L$2:$L$949=TRUE)*($T$2:$T$949>T24))+COUNTIFS($L$2:L24,L24,$T$2:T24,T24)-1,1+SUMPRODUCT(($L$2:$L$949=TRUE)*($U$2:$U$949>U24))+COUNTIFS($L$2:L24,L24,$U$2:U24,U24)-1,1+SUMPRODUCT(($L$2:$L$949=TRUE)*($V$2:$V$949>V24))+COUNTIFS($L$2:L24,L24,$V$2:V24,V24)-1,1+SUMPRODUCT(($L$2:$L$949=TRUE)*($W$2:$W$949>W24))+COUNTIFS($L$2:L24,L24,$W$2:W24,W24)-1,1+SUMPRODUCT(($L$2:$L$949=TRUE)*($X$2:$X$949>X24))+COUNTIFS($L$2:L24,L24,$X$2:X24,X24)-1,1+SUMPRODUCT(($L$2:$L$949=TRUE)*($Y$2:$Y$949>Y24))+COUNTIFS($L$2:L24,L24,$Y$2:Y24,Y24)-1,1+SUMPRODUCT(($L$2:$L$949=TRUE)*($Z$2:$Z$949>Z24))+COUNTIFS($L$2:L24,L24,$Z$2:Z24,Z24)-1,1+SUMPRODUCT(($L$2:$L$949=TRUE)*($AA$2:$AA$949>AA24))+COUNTIFS($L$2:L24,L24,$AA$2:AA24,AA24)-1,1+SUMPRODUCT(($L$2:$L$949=TRUE)*($AB$2:$AB$949>AB24))+COUNTIFS($L$2:L24,L24,$AB$2:AB24,AB24)-1,1+SUMPRODUCT(($L$2:$L$949=TRUE)*($AC$2:$AC$949>AC24))+COUNTIFS($L$2:L24,L24,$AC$2:AC24,AC24)-1,1+SUMPRODUCT(($L$2:$L$949=TRUE)*($AD$2:$AD$949>AD24))+COUNTIFS($L$2:L24,L24,$AD$2:AD24,AD24)-1,1+SUMPRODUCT(($L$2:$L$949=TRUE)*($AE$2:$AE$949>AE24))+COUNTIFS($L$2:L24,L24,$AE$2:AE24,AE24)-1,1+SUMPRODUCT(($L$2:$L$949=TRUE)*($AF$2:$AF$949>AF24))+COUNTIFS($L$2:L24,L24,$AF$2:AF24,AF24)-1,1+SUMPRODUCT(($L$2:$L$949=TRUE)*($AG$2:$AG$949>AG24))+COUNTIFS($L$2:L24,L24,$AG$2:AG24,AG24)-1,1+SUMPRODUCT(($L$2:$L$949=TRUE)*($AH$2:$AH$949>AH24))+COUNTIFS($L$2:L24,L24,$AH$2:AH24,AH24)-1,1+SUMPRODUCT(($L$2:$L$949=TRUE)*($AI$2:$AI$949>AI24))+COUNTIFS($L$2:L24,L24,$AI$2:AI24,AI24)-1,1+SUMPRODUCT(($L$2:$L$949=TRUE)*($AJ$2:$AJ$949>AJ24))+COUNTIFS($L$2:L24,L24,$AJ$2:AJ24,AJ24)-1,1+SUMPRODUCT(($L$2:$L$949=TRUE)*($AK$2:$AK$949>AK24))+COUNTIFS($L$2:L24,L24,$AK$2:AK24,AK24)-1,1+SUMPRODUCT(($L$2:$L$949=TRUE)*($AL$2:$AL$949>AL24))+COUNTIFS($L$2:L24,L24,$AL$2:AL24,AL24)-1,1+SUMPRODUCT(($L$2:$L$949=TRUE)*($AM$2:$AM$949>AM24))+COUNTIFS($L$2:L24,L24,$AM$2:AM24,AM24)-1,1+SUMPRODUCT(($L$2:$L$949=TRUE)*($AN$2:$AN$949>AN24))+COUNTIFS($L$2:L24,L24,$AN$2:AN24,AN24)-1)),"") -> 28 | D24: Jose Altuve | E24: =IFERROR(INDEX('Auction Log'!$C$4:$C$806,MATCH(D24,'Auction Log'!$B$4:$B$806,0)),"") ->  | F24: =IFERROR(INDEX('Auction-Rank'!$C$2:$C$948,MATCH(D24,'Auction-Rank'!$A$2:$A$948,0)),"") -> 2B | G24: =IFERROR(IF(F24=I24,"",IF(INDEX('Your Roto Auction'!$C$11:$C$634,MATCH(D24,'Your Roto Auction'!$D$11:$D$634,0))="",IF(I24<>"",I24,""),INDEX('Your Roto Auction'!$C$11:$C$634,MATCH(D24,'Your Roto Auction'!$D$11:$D$634,0)))),"") ->  | H24: 2B | J24: =INDEX('Auction-Rank'!$V$2:$V$948,MATCH(D24,'Auction-Rank'!$A$2:$A$948,0)) -> TRUE | K24: FALSE | L24: =IF(J24=FALSE,FALSE,IF(AND('Your Roto Auction'!$Q$6="Hide Drafted Players",K24=TRUE),FALSE,IF(OR('Your Roto Auction'!$Q$5="Show All Positions",AND('Your Roto Auction'!$Q$5="Only Show: C",H24="C"),AND('Your Roto Auction'!$Q$5="Only Show: 1B",H24="1B"),AND('Your Roto Auction'!$Q$5="Only Show: 2B",H24="2B"),AND('Your Roto Auction'!$Q$5="Only Show: 3B",H24="3B"),AND('Your Roto Auction'!$Q$5="Only Show: SS",H24="SS"),AND('Your Roto Auction'!$Q$5="Only Show: OF",H24="OF"),AND('Your Roto Auction'!$Q$5="Only Show: SP",H24="SP"),AND('Your Roto Auction'!$Q$5="Only Show: RP",H24="RP"),AND('Your Roto Auction'!$Q$5="Only Show: CI",OR(H24={"1B","3B"})),AND('Your Roto Auction'!$Q$5="Only Show: MI",OR(H24={"2B","SS"})),AND('Your Roto Auction'!$Q$5="Only Show: IF",OR(H24={"C","1B","2B","3B","SS"})),AND('Your Roto Auction'!$Q$5="Only Show: DH",OR(H24={"C","1B","2B","3B","SS","OF","DH"})),AND('Your Roto Auction'!$Q$5="Only Show: P",OR(H24={"SP","RP"})),AND('Your Roto Auction'!$Q$5="Only Show: LF",ISERROR(SEARCH("LF",VLOOKUP($D24,'Auction-Rank'!$A$2:$D$948,4,FALSE)))=FALSE),AND('Your Roto Auction'!$Q$5="Only Show: RF",ISERROR(SEARCH("RF",VLOOKUP($D24,'Auction-Rank'!$A$2:$D$948,4,FALSE)))=FALSE),AND('Your Roto Auction'!$Q$5="Only Show: CF",ISERROR(SEARCH("CF",VLOOKUP($D24,'Auction-Rank'!$A$2:$D$948,4,FALSE)))=FALSE)),TRUE,FALSE))) -> TRUE | M24: =IFERROR(IF(VLOOKUP($D24,'Inflation-Tracking'!$A$5:$AD$862,22,FALSE)="",-9999,VLOOKUP($D24,'Inflation-Tracking'!$A$5:$AD$862,22,FALSE)),-9999) -> 27.67542955 | N24: =IF(D24="Non-Ranked Player",-1001,IFERROR(VLOOKUP($D24,'All-WERTH'!$C$2:$E$793,3,FALSE),-1000)) -> 3.61349301 | O24: =IF(D24="Non-Ranked Player",10000,IFERROR(IF(VLOOKUP(D24,'Auction-Rank'!$A$2:$X$948,24,FALSE)="",9999,VLOOKUP(D24,'Auction-Rank'!$A$2:$X$948,24,FALSE)),9999)) -> 31 | P24: =IF($D24="Unlisted Player",-1001,IFERROR(IF(VLOOKUP($D24,'All-WERTH'!$C$2:$AC$793,4,FALSE)="",-1000,VLOOKUP($D24,'All-WERTH'!$C$2:$AC$793,4,FALSE)),-1000)) -> 2.028616286 | Q24: =IF($D24="Unlisted Player",-1001,IFERROR(IF(VLOOKUP($D24,'All-WERTH'!$C$2:$AC$793,5,FALSE)="",-1000,VLOOKUP($D24,'All-WERTH'!$C$2:$AC$793,5,FALSE)),-1000)) -> -0.2445227266 | R24: =IF($D24="Unlisted Player",-1001,IFERROR(IF(VLOOKUP($D24,'All-WERTH'!$C$2:$AC$793,6,FALSE)="",-1000,VLOOKUP($D24,'All-WERTH'!$C$2:$AC$793,6,FALSE)),-1000)) -> 1.022324829 | S24: =IF($D24="Unlisted Player",-1001,IFERROR(IF(VLOOKUP($D24,'All-WERTH'!$C$2:$AC$793,7,FALSE)="",-1000,VLOOKUP($D24,'All-WERTH'!$C$2:$AC$793,7,FALSE)),-1000)) -> 0.2234456714 | T24: =IF($D24="Unlisted Player",-1001,IFERROR(IF(VLOOKUP($D24,'All-WERTH'!$C$2:$AC$793,8,FALSE)="",-1000,VLOOKUP($D24,'All-WERTH'!$C$2:$AC$793,8,FALSE)),-1000)) -> 0.5836289496 | U24: =IF($D24="Unlisted Player",-1001,IFERROR(IF(VLOOKUP($D24,'All-WERTH'!$C$2:$AC$793,9,FALSE)="",-1000,VLOOKUP($D24,'All-WERTH'!$C$2:$AC$793,9,FALSE)),-1000)) -> -1000 | V24: =IF($D24="Unlisted Player",-1001,IFERROR(IF(VLOOKUP($D24,'All-WERTH'!$C$2:$AC$793,10,FALSE)="",-1000,VLOOKUP($D24,'All-WERTH'!$C$2:$AC$793,10,FALSE)),-1000)) -> -1000 | W24: =IF($D24="Unlisted Player",-1001,IFERROR(IF(VLOOKUP($D24,'All-WERTH'!$C$2:$AC$793,11,FALSE)="",-1000,VLOOKUP($D24,'All-WERTH'!$C$2:$AC$793,11,FALSE)),-1000)) -> -1000 | X24: =IF($D24="Unlisted Player",-1001,IFERROR(IF(VLOOKUP($D24,'All-WERTH'!$C$2:$AC$793,12,FALSE)="",-1000,VLOOKUP($D24,'All-WERTH'!$C$2:$AC$793,12,FALSE)),-1000)) -> -1000 | Y24: =IF($D24="Unlisted Player",-1001,IFERROR(IF(VLOOKUP($D24,'All-WERTH'!$C$2:$AC$793,13,FALSE)="",-1000,VLOOKUP($D24,'All-WERTH'!$C$2:$AC$793,13,FALSE)),-1000)) -> -1000 | Z24: =IF($D24="Unlisted Player",-1001,IFERROR(IF(VLOOKUP($D24,'All-WERTH'!$C$2:$AC$793,14,FALSE)="",-1000,VLOOKUP($D24,'All-WERTH'!$C$2:$AC$793,14,FALSE)),-1000)) -> -1000 | AA24: =IF($D24="Unlisted Player",-1001,IFERROR(IF(VLOOKUP($D24,'All-WERTH'!$C$2:$AC$793,15,FALSE)="",-1000,VLOOKUP($D24,'All-WERTH'!$C$2:$AC$793,15,FALSE)),-1000)) -> -1000 | AB24: =IF($D24="Unlisted Player",-1001,IFERROR(IF(VLOOKUP($D24,'All-WERTH'!$C$2:$AC$793,16,FALSE)="",-1000,VLOOKUP($D24,'All-WERTH'!$C$2:$AC$793,16,FALSE)),-1000)) -> -1000 | AC24: =IF($D24="Unlisted Player",-1001,IFERROR(IF(VLOOKUP($D24,'All-WERTH'!$C$2:$AC$793,17,FALSE)="",-1000,VLOOKUP($D24,'All-WERTH'!$C$2:$AC$793,17,FALSE)),-1000)) -> -1000 | AD24: =IF($D24="Unlisted Player",-1001,IFERROR(IF(VLOOKUP($D24,'All-WERTH'!$C$2:$AC$793,18,FALSE)="",-1000,VLOOKUP($D24,'All-WERTH'!$C$2:$AC$793,18,FALSE)),-1000)) -> -1000 | AE24: =IF($D24="Unlisted Player",-1001,IFERROR(IF(VLOOKUP($D24,'All-WERTH'!$C$2:$AC$793,19,FALSE)="",-1000,VLOOKUP($D24,'All-WERTH'!$C$2:$AC$793,19,FALSE)),-1000)) -> -1000 | AF24: =IF($D24="Unlisted Player",-1001,IFERROR(IF(VLOOKUP($D24,'All-WERTH'!$C$2:$AC$793,20,FALSE)="",-1000,VLOOKUP($D24,'All-WERTH'!$C$2:$AC$793,20,FALSE)),-1000)) -> -1000 | AG24: =IF($D24="Unlisted Player",-1001,IFERROR(IF(VLOOKUP($D24,'All-WERTH'!$C$2:$AC$793,21,FALSE)="",-1000,VLOOKUP($D24,'All-WERTH'!$C$2:$AC$793,21,FALSE)),-1000)) -> -1000 | AH24: =IF($D24="Unlisted Player",-1001,IFERROR(IF(VLOOKUP($D24,'All-WERTH'!$C$2:$AC$793,22,FALSE)="",-1000,VLOOKUP($D24,'All-WERTH'!$C$2:$AC$793,22,FALSE)),-1000)) -> -1000 | AI24: =IF($D24="Unlisted Player",-1001,IFERROR(IF(VLOOKUP($D24,'All-WERTH'!$C$2:$AC$793,23,FALSE)="",-1000,VLOOKUP($D24,'All-WERTH'!$C$2:$AC$793,23,FALSE)),-1000)) -> -1000 | AJ24: =IF($D24="Unlisted Player",-1001,IFERROR(IF(VLOOKUP($D24,'All-WERTH'!$C$2:$AC$793,24,FALSE)="",-1000,VLOOKUP($D24,'All-WERTH'!$C$2:$AC$793,24,FALSE)),-1000)) -> -1000 | AK24: =IF($D24="Unlisted Player",-1001,IFERROR(IF(VLOOKUP($D24,'All-WERTH'!$C$2:$AC$793,25,FALSE)="",-1000,VLOOKUP($D24,'All-WERTH'!$C$2:$AC$793,25,FALSE)),-1000)) -> -1000 | AL24: =IF($D24="Unlisted Player",-1001,IFERROR(IF(VLOOKUP($D24,'All-WERTH'!$C$2:$AC$793,26,FALSE)="",-1000,VLOOKUP($D24,'All-WERTH'!$C$2:$AC$793,26,FALSE)),-1000)) -> -1000 | AM24: =IF($D24="Unlisted Player",-1001,IFERROR(IF(VLOOKUP($D24,'All-WERTH'!$C$2:$AC$793,27,FALSE)="",-1000,VLOOKUP($D24,'All-WERTH'!$C$2:$AC$793,27,FALSE)),-1000)) -> -1000 | AN24: =IF(D24="Non-Ranked Player",-1001,IFERROR(VLOOKUP($D24,'All-WERTH'!$C$2:$AF$793,30,FALSE),-1000)) -> 6.851981437
